Workbook

Sheet Versiebeheer
A1: Versie | B1: Datum | C1: Wijziging | D1: Locatie
A2: 1.0 | B2: 2019-10-23
A3: 1.1 | B3: 2020-04-30 | C3: Formule aangepast obv dubbele rendementtelling in F25 & G25 | D3: RES_HER_ZB
A4: 1.1 | B4: 2020-04-30 | C4: Formule aangepast obv dubbele rendementtelling in F25 & G25 | D4: RES_HER_WPB
A5: 1.1 | B5: 2020-04-30 | C5: Formule aangepast met nieuwe CAPEX eenheidsprijs | D5: RES_ISO_DAK
A6: 1.1 | B6: 2020-04-30 | C6: Bronvermelding in F105 aangepast | D6: RES_ISO_MUUR
A7: 1.1 | B7: 2020-04-30 | C7: Grootorde eenheidsprijs aangepast in F63 | D7: OV_LED_EE
A8: 1.2 | B8: 2020-09-04 | C8: Update data inventaristool 2011-2017 in overeenstemming met open data o.b.v. inventaristool | D8: AA_Data_all_DOEL (Access-db)
A9: 1.2 | B9: 2020-09-04 | C9: Update data inventaristool 2011-2017 in overeenstemming met open data o.b.v. inventaristool | D9: AA_Data_all_REF (Access-db)
A10: 1.2 | B10: 2020-09-04 | C10: Update energieconsumptiefactoren wegtransport 2017 in overeenstemming met inventaristool | D10: AA_MOB_ECF_2030 (Access-db)
A11: 1.2 | B11: 2020-09-04 | C11: Update energieconsumptiefactoren wegtransport 2017 in overeenstemming met inventaristool | D11: AA_MOB_ECF_MTR (Access-db)
A12: 1.2 | B12: 2020-09-04 | C12: Update productie groene energie 2016 en 2017 in overeenstemming met inventaristool | D12: AA_LEN_PROD (Access-db)
A13: 1.3 | B13: 2021-03-01 | C13: Formule aangepast berekening CO2-reductie warmtepompboiler huishoudens (scenario 2) in G26 | D13: RES_HER_WPB
A14: 1.4 | B14: 44364 | C14: Update data inventaristool 2011-2017 in overeenstemming met open data o.b.v. inventaristool | D14: AA_Data_all_DOEL (Access-db)
A15: 1.4 | B15: 44364 | C15: Update data inventaristool 2011-2017 in overeenstemming met open data o.b.v. inventaristool | D15: AA_Data_all_REF (Access-db)
A16: 1.4 | B16: 44364 | C16: Update energieconsumptiefactoren wegtransport 2017 in overeenstemming met inventaristool | D16: AA_MOB_ECF_2030 (Access-db)
A17: 1.4 | B17: 44364 | C17: Update energieconsumptiefactoren wegtransport 2017 in overeenstemming met inventaristool | D17: AA_MOB_ECF_MTR (Access-db)
A18: 1.4 | B18: 44364 | C18: Update productie groene energie 2016 en 2017 in overeenstemming met inventaristool | D18: AA_LEN_PROD (Access-db)
A19: 1.5 | B19: 44813 | C19: Update data inventaristool 2011-2017 in overeenstemming met open data o.b.v. inventaristool | D19: AA_Data_all_DOEL (Access-db)
A20: 1.5 | B20: 44813 | C20: Update data inventaristool 2011-2017 in overeenstemming met open data o.b.v. inventaristool | D20: AA_Data_all_REF (Access-db)
A21: 1.5 | B21: 44813 | C21: Update energieconsumptiefactoren wegtransport 2017 in overeenstemming met inventaristool | D21: AA_MOB_ECF_2030 (Access-db)
A22: 1.5 | B22: 44813 | C22: Update energieconsumptiefactoren wegtransport 2017 in overeenstemming met inventaristool | D22: AA_MOB_ECF_MTR (Access-db)
A23: 1.5 | B23: 44813 | C23: Update productie groene energie 2016 en 2017 in overeenstemming met inventaristool | D23: AA_LEN_PROD (Access-db)
A24: 1.6 | B24: 44964 | C24: aanpassing formule berekening totale MWh en CO2 in rekenblad "EIG", incl. sector "niet toegekend" | D24: EIG

Sheet Inleiding
B2: =CONCATENATE("Maatregelentool ",INDEX(Versiebeheer!A1:A31,COUNTA(Versiebeheer!A1:A31))) -> Maatregelentool 1.6
B3: =CONCATENATE("versie: ",TEXT(INDEX(Versiebeheer!B1:B31,COUNTA(Versiebeheer!A1:A31)),"dd/mm"),"/",YEAR(INDEX(Versiebeheer!B1:B31,COUNTA(Versiebeheer!A1:A31)))) -> versie: 07/02/2023 | G3: contact: jan.breijne@vlaanderen.be
B5: Het Burgemeestersconvenant werd in 2008 gelanceerd door de Europese Commissie met als doel het samenbrengen en ondersteunen van burgemeesters die zich wilden engageren tot de Europese klimaat- en energiedoelstellingen.
B6: Ondertekenaars van het Burgemeestersconvenant engageren zich ondermeer om de CO2-uitstoot op hun grondgebied te reduceren met 40% tegen 2030.
B7: Departement Omgeving ondersteunt de steden en gemeenten bij de invulling van de rapporteringsvereisten van het Burgemeestersconvenant door informatie en tools ter beschikking te stellen via: http://www.burgemeestersconvenant.be/home.
B8: Met deze maatregelentool wil Departement Omgeving de steden en gemeenten ondersteunen bij de opmaak van hun duurzaam energie- en klimaatactieplan (SECAP).
B9: De CO2-inventarissen die Departement Omgeving al sinds 2013 ter beschikking stelt via haar website (http://www.burgemeestersconvenant.be/co2-inventarissen), worden automatisch meegenomen in deze maatregelentool.
B10: De tool werd uitgebreid getest door een 10-tal grote/kleine gemeenten, intercommunales en provincies. Bij de ontwikkeling van de tool werd rekening gehouden met de feedback uit de testfase.
B28: In de tool worden 30 maatregelen beschreven die het energieverbruik kunnen reduceren of vergroenen op het grondgebied van een stad of gemeente.
B29: Met deze tool kan een stad of gemeente de impact doorrekenen van een selectie van maatregelen (scenario's) op de CO2-uitstoot. De tool maakt het mogelijk om twee scenario's met elkaar te vergelijken.
B30: ="Een stad of gemeente heeft de keuze om de impact van de maatregelen door te rekenen ten opzichte van de situatie in " & P_Maatregelen_Jaar_Inventaris & " (volgens de inventaris van Dept. Omgeving of een eigen inventaris) of ten opzichte van een BAU-scenario 2030." -> Een stad of gemeente heeft de keuze om de impact van de maatregelen door te rekenen ten opzichte van de situatie in 2017 (volgens de inventaris van Dept. Omgeving of een eigen inventaris) of ten opzichte van een BAU-scenario 2030.
B31: ="Het BAU-scenario geeft de evolutie in CO2-uitstoot van een stad of gemeente tussen " & P_Maatregelen_Jaar_Inventaris & " en 2030, gegeven autonome evoluties en beslist klimaat- en energiebeleid op federaal / Vlaams niveau." -> Het BAU-scenario geeft de evolutie in CO2-uitstoot van een stad of gemeente tussen 2017 en 2030, gegeven autonome evoluties en beslist klimaat- en energiebeleid op federaal / Vlaams niveau.
B32: De scenario's worden vergeleken met een CO2-emissieplafond voor 2030.
B33: Voor de bepaling van het CO2-emissieplafond voor 2030 kan een stad of gemeente uitgaan van de inventaris van Dept. Omgeving of een eigen inventaris.
B35: Installatie tool
B37: - Maak een folder "Burgemeestersconvenant" direct op de C-schijf en bewaar maatregelentool_data.accdb in deze folder. Deze stap is enkel nodig bij eerste gebruik van de tool.
B38: - In geval van foutmelding: controleer of de tool correct gekoppeld is met de achterliggende Access databank.
C39: Ga in de maatregelentool (.xlsm) in menubalk naar: Gegevens/ Bestaande verbindingen (in het vak "Gegevens ophalen en transformeren").
C40: Klik met de rechter muisknop op een bestaande connectie (bv. ‘AA_Data_all_REFDOEL’) en klik op commando "Eigenschappen van verbinding bewerken".
C41: Ga naar tabblad "definitie".
C42: Vervang in de box "verbindingsreeks" alle tekst door volgende tekst: DSN=MS Access Database;DBQ=C:\Burgemeestersconvenant\Maatregelentool_data.accdb;DriverId=25;FIL=MS Access;MaxBufferSize=2048;PageTimeout=5;
C43: De locatie in het vet moet overeenkomen met de locatie waar maatregelentool_data.accdb bewaard werd.
C44: Herhaal dit voor elk van de 9 connecties die beginnen met AA_ (dus NIET de query).
C45: Klik op OK.
C46: Sluit het venster "Bestaande verbindingen" door op het kruisje x rechts bovenaan te klikken.
C47: Bewaar de maatregelentool (xlsm).
B49: Tips bij gebruik tool
B51: - Enkel het Dashboard en het rekenblad Scenario's moeten ingevuld worden om concrete resultaten in de grafieken en tabellen van deze tool te bekomen.
B52: - Klik altijd op de knop "alles vernieuwen" (cf. menubalk: Gegevens) voordat je de resultaten in de grafieken en tabellen raadpleegt. Zo ben je zeker dat alle aanpassingen in de rekenbladen Dashboard en Scenario's ook meegenomen worden in de resultaten.
B53: - Alle aannames, berekeningen en achterliggende datasets kunnen overschreven worden. Wij raden echter aan om wijzigingen te beperken tot de parameters die opgelijst staan in het Dashboard, het rekenblad Scenario's en de maatregelenfiches.
B54: - In deze tool werden een aantal rekenbladen verborgen. Deze rekenbladen bevatten datasets en berekeningen die geen input van de gebruiker vereisen.
B55: - Verborgen rekenbladen kunnen zichtbaar gemaakt worden door op een rekenblad te gaan staan en via de rechtermuisknop de optie "zichtbaar maken" te selecteren.
B56: Om de rekenbladen opnieuw te verbergen, volg je dezelfde stappen maar kies je voor de optie "verbergen".
B57: - Via het groeperen van kolommen en rijen kan je zelf kiezen welke informatie je wil tonen op het scherm. Door op de "+" of "-" knop te klikken die boven een kolom of langs een rij staat, wordt resp. meer of minder informatie zichtbaar op het scherm.
B58: - Via "koppelingen" kan de gebruiker tussen (zichtbare) rekenbladen navigeren. Een koppeling is herkenbaar als onderstreept tekstdeel (cf. inhoudstafel of naar scenario's >> rechts bovenaan Dashboard).
B59: - De handleiding zit geïntegreerd in de tool. Voor elke groep van rekenbladen (input, resultaat, BAU, maatregelenfiches, algemene aannames) wordt in een overzicht (naam rekenblad ->) extra toelichting gegeven over de inhoud en het gebruik van deze rekenbladen.
B60: De extra toelichting in de rekenbladen zelf kan ondersteuning bieden bij het invullen van bepaalde cellen of de interpretatie van de resultaten.
B61: Via de "+"-knop boven de kolomhoofdingen (uiterst rechts op het scherm) kan deze extra toelichting geraadpleegd worden.
B62: De gebruiker kan onmiddellijk naar de overeenkomstige rij in de toelichting gaan om bijkomende verduidelijking bij deze velden te krijgen.
B64: Randvoorwaarden voor interpretatie resultaten
B66: - In deze tool ligt de focus op technische maatregelen (vraagreductie, efficiëntieverbetering, elektrificatie en hernieuwbare energieproductie) waarmee de CO2-uitstoot op het grondgebied van een gemeente of stad kan gereduceerd wordt.
B67: Deze 30 maatregelen werden geselecteerd in samenspraak met Departement Omgeving en vertegenwoordigers uit lokale en bovenlokale besturen.
B68: Bij de selectie werd o.a. rekening gehouden met het CO2-reductiepotentieel van de maatregelen en de slagkracht (autonomie) van de gemeente om de maatregel te realiseren.
B69: Deze selectie van maatregelen is geen unieke oplossing voor elke stad of gemeente maar geeft wel een eerste indicatie van de inspanningen die nodig zijn om de CO2-uitstoot tegen 2030 te reduceren op het schaalniveau van een gemeente of stad.
B70: - We rekenen met weloverwogen gemiddeldes voor de inschatting van het bijkomend potentieel van maatregelen. Deze eerder generieke benadering kan afwijken van de specifieke situatie in een gemeente.
B71: Gemeentespecifieke gegevens over het potentieel van de maatregelen kunnen de resultaten verfijnen.
B72: - Bij de doorrekening van het potentieel wordt rekening gehouden met de optelbaarheid van individuele maatregelen zodat (bv. Isolatie dak, isolatie muur, isolatie vloer, betere beglazing)
B73: - We maken een inschatting van de maatschappelijke kost van elke maatregel. Deze inschatting rekent met een maatschappelijke rentevoet van 4% en houdt geen rekening met BTW, taksen en subsidies.
B74: De maatschappelijke kost kan bijgevolg afwijken van de effectieve kostprijs voor de individuele burger, ondernemer of investeerder.
B75: - Indirecte effecten, macro-economische effecten of externe kosten/baten die voortkomen uit een maatregel worden niet meegenomen.
B76: - Impact op de (transport, energie, …) infrastructuur van een pakket van maatregelen wordt niet expliciet in rekening gebracht bij de doorrekening van de scenario's.
B77: Bv. bij vergaande elektrificatie is een netto-toename van duurzame elektriciteitsproductie belangrijk of bij vergaande modal shift naar de fiets is beschikbaarheid van een veilig en uitgebreid fietsnetwerk belangrijk.
B78: Bij versnelde introductie van grote hoeveelheden zonne- of windenergie op het elektriciteitsnet is het belangrijk dat er op elk moment voldoende baseload aanwezig is om aan de elektriciteitsvraag te voldoen en het elektriciteitsnet deze hoeveelheden aankan.
B80: Architectuur van tool
E114: Noot: indien gewenst kan de gebruiker de gegevens in de groen gemarkeerde rekenbladen overschrijven met gemeentespecifieke gegevens

Sheet Inhoudstabel
C3: Inhoudstabel | I3: Extra toelichting
I5: De rekenbladen Dashboard en Scenario's zijn de enige rekenbladen die moeten ingevuld worden om resultaten te kunnen tonen.
C6: Dashboard | I6: In rekenblad Dashboard selecteert de gebruiker basisparameters zoals naam gemeente, doelstelling 2030, referentie impact maatregelen, discontovoet.
C7: Scenario's | I7: In rekenblad Scenario's stelt de gebruiker 2 pakketten van maatregelen samen (scenario's) waarmee de CO2-uitstoot op het grondgebied van de geselecteerde stad of gemeente kan gereduceerd worden.
C9: Input | I9: De input rekenbladen worden (grotendeels automatisch) ingevuld op basis van de selecties die de gebruiker maakt in het dashboard.
D10: CO2-plafond | G10: Verborgen | I10: Het CO2-emissieplafond wordt automatisch berekend op basis van inventaris Dept. Omgeving of eigen inventaris voor het geselecteerd referentiejaar.
D11: Inventaris dep. Omgeving (INV) | G11: Verborgen | I11: In rekenblad INV wordt de inventaris van Dept. Omgeving voor het jaar 2017 automatisch ingelezen voor de gemeente die geselecteerd wordt in het dashboard.
D12: Eigen inventaris (EIG) | I12: De gebruiker moet rekenblad EIG voorzien van data voor het jaar 2017 indien in het dashboard gekozen wordt om impact maatregelen door te rekenen ten opzichte van eigen inventaris .
C14: Resultaten | I14: De resultaten rekenbladen geven de impact op de CO2-uitstoot voor de twee maatregelenpakketten (scenario's) in twee grafieken en drie tabellen.
D15: Fig_Overzicht CO2 totaal | I15: Grafische voorstelling van CO2-emissieplafond, te behalen CO2-reductie en totale CO2-emissies voor scenario 1 en scenario 2.
D16: Fig_Bijdrage in te behalen red | I16: Grafische voorstelling van de absolute bijdrage van sectoren en individuele maatregelen in de te behalen CO2-reductie. In deze grafiek is eigen selectie van sectoren en maatregelen mogelijk.
D17: Tabel_Overzicht CO2 per sector | I17: Tabel met vergelijking totale CO2-uitstoot tussen de twee scenario's voor alle sectoren. Dit is een vooraf gedefinieerde tabel die bij voorkeur niet aangepast wordt.
D18: Tabel_Overzicht red per sector | I18: Tabel met vergelijking CO2-reductie tussen de twee scenario's voor alle sectoren. Dit is een vooraf gedefinieerde tabel die bij voorkeur niet aangepast wordt.
D19: Tabel_Red per sector en maatreg | I19: Tabel met vergelijking CO2-reductie tussen de twee scenario's voor alle sectoren en maatregelen, incl. % bijdrage in gerealiseerde reductie. In deze tabel is eigen selectie van sectoren en maatregelen mogelijk.
C21: BAU | I21: De BAU rekenbladen geven per sector een overzicht van het energieverbruik, de energieproductie en gerelateerde CO2-emissies in 2030 t.o.v. 2017.
D22: BAU_RES | E22: BAU_MOB | G22: Verborgen | I22: De rekenbladen geven voor elke sector (residentieel, tertiair, industrie, transport, landbouw en lokale energieproductie) een overzicht van aannames en doorrekeningen.
D23: BAU_TER | E23: BAU_LBO | G23: Verborgen | I23: Deze rekenbladen kunnen als gegeven beschouwd worden. Indien gewenst, kunnen de aannames met gemeentespecifieke data overschreven worden. | R23: (cf. cellen)
D24: BAU_IND | E24: BAU_ENE | G24: Verborgen
C26: Maatregelenfiches | I26: De maatregelenfiches geven een gedetailleerde beschrijving van elke maatregel die in het rekenblad scenario's kan geselecteerd worden.
D27: RES_ISO_DAK | E27: TER_HER_ZB | F27: MOB_BS_H2 | I27: Naast een beschrijving van de maatregel wordt in de fiches ook een overzicht gegeven van:
D28: RES_ISO_MUUR | E28: TER_HER_WPB | F28: LEN_PV | I28: - relatie met andere maatregelen
D29: RES_ISO_VL | E29: TER_EE_ELE | F29: LEN_Wind | I29: - betekenis van maatregel op lange termijn voor energie-/klimaattransitie
D30: RES_ISO_BG | E30: OV_LED_EE | F30: LB_HER_WP | I30: - aannames die gemaakt zijn bij de doorrekening van de impact van de maatregel
D31: RES_HER_WP | E31: IND_HER_WP | F31: LB_HER_PocV | I31: - berekening van het bijkomend potentieel van de maatregel en de gerealiseerde CO2-reductie, voor een gekozen ambitieniveau van dit bijkomend potentieel.
D32: RES_HER_ZB | E32: IND_HER_ZB | F32: LB_HER_BMK | I32: - kenmerken/parameters van de maatregel en de referentiesituatie
D33: RES_HER_WPB | E33: IND_EE_EEA | F33: LB_EE_ENS | I33: - referenties
D34: RES_EE_ELE | E34: MOB_MS_voet | F34: BLANCO_1 | I34: Deze rekenbladen kunnen als gegeven beschouwd worden. Indien gewenst, kunnen de aannames met gemeentespecifieke data overschreven worden. | R34: (cf. cellen)
D35: RES_EE_SLOOP | E35: MOB_MS_EFiets | F35: BLANCO_2 | I35: Er zijn 3 blanco maatregelenfiches (BLANCO) voorzien voor het uitwerken van 'niet-voor-gedefinieerde' lokale maatregelen.
D36: TER_EE_ISO | E36: MOB_MS_OV | F36: BLANCO_3 | I36: De blanco maatregelen worden enkel meegenomen in rekenblad Scenario's indien een CO2-reductie wordt ingevuld in het betreffende rekenblad.
D37: TER_HER_WP | E37: MOB_BS_EV | F37: Selectiecriteria | I37: De gebruiker kan de selectiecriteria raadplegen voor bijkomende ondersteuning bij de selectie van maatregelen en vastleggen van ambitieniveaus voor de scenario's.
C39: Algemene aannames | I39: De rekenbladen met algemene aannames brengen alle datasets samen die nodig zijn om de berekeningen uit te voeren.
D40: Energieprijs en discontovoet | I40: - graaddagen, prijzen elektriciteit, prijzen brandstoffen, levensduur en kostprijs installaties, emissiefactoren, conversiefactoren brandstoffen, discontovoeten
D41: Inventaris Dept. Omgeving voor referentiejaar doelstelling | G41: Verborgen | I41: - automatisch gevuld met inventaris Dept. Omgeving indien in dashboard gekozen wordt voor berekening doelstellingen obv inventaris Dept. Omgeving en dit voor het geselecteerde referentiejaar
D42: Huidig verbruik en CO2-uitstoot | G42: Verborgen | I42: - huidig energieverbruik en gerelateerde CO2-uitstoot voor gemeente geselecteerd in dashboard, per sector en energiedrager uit inventaris Dept. Omgeving voor 2017
D43: Evolutie aantal huishoudens | G43: Verborgen | I43: - aantal huishoudens voor gemeente geselecteerd in dashboard in 2017 en 2030
D44: Aantal voertuig, bus- en tramkilometers | G44: Verborgen | I44: - aantal voertuigkilometers per wegtype, aantal bus- en tramkilometers voor geselecteerde gemeente uit inventaris Dept. Omgeving voor 2017
D45: Energieconsumptiefactoren transport | G45: Verborgen | I45: - energieconsumptiefactoren per voertuigtype, wegtype en brandstoftechnologie in 2017 en 2030
D46: Potentieel zonnekaart | G46: Verborgen | I46: - potentieel zonnekaart VEA (https://www.energiesparen.be/zonnekaart)
D47: REV2030 scenario uit Hernieuwbare Energie Atlas Vlaanderen | G47: Verborgen | I47: - bijkomend potentieel aan hernieuwbare energieproductie (in MWh) voor geselecteerde gemeente uit Hernieuwbare EnergieAtlas voor Vlaanderen (REV2030 scenario)
D48: Huidige productie groene stroom | G48: Verborgen | I48: - lokale energieproductie (in MWh) voor PV, wind en waterkracht voor geselecteerde gemeente uit inventaris Dept. Omgeving voor 2017
I49: Indien gewenst kunnen aannames in dataset "AA_Energieprijs&discontovoet" overschreven worden.
I50: De andere datasets worden als gegeven beschouwd. Indien gebruiker deze aannames aanpast, kunnen we werking tool niet garanderen.
I52: Opm: de koppeling naar de betreffende rekenbladen die in de inhoudstafel voorzien is, werkt niet als de rekenbladen verborgen zijn.
I53: De verborgen rekenbladen kunnen opnieuw zichtbaar gemaakt worden. De gebruiker gaat in een rekenblad staan, klikt op rechter muisknop en selecteert vervolgens "zichtbaar maken" .

Sheet Dashboard
H3: Naar Scenario's >>
C5: Dashboard - selectie parameters | K5: Extra toelichting
C7: Vul onderstaande parameters in of selecteer de optie die van toepassing is. | K7: In het dashboard kiest de gebruiker de aannames op basis waarvan de berekeningen in de maatregelentool gebeuren.
D8: Selectiemenu
C9: Gemeente | D9: VITO | K9: Gemeente: de inventaris van Dept. Omgeving voor het jaar 2017 wordt automatisch ingelezen in rekenblad INV en het BAU-scenario wordt opgemaakt in de BAU-rekenbladen voor de geselecteerde gemeente.
D10: Selectiemenu
C11: CO2-uitstoot | D11: Zonder snelwegen | K11: CO2-uitstoot: CO2-uitstoot van de snelwegen wordt wel/niet meegenomen in de inventarissen van Dept. Omgeving en bij de opmaak van het BAU-scenario. Deze correctie gebeurt automatisch na selectie.
K12: Indien een gemeente kiest om het CO2-plafond en impact van maatregelen door te rekenen op basis van een eigen inventaris, moet de gemeente zelf de correctie voor snelwegen doorvoeren in haar cijfers.
C13: Definitie CO2-plafond | D13: Selectiemenu
C14: CO2-plafond wordt gedefinieerd o.b.v. | D14: Inventaris Dept. Omgeving | K14: Definitie CO2-plafond: voor 2030 wordt de max. CO2-uitstoot berekend ten opzichte van een inventaris van Dept. Omgeving of een eigen inventaris.
D15: Selectiemenu | K15: De max. CO2-uitstoot voor 2030 wordt berekend (in rekenblad CO2-plafond) door de vooropgestelde CO2-reductie (cel D20) in mindering te brengen van de CO2-uitstoot voor het referentiejaar dat de gebruiker selecteert (cel D16).
C16: Met als referentiejaar | D16: 2012 | K16: Bijvoorbeeld:
C17: =IF($D$14="","",IF(P_Doel_Referentie="doel_INV","","CO2-emissies in referentiejaar (in ton)")) ->  | K17: gebruiker kiest voor Inventaris Dept. Omgeving voor het referentiejaar 2011 en reductie van 40%
K18: CO2-plafond= totale CO2-uitstoot uit inventaris Dept. Omgeving voor het jaar 2011 (automatisch ingelezen in rekenblad AA_Data_all_DOEL) x (1-0,4)
C19: Vermindering van de CO2-uitstoot t.o.v. | D19: Invullen | K19: gebruiker kiest voor eigen inventaris voor het referentiejaar 2007 en reductie van 40%
C20: het geselecteerde referentiejaar voor 2030 van: | D20: 40 | E20: % | K20: CO2-plafond= totale CO2-uitstoot voor het jaar 2007 (ingegeven in cel D17) x (1-0,4)
C22: Definitie te behalen reductie | K22: Definitie te behalen reductie: opdat de CO2-uitstoot in 2030 het max. CO2-plafond niet zou overschrijden, moeten er bijkomende maatregelen ingezet worden.
C23: Impact van maatregelen voor het behalen | D23: Selectiemenu | K23: Voor de bepaling van de bijkomende reductie die met deze maatregelen moet gerealiseerd worden, kan de gebruiker kiezen tussen drie referentiepunten:
C24: van het CO2-plafond in 2030 wordt berekend t.o.v.: | D24: Business-as-usual-scenario 2030 (BAU) | K24: - inventaris Dept. Omgeving (INV) 2017: te behalen reductie is het verschil tussen het CO2-plafond voor 2030 en totale CO2-uitstoot voor 2017 in rekenblad INV.
D25: =IF(P_Maatregelen_Referentie="EIG","Gelieve de gegevens aan te vullen in TAB: EIG"," ") ->  | G25: =IF(P_Maatregelen_Referentie="EIG","Gelieve de gegevens aan te vullen in TAB: "," ") ->  | K25: - BAU 2030: te behalen reductie is het verschil tussen het CO2-plafond voor 2030 en totale CO2-uitstoot voor 2030 in rekenblad BAU_TOTAAL.
C26: Voor bijkomende ondersteuning bij keuze tussen BAU of INV cf. | D26: BAU_TOTAAL | K26: Het BAU-scenario wordt automatisch berekend in de BAU-rekenbladen door inventaris Dept. Omgeving voor 2017 te corrigeren voor impact autonome evolutie (bv. bevolkingsgroei, economische groei) en beslist beleid op federaal/Vlaams niveau tussen 2017 en 2030.
K27: - eigen inventaris (EIG) 2017: te behalen reductie is verschil tussen het CO2-plafond en totale CO2-uitstoot voor 2017 zoals door de gebruiker ingevuld in rekenblad EIG.
K28: In elk van deze opties wordt bijgevolg rekening gehouden met de evolutie van de CO2-uitstoot tussen het referentiejaar voor de definitie van het CO2-plafond en het jaar 2017.
C29: Algemene parameters | D29: Invullen
C30: Discontovoet | D30: 4 | E30: % | K30: Discontovoet: in de maatregelenfiches wordt voor de omrekening van de investeringskost naar een jaarlijkse kapitaalkost (annuïteit) uitgegaan van een maatschappelijke discontovoet van 4%.
K31: Indien gewenst, kan de gebruiker deze aanname van 4% overschrijven. Voor meer informatie over discontovoet cf.
C32: Klik op "Alles vernieuwen" in menubalk (Gegevens) | H32: Naar Scenario's >> | U32: Maatregelenfiches

Sheet Dashboard_tabel4fig (hidden)
A1: Scenario | B1: Situatie | C1: Jaar | D1: Maatregel | E1: Type | F1: CO2 | G1: Gedefinieerd plafond | H1: Reductie | I1: Label plafond | J1: Label reductie | K1: Plafond | L1: Gedefinieerd plafond_waarde | M1: Reductie_waarde
A2: Scenario 2 | B2: Scenario 2 | C2: 2030 | D2: Totaal | E2: totale emissie | F2: =SUMIFS(tblResultaatSector[ton CO2],tblResultaatSector[Situatie],tblFigDashboard[[#This Row],[Situatie]],tblResultaatSector[Jaar],tblFigDashboard[[#This Row],[Jaar]],tblResultaatSector[Maatregel],tblFigDashboard[[#This Row],[Maatregel]],tblResultaatSector[Type],tblFigDashboard[[#This Row],[Type]]) -> 152957.2585 | G2: =IF($F$6=0,NA(),tblFigDashboard[[#This Row],[Gedefinieerd plafond_waarde]]/$F$6) -> 0.4342262226 | H2: =IF($F$6=0,NA(),tblFigDashboard[[#This Row],[Reductie_waarde]]/$F$6) -> 0.5067610539 | I2: =IF(tblFigDashboard[[#This Row],[CO2]]=0,"",CONCATENATE("Totale emissie scenario 2: ",TEXT(tblFigDashboard[[#This Row],[CO2]],"# ##0")," ton CO2")) -> Totale emissie scenario 2: 152 957 ton CO2 | J2: =IF(tblFigDashboard[[#This Row],[CO2]]=0,"",CONCATENATE("Reductie: ",TEXT(tblFigDashboard[[#This Row],[Reductie_waarde]],"# ##0")," ton CO2")) -> Reductie: 178 508 ton CO2 | K2: =$G$5 -> 0.6 | L2: =IF(P_Check_Input=FALSE,NA(),tblFigDashboard[[#This Row],[CO2]]) -> 152957.2585 | M2: =IF(P_Check_Input=FALSE,NA(),$F$4-tblFigDashboard[[#This Row],[CO2]]) -> 178507.8319
A3: Scenario 1 | B3: Scenario 1 | C3: 2030 | D3: Totaal | E3: totale emissie | F3: =SUMIFS(tblResultaatSector[ton CO2],tblResultaatSector[Situatie],tblFigDashboard[[#This Row],[Situatie]],tblResultaatSector[Jaar],tblFigDashboard[[#This Row],[Jaar]],tblResultaatSector[Maatregel],tblFigDashboard[[#This Row],[Maatregel]],tblResultaatSector[Type],tblFigDashboard[[#This Row],[Type]]) -> 262392.8395 | G3: =IF($F$6=0,NA(),tblFigDashboard[[#This Row],[Gedefinieerd plafond_waarde]]/$F$6) -> 0.7448999322 | H3: =IF($F$6=0,NA(),tblFigDashboard[[#This Row],[Reductie_waarde]]/$F$6) -> 0.1960873444 | I3: =IF(tblFigDashboard[[#This Row],[CO2]]=0,"",CONCATENATE("Totale emissie scenario 1: ",TEXT(tblFigDashboard[[#This Row],[CO2]],"# ##0")," ton CO2")) -> Totale emissie scenario 1: 262 393 ton CO2 | J3: =IF(tblFigDashboard[[#This Row],[CO2]]=0,"",CONCATENATE("Reductie: ",TEXT(tblFigDashboard[[#This Row],[Reductie_waarde]],"# ##0")," ton CO2")) -> Reductie: 69 072 ton CO2 | K3: 0.6 | L3: =IF(P_Check_Input=FALSE,NA(),tblFigDashboard[[#This Row],[CO2]]) -> 262392.8395 | M3: =IF(P_Check_Input=FALSE,NA(),$F$4-tblFigDashboard[[#This Row],[CO2]]) -> 69072.25098
A4: =IF(tblFigDashboard[[#This Row],[CO2]]=0,"Referentie voor doorrekenen impact maatregelen",CONCATENATE("Referentie voor doorrekenen impact maatregelen: ", P_Maatregelen_Referentie," ",tblFigDashboard[[#This Row],[Jaar]])) -> Referentie voor doorrekenen impact maatregelen: BAU 2030 | B4: Referentiesituatie | C4: =P_Maatregelen_Jaar -> 2030 | D4: Totaal | E4: totale emissie | F4: =SUMIFS(tblResultaatSector[ton CO2],tblResultaatSector[Situatie],tblFigDashboard[[#This Row],[Situatie]],tblResultaatSector[Jaar],tblFigDashboard[[#This Row],[Jaar]],tblResultaatSector[Maatregel],tblFigDashboard[[#This Row],[Maatregel]],tblResultaatSector[Type],tblFigDashboard[[#This Row],[Type]]) -> 331465.0904 | G4: =IF($F$4=0,NA(),tblFigDashboard[[#This Row],[Gedefinieerd plafond_waarde]]/$F$6) -> 0.6 | H4: =IF($F$6=0,NA(),tblFigDashboard[[#This Row],[Reductie_waarde]]/$F$6) -> 0.3409872765 | J4: =IF(tblFigDashboard[[#This Row],[CO2]]=0,"",IF(tblFigDashboard[[#This Row],[Reductie_waarde]]>0,CONCATENATE("Te behalen reductie: ",TEXT(tblFigDashboard[[#This Row],[Reductie_waarde]],"# ##0")," ton CO2"),"CO2-plafond voor 2030 reeds behaald")) -> Te behalen reductie: 120 114 ton CO2 | K4: 0.6 | L4: =IF(ISBLANK(D_Maatregelen_Referentie),NA(),IF(tblFigDashboard[[#This Row],[CO2]]=0,0,IF(tblFigDashboard[[#This Row],[CO2]]>=$F$5,$F$5,tblFigDashboard[[#This Row],[CO2]]))) -> 211351.4807 | M4: =IF(ISBLANK(D_Maatregelen_Referentie),NA(),IF(tblFigDashboard[[#This Row],[CO2]]>tblFigDashboard[[#This Row],[Gedefinieerd plafond_waarde]],tblFigDashboard[[#This Row],[CO2]]-tblFigDashboard[[#This Row],[Gedefinieerd plafond_waarde]],0)) -> 120113.6097
A5: Gedefinieerd CO2-plafond 2030 | B5: CO2-plafond 2030 | C5: 2030 | D5: Totaal | E5: totale emissie | F5: =SUMIFS(tblResultaatSector[ton CO2],tblResultaatSector[Situatie],tblFigDashboard[[#This Row],[Situatie]],tblResultaatSector[Jaar],tblFigDashboard[[#This Row],[Jaar]],tblResultaatSector[Maatregel],tblFigDashboard[[#This Row],[Maatregel]],tblResultaatSector[Type],tblFigDashboard[[#This Row],[Type]]) -> 211351.4807 | G5: =IF($F$6=0,NA(),tblFigDashboard[[#This Row],[Gedefinieerd plafond_waarde]]/$F$6) -> 0.6 | H5: =IF($F$6=0,NA(),tblFigDashboard[[#This Row],[Reductie_waarde]]/$F$6) -> 0 | I5: =IF(tblFigDashboard[[#This Row],[CO2]]=0,"",CONCATENATE("Gedefinieerd plafond: ",TEXT(tblFigDashboard[[#This Row],[Gedefinieerd plafond_waarde]],"# ##0")," ton CO2")) -> Gedefinieerd plafond: 211 351 ton CO2 | K5: 0.6 | L5: =IF(P_Doel_Reductie=0,NA(),$F$5) -> 211351.4807 | M5: =IF(P_Doel_Reductie=0,NA(),tblFigDashboard[[#This Row],[CO2]]-tblFigDashboard[[#This Row],[Gedefinieerd plafond_waarde]]) -> 0
A6: =IF(tblFigDashboard[[#This Row],[Jaar]]=0,"Referentie voor definitie CO2-plafond",CONCATENATE("Referentie voor definitie CO2-plafond: jaar ",tblFigDashboard[[#This Row],[Jaar]])) -> Referentie voor definitie CO2-plafond: jaar 2012 | B6: Doelstellingsreferentie | C6: =D_Doel_Jaar -> 2012 | D6: Totaal | E6: totale emissie | F6: =SUMIFS(tblResultaatSector[ton CO2],tblResultaatSector[Situatie],tblFigDashboard[[#This Row],[Situatie]],tblResultaatSector[Jaar],tblFigDashboard[[#This Row],[Jaar]],tblResultaatSector[Maatregel],tblFigDashboard[[#This Row],[Maatregel]],tblResultaatSector[Type],tblFigDashboard[[#This Row],[Type]]) -> 352252.4679 | G6: =IF($F$6=0,NA(),tblFigDashboard[[#This Row],[Gedefinieerd plafond_waarde]]/$F$6) -> 0.6 | H6: =IF($F$6=0,NA(),tblFigDashboard[[#This Row],[Reductie_waarde]]/$F$6) -> 0.4 | J6: =IF(tblFigDashboard[[#This Row],[Jaar]]=0,"",IF(OR(P_Doel_Reductie=0,tblFigDashboard[[#This Row],[Reductie_waarde]]=0),"",CONCATENATE("Vermindering CO2-uitstoot: -",P_Doel_Reductie,"%"))) -> Vermindering CO2-uitstoot: -40% | K6: 0.6 | L6: =$F$5 -> 211351.4807 | M6: =tblFigDashboard[[#This Row],[CO2]]-tblFigDashboard[[#This Row],[Gedefinieerd plafond_waarde]] -> 140900.9872

Sheet Parameters (hidden)
C3: Parameters
C5: Algemene instellingen
D6: P_Snelwegen | E6: =IF(D_Snelwegen="Met snelwegen",1,0) -> 0
D7: P_Discontovoet | E7: =D_Discontovoet/100 -> 0.04
C9: Definitie doelstelling
D10: P_Doel_Referentie | E10: =VLOOKUP(D_Doel_Referentie,tblTargetRef[],2,FALSE) -> doel_INV
D11: P_Doel_ReferentieUitstoot | E11: =D_Doel_ReferentieUitstoot -> 0
D12: P_Doel_Jaar | E12: =D_Doel_Jaar -> 2012
D13: P_Doel_Reductie | E13: =D_Doel_Reductie -> 40
C15: Definitie maatregelen
D16: P_Maatregelen_Jaar_Inventaris | E16: =MAX(lstDoel_Jaar_MEI) -> 2017
D17: P_Maatregelen_Jaar | E17: =IF(P_Maatregelen_Referentie="BAU",2030,P_Maatregelen_Jaar_Inventaris) -> 2030
D18: P_Maatregelen_Referentie | E18: =VLOOKUP(IF(D_Maatregelen_Referentie=0,"",D_Maatregelen_Referentie),tblRefMaatregelen[],2,FALSE) -> BAU
C20: P_Check_Input | E20: =NOT(OR(ISBLANK(D_gemeente),ISBLANK(D_Snelwegen),ISBLANK(D_Doel_Referentie),ISBLANK(D_Doel_Jaar),ISBLANK(D_Doel_Reductie),ISBLANK(D_Maatregelen_Referentie),ISBLANK(D_Discontovoet))) -> TRUE

Sheet Scenario_tabel4fig (hidden)
A1: Scenario | B1: Situatie | C1: Jaar | D1: Type | E1: Ref | F1: CO2 | G1: Relatief tov ref
A2: Scenario 1 | B2: Scenario 1 | C2: 2030 | D2: totale emissie | E2: 0 | F2: =SUMIFS(tblResultaatSector[ton CO2],tblResultaatSector[Situatie],"Referentiesituatie",tblResultaatSector[Jaar],P_Maatregelen_Jaar,tblResultaatSector[Maatregel],"Totaal",tblResultaatSector[Type],"Totale emissie")-SUMIFS(tblResultaatMaatregelen[Reductie],tblResultaatMaatregelen[Scenario],tblFigScenarios[[#This Row],[Situatie]],tblResultaatMaatregelen[X-as],"Maatregelen") -> 262392.8395 | G2: =IF(P_Check_Input=FALSE,NA(),IF(tblFigScenarios[[#This Row],[Type]]="reductie",1-tblFigScenarios[[#This Row],[CO2]]/SUMPRODUCT([Ref],[CO2]),tblFigScenarios[[#This Row],[CO2]]/SUMPRODUCT([Ref],[CO2]))) -> 0.7916153074
A3: Scenario 2 | B3: Scenario 2 | C3: 2030 | D3: totale emissie | E3: 0 | F3: =SUMIFS(tblResultaatSector[ton CO2],tblResultaatSector[Situatie],"Referentiesituatie",tblResultaatSector[Jaar],P_Maatregelen_Jaar,tblResultaatSector[Maatregel],"Totaal",tblResultaatSector[Type],"Totale emissie")-SUMIFS(tblResultaatMaatregelen[Reductie],tblResultaatMaatregelen[Scenario],tblFigScenarios[[#This Row],[Situatie]],tblResultaatMaatregelen[X-as],"Maatregelen") -> 152957.2585 | G3: =IF(P_Check_Input=FALSE,NA(),IF(tblFigScenarios[[#This Row],[Type]]="reductie",1-tblFigScenarios[[#This Row],[CO2]]/SUMPRODUCT([Ref],[CO2]),tblFigScenarios[[#This Row],[CO2]]/SUMPRODUCT([Ref],[CO2]))) -> 0.4614581232
A4: =CONCATENATE(P_Maatregelen_Referentie," - ",P_Maatregelen_Jaar) -> BAU - 2030 | B4: Referentiesituatie | C4: =P_Maatregelen_Jaar -> 2030 | D4: totale emissie | E4: 1 | F4: =SUMIFS(tblResultaatSector[ton CO2],tblResultaatSector[Situatie],tblFigScenarios[[#This Row],[Situatie]],tblResultaatSector[Jaar],tblFigScenarios[[#This Row],[Jaar]]) -> 331465.0904 | G4: =IF(P_Check_Input=FALSE,NA(),IF(tblFigScenarios[[#This Row],[Type]]="reductie",1-tblFigScenarios[[#This Row],[CO2]]/SUMPRODUCT([Ref],[CO2]),tblFigScenarios[[#This Row],[CO2]]/SUMPRODUCT([Ref],[CO2]))) -> 1
A5: CO2-plafond 2030 | B5: CO2-plafond 2030 | C5: 2030 | D5: totale emissie | E5: 0 | F5: =SUMIFS(tblResultaatSector[ton CO2],tblResultaatSector[Situatie],tblFigScenarios[[#This Row],[Situatie]],tblResultaatSector[Jaar],tblFigScenarios[[#This Row],[Jaar]]) -> 211351.4807 | G5: =IF(P_Check_Input=FALSE,NA(),IF(tblFigScenarios[[#This Row],[Type]]="reductie",1-tblFigScenarios[[#This Row],[CO2]]/SUMPRODUCT([Ref],[CO2]),tblFigScenarios[[#This Row],[CO2]]/SUMPRODUCT([Ref],[CO2]))) -> 0.6376281752

Sheet Scenario's
C3: << Naar Dashboard | R3: Naar Resultaat >>
C5: Scenario's - selectie maatregelenpakketten | L5: =CONCATENATE("Maatregelen worden berekend t.o.v. ",P_Maatregelen_Referentie," ",IF(P_Maatregelen_Referentie="BAU",P_Maatregelen_Jaar,"voor het jaar "&P_Maatregelen_Jaar)) -> Maatregelen worden berekend t.o.v. BAU 2030 | U5: Extra toelichting
C6: Geef voor elk scenario het ambitieniveau per maatregel aan in kolom I en kolom M (opties: niet, laag, medium, hoog).
C7: Voor bijkomende ondersteuning bij selectie maatregelen en ambitieniveau cf. | F7: Selectiecriteria
U8: In het rekenblad Scenario's selecteert de gebruiker voor elke maatregel het gewenste ambitieniveau in kolom I en kolom M (opties: niet, laag, medium, hoog).
C9: Nr. | D9: Sector | E9: Korte omschrijving maatregel | F9: Maatregelcode | G9: Bijkomend | H9: Potentieel (2030) | I9: Scenario 1 | J9: % | K9: Ambitie1 | L9: Eenheid_ambitie1 | M9: Scenario 2 | N9: %. | O9: Ambitie2 | P9: Eenheid ambitie2 | R9: Indicatie impact scenario's | U9: Het ambitieniveau "niet" wil zeggen dat 0% van het theoretisch potentieel wordt doorgerekend.
C10: 1 | D10: Huishoudens | E10: Isolatiemaatregel gericht op dak | F10: RES_ISO_DAK | G10: =RES_ISO_DAK!F44 -> 19972.33884 | H10: bestaande woningen komen in aanmerking | I10: Laag | J10: =RES_ISO_DAK!$F$55 -> 0.4 | K10: =IF(Tbl_scenario[[#This Row],[%]]<1%,0,ROUNDUP(RES_ISO_DAK!F56/100,0)*100) -> 8000 | L10: woningen | M10: Hoog | N10: =RES_ISO_DAK!$G$55 -> 0.8 | O10: =IF(Tbl_scenario[[#This Row],[%.]]<1%,0,ROUNDUP(RES_ISO_DAK!G56/100,0)*100) -> 16000 | P10: =Tbl_scenario[[#This Row],[Eenheid_ambitie1]] -> woningen | R10: t.o.v. CO2-plafond 2030
C11: 2 | D11: Huishoudens | E11: Isolatiemaatregel gericht op buitenmuren | F11: RES_ISO_MUUR | G11: =RES_ISO_MUUR!F44 -> 32403.99744 | H11: bestaande woningen komen in aanmerking | I11: Laag | J11: =RES_ISO_MUUR!$F$55 -> 0.4 | K11: =IF(Tbl_scenario[[#This Row],[%]]<1%,0,ROUNDUP(RES_ISO_MUUR!F56/100,0)*100) -> 13000 | L11: woningen | M11: Hoog | N11: =RES_ISO_MUUR!$G$55 -> 0.8 | O11: =IF(Tbl_scenario[[#This Row],[%.]]<1%,0,ROUNDUP(RES_ISO_MUUR!G56/100,0)*100) -> 26000 | P11: =Tbl_scenario[[#This Row],[Eenheid_ambitie1]] -> woningen | U11: In de maatregelentool zitten een aantal hulpmiddeltjes die de gebruiker kunnen helpen bij de selectie van het ambitieniveau:
C12: 3 | D12: Huishoudens | E12: Isolatiemaatregel gericht op vloeren | F12: RES_ISO_VL | G12: =RES_ISO_VL!F46 -> 32741.53908 | H12: bestaande woningen komen in aanmerking | I12: Laag | J12: =RES_ISO_VL!$F$57 -> 0.4 | K12: =IF(Tbl_scenario[[#This Row],[%]]<1%,0,ROUNDUP(RES_ISO_VL!F58/100,0)*100) -> 13100 | L12: woningen | M12: Hoog | N12: =RES_ISO_VL!$G$57 -> 0.8 | O12: =IF(Tbl_scenario[[#This Row],[%.]]<1%,0,ROUNDUP(RES_ISO_VL!G58/100,0)*100) -> 26200 | P12: =Tbl_scenario[[#This Row],[Eenheid_ambitie1]] -> woningen | U12: 1. Kolom G: door de theoretische potentiëlen te vergelijken tussen maatregelen, krijgt de gebruiker een indicatie van de bijdrage die de verschillende maatregelen kunnen leveren.
C13: 4 | D13: Huishoudens | E13: Isolatiemaatregel gericht op ramen en beglazing | F13: RES_ISO_BG | G13: =RES_ISO_BG!F47 -> 19206.11932 | H13: bestaande woningen komen in aanmerking | I13: Laag | J13: =RES_ISO_BG!$F$58 -> 0.4 | K13: =IF(Tbl_scenario[[#This Row],[%]]<1%,0,ROUNDUP(RES_ISO_BG!F59/100,0)*100) -> 7700 | L13: woningen | M13: Hoog | N13: =RES_ISO_BG!$G$58 -> 0.8 | O13: =IF(Tbl_scenario[[#This Row],[%.]]<1%,0,ROUNDUP(RES_ISO_BG!G59/100,0)*100) -> 15400 | P13: =Tbl_scenario[[#This Row],[Eenheid_ambitie1]] -> woningen | U13: Het ambitieniveau wordt doorgerekend als een procentueel aandeel van het theoretisch potentieel (kolom G) in resp. kolom K en kolom O.
C14: 5 | D14: Huishoudens | E14: Warmtepomp | F14: RES_HER_WP | G14: =RES_HER_WP!F42 -> 9390.744326 | H14: bestaande woningen komen in aanmerking | I14: Laag | J14: =RES_HER_WP!$F$52 -> 0.2 | K14: =IF(Tbl_scenario[[#This Row],[%]]<1%,0,ROUNDUP(RES_HER_WP!F53/100,0)*100) -> 1900 | L14: woningen | M14: Hoog | N14: =RES_HER_WP!$G$52 -> 0.75 | O14: =IF(Tbl_scenario[[#This Row],[%.]]<1%,0,ROUNDUP(RES_HER_WP!G53/100,0)*100) -> 7100 | P14: =Tbl_scenario[[#This Row],[Eenheid_ambitie1]] -> woningen | U14: Via de "+"-knoppen boven de kolomhoofdingen kunnen de resultaten van deze potentieelberekeningen geraadpleegd worden.
C15: 6 | D15: Huishoudens | E15: Zonneboiler | F15: RES_HER_ZB | G15: =RES_HER_ZB!F37 -> 13366.64894 | H15: bestaande woningen komen in aanmerking | I15: Laag | J15: =RES_HER_ZB!$F$46 -> 0.3 | K15: =IF(Tbl_scenario[[#This Row],[%]]<1%,0,ROUNDUP(RES_HER_ZB!F47/100,0)*100) -> 4100 | L15: woningen | M15: Hoog | N15: =RES_HER_ZB!$G$46 -> 0.7 | O15: =IF(Tbl_scenario[[#This Row],[%.]]<1%,0,ROUNDUP(RES_HER_ZB!G47/100,0)*100) -> 9400 | P15: =Tbl_scenario[[#This Row],[Eenheid_ambitie1]] -> woningen
C16: 7 | D16: Huishoudens | E16: Warmtepompboiler | F16: RES_HER_WPB | G16: =RES_HER_WPB!F36 -> 33754.164 | H16: bestaande woningen komen in aanmerking | I16: Laag | J16: =RES_HER_WPB!F45 -> 0.15 | K16: =IF(Tbl_scenario[[#This Row],[%]]<1%,0,ROUNDUP(RES_HER_WPB!F46/100,0)*100) -> 5100 | L16: woningen | M16: Hoog | N16: =RES_HER_WPB!G45 -> 0.35 | O16: =IF(Tbl_scenario[[#This Row],[%.]]<1%,0,ROUNDUP(RES_HER_WPB!G46/100,0)*100) -> 11900 | P16: =Tbl_scenario[[#This Row],[Eenheid_ambitie1]] -> woningen | U16: 2. Figuur in kolom R: indicatie bijdrage maatregel tot realisatie CO2-plafond 2030.
C17: 8 | D17: Huishoudens | E17: Elektriciteitsgebruik: verhogen efficiëntie | F17: RES_EE_ELE | G17: =RES_EE_ELE!F33 -> 36039.81131 | H17: MWh elektriciteitsgebruik | I17: Laag | J17: =RES_EE_ELE!F42 -> 0.1 | K17: =IF(Tbl_scenario[[#This Row],[%]]<1%,0,ROUNDUP(RES_EE_ELE!F43/10,0)*10) -> 3610 | L17: MWh ele. gebruik | M17: Hoog | N17: =RES_EE_ELE!G42 -> 0.5 | O17: =IF(Tbl_scenario[[#This Row],[%.]]<1%,0,ROUNDUP(RES_EE_ELE!G43/10,0)*10) -> 18020 | P17: =Tbl_scenario[[#This Row],[Eenheid_ambitie1]] -> MWh ele. gebruik | U17: Als de gebruiker het ambitieniveau van een maatregel verandert, verschuift het "scenario"-balkje in de figuur in kolom R.
C18: 9 | D18: Huishoudens | E18: Stimuleren sloop energieverslindende woningen | F18: RES_EE_SLOOP | G18: =RES_EE_SLOOP!F42 -> 2025.24984 | H18: bestaande woningen komen in aanmerking | I18: Laag | J18: =RES_EE_SLOOP!F52 -> 0.5 | K18: =IF(Tbl_scenario[[#This Row],[%]]<1%,0,ROUNDUP(RES_EE_SLOOP!F53/10,0)*10) -> 1020 | L18: woningen | M18: Hoog | N18: =RES_EE_SLOOP!G52 -> 0.9 | O18: =IF(Tbl_scenario[[#This Row],[%.]]<1%,0,ROUNDUP(RES_EE_SLOOP!G53/10,0)*10) -> 1830 | P18: =Tbl_scenario[[#This Row],[Eenheid_ambitie1]] -> woningen | U18: De mate waarin het balkje verschuift, geeft een indicatie van de bijdrage van de maatregel tot de te behalen reductie.
C19: 10 | D19: Tertiair | E19: Verhoogde isolatiegraad | F19: TER_EE_ISO | G19: =TER_EE_ISO!F37 -> 69382.23939 | H19: MWh warmtegebruik | I19: Laag | J19: =TER_EE_ISO!F46 -> 0.3 | K19: =IF(Tbl_scenario[[#This Row],[%]]<1%,0,ROUNDUP(TER_EE_ISO!F47/100,0)*100) -> 20900 | L19: MWh | M19: Hoog | N19: =TER_EE_ISO!G46 -> 0.7 | O19: =IF(Tbl_scenario[[#This Row],[%.]]<1%,0,ROUNDUP(TER_EE_ISO!G47/100,0)*100) -> 48600 | P19: =Tbl_scenario[[#This Row],[Eenheid_ambitie1]] -> MWh | U19: Afhankelijk van de selectie in het Dashboard (cel D24), wordt de impact van de geselecteerde maatregelen doorgerekend ten opzichte van:
C20: 11 | D20: Tertiair | E20: Warmtepomp | F20: TER_HER_WP | G20: =TER_HER_WP!F40 -> 86727.79924 | H20: MWh warmtegebruik | I20: Laag | J20: =TER_HER_WP!$F$49 -> 0.15 | K20: =IF(Tbl_scenario[[#This Row],[%]]<1%,0,ROUNDUP(TER_HER_WP!F50/1000,0)*1000) -> 14000 | L20: MWh | M20: Hoog | N20: =TER_HER_WP!$G$49 -> 0.35 | O20: =IF(Tbl_scenario[[#This Row],[%.]]<1%,0,ROUNDUP(TER_HER_WP!G50/1000,0)*1000) -> 31000 | P20: =Tbl_scenario[[#This Row],[Eenheid_ambitie1]] -> MWh | U20: --> BAU-scenario 2030
C21: 12 | D21: Tertiair | E21: Zonneboiler | F21: TER_HER_ZB | G21: =TER_HER_ZB!F44 -> 24091.05534 | H21: MWh warmtegebruik | I21: Laag | J21: =TER_HER_ZB!F53 -> 0.15 | K21: =IF(Tbl_scenario[[#This Row],[%]]<1%,0,ROUNDUP(TER_HER_ZB!F54/1000,0)*1000) -> 4000 | L21: MWh | M21: Hoog | N21: =TER_HER_ZB!G53 -> 0.35 | O21: =IF(Tbl_scenario[[#This Row],[%.]]<1%,0,ROUNDUP(TER_HER_ZB!G54/1000,0)*1000) -> 9000 | P21: =Tbl_scenario[[#This Row],[Eenheid_ambitie1]] -> MWh | U21: --> inventaris van Dept. Omgeving voor het jaar 2017 (INV)
C22: 13 | D22: Tertiair | E22: Warmtepompboiler | F22: TER_HER_WPB | G22: =TER_HER_WPB!F42 -> 45773.00515 | H22: MWh warmtegebruik | I22: Laag | J22: =TER_HER_WPB!F51 -> 0.15 | K22: =IF(Tbl_scenario[[#This Row],[%]]<1%,0,ROUNDUP(TER_HER_WPB!F52/1000,0)*1000) -> 7000 | L22: MWh | M22: Hoog | N22: =TER_HER_WPB!G51 -> 0.35 | O22: =IF(Tbl_scenario[[#This Row],[%.]]<1%,0,ROUNDUP(TER_HER_WPB!G52/1000,0)*1000) -> 17000 | P22: =Tbl_scenario[[#This Row],[Eenheid_ambitie1]] -> MWh | U22: --> eigen inventaris voor het jaar 2017 (EIG)
C23: 14 | D23: Tertiair | E23: Ele. gebruik: verhogen efficiëntie (LED, relighting, koeling, etc.) | F23: TER_EE_ELE | G23: =TER_EE_ELE!F35 -> 47507.23962 | H23: MWh elektriciteitsgebruik | I23: Laag | J23: =TER_EE_ELE!F44 -> 0.3 | K23: =IF(Tbl_scenario[[#This Row],[%]]<1%,0,ROUNDUP(TER_EE_ELE!F45/100,0)*100) -> 14300 | L23: MWh ele. gebruik | M23: Hoog | N23: =TER_EE_ELE!G44 -> 0.7 | O23: =IF(Tbl_scenario[[#This Row],[%.]]<1%,0,ROUNDUP(TER_EE_ELE!G45/100,0)*100) -> 33300 | P23: =Tbl_scenario[[#This Row],[Eenheid_ambitie1]] -> MWh ele. gebruik | U23: Des te kleiner de afstand tussen het "scenario"-balkje en het "CO2-plafond 2030"-balkje, des te kleiner de "kloof" of de CO2-reductie die nog gerealiseerd moet worden.
C24: 15 | D24: Openbare verlichting | E24: LED: verhogen energie-efficiëntie | F24: OV_LED_EE | G24: =OV_LED_EE!F33 -> 4046.037399 | H24: MWh elektriciteitsgebruik | I24: Laag | J24: =OV_LED_EE!F42 -> 0.3 | K24: =IF(Tbl_scenario[[#This Row],[%]]<1%,0,ROUNDUP(OV_LED_EE!F43/10,0)*10) -> 1220 | L24: MWh ele. gebruik | M24: Hoog | N24: =OV_LED_EE!G42 -> 0.7 | O24: =IF(Tbl_scenario[[#This Row],[%.]]<1%,0,ROUNDUP(OV_LED_EE!G43/10,0)*10) -> 2840 | P24: =Tbl_scenario[[#This Row],[Eenheid_ambitie1]] -> MWh ele. gebruik
C25: 16 | D25: Industrie (niet-ETS) | E25: Warmtepomp | F25: IND_HER_WP | G25: =IND_HER_WP!F36 -> 19615.62658 | H25: MWh warmtegebruik | I25: Laag | J25: =IND_HER_WP!$F$45 -> 0.15 | K25: =IF(Tbl_scenario[[#This Row],[%]]<1%,0,ROUNDUP(IND_HER_WP!F46/100,0)*100) -> 3000 | L25: MWh | M25: Hoog | N25: =IND_HER_WP!$G$45 -> 0.35 | O25: =IF(Tbl_scenario[[#This Row],[%.]]<1%,0,ROUNDUP(IND_HER_WP!G46/100,0)*100) -> 6900 | P25: =Tbl_scenario[[#This Row],[Eenheid_ambitie1]] -> MWh | U25: 3. Maatregelenfiches: door op de koppeling in kolom F te klikken, ga je rechtstreeks naar de betreffende maatregelenfiche.
C26: 17 | D26: Industrie (niet-ETS) | E26: Zonneboiler | F26: IND_HER_ZB | G26: =IND_HER_ZB!F39 -> 3432.734652 | H26: MWh warmtegebruik | I26: Laag | J26: =IND_HER_ZB!F48 -> 0.15 | K26: =IF(Tbl_scenario[[#This Row],[%]]<1%,0,ROUNDUP(IND_HER_ZB!F49/100,0)*100) -> 600 | L26: MWh | M26: Hoog | N26: =IND_HER_ZB!G48 -> 0.35 | O26: =IF(Tbl_scenario[[#This Row],[%.]]<1%,0,ROUNDUP(IND_HER_ZB!G49/100,0)*100) -> 1300 | P26: =Tbl_scenario[[#This Row],[Eenheid_ambitie1]] -> MWh | U26: In de maatregelenfiches vindt de gebruiker de achterliggende aannames en berekeningen van het theoretisch potentieel en de ambitieniveaus terug.
C27: 18 | D27: Industrie (niet-ETS) | E27: Ele. gebruik: verhogen efficiëntie elektrische aandrijfsystemen | F27: IND_EE_EEA | G27: =IND_EE_EEA!F35 -> 8934.439021 | H27: MWh elektriciteitsgebruik | I27: Laag | J27: =IND_EE_EEA!F44 -> 0.075 | K27: =IF(Tbl_scenario[[#This Row],[%]]<1%,0,ROUNDUP(IND_EE_EEA!F45/100,0)*100) -> 700 | L27: MWh ele. gebruik | M27: Hoog | N27: =IND_EE_EEA!G44 -> 0.375 | O27: =IF(Tbl_scenario[[#This Row],[%.]]<1%,0,ROUNDUP(IND_EE_EEA!G45/100,0)*100) -> 3400 | P27: =Tbl_scenario[[#This Row],[Eenheid_ambitie1]] -> MWh ele. gebruik | U27: De maatregelenfiches kunnen als gegeven beschouwd worden. Indien gewenst, kunnen aannames met gemeentespecifieke data overschreven worden.
C28: 19 | D28: Particulier en commercieel vervoer | E28: Modal Shift_Voet + Fiets | F28: MOB_MS_voet | G28: =MOB_MS_voet!F39/1000 -> 77160.28639 | H28: voertuigkilometers (x1000) | I28: Laag | J28: =MOB_MS_voet!$F$48 -> 0.15 | K28: =IF(Tbl_scenario[[#This Row],[%]]<1%,0,ROUNDUP(MOB_MS_voet!F49/1000000,0)*1000) -> 12000 | L28: voertuigkm (x1000) | M28: Hoog | N28: =MOB_MS_voet!$G$48 -> 0.75 | O28: =IF(Tbl_scenario[[#This Row],[%.]]<1%,0,ROUNDUP(MOB_MS_voet!G49/1000000,0)*1000) -> 58000 | P28: =Tbl_scenario[[#This Row],[Eenheid_ambitie1]] -> voertuigkm (x1000)
C29: 20 | D29: Particulier en commercieel vervoer | E29: Modal Shift_Elektrische Fiets | F29: MOB_MS_EFiets | G29: =MOB_MS_EFiets!F40/1000 -> 64300.23866 | H29: voertuigkilometers (x1000) | I29: Laag | J29: =MOB_MS_EFiets!F49 -> 0.15 | K29: =IF(Tbl_scenario[[#This Row],[%]]<1%,0,ROUNDUP(MOB_MS_EFiets!F50/1000000,0)*1000) -> 10000 | L29: voertuigkm (x1000) | M29: Hoog | N29: =MOB_MS_EFiets!G49 -> 0.75 | O29: =IF(Tbl_scenario[[#This Row],[%.]]<1%,0,ROUNDUP(MOB_MS_EFiets!G50/1000000,0)*1000) -> 49000 | P29: =Tbl_scenario[[#This Row],[Eenheid_ambitie1]] -> voertuigkm (x1000) | U29: 4. Rekenblad Selectiecriteria: evaluatie maatregelen op basis van een aantal (kwalitatieve) criteria.
C30: 21 | D30: Particulier en commercieel vervoer | E30: Modal Shift_Openbaar vervoer | F30: MOB_MS_OV | G30: =MOB_MS_OV!F40/1000 -> 97736.36276 | H30: voertuigkilometers (x1000) | I30: Laag | J30: =MOB_MS_OV!F49 -> 0.15 | K30: =IF(Tbl_scenario[[#This Row],[%]]<1%,0,ROUNDUP(MOB_MS_OV!F50/1000000,0)*1000) -> 15000 | L30: voertuigkm (x1000) | M30: Hoog | N30: =MOB_MS_OV!G49 -> 0.75 | O30: =IF(Tbl_scenario[[#This Row],[%.]]<1%,0,ROUNDUP(MOB_MS_OV!G50/1000000,0)*1000) -> 74000 | P30: =Tbl_scenario[[#This Row],[Eenheid_ambitie1]] -> voertuigkm (x1000) | U30: Het rekenblad geeft een overzicht van alle maatregelen en evalueert de maatregelen aan de hand van volgende criteria:
C31: 22 | D31: Particulier en commercieel vervoer | E31: Brandstofshift_Elektrische voertuigen | F31: MOB_BS_EV | G31: =MOB_BS_EV!F37 -> 39641.08784 | H31: wagens | I31: Laag | J31: =MOB_BS_EV!$F$46 -> 0.05 | K31: =IF(Tbl_scenario[[#This Row],[%]]<1%,0,ROUNDUP(MOB_BS_EV!F47/100,0)*100) -> 2000 | L31: wagens | M31: Hoog | N31: =MOB_BS_EV!$G$46 -> 0.25 | O31: =IF(Tbl_scenario[[#This Row],[%.]]<1%,0,ROUNDUP(MOB_BS_EV!G47/100,0)*100) -> 10000 | P31: =Tbl_scenario[[#This Row],[Eenheid_ambitie1]] -> wagens | U31: - direct CO2-reductiepotentieel
C32: 23 | D32: Particulier en commercieel vervoer | E32: Brandstofshift_Waterstof | F32: MOB_BS_H2 | G32: =MOB_BS_H2!F38 -> 40523.23218 | H32: wagens | I32: Laag | J32: =MOB_BS_H2!$F$47 -> 0.0125 | K32: =IF(Tbl_scenario[[#This Row],[%]]<1%,0,ROUNDUP(MOB_BS_H2!F48/100,0)*100) -> 600 | L32: wagens | M32: Hoog | N32: =MOB_BS_H2!$G$47 -> 0.0625 | O32: =IF(Tbl_scenario[[#This Row],[%.]]<1%,0,ROUNDUP(MOB_BS_H2!G48/100,0)*100) -> 2600 | P32: =Tbl_scenario[[#This Row],[Eenheid_ambitie1]] -> wagens | U32: - kosteneffectiviteit (euro per ton CO2-reductie)
C33: 24 | D33: Lokale energieproductie | E33: Elektriciteit_PV | F33: LEN_PV | G33: =LEN_PV!F37 -> 187974.8081 | H33: MWh elektriciteitsproductie | I33: Laag | J33: =LEN_PV!$F$46 -> 0.075 | K33: =IF(Tbl_scenario[[#This Row],[%]]<1%,0,ROUNDUP(LEN_PV!F47/1000,0)*1000) -> 15000 | L33: MWh ele. productie | M33: Hoog | N33: =LEN_PV!$G$46 -> 0.375 | O33: =IF(Tbl_scenario[[#This Row],[%.]]<1%,0,ROUNDUP(LEN_PV!G47/1000,0)*1000) -> 71000 | P33: =Tbl_scenario[[#This Row],[Eenheid_ambitie1]] -> MWh ele. productie | U33: - slagkracht/autonomie lokale overheid om maatregel te implementeren en ambitieniveau te realiseren
C34: 25 | D34: Lokale energieproductie | E34: Elektriciteit_Wind | F34: LEN_Wind | G34: =LEN_Wind!F36 -> 145.4867846 | H34: MW geïnstalleerd vermogen | I34: Laag | J34: =LEN_Wind!$F$45 -> 0.05 | K34: =IF(Tbl_scenario[[#This Row],[%]]<1%,0,ROUNDUP(LEN_Wind!F46/1,0)*1) -> 8 | L34: MW | M34: Hoog | N34: =LEN_Wind!$G$45 -> 0.25 | O34: =IF(Tbl_scenario[[#This Row],[%.]]<1%,0,ROUNDUP(LEN_Wind!G46/10,0)*10) -> 40 | P34: =Tbl_scenario[[#This Row],[Eenheid_ambitie1]] -> MW | U34: - type maatregel (vraagreductie, efficiëntieverbetering, hernieuwbare energieproductie, elektrificatie)
C35: 26 | D35: Landbouw | E35: Warmtepomp | F35: LB_HER_WP | G35: =LB_HER_WP!F36 -> 2672.497947 | H35: MWh warmteproductie | I35: Laag | J35: =LB_HER_WP!F45 -> 0.15 | K35: =IF(Tbl_scenario[[#This Row],[%]]<1%,0,ROUNDUP(LB_HER_WP!F46/100,0)*100) -> 500 | L35: MWh | M35: Hoog | N35: =LB_HER_WP!G45 -> 0.35 | O35: =IF(Tbl_scenario[[#This Row],[%.]]<1%,0,ROUNDUP(LB_HER_WP!G46/100,0)*100) -> 1000 | P35: =Tbl_scenario[[#This Row],[Eenheid_ambitie1]] -> MWh | U35: De gebruiker kan ambitieniveaus definiëren en prioriteiten stellen tussen maatregelen in functie van één of meerdere criteria.
C36: 27 | D36: Landbouw | E36: Hernieuwbare energie_Pocketvergisters | F36: LB_HER_PocV | G36: =LB_HER_PocV!F37 -> 19.7866 | H36: MWh warmteproductie | I36: Laag | J36: =LB_HER_PocV!$F$46 -> 0.625 | K36: =IF(Tbl_scenario[[#This Row],[%]]<1%,0,ROUNDUP(LB_HER_PocV!F47/10,0)*10) -> 20 | L36: MWh | M36: Hoog | N36: =LB_HER_PocV!$G$46 -> 1 | O36: =IF(Tbl_scenario[[#This Row],[%.]]<1%,0,ROUNDUP(LB_HER_PocV!G47/10,0)*10) -> 20 | P36: =Tbl_scenario[[#This Row],[Eenheid_ambitie1]] -> MWh | U36: Bv. meest kosteneffectieve maatregelen (i.e. laagste kost per ton CO2-reductie) of maatregelen met kosteneffectiviteit <=0 krijgen ambitieniveau "hoog"
C37: 28 | D37: Landbouw | E37: Hernieuwbare energie_Biomassaketels | F37: LB_HER_BMK | G37: =LB_HER_BMK!F35 -> 2904.889072 | H37: MWh warmteproductie | I37: Laag | J37: =LB_HER_BMK!F44 -> 0.05 | K37: =IF(Tbl_scenario[[#This Row],[%]]<1%,0,ROUNDUP(LB_HER_BMK!F45/100,0)*100) -> 200 | L37: MWh | M37: Hoog | N37: =LB_HER_BMK!G44 -> 0.25 | O37: =IF(Tbl_scenario[[#This Row],[%.]]<1%,0,ROUNDUP(LB_HER_BMK!G45/100,0)*100) -> 800 | P37: =Tbl_scenario[[#This Row],[Eenheid_ambitie1]] -> MWh | U37: Bv. indien maatregelen die inspelen op vraagreductie prioriteit krijgen, kan voor deze maatregelen "ambitieniveau "hoog" gekozen worden.
C38: 29 | D38: Landbouw | E38: Energieschermen | F38: LB_EE_ENS | G38: =LB_EE_ENS!F36 -> 534.4995893 | H38: MWh warmteproductie | I38: Laag | J38: =LB_EE_ENS!F45 -> 0.1 | K38: =IF(Tbl_scenario[[#This Row],[%]]<1%,0,ROUNDUP(LB_EE_ENS!F46/10,0)*10) -> 60 | L38: MWh | M38: Hoog | N38: =LB_EE_ENS!G45 -> 0.5 | O38: =IF(Tbl_scenario[[#This Row],[%.]]<1%,0,ROUNDUP(LB_EE_ENS!G46/10,0)*10) -> 270 | P38: =Tbl_scenario[[#This Row],[Eenheid_ambitie1]] -> MWh
C39: 30 | D39: =BLANCO_1!D9 -> Huishoudens | E39: Blanco | F39: BLANCO_1 | I39: Niet | K39: =IF(Tbl_scenario[[#This Row],[Scenario 1]]="Ja",IF(ISBLANK(BLANCO_1_REDCO2_1),"Factsheet invullen",BLANCO_1_REDCO2_1),"") ->  | L39: =IF(Tbl_scenario[[#This Row],[Scenario 1]]="Ja",IF(ISBLANK(BLANCO_1_REDCO2_1),"","ton CO2 reductie"),"") ->  | M39: Niet | O39: =IF(Tbl_scenario[[#This Row],[Scenario 2]]="Ja",IF(ISBLANK(BLANCO_1_REDCO2_2),"Factsheet invullen",BLANCO_1_REDCO2_2),"") ->  | P39: =IF(Tbl_scenario[[#This Row],[Scenario 2]]="Ja",IF(ISBLANK(BLANCO_1_REDCO2_2),"","ton CO2 reductie"),"") ->  | U39: Er zijn 3 blanco maatregelenfiches (cf. rij 39 - 41) voor het uitwerken van "niet-voor-gedefinieerde" lokale maatregelen.
C40: 31 | D40: =BLANCO_2!D9 -> Huishoudens | E40: Blanco | F40: BLANCO_2 | I40: Niet | K40: =IF(Tbl_scenario[[#This Row],[Scenario 1]]="Ja",IF(ISBLANK(BLANCO_2_REDCO2_1),"Factsheet invullen",BLANCO_2_REDCO2_1),"") ->  | L40: =IF(Tbl_scenario[[#This Row],[Scenario 1]]="Ja",IF(ISBLANK(BLANCO_2_REDCO2_1),"","ton CO2 reductie"),"") ->  | M40: Niet | O40: =IF(Tbl_scenario[[#This Row],[Scenario 2]]="Ja",IF(ISBLANK(BLANCO_2_REDCO2_2),"Factsheet invullen",BLANCO_2_REDCO2_2),"") ->  | P40: =IF(Tbl_scenario[[#This Row],[Scenario 2]]="Ja",IF(ISBLANK(BLANCO_2_REDCO2_2),"","ton CO2 reductie"),"") ->  | U40: De gebruiker moet in deze blanco fiches de sector selecteren en ton CO2-reductie invullen opdat ze meegenomen worden in de doorrekeningen van de scenario's.
C41: 32 | D41: =BLANCO_3!D9 -> Huishoudens | E41: Blanco | F41: BLANCO_3 | I41: Niet | K41: =IF(Tbl_scenario[[#This Row],[Scenario 1]]="Ja",IF(ISBLANK(BLANCO_3_REDCO2_1),"Factsheet invullen",BLANCO_3_REDCO2_1),"") ->  | L41: =IF(Tbl_scenario[[#This Row],[Scenario 1]]="Ja",IF(ISBLANK(BLANCO_3_REDCO2_1),"","ton CO2 reductie"),"") ->  | M41: Niet | O41: =IF(Tbl_scenario[[#This Row],[Scenario 2]]="Ja",IF(ISBLANK(BLANCO_3_REDCO2_2),"Factsheet invullen",BLANCO_3_REDCO2_2),"") ->  | P41: =IF(Tbl_scenario[[#This Row],[Scenario 2]]="Ja",IF(ISBLANK(BLANCO_3_REDCO2_2),"","ton CO2 reductie"),"") -> 
C43: Klik op "Alles vernieuwen" in menubalk (Gegevens). | R43: Naar Resultaat >> | U43: Als de scenario's gedefinieerd zijn, moet de gebruiker via "Alles Vernieuwen" (cf. menubalk Gegevens) de gekoppelde rekenbladen vernieuwen.

Sheet CO2-plafond (hidden)
B1: << Naar Dashboard | J1: Berekeningen + celverwijzing binnen hetzelfde rekenblad
J2: Verwijzing ander rekenblad
J3: Vaste parameters uit externe gegevensbronnen, literatuur
C4: Definitie CO2-plafond
C6: Parameters uit dashboard
D7: Gemeente: | E7: =D_gemeente -> VITO
D9: Referentie: | E9: =P_Doel_Referentie -> doel_INV
D10: Referentiejaar: | E10: =P_Doel_Jaar -> 2012
D11: Reductie: | E11: =P_Doel_Reductie% -> 0.4
C13: Berekeningen
D14: Referentieuitstoot | E14: =IF(P_Doel_Referentie="doel_INV",SUM(tbl_AA_Data_all_DOEL[value_final]),IF(P_Doel_Referentie="doel_EIG",P_Doel_Referentieuitstoot,NA())) -> 352252.4679
D15: Reductie (%): | E15: =-ABS(P_Doel_Reductie%) -> -0.4
D16: CO2-plafond 2030 | E16: =E14*(1+E15) -> 211351.4807

Sheet Input->
C2: << naar Dashboard | N2: naar Resultaat >>
C4: INPUT
C6: Handleiding
D9: De input rekenbladen worden (grotendeels automatisch) gevuld met gegevens op basis van selecties die de gebruiker maakt in het Dashboard.
D10: Let wel: indien de parameters in het dashboard aangepast worden, moeten de rekenbladen vernieuwd worden via "Alles vernieuwen" (cf. menubalk Gegevens).
D12: In rekenblad CO2-plafond (verborgen) wordt de max. CO2-uitstoot voor 2030 automatisch berekend vertrekkende van de totale CO2-uitstoot uit een inventaris van Dept. Omgeving of een eigen inventaris.
D13: Het CO2-plafond wordt berekend ten opzichte van het referentiejaar en voor het reductiepercentage dat geselecteerd/ingevuld wordt in het Dashboard.
D15: In rekenblad INV (verborgen) wordt de inventaris van Dept. Omgeving voor het jaar 2017 automatisch ingelezen voor de gemeente die geselecteerd wordt in het Dashboard.
D17: De gebruiker moet rekenblad EIG voorzien van eigen gegevens voor het jaar 2017 indien in het Dashboard gekozen wordt om impact maatregelen door te rekenen ten opzichte van eigen inventaris 2017 (EIG).

Sheet INV (hidden)
C3: << Naar Dashboard | N3: Berekeningen + celverwijzing binnen hetzelfde rekenblad
N4: Verwijzing ander rekenblad
C5: INV: inventaris Dept. Omgeving
C7: Gemeente: | D7: =D_gemeente -> VITO
C8: Referentiejaar: | D8: =P_Maatregelen_Jaar_Inventaris -> 2017
C11: 1. Energieverbruik en CO2-uitstoot
C13: (in MWh) | D13: FINAAL ENERGIEVERBRUIK
D14: Elektriciteit | E14: Warmte/ Koude | F14: Fossiele brandstoffen | N14: Hernieuwbare energie
F15: Aardgas | G15: Vloeibaar gas | H15: Stookolie | I15: Diesel | J15: Benzine | K15: Bruinkool | L15: Steenkool | M15: Andere fossiele brandstoffen | N15: Plantaardige oliën | O15: Bio-brandstof | P15: Overige biomassa | Q15: Zonne-/ thermische energie | R15: Geo-thermische energie | S15: Totaal
C16: huishoudens | D16: =SUMIFS(tbl_AA_Data_all_REF[value_final],tbl_AA_Data_all_REF[sector],$C16,tbl_AA_Data_all_REF[energiedrager],D$14,tbl_AA_Data_all_REF[parameter],"MWh") -> 127526.5373 | E16: =SUMIFS(tbl_AA_Data_all_REF[value_final],tbl_AA_Data_all_REF[sector],$C16,tbl_AA_Data_all_REF[energiedrager],E$14,tbl_AA_Data_all_REF[parameter],"MWh") -> 0 | F16: =SUMIFS(tbl_AA_Data_all_REF[value_final],tbl_AA_Data_all_REF[sector],$C16,tbl_AA_Data_all_REF[energiedrager],F$15,tbl_AA_Data_all_REF[parameter],"MWh") -> 306032.4765 | G16: =SUMIFS(tbl_AA_Data_all_REF[value_final],tbl_AA_Data_all_REF[sector],$C16,tbl_AA_Data_all_REF[energiedrager],G$15,tbl_AA_Data_all_REF[parameter],"MWh") -> 22233.35367 | H16: =SUMIFS(tbl_AA_Data_all_REF[value_final],tbl_AA_Data_all_REF[sector],$C16,tbl_AA_Data_all_REF[energiedrager],H$15,tbl_AA_Data_all_REF[parameter],"MWh") -> 47771.7389 | I16: =SUMIFS(tbl_AA_Data_all_REF[value_final],tbl_AA_Data_all_REF[sector],$C16,tbl_AA_Data_all_REF[energiedrager],I$15,tbl_AA_Data_all_REF[parameter],"MWh") -> 0 | J16: =SUMIFS(tbl_AA_Data_all_REF[value_final],tbl_AA_Data_all_REF[sector],$C16,tbl_AA_Data_all_REF[energiedrager],J$15,tbl_AA_Data_all_REF[parameter],"MWh") -> 0 | K16: =SUMIFS(tbl_AA_Data_all_REF[value_final],tbl_AA_Data_all_REF[sector],$C16,tbl_AA_Data_all_REF[energiedrager],K$15,tbl_AA_Data_all_REF[parameter],"MWh") -> 0 | L16: =SUMIFS(tbl_AA_Data_all_REF[value_final],tbl_AA_Data_all_REF[sector],$C16,tbl_AA_Data_all_REF[energiedrager],L$15,tbl_AA_Data_all_REF[parameter],"MWh") -> 0 | M16: =SUMIFS(tbl_AA_Data_all_REF[value_final],tbl_AA_Data_all_REF[sector],$C16,tbl_AA_Data_all_REF[energiedrager],M$15,tbl_AA_Data_all_REF[parameter],"MWh") -> 0 | N16: =SUMIFS(tbl_AA_Data_all_REF[value_final],tbl_AA_Data_all_REF[sector],$C16,tbl_AA_Data_all_REF[energiedrager],N$15,tbl_AA_Data_all_REF[parameter],"MWh") -> 0 | O16: =SUMIFS(tbl_AA_Data_all_REF[value_final],tbl_AA_Data_all_REF[sector],$C16,tbl_AA_Data_all_REF[energiedrager],O$15,tbl_AA_Data_all_REF[parameter],"MWh") -> 0 | P16: =SUMIFS(tbl_AA_Data_all_REF[value_final],tbl_AA_Data_all_REF[sector],$C16,tbl_AA_Data_all_REF[energiedrager],P$15,tbl_AA_Data_all_REF[parameter],"MWh") -> 37071.39358 | Q16: =SUMIFS(tbl_AA_Data_all_REF[value_final],tbl_AA_Data_all_REF[sector],$C16,tbl_AA_Data_all_REF[energiedrager],Q$15,tbl_AA_Data_all_REF[parameter],"MWh") -> 1543.519495 | R16: =SUMIFS(tbl_AA_Data_all_REF[value_final],tbl_AA_Data_all_REF[sector],$C16,tbl_AA_Data_all_REF[energiedrager],R$15,tbl_AA_Data_all_REF[parameter],"MWh") -> 2833.635054 | S16: =SUM(D16:R16) -> 545012.6545
C17: tertiair | D17: =SUMIFS(tbl_AA_Data_all_REF[value_final],tbl_AA_Data_all_REF[sector],$C17,tbl_AA_Data_all_REF[energiedrager],D$14,tbl_AA_Data_all_REF[parameter],"MWh") -> 203063.715 | E17: =SUMIFS(tbl_AA_Data_all_REF[value_final],tbl_AA_Data_all_REF[sector],$C17,tbl_AA_Data_all_REF[energiedrager],E$14,tbl_AA_Data_all_REF[parameter],"MWh") -> 2948.785714 | F17: =SUMIFS(tbl_AA_Data_all_REF[value_final],tbl_AA_Data_all_REF[sector],$C17,tbl_AA_Data_all_REF[energiedrager],F$15,tbl_AA_Data_all_REF[parameter],"MWh") -> 206863.2954 | G17: =SUMIFS(tbl_AA_Data_all_REF[value_final],tbl_AA_Data_all_REF[sector],$C17,tbl_AA_Data_all_REF[energiedrager],G$15,tbl_AA_Data_all_REF[parameter],"MWh") -> 2810.955411 | H17: =SUMIFS(tbl_AA_Data_all_REF[value_final],tbl_AA_Data_all_REF[sector],$C17,tbl_AA_Data_all_REF[energiedrager],H$15,tbl_AA_Data_all_REF[parameter],"MWh") -> 22454.52402 | I17: =SUMIFS(tbl_AA_Data_all_REF[value_final],tbl_AA_Data_all_REF[sector],$C17,tbl_AA_Data_all_REF[energiedrager],I$15,tbl_AA_Data_all_REF[parameter],"MWh") -> 0 | J17: =SUMIFS(tbl_AA_Data_all_REF[value_final],tbl_AA_Data_all_REF[sector],$C17,tbl_AA_Data_all_REF[energiedrager],J$15,tbl_AA_Data_all_REF[parameter],"MWh") -> 0 | K17: =SUMIFS(tbl_AA_Data_all_REF[value_final],tbl_AA_Data_all_REF[sector],$C17,tbl_AA_Data_all_REF[energiedrager],K$15,tbl_AA_Data_all_REF[parameter],"MWh") -> 0 | L17: =SUMIFS(tbl_AA_Data_all_REF[value_final],tbl_AA_Data_all_REF[sector],$C17,tbl_AA_Data_all_REF[energiedrager],L$15,tbl_AA_Data_all_REF[parameter],"MWh") -> 0.2887116361 | M17: =SUMIFS(tbl_AA_Data_all_REF[value_final],tbl_AA_Data_all_REF[sector],$C17,tbl_AA_Data_all_REF[energiedrager],M$15,tbl_AA_Data_all_REF[parameter],"MWh") -> 0 | N17: =SUMIFS(tbl_AA_Data_all_REF[value_final],tbl_AA_Data_all_REF[sector],$C17,tbl_AA_Data_all_REF[energiedrager],N$15,tbl_AA_Data_all_REF[parameter],"MWh") -> 0 | O17: =SUMIFS(tbl_AA_Data_all_REF[value_final],tbl_AA_Data_all_REF[sector],$C17,tbl_AA_Data_all_REF[energiedrager],O$15,tbl_AA_Data_all_REF[parameter],"MWh") -> 0 | P17: =SUMIFS(tbl_AA_Data_all_REF[value_final],tbl_AA_Data_all_REF[sector],$C17,tbl_AA_Data_all_REF[energiedrager],P$15,tbl_AA_Data_all_REF[parameter],"MWh") -> 7957.028182 | Q17: =SUMIFS(tbl_AA_Data_all_REF[value_final],tbl_AA_Data_all_REF[sector],$C17,tbl_AA_Data_all_REF[energiedrager],Q$15,tbl_AA_Data_all_REF[parameter],"MWh") -> 39.17808613 | R17: =SUMIFS(tbl_AA_Data_all_REF[value_final],tbl_AA_Data_all_REF[sector],$C17,tbl_AA_Data_all_REF[energiedrager],R$15,tbl_AA_Data_all_REF[parameter],"MWh") -> 735.5479363 | S17: =SUM(D17:R17) -> 446873.3185
C18: openbare verlichting | D18: =SUMIFS(tbl_AA_Data_all_REF[value_final],tbl_AA_Data_all_REF[sector],$C18,tbl_AA_Data_all_REF[energiedrager],D$14,tbl_AA_Data_all_REF[parameter],"MWh") -> 5050.35 | E18: =SUMIFS(tbl_AA_Data_all_REF[value_final],tbl_AA_Data_all_REF[sector],$C18,tbl_AA_Data_all_REF[energiedrager],E$14,tbl_AA_Data_all_REF[parameter],"MWh") -> 0 | F18: =SUMIFS(tbl_AA_Data_all_REF[value_final],tbl_AA_Data_all_REF[sector],$C18,tbl_AA_Data_all_REF[energiedrager],F$15,tbl_AA_Data_all_REF[parameter],"MWh") -> 0 | G18: =SUMIFS(tbl_AA_Data_all_REF[value_final],tbl_AA_Data_all_REF[sector],$C18,tbl_AA_Data_all_REF[energiedrager],G$15,tbl_AA_Data_all_REF[parameter],"MWh") -> 0 | H18: =SUMIFS(tbl_AA_Data_all_REF[value_final],tbl_AA_Data_all_REF[sector],$C18,tbl_AA_Data_all_REF[energiedrager],H$15,tbl_AA_Data_all_REF[parameter],"MWh") -> 0 | I18: =SUMIFS(tbl_AA_Data_all_REF[value_final],tbl_AA_Data_all_REF[sector],$C18,tbl_AA_Data_all_REF[energiedrager],I$15,tbl_AA_Data_all_REF[parameter],"MWh") -> 0 | J18: =SUMIFS(tbl_AA_Data_all_REF[value_final],tbl_AA_Data_all_REF[sector],$C18,tbl_AA_Data_all_REF[energiedrager],J$15,tbl_AA_Data_all_REF[parameter],"MWh") -> 0 | K18: =SUMIFS(tbl_AA_Data_all_REF[value_final],tbl_AA_Data_all_REF[sector],$C18,tbl_AA_Data_all_REF[energiedrager],K$15,tbl_AA_Data_all_REF[parameter],"MWh") -> 0 | L18: =SUMIFS(tbl_AA_Data_all_REF[value_final],tbl_AA_Data_all_REF[sector],$C18,tbl_AA_Data_all_REF[energiedrager],L$15,tbl_AA_Data_all_REF[parameter],"MWh") -> 0 | M18: =SUMIFS(tbl_AA_Data_all_REF[value_final],tbl_AA_Data_all_REF[sector],$C18,tbl_AA_Data_all_REF[energiedrager],M$15,tbl_AA_Data_all_REF[parameter],"MWh") -> 0 | N18: =SUMIFS(tbl_AA_Data_all_REF[value_final],tbl_AA_Data_all_REF[sector],$C18,tbl_AA_Data_all_REF[energiedrager],N$15,tbl_AA_Data_all_REF[parameter],"MWh") -> 0 | O18: =SUMIFS(tbl_AA_Data_all_REF[value_final],tbl_AA_Data_all_REF[sector],$C18,tbl_AA_Data_all_REF[energiedrager],O$15,tbl_AA_Data_all_REF[parameter],"MWh") -> 0 | P18: =SUMIFS(tbl_AA_Data_all_REF[value_final],tbl_AA_Data_all_REF[sector],$C18,tbl_AA_Data_all_REF[energiedrager],P$15,tbl_AA_Data_all_REF[parameter],"MWh") -> 0 | Q18: =SUMIFS(tbl_AA_Data_all_REF[value_final],tbl_AA_Data_all_REF[sector],$C18,tbl_AA_Data_all_REF[energiedrager],Q$15,tbl_AA_Data_all_REF[parameter],"MWh") -> 0 | R18: =SUMIFS(tbl_AA_Data_all_REF[value_final],tbl_AA_Data_all_REF[sector],$C18,tbl_AA_Data_all_REF[energiedrager],R$15,tbl_AA_Data_all_REF[parameter],"MWh") -> 0 | S18: =SUM(D18:R18) -> 5050.35
C19: landbouw | D19: =SUMIFS(tbl_AA_Data_all_REF[value_final],tbl_AA_Data_all_REF[sector],$C19,tbl_AA_Data_all_REF[energiedrager],D$14,tbl_AA_Data_all_REF[parameter],"MWh") -> 1577.678741 | E19: =SUMIFS(tbl_AA_Data_all_REF[value_final],tbl_AA_Data_all_REF[sector],$C19,tbl_AA_Data_all_REF[energiedrager],E$14,tbl_AA_Data_all_REF[parameter],"MWh") -> 0 | F19: =SUMIFS(tbl_AA_Data_all_REF[value_final],tbl_AA_Data_all_REF[sector],$C19,tbl_AA_Data_all_REF[energiedrager],F$15,tbl_AA_Data_all_REF[parameter],"MWh") -> 1215.844406 | G19: =SUMIFS(tbl_AA_Data_all_REF[value_final],tbl_AA_Data_all_REF[sector],$C19,tbl_AA_Data_all_REF[energiedrager],G$15,tbl_AA_Data_all_REF[parameter],"MWh") -> 49.23883325 | H19: =SUMIFS(tbl_AA_Data_all_REF[value_final],tbl_AA_Data_all_REF[sector],$C19,tbl_AA_Data_all_REF[energiedrager],H$15,tbl_AA_Data_all_REF[parameter],"MWh") -> 5575.691441 | I19: =SUMIFS(tbl_AA_Data_all_REF[value_final],tbl_AA_Data_all_REF[sector],$C19,tbl_AA_Data_all_REF[energiedrager],I$15,tbl_AA_Data_all_REF[parameter],"MWh") -> 0 | J19: =SUMIFS(tbl_AA_Data_all_REF[value_final],tbl_AA_Data_all_REF[sector],$C19,tbl_AA_Data_all_REF[energiedrager],J$15,tbl_AA_Data_all_REF[parameter],"MWh") -> 0 | K19: =SUMIFS(tbl_AA_Data_all_REF[value_final],tbl_AA_Data_all_REF[sector],$C19,tbl_AA_Data_all_REF[energiedrager],K$15,tbl_AA_Data_all_REF[parameter],"MWh") -> 0 | L19: =SUMIFS(tbl_AA_Data_all_REF[value_final],tbl_AA_Data_all_REF[sector],$C19,tbl_AA_Data_all_REF[energiedrager],L$15,tbl_AA_Data_all_REF[parameter],"MWh") -> 434.6614343 | M19: =SUMIFS(tbl_AA_Data_all_REF[value_final],tbl_AA_Data_all_REF[sector],$C19,tbl_AA_Data_all_REF[energiedrager],M$15,tbl_AA_Data_all_REF[parameter],"MWh") -> 0 | N19: =SUMIFS(tbl_AA_Data_all_REF[value_final],tbl_AA_Data_all_REF[sector],$C19,tbl_AA_Data_all_REF[energiedrager],N$15,tbl_AA_Data_all_REF[parameter],"MWh") -> 0 | O19: =SUMIFS(tbl_AA_Data_all_REF[value_final],tbl_AA_Data_all_REF[sector],$C19,tbl_AA_Data_all_REF[energiedrager],O$15,tbl_AA_Data_all_REF[parameter],"MWh") -> 0 | P19: =SUMIFS(tbl_AA_Data_all_REF[value_final],tbl_AA_Data_all_REF[sector],$C19,tbl_AA_Data_all_REF[energiedrager],P$15,tbl_AA_Data_all_REF[parameter],"MWh") -> 0 | Q19: =SUMIFS(tbl_AA_Data_all_REF[value_final],tbl_AA_Data_all_REF[sector],$C19,tbl_AA_Data_all_REF[energiedrager],Q$15,tbl_AA_Data_all_REF[parameter],"MWh") -> 0 | R19: =SUMIFS(tbl_AA_Data_all_REF[value_final],tbl_AA_Data_all_REF[sector],$C19,tbl_AA_Data_all_REF[energiedrager],R$15,tbl_AA_Data_all_REF[parameter],"MWh") -> 0 | S19: 8853.114855
C20: industrie (niet-ETS) | D20: =SUMIFS(tbl_AA_Data_all_REF[value_final],tbl_AA_Data_all_REF[sector],$C20,tbl_AA_Data_all_REF[energiedrager],D$14,tbl_AA_Data_all_REF[parameter],"MWh") -> 54306.75984 | E20: =SUMIFS(tbl_AA_Data_all_REF[value_final],tbl_AA_Data_all_REF[sector],$C20,tbl_AA_Data_all_REF[energiedrager],E$14,tbl_AA_Data_all_REF[parameter],"MWh") -> 321.4285714 | F20: =SUMIFS(tbl_AA_Data_all_REF[value_final],tbl_AA_Data_all_REF[sector],$C20,tbl_AA_Data_all_REF[energiedrager],F$15,tbl_AA_Data_all_REF[parameter],"MWh") -> 73917.27918 | G20: =SUMIFS(tbl_AA_Data_all_REF[value_final],tbl_AA_Data_all_REF[sector],$C20,tbl_AA_Data_all_REF[energiedrager],G$15,tbl_AA_Data_all_REF[parameter],"MWh") -> 7698.606568 | H20: =SUMIFS(tbl_AA_Data_all_REF[value_final],tbl_AA_Data_all_REF[sector],$C20,tbl_AA_Data_all_REF[energiedrager],H$15,tbl_AA_Data_all_REF[parameter],"MWh") -> 26458.87677 | I20: =SUMIFS(tbl_AA_Data_all_REF[value_final],tbl_AA_Data_all_REF[sector],$C20,tbl_AA_Data_all_REF[energiedrager],I$15,tbl_AA_Data_all_REF[parameter],"MWh") -> 0 | J20: =SUMIFS(tbl_AA_Data_all_REF[value_final],tbl_AA_Data_all_REF[sector],$C20,tbl_AA_Data_all_REF[energiedrager],J$15,tbl_AA_Data_all_REF[parameter],"MWh") -> 0 | K20: =SUMIFS(tbl_AA_Data_all_REF[value_final],tbl_AA_Data_all_REF[sector],$C20,tbl_AA_Data_all_REF[energiedrager],K$15,tbl_AA_Data_all_REF[parameter],"MWh") -> 0 | L20: =SUMIFS(tbl_AA_Data_all_REF[value_final],tbl_AA_Data_all_REF[sector],$C20,tbl_AA_Data_all_REF[energiedrager],L$15,tbl_AA_Data_all_REF[parameter],"MWh") -> 210.3595646 | M20: =SUMIFS(tbl_AA_Data_all_REF[value_final],tbl_AA_Data_all_REF[sector],$C20,tbl_AA_Data_all_REF[energiedrager],M$15,tbl_AA_Data_all_REF[parameter],"MWh") -> 0 | N20: =SUMIFS(tbl_AA_Data_all_REF[value_final],tbl_AA_Data_all_REF[sector],$C20,tbl_AA_Data_all_REF[energiedrager],N$15,tbl_AA_Data_all_REF[parameter],"MWh") -> 0 | O20: =SUMIFS(tbl_AA_Data_all_REF[value_final],tbl_AA_Data_all_REF[sector],$C20,tbl_AA_Data_all_REF[energiedrager],O$15,tbl_AA_Data_all_REF[parameter],"MWh") -> 0 | P20: =SUMIFS(tbl_AA_Data_all_REF[value_final],tbl_AA_Data_all_REF[sector],$C20,tbl_AA_Data_all_REF[energiedrager],P$15,tbl_AA_Data_all_REF[parameter],"MWh") -> 4975.311421 | Q20: =SUMIFS(tbl_AA_Data_all_REF[value_final],tbl_AA_Data_all_REF[sector],$C20,tbl_AA_Data_all_REF[energiedrager],Q$15,tbl_AA_Data_all_REF[parameter],"MWh") -> 0 | R20: =SUMIFS(tbl_AA_Data_all_REF[value_final],tbl_AA_Data_all_REF[sector],$C20,tbl_AA_Data_all_REF[energiedrager],R$15,tbl_AA_Data_all_REF[parameter],"MWh") -> 0 | S20: 167888.6219
C21: particulier en commercieel vervoer | D21: =SUMIFS(tbl_AA_Data_all_REF[value_final],tbl_AA_Data_all_REF[sector],$C21,tbl_AA_Data_all_REF[energiedrager],D$14,tbl_AA_Data_all_REF[parameter],"MWh") -> 268.2514698 | E21: =SUMIFS(tbl_AA_Data_all_REF[value_final],tbl_AA_Data_all_REF[sector],$C21,tbl_AA_Data_all_REF[energiedrager],E$14,tbl_AA_Data_all_REF[parameter],"MWh") -> 0 | F21: =SUMIFS(tbl_AA_Data_all_REF[value_final],tbl_AA_Data_all_REF[sector],$C21,tbl_AA_Data_all_REF[energiedrager],F$15,tbl_AA_Data_all_REF[parameter],"MWh") -> 1089.022958 | G21: =SUMIFS(tbl_AA_Data_all_REF[value_final],tbl_AA_Data_all_REF[sector],$C21,tbl_AA_Data_all_REF[energiedrager],G$15,tbl_AA_Data_all_REF[parameter],"MWh") -> 837.3253282 | H21: =SUMIFS(tbl_AA_Data_all_REF[value_final],tbl_AA_Data_all_REF[sector],$C21,tbl_AA_Data_all_REF[energiedrager],H$15,tbl_AA_Data_all_REF[parameter],"MWh") -> 0 | I21: =SUMIFS(tbl_AA_Data_all_REF[value_final],tbl_AA_Data_all_REF[sector],$C21,tbl_AA_Data_all_REF[energiedrager],I$15,tbl_AA_Data_all_REF[parameter],"MWh") -> 296952.921 | J21: =SUMIFS(tbl_AA_Data_all_REF[value_final],tbl_AA_Data_all_REF[sector],$C21,tbl_AA_Data_all_REF[energiedrager],J$15,tbl_AA_Data_all_REF[parameter],"MWh") -> 81055.48186 | K21: =SUMIFS(tbl_AA_Data_all_REF[value_final],tbl_AA_Data_all_REF[sector],$C21,tbl_AA_Data_all_REF[energiedrager],K$15,tbl_AA_Data_all_REF[parameter],"MWh") -> 0 | L21: =SUMIFS(tbl_AA_Data_all_REF[value_final],tbl_AA_Data_all_REF[sector],$C21,tbl_AA_Data_all_REF[energiedrager],L$15,tbl_AA_Data_all_REF[parameter],"MWh") -> 0 | M21: =SUMIFS(tbl_AA_Data_all_REF[value_final],tbl_AA_Data_all_REF[sector],$C21,tbl_AA_Data_all_REF[energiedrager],M$15,tbl_AA_Data_all_REF[parameter],"MWh") -> 0 | N21: =SUMIFS(tbl_AA_Data_all_REF[value_final],tbl_AA_Data_all_REF[sector],$C21,tbl_AA_Data_all_REF[energiedrager],N$15,tbl_AA_Data_all_REF[parameter],"MWh") -> 0 | O21: =SUMIFS(tbl_AA_Data_all_REF[value_final],tbl_AA_Data_all_REF[sector],$C21,tbl_AA_Data_all_REF[energiedrager],O$15,tbl_AA_Data_all_REF[parameter],"MWh") -> 22450.56617 | P21: =SUMIFS(tbl_AA_Data_all_REF[value_final],tbl_AA_Data_all_REF[sector],$C21,tbl_AA_Data_all_REF[energiedrager],P$15,tbl_AA_Data_all_REF[parameter],"MWh") -> 0 | Q21: =SUMIFS(tbl_AA_Data_all_REF[value_final],tbl_AA_Data_all_REF[sector],$C21,tbl_AA_Data_all_REF[energiedrager],Q$15,tbl_AA_Data_all_REF[parameter],"MWh") -> 0 | R21: =SUMIFS(tbl_AA_Data_all_REF[value_final],tbl_AA_Data_all_REF[sector],$C21,tbl_AA_Data_all_REF[energiedrager],R$15,tbl_AA_Data_all_REF[parameter],"MWh") -> 0 | S21: 402653.5687
C22: openbaar vervoer | D22: =SUMIFS(tbl_AA_Data_all_REF[value_final],tbl_AA_Data_all_REF[sector],$C22,tbl_AA_Data_all_REF[energiedrager],D$14,tbl_AA_Data_all_REF[parameter],"MWh") -> 0 | E22: =SUMIFS(tbl_AA_Data_all_REF[value_final],tbl_AA_Data_all_REF[sector],$C22,tbl_AA_Data_all_REF[energiedrager],E$14,tbl_AA_Data_all_REF[parameter],"MWh") -> 0 | F22: =SUMIFS(tbl_AA_Data_all_REF[value_final],tbl_AA_Data_all_REF[sector],$C22,tbl_AA_Data_all_REF[energiedrager],F$15,tbl_AA_Data_all_REF[parameter],"MWh") -> 0 | G22: =SUMIFS(tbl_AA_Data_all_REF[value_final],tbl_AA_Data_all_REF[sector],$C22,tbl_AA_Data_all_REF[energiedrager],G$15,tbl_AA_Data_all_REF[parameter],"MWh") -> 0 | H22: =SUMIFS(tbl_AA_Data_all_REF[value_final],tbl_AA_Data_all_REF[sector],$C22,tbl_AA_Data_all_REF[energiedrager],H$15,tbl_AA_Data_all_REF[parameter],"MWh") -> 0 | I22: =SUMIFS(tbl_AA_Data_all_REF[value_final],tbl_AA_Data_all_REF[sector],$C22,tbl_AA_Data_all_REF[energiedrager],I$15,tbl_AA_Data_all_REF[parameter],"MWh") -> 15542.87258 | J22: =SUMIFS(tbl_AA_Data_all_REF[value_final],tbl_AA_Data_all_REF[sector],$C22,tbl_AA_Data_all_REF[energiedrager],J$15,tbl_AA_Data_all_REF[parameter],"MWh") -> 0 | K22: =SUMIFS(tbl_AA_Data_all_REF[value_final],tbl_AA_Data_all_REF[sector],$C22,tbl_AA_Data_all_REF[energiedrager],K$15,tbl_AA_Data_all_REF[parameter],"MWh") -> 0 | L22: =SUMIFS(tbl_AA_Data_all_REF[value_final],tbl_AA_Data_all_REF[sector],$C22,tbl_AA_Data_all_REF[energiedrager],L$15,tbl_AA_Data_all_REF[parameter],"MWh") -> 0 | M22: =SUMIFS(tbl_AA_Data_all_REF[value_final],tbl_AA_Data_all_REF[sector],$C22,tbl_AA_Data_all_REF[energiedrager],M$15,tbl_AA_Data_all_REF[parameter],"MWh") -> 0 | N22: =SUMIFS(tbl_AA_Data_all_REF[value_final],tbl_AA_Data_all_REF[sector],$C22,tbl_AA_Data_all_REF[energiedrager],N$15,tbl_AA_Data_all_REF[parameter],"MWh") -> 0 | O22: =SUMIFS(tbl_AA_Data_all_REF[value_final],tbl_AA_Data_all_REF[sector],$C22,tbl_AA_Data_all_REF[energiedrager],O$15,tbl_AA_Data_all_REF[parameter],"MWh") -> 863.8745777 | P22: =SUMIFS(tbl_AA_Data_all_REF[value_final],tbl_AA_Data_all_REF[sector],$C22,tbl_AA_Data_all_REF[energiedrager],P$15,tbl_AA_Data_all_REF[parameter],"MWh") -> 0 | Q22: =SUMIFS(tbl_AA_Data_all_REF[value_final],tbl_AA_Data_all_REF[sector],$C22,tbl_AA_Data_all_REF[energiedrager],Q$15,tbl_AA_Data_all_REF[parameter],"MWh") -> 0 | R22: =SUMIFS(tbl_AA_Data_all_REF[value_final],tbl_AA_Data_all_REF[sector],$C22,tbl_AA_Data_all_REF[energiedrager],R$15,tbl_AA_Data_all_REF[parameter],"MWh") -> 0 | S22: 16406.74716
C23: niet toegekend | D23: =SUMIFS(tbl_AA_Data_all_REF[value_final],tbl_AA_Data_all_REF[sector],$C23,tbl_AA_Data_all_REF[energiedrager],D$14,tbl_AA_Data_all_REF[parameter],"MWh") -> 9036.4563 | E23: =SUMIFS(tbl_AA_Data_all_REF[value_final],tbl_AA_Data_all_REF[sector],$C23,tbl_AA_Data_all_REF[energiedrager],E$14,tbl_AA_Data_all_REF[parameter],"MWh") -> 0 | F23: =SUMIFS(tbl_AA_Data_all_REF[value_final],tbl_AA_Data_all_REF[sector],$C23,tbl_AA_Data_all_REF[energiedrager],F$15,tbl_AA_Data_all_REF[parameter],"MWh") -> 20316.05258 | G23: =SUMIFS(tbl_AA_Data_all_REF[value_final],tbl_AA_Data_all_REF[sector],$C23,tbl_AA_Data_all_REF[energiedrager],G$15,tbl_AA_Data_all_REF[parameter],"MWh") -> 0 | H23: =SUMIFS(tbl_AA_Data_all_REF[value_final],tbl_AA_Data_all_REF[sector],$C23,tbl_AA_Data_all_REF[energiedrager],H$15,tbl_AA_Data_all_REF[parameter],"MWh") -> 0 | I23: =SUMIFS(tbl_AA_Data_all_REF[value_final],tbl_AA_Data_all_REF[sector],$C23,tbl_AA_Data_all_REF[energiedrager],I$15,tbl_AA_Data_all_REF[parameter],"MWh") -> 0 | J23: =SUMIFS(tbl_AA_Data_all_REF[value_final],tbl_AA_Data_all_REF[sector],$C23,tbl_AA_Data_all_REF[energiedrager],J$15,tbl_AA_Data_all_REF[parameter],"MWh") -> 0 | K23: =SUMIFS(tbl_AA_Data_all_REF[value_final],tbl_AA_Data_all_REF[sector],$C23,tbl_AA_Data_all_REF[energiedrager],K$15,tbl_AA_Data_all_REF[parameter],"MWh") -> 0 | L23: =SUMIFS(tbl_AA_Data_all_REF[value_final],tbl_AA_Data_all_REF[sector],$C23,tbl_AA_Data_all_REF[energiedrager],L$15,tbl_AA_Data_all_REF[parameter],"MWh") -> 0 | M23: =SUMIFS(tbl_AA_Data_all_REF[value_final],tbl_AA_Data_all_REF[sector],$C23,tbl_AA_Data_all_REF[energiedrager],M$15,tbl_AA_Data_all_REF[parameter],"MWh") -> 0 | N23: =SUMIFS(tbl_AA_Data_all_REF[value_final],tbl_AA_Data_all_REF[sector],$C23,tbl_AA_Data_all_REF[energiedrager],N$15,tbl_AA_Data_all_REF[parameter],"MWh") -> 0 | O23: =SUMIFS(tbl_AA_Data_all_REF[value_final],tbl_AA_Data_all_REF[sector],$C23,tbl_AA_Data_all_REF[energiedrager],O$15,tbl_AA_Data_all_REF[parameter],"MWh") -> 0 | P23: =SUMIFS(tbl_AA_Data_all_REF[value_final],tbl_AA_Data_all_REF[sector],$C23,tbl_AA_Data_all_REF[energiedrager],P$15,tbl_AA_Data_all_REF[parameter],"MWh") -> 0 | Q23: =SUMIFS(tbl_AA_Data_all_REF[value_final],tbl_AA_Data_all_REF[sector],$C23,tbl_AA_Data_all_REF[energiedrager],Q$15,tbl_AA_Data_all_REF[parameter],"MWh") -> 0 | R23: =SUMIFS(tbl_AA_Data_all_REF[value_final],tbl_AA_Data_all_REF[sector],$C23,tbl_AA_Data_all_REF[energiedrager],R$15,tbl_AA_Data_all_REF[parameter],"MWh") -> 0 | S23: 29352.50888
C24: totaal | D24: =SUM(D16:D23) -> 400829.7487 | E24: =SUM(E16:E23) -> 3270.214286 | F24: 609433.971 | G24: 33629.47981 | H24: 102260.8311 | I24: 312495.7935 | J24: 81055.48186 | K24: 0 | L24: 645.3097105 | M24: 0 | N24: 0 | O24: 23314.44075 | P24: 50003.73318 | Q24: 1582.697581 | R24: 3569.18299 | S24: 1622090.885
C26: emissiefactoren (ton CO2 per MWh) | D26: =IFERROR(D39/D24,0) -> 0.1975001599 | E26: =IFERROR(E39/E24,0) -> 0.2376470588 | F26: ='AA_Energieprijs&Discontovoet'!F98 -> 0.202 | G26: ='AA_Energieprijs&Discontovoet'!F99 -> 0.227 | H26: ='AA_Energieprijs&Discontovoet'!F100 -> 0.267 | I26: ='AA_Energieprijs&Discontovoet'!F101 -> 0.267 | J26: ='AA_Energieprijs&Discontovoet'!F102 -> 0.249 | K26: ='AA_Energieprijs&Discontovoet'!F103 -> 0.351 | L26: ='AA_Energieprijs&Discontovoet'!F104 -> 0.354 | M26: ='AA_Energieprijs&Discontovoet'!F105 -> 0.264 | N26: ='AA_Energieprijs&Discontovoet'!F106 -> 0 | O26: ='AA_Energieprijs&Discontovoet'!F107 -> 0 | P26: ='AA_Energieprijs&Discontovoet'!F108 -> 0 | Q26: ='AA_Energieprijs&Discontovoet'!F109 -> 0 | R26: ='AA_Energieprijs&Discontovoet'!F110 -> 0
C28: (in ton) | D28: CO2-emissies
D29: Elektriciteit | E29: Warmte/ Koude | F29: Fossiele brandstoffen | N29: Hernieuwbare energie
F30: Aardgas | G30: Vloeibaar gas | H30: Stookolie | I30: Diesel | J30: Benzine | K30: Bruinkool | L30: Steenkool | M30: Andere fossiele brandstoffen | N30: Plantaardige oliën | O30: Bio-brandstof | P30: Overige biomassa | Q30: Zonne-/ thermische energie | R30: Geo-thermische energie | S30: Totaal
C31: huishoudens | D31: =SUMIFS(tbl_AA_Data_all_REF[value_final],tbl_AA_Data_all_REF[sector],$C31,tbl_AA_Data_all_REF[energiedrager],D$29,tbl_AA_Data_all_REF[parameter],"CO2") -> 25186.51151 | E31: =SUMIFS(tbl_AA_Data_all_REF[value_final],tbl_AA_Data_all_REF[sector],$C31,tbl_AA_Data_all_REF[energiedrager],E$29,tbl_AA_Data_all_REF[parameter],"CO2") -> 0 | F31: =SUMIFS(tbl_AA_Data_all_REF[value_final],tbl_AA_Data_all_REF[sector],$C31,tbl_AA_Data_all_REF[energiedrager],F$30,tbl_AA_Data_all_REF[parameter],"CO2") -> 61818.56025 | G31: =SUMIFS(tbl_AA_Data_all_REF[value_final],tbl_AA_Data_all_REF[sector],$C31,tbl_AA_Data_all_REF[energiedrager],G$30,tbl_AA_Data_all_REF[parameter],"CO2") -> 5046.971283 | H31: =SUMIFS(tbl_AA_Data_all_REF[value_final],tbl_AA_Data_all_REF[sector],$C31,tbl_AA_Data_all_REF[energiedrager],H$30,tbl_AA_Data_all_REF[parameter],"CO2") -> 12755.05429 | I31: =SUMIFS(tbl_AA_Data_all_REF[value_final],tbl_AA_Data_all_REF[sector],$C31,tbl_AA_Data_all_REF[energiedrager],I$30,tbl_AA_Data_all_REF[parameter],"CO2") -> 0 | J31: =SUMIFS(tbl_AA_Data_all_REF[value_final],tbl_AA_Data_all_REF[sector],$C31,tbl_AA_Data_all_REF[energiedrager],J$30,tbl_AA_Data_all_REF[parameter],"CO2") -> 0 | K31: =SUMIFS(tbl_AA_Data_all_REF[value_final],tbl_AA_Data_all_REF[sector],$C31,tbl_AA_Data_all_REF[energiedrager],K$30,tbl_AA_Data_all_REF[parameter],"CO2") -> 0 | L31: =SUMIFS(tbl_AA_Data_all_REF[value_final],tbl_AA_Data_all_REF[sector],$C31,tbl_AA_Data_all_REF[energiedrager],L$30,tbl_AA_Data_all_REF[parameter],"CO2") -> 0 | M31: =SUMIFS(tbl_AA_Data_all_REF[value_final],tbl_AA_Data_all_REF[sector],$C31,tbl_AA_Data_all_REF[energiedrager],M$30,tbl_AA_Data_all_REF[parameter],"CO2") -> 0 | N31: =SUMIFS(tbl_AA_Data_all_REF[value_final],tbl_AA_Data_all_REF[sector],$C31,tbl_AA_Data_all_REF[energiedrager],N$30,tbl_AA_Data_all_REF[parameter],"CO2") -> 0 | O31: =SUMIFS(tbl_AA_Data_all_REF[value_final],tbl_AA_Data_all_REF[sector],$C31,tbl_AA_Data_all_REF[energiedrager],O$30,tbl_AA_Data_all_REF[parameter],"CO2") -> 0 | P31: =SUMIFS(tbl_AA_Data_all_REF[value_final],tbl_AA_Data_all_REF[sector],$C31,tbl_AA_Data_all_REF[energiedrager],P$30,tbl_AA_Data_all_REF[parameter],"CO2") -> 0 | Q31: =SUMIFS(tbl_AA_Data_all_REF[value_final],tbl_AA_Data_all_REF[sector],$C31,tbl_AA_Data_all_REF[energiedrager],Q$30,tbl_AA_Data_all_REF[parameter],"CO2") -> 0 | R31: =SUMIFS(tbl_AA_Data_all_REF[value_final],tbl_AA_Data_all_REF[sector],$C31,tbl_AA_Data_all_REF[energiedrager],R$30,tbl_AA_Data_all_REF[parameter],"CO2") -> 0 | S31: =SUM(D31:R31) -> 104807.0973
C32: tertiair | D32: =SUMIFS(tbl_AA_Data_all_REF[value_final],tbl_AA_Data_all_REF[sector],$C32,tbl_AA_Data_all_REF[energiedrager],D$29,tbl_AA_Data_all_REF[parameter],"CO2") -> 40105.11619 | E32: =SUMIFS(tbl_AA_Data_all_REF[value_final],tbl_AA_Data_all_REF[sector],$C32,tbl_AA_Data_all_REF[energiedrager],E$29,tbl_AA_Data_all_REF[parameter],"CO2") -> 700.7702521 | F32: =SUMIFS(tbl_AA_Data_all_REF[value_final],tbl_AA_Data_all_REF[sector],$C32,tbl_AA_Data_all_REF[energiedrager],F$30,tbl_AA_Data_all_REF[parameter],"CO2") -> 41786.38567 | G32: =SUMIFS(tbl_AA_Data_all_REF[value_final],tbl_AA_Data_all_REF[sector],$C32,tbl_AA_Data_all_REF[energiedrager],G$30,tbl_AA_Data_all_REF[parameter],"CO2") -> 638.0868782 | H32: =SUMIFS(tbl_AA_Data_all_REF[value_final],tbl_AA_Data_all_REF[sector],$C32,tbl_AA_Data_all_REF[energiedrager],H$30,tbl_AA_Data_all_REF[parameter],"CO2") -> 5995.357913 | I32: =SUMIFS(tbl_AA_Data_all_REF[value_final],tbl_AA_Data_all_REF[sector],$C32,tbl_AA_Data_all_REF[energiedrager],I$30,tbl_AA_Data_all_REF[parameter],"CO2") -> 0 | J32: =SUMIFS(tbl_AA_Data_all_REF[value_final],tbl_AA_Data_all_REF[sector],$C32,tbl_AA_Data_all_REF[energiedrager],J$30,tbl_AA_Data_all_REF[parameter],"CO2") -> 0 | K32: =SUMIFS(tbl_AA_Data_all_REF[value_final],tbl_AA_Data_all_REF[sector],$C32,tbl_AA_Data_all_REF[energiedrager],K$30,tbl_AA_Data_all_REF[parameter],"CO2") -> 0 | L32: =SUMIFS(tbl_AA_Data_all_REF[value_final],tbl_AA_Data_all_REF[sector],$C32,tbl_AA_Data_all_REF[energiedrager],L$30,tbl_AA_Data_all_REF[parameter],"CO2") -> 0.1022039192 | M32: =SUMIFS(tbl_AA_Data_all_REF[value_final],tbl_AA_Data_all_REF[sector],$C32,tbl_AA_Data_all_REF[energiedrager],M$30,tbl_AA_Data_all_REF[parameter],"CO2") -> 0 | N32: =SUMIFS(tbl_AA_Data_all_REF[value_final],tbl_AA_Data_all_REF[sector],$C32,tbl_AA_Data_all_REF[energiedrager],N$30,tbl_AA_Data_all_REF[parameter],"CO2") -> 0 | O32: =SUMIFS(tbl_AA_Data_all_REF[value_final],tbl_AA_Data_all_REF[sector],$C32,tbl_AA_Data_all_REF[energiedrager],O$30,tbl_AA_Data_all_REF[parameter],"CO2") -> 0 | P32: =SUMIFS(tbl_AA_Data_all_REF[value_final],tbl_AA_Data_all_REF[sector],$C32,tbl_AA_Data_all_REF[energiedrager],P$30,tbl_AA_Data_all_REF[parameter],"CO2") -> 0 | Q32: =SUMIFS(tbl_AA_Data_all_REF[value_final],tbl_AA_Data_all_REF[sector],$C32,tbl_AA_Data_all_REF[energiedrager],Q$30,tbl_AA_Data_all_REF[parameter],"CO2") -> 0 | R32: =SUMIFS(tbl_AA_Data_all_REF[value_final],tbl_AA_Data_all_REF[sector],$C32,tbl_AA_Data_all_REF[energiedrager],R$30,tbl_AA_Data_all_REF[parameter],"CO2") -> 0 | S32: 89225.81911
C33: openbare verlichting | D33: =SUMIFS(tbl_AA_Data_all_REF[value_final],tbl_AA_Data_all_REF[sector],$C33,tbl_AA_Data_all_REF[energiedrager],D$29,tbl_AA_Data_all_REF[parameter],"CO2") -> 997.4449325 | E33: =SUMIFS(tbl_AA_Data_all_REF[value_final],tbl_AA_Data_all_REF[sector],$C33,tbl_AA_Data_all_REF[energiedrager],E$29,tbl_AA_Data_all_REF[parameter],"CO2") -> 0 | F33: =SUMIFS(tbl_AA_Data_all_REF[value_final],tbl_AA_Data_all_REF[sector],$C33,tbl_AA_Data_all_REF[energiedrager],F$30,tbl_AA_Data_all_REF[parameter],"CO2") -> 0 | G33: =SUMIFS(tbl_AA_Data_all_REF[value_final],tbl_AA_Data_all_REF[sector],$C33,tbl_AA_Data_all_REF[energiedrager],G$30,tbl_AA_Data_all_REF[parameter],"CO2") -> 0 | H33: =SUMIFS(tbl_AA_Data_all_REF[value_final],tbl_AA_Data_all_REF[sector],$C33,tbl_AA_Data_all_REF[energiedrager],H$30,tbl_AA_Data_all_REF[parameter],"CO2") -> 0 | I33: =SUMIFS(tbl_AA_Data_all_REF[value_final],tbl_AA_Data_all_REF[sector],$C33,tbl_AA_Data_all_REF[energiedrager],I$30,tbl_AA_Data_all_REF[parameter],"CO2") -> 0 | J33: =SUMIFS(tbl_AA_Data_all_REF[value_final],tbl_AA_Data_all_REF[sector],$C33,tbl_AA_Data_all_REF[energiedrager],J$30,tbl_AA_Data_all_REF[parameter],"CO2") -> 0 | K33: =SUMIFS(tbl_AA_Data_all_REF[value_final],tbl_AA_Data_all_REF[sector],$C33,tbl_AA_Data_all_REF[energiedrager],K$30,tbl_AA_Data_all_REF[parameter],"CO2") -> 0 | L33: =SUMIFS(tbl_AA_Data_all_REF[value_final],tbl_AA_Data_all_REF[sector],$C33,tbl_AA_Data_all_REF[energiedrager],L$30,tbl_AA_Data_all_REF[parameter],"CO2") -> 0 | M33: =SUMIFS(tbl_AA_Data_all_REF[value_final],tbl_AA_Data_all_REF[sector],$C33,tbl_AA_Data_all_REF[energiedrager],M$30,tbl_AA_Data_all_REF[parameter],"CO2") -> 0 | N33: =SUMIFS(tbl_AA_Data_all_REF[value_final],tbl_AA_Data_all_REF[sector],$C33,tbl_AA_Data_all_REF[energiedrager],N$30,tbl_AA_Data_all_REF[parameter],"CO2") -> 0 | O33: =SUMIFS(tbl_AA_Data_all_REF[value_final],tbl_AA_Data_all_REF[sector],$C33,tbl_AA_Data_all_REF[energiedrager],O$30,tbl_AA_Data_all_REF[parameter],"CO2") -> 0 | P33: =SUMIFS(tbl_AA_Data_all_REF[value_final],tbl_AA_Data_all_REF[sector],$C33,tbl_AA_Data_all_REF[energiedrager],P$30,tbl_AA_Data_all_REF[parameter],"CO2") -> 0 | Q33: =SUMIFS(tbl_AA_Data_all_REF[value_final],tbl_AA_Data_all_REF[sector],$C33,tbl_AA_Data_all_REF[energiedrager],Q$30,tbl_AA_Data_all_REF[parameter],"CO2") -> 0 | R33: =SUMIFS(tbl_AA_Data_all_REF[value_final],tbl_AA_Data_all_REF[sector],$C33,tbl_AA_Data_all_REF[energiedrager],R$30,tbl_AA_Data_all_REF[parameter],"CO2") -> 0 | S33: 997.4449325
C34: landbouw | D34: =SUMIFS(tbl_AA_Data_all_REF[value_final],tbl_AA_Data_all_REF[sector],$C34,tbl_AA_Data_all_REF[energiedrager],D$29,tbl_AA_Data_all_REF[parameter],"CO2") -> 311.5918036 | E34: =SUMIFS(tbl_AA_Data_all_REF[value_final],tbl_AA_Data_all_REF[sector],$C34,tbl_AA_Data_all_REF[energiedrager],E$29,tbl_AA_Data_all_REF[parameter],"CO2") -> 0 | F34: =SUMIFS(tbl_AA_Data_all_REF[value_final],tbl_AA_Data_all_REF[sector],$C34,tbl_AA_Data_all_REF[energiedrager],F$30,tbl_AA_Data_all_REF[parameter],"CO2") -> 245.6005699 | G34: =SUMIFS(tbl_AA_Data_all_REF[value_final],tbl_AA_Data_all_REF[sector],$C34,tbl_AA_Data_all_REF[energiedrager],G$30,tbl_AA_Data_all_REF[parameter],"CO2") -> 11.17721515 | H34: =SUMIFS(tbl_AA_Data_all_REF[value_final],tbl_AA_Data_all_REF[sector],$C34,tbl_AA_Data_all_REF[energiedrager],H$30,tbl_AA_Data_all_REF[parameter],"CO2") -> 1488.709615 | I34: =SUMIFS(tbl_AA_Data_all_REF[value_final],tbl_AA_Data_all_REF[sector],$C34,tbl_AA_Data_all_REF[energiedrager],I$30,tbl_AA_Data_all_REF[parameter],"CO2") -> 0 | J34: =SUMIFS(tbl_AA_Data_all_REF[value_final],tbl_AA_Data_all_REF[sector],$C34,tbl_AA_Data_all_REF[energiedrager],J$30,tbl_AA_Data_all_REF[parameter],"CO2") -> 0 | K34: =SUMIFS(tbl_AA_Data_all_REF[value_final],tbl_AA_Data_all_REF[sector],$C34,tbl_AA_Data_all_REF[energiedrager],K$30,tbl_AA_Data_all_REF[parameter],"CO2") -> 0 | L34: =SUMIFS(tbl_AA_Data_all_REF[value_final],tbl_AA_Data_all_REF[sector],$C34,tbl_AA_Data_all_REF[energiedrager],L$30,tbl_AA_Data_all_REF[parameter],"CO2") -> 153.8701477 | M34: =SUMIFS(tbl_AA_Data_all_REF[value_final],tbl_AA_Data_all_REF[sector],$C34,tbl_AA_Data_all_REF[energiedrager],M$30,tbl_AA_Data_all_REF[parameter],"CO2") -> 0 | N34: =SUMIFS(tbl_AA_Data_all_REF[value_final],tbl_AA_Data_all_REF[sector],$C34,tbl_AA_Data_all_REF[energiedrager],N$30,tbl_AA_Data_all_REF[parameter],"CO2") -> 0 | O34: =SUMIFS(tbl_AA_Data_all_REF[value_final],tbl_AA_Data_all_REF[sector],$C34,tbl_AA_Data_all_REF[energiedrager],O$30,tbl_AA_Data_all_REF[parameter],"CO2") -> 0 | P34: =SUMIFS(tbl_AA_Data_all_REF[value_final],tbl_AA_Data_all_REF[sector],$C34,tbl_AA_Data_all_REF[energiedrager],P$30,tbl_AA_Data_all_REF[parameter],"CO2") -> 0 | Q34: =SUMIFS(tbl_AA_Data_all_REF[value_final],tbl_AA_Data_all_REF[sector],$C34,tbl_AA_Data_all_REF[energiedrager],Q$30,tbl_AA_Data_all_REF[parameter],"CO2") -> 0 | R34: =SUMIFS(tbl_AA_Data_all_REF[value_final],tbl_AA_Data_all_REF[sector],$C34,tbl_AA_Data_all_REF[energiedrager],R$30,tbl_AA_Data_all_REF[parameter],"CO2") -> 0 | S34: 2210.949351
C35: industrie (niet-ETS) | D35: =SUMIFS(tbl_AA_Data_all_REF[value_final],tbl_AA_Data_all_REF[sector],$C35,tbl_AA_Data_all_REF[energiedrager],D$29,tbl_AA_Data_all_REF[parameter],"CO2") -> 10725.59375 | E35: =SUMIFS(tbl_AA_Data_all_REF[value_final],tbl_AA_Data_all_REF[sector],$C35,tbl_AA_Data_all_REF[energiedrager],E$29,tbl_AA_Data_all_REF[parameter],"CO2") -> 76.38655462 | F35: =SUMIFS(tbl_AA_Data_all_REF[value_final],tbl_AA_Data_all_REF[sector],$C35,tbl_AA_Data_all_REF[energiedrager],F$30,tbl_AA_Data_all_REF[parameter],"CO2") -> 14931.29039 | G35: =SUMIFS(tbl_AA_Data_all_REF[value_final],tbl_AA_Data_all_REF[sector],$C35,tbl_AA_Data_all_REF[energiedrager],G$30,tbl_AA_Data_all_REF[parameter],"CO2") -> 1747.583691 | H35: =SUMIFS(tbl_AA_Data_all_REF[value_final],tbl_AA_Data_all_REF[sector],$C35,tbl_AA_Data_all_REF[energiedrager],H$30,tbl_AA_Data_all_REF[parameter],"CO2") -> 7064.520098 | I35: =SUMIFS(tbl_AA_Data_all_REF[value_final],tbl_AA_Data_all_REF[sector],$C35,tbl_AA_Data_all_REF[energiedrager],I$30,tbl_AA_Data_all_REF[parameter],"CO2") -> 0 | J35: =SUMIFS(tbl_AA_Data_all_REF[value_final],tbl_AA_Data_all_REF[sector],$C35,tbl_AA_Data_all_REF[energiedrager],J$30,tbl_AA_Data_all_REF[parameter],"CO2") -> 0 | K35: =SUMIFS(tbl_AA_Data_all_REF[value_final],tbl_AA_Data_all_REF[sector],$C35,tbl_AA_Data_all_REF[energiedrager],K$30,tbl_AA_Data_all_REF[parameter],"CO2") -> 0 | L35: =SUMIFS(tbl_AA_Data_all_REF[value_final],tbl_AA_Data_all_REF[sector],$C35,tbl_AA_Data_all_REF[energiedrager],L$30,tbl_AA_Data_all_REF[parameter],"CO2") -> 74.46728587 | M35: =SUMIFS(tbl_AA_Data_all_REF[value_final],tbl_AA_Data_all_REF[sector],$C35,tbl_AA_Data_all_REF[energiedrager],M$30,tbl_AA_Data_all_REF[parameter],"CO2") -> 0 | N35: =SUMIFS(tbl_AA_Data_all_REF[value_final],tbl_AA_Data_all_REF[sector],$C35,tbl_AA_Data_all_REF[energiedrager],N$30,tbl_AA_Data_all_REF[parameter],"CO2") -> 0 | O35: =SUMIFS(tbl_AA_Data_all_REF[value_final],tbl_AA_Data_all_REF[sector],$C35,tbl_AA_Data_all_REF[energiedrager],O$30,tbl_AA_Data_all_REF[parameter],"CO2") -> 0 | P35: =SUMIFS(tbl_AA_Data_all_REF[value_final],tbl_AA_Data_all_REF[sector],$C35,tbl_AA_Data_all_REF[energiedrager],P$30,tbl_AA_Data_all_REF[parameter],"CO2") -> 0 | Q35: =SUMIFS(tbl_AA_Data_all_REF[value_final],tbl_AA_Data_all_REF[sector],$C35,tbl_AA_Data_all_REF[energiedrager],Q$30,tbl_AA_Data_all_REF[parameter],"CO2") -> 0 | R35: =SUMIFS(tbl_AA_Data_all_REF[value_final],tbl_AA_Data_all_REF[sector],$C35,tbl_AA_Data_all_REF[energiedrager],R$30,tbl_AA_Data_all_REF[parameter],"CO2") -> 0 | S35: 34619.84178
C36: particulier en commercieel vervoer | D36: =SUMIFS(tbl_AA_Data_all_REF[value_final],tbl_AA_Data_all_REF[sector],$C36,tbl_AA_Data_all_REF[energiedrager],D$29,tbl_AA_Data_all_REF[parameter],"CO2") -> 52.97970819 | E36: =SUMIFS(tbl_AA_Data_all_REF[value_final],tbl_AA_Data_all_REF[sector],$C36,tbl_AA_Data_all_REF[energiedrager],E$29,tbl_AA_Data_all_REF[parameter],"CO2") -> 0 | F36: =SUMIFS(tbl_AA_Data_all_REF[value_final],tbl_AA_Data_all_REF[sector],$C36,tbl_AA_Data_all_REF[energiedrager],F$30,tbl_AA_Data_all_REF[parameter],"CO2") -> 219.9826374 | G36: =SUMIFS(tbl_AA_Data_all_REF[value_final],tbl_AA_Data_all_REF[sector],$C36,tbl_AA_Data_all_REF[energiedrager],G$30,tbl_AA_Data_all_REF[parameter],"CO2") -> 190.0728495 | H36: =SUMIFS(tbl_AA_Data_all_REF[value_final],tbl_AA_Data_all_REF[sector],$C36,tbl_AA_Data_all_REF[energiedrager],H$30,tbl_AA_Data_all_REF[parameter],"CO2") -> 0 | I36: =SUMIFS(tbl_AA_Data_all_REF[value_final],tbl_AA_Data_all_REF[sector],$C36,tbl_AA_Data_all_REF[energiedrager],I$30,tbl_AA_Data_all_REF[parameter],"CO2") -> 79286.42989 | J36: =SUMIFS(tbl_AA_Data_all_REF[value_final],tbl_AA_Data_all_REF[sector],$C36,tbl_AA_Data_all_REF[energiedrager],J$30,tbl_AA_Data_all_REF[parameter],"CO2") -> 20182.81498 | K36: =SUMIFS(tbl_AA_Data_all_REF[value_final],tbl_AA_Data_all_REF[sector],$C36,tbl_AA_Data_all_REF[energiedrager],K$30,tbl_AA_Data_all_REF[parameter],"CO2") -> 0 | L36: =SUMIFS(tbl_AA_Data_all_REF[value_final],tbl_AA_Data_all_REF[sector],$C36,tbl_AA_Data_all_REF[energiedrager],L$30,tbl_AA_Data_all_REF[parameter],"CO2") -> 0 | M36: =SUMIFS(tbl_AA_Data_all_REF[value_final],tbl_AA_Data_all_REF[sector],$C36,tbl_AA_Data_all_REF[energiedrager],M$30,tbl_AA_Data_all_REF[parameter],"CO2") -> 0 | N36: =SUMIFS(tbl_AA_Data_all_REF[value_final],tbl_AA_Data_all_REF[sector],$C36,tbl_AA_Data_all_REF[energiedrager],N$30,tbl_AA_Data_all_REF[parameter],"CO2") -> 0 | O36: =SUMIFS(tbl_AA_Data_all_REF[value_final],tbl_AA_Data_all_REF[sector],$C36,tbl_AA_Data_all_REF[energiedrager],O$30,tbl_AA_Data_all_REF[parameter],"CO2") -> 0 | P36: =SUMIFS(tbl_AA_Data_all_REF[value_final],tbl_AA_Data_all_REF[sector],$C36,tbl_AA_Data_all_REF[energiedrager],P$30,tbl_AA_Data_all_REF[parameter],"CO2") -> 0 | Q36: =SUMIFS(tbl_AA_Data_all_REF[value_final],tbl_AA_Data_all_REF[sector],$C36,tbl_AA_Data_all_REF[energiedrager],Q$30,tbl_AA_Data_all_REF[parameter],"CO2") -> 0 | R36: =SUMIFS(tbl_AA_Data_all_REF[value_final],tbl_AA_Data_all_REF[sector],$C36,tbl_AA_Data_all_REF[energiedrager],R$30,tbl_AA_Data_all_REF[parameter],"CO2") -> 0 | S36: 99932.28007
C37: openbaar vervoer | D37: =SUMIFS(tbl_AA_Data_all_REF[value_final],tbl_AA_Data_all_REF[sector],$C37,tbl_AA_Data_all_REF[energiedrager],D$29,tbl_AA_Data_all_REF[parameter],"CO2") -> 0 | E37: =SUMIFS(tbl_AA_Data_all_REF[value_final],tbl_AA_Data_all_REF[sector],$C37,tbl_AA_Data_all_REF[energiedrager],E$29,tbl_AA_Data_all_REF[parameter],"CO2") -> 0 | F37: =SUMIFS(tbl_AA_Data_all_REF[value_final],tbl_AA_Data_all_REF[sector],$C37,tbl_AA_Data_all_REF[energiedrager],F$30,tbl_AA_Data_all_REF[parameter],"CO2") -> 0 | G37: =SUMIFS(tbl_AA_Data_all_REF[value_final],tbl_AA_Data_all_REF[sector],$C37,tbl_AA_Data_all_REF[energiedrager],G$30,tbl_AA_Data_all_REF[parameter],"CO2") -> 0 | H37: =SUMIFS(tbl_AA_Data_all_REF[value_final],tbl_AA_Data_all_REF[sector],$C37,tbl_AA_Data_all_REF[energiedrager],H$30,tbl_AA_Data_all_REF[parameter],"CO2") -> 0 | I37: =SUMIFS(tbl_AA_Data_all_REF[value_final],tbl_AA_Data_all_REF[sector],$C37,tbl_AA_Data_all_REF[energiedrager],I$30,tbl_AA_Data_all_REF[parameter],"CO2") -> 4149.946979 | J37: =SUMIFS(tbl_AA_Data_all_REF[value_final],tbl_AA_Data_all_REF[sector],$C37,tbl_AA_Data_all_REF[energiedrager],J$30,tbl_AA_Data_all_REF[parameter],"CO2") -> 0 | K37: =SUMIFS(tbl_AA_Data_all_REF[value_final],tbl_AA_Data_all_REF[sector],$C37,tbl_AA_Data_all_REF[energiedrager],K$30,tbl_AA_Data_all_REF[parameter],"CO2") -> 0 | L37: =SUMIFS(tbl_AA_Data_all_REF[value_final],tbl_AA_Data_all_REF[sector],$C37,tbl_AA_Data_all_REF[energiedrager],L$30,tbl_AA_Data_all_REF[parameter],"CO2") -> 0 | M37: =SUMIFS(tbl_AA_Data_all_REF[value_final],tbl_AA_Data_all_REF[sector],$C37,tbl_AA_Data_all_REF[energiedrager],M$30,tbl_AA_Data_all_REF[parameter],"CO2") -> 0 | N37: =SUMIFS(tbl_AA_Data_all_REF[value_final],tbl_AA_Data_all_REF[sector],$C37,tbl_AA_Data_all_REF[energiedrager],N$30,tbl_AA_Data_all_REF[parameter],"CO2") -> 0 | O37: =SUMIFS(tbl_AA_Data_all_REF[value_final],tbl_AA_Data_all_REF[sector],$C37,tbl_AA_Data_all_REF[energiedrager],O$30,tbl_AA_Data_all_REF[parameter],"CO2") -> 0 | P37: =SUMIFS(tbl_AA_Data_all_REF[value_final],tbl_AA_Data_all_REF[sector],$C37,tbl_AA_Data_all_REF[energiedrager],P$30,tbl_AA_Data_all_REF[parameter],"CO2") -> 0 | Q37: =SUMIFS(tbl_AA_Data_all_REF[value_final],tbl_AA_Data_all_REF[sector],$C37,tbl_AA_Data_all_REF[energiedrager],Q$30,tbl_AA_Data_all_REF[parameter],"CO2") -> 0 | R37: =SUMIFS(tbl_AA_Data_all_REF[value_final],tbl_AA_Data_all_REF[sector],$C37,tbl_AA_Data_all_REF[energiedrager],R$30,tbl_AA_Data_all_REF[parameter],"CO2") -> 0 | S37: 4149.946979
C38: niet toegekend | D38: =SUMIFS(tbl_AA_Data_all_REF[value_final],tbl_AA_Data_all_REF[sector],$C38,tbl_AA_Data_all_REF[energiedrager],D$29,tbl_AA_Data_all_REF[parameter],"CO2") -> 1784.701564 | E38: =SUMIFS(tbl_AA_Data_all_REF[value_final],tbl_AA_Data_all_REF[sector],$C38,tbl_AA_Data_all_REF[energiedrager],E$29,tbl_AA_Data_all_REF[parameter],"CO2") -> 0 | F38: =SUMIFS(tbl_AA_Data_all_REF[value_final],tbl_AA_Data_all_REF[sector],$C38,tbl_AA_Data_all_REF[energiedrager],F$30,tbl_AA_Data_all_REF[parameter],"CO2") -> 4103.842621 | G38: =SUMIFS(tbl_AA_Data_all_REF[value_final],tbl_AA_Data_all_REF[sector],$C38,tbl_AA_Data_all_REF[energiedrager],G$30,tbl_AA_Data_all_REF[parameter],"CO2") -> 0 | H38: =SUMIFS(tbl_AA_Data_all_REF[value_final],tbl_AA_Data_all_REF[sector],$C38,tbl_AA_Data_all_REF[energiedrager],H$30,tbl_AA_Data_all_REF[parameter],"CO2") -> 0 | I38: =SUMIFS(tbl_AA_Data_all_REF[value_final],tbl_AA_Data_all_REF[sector],$C38,tbl_AA_Data_all_REF[energiedrager],I$30,tbl_AA_Data_all_REF[parameter],"CO2") -> 0 | J38: =SUMIFS(tbl_AA_Data_all_REF[value_final],tbl_AA_Data_all_REF[sector],$C38,tbl_AA_Data_all_REF[energiedrager],J$30,tbl_AA_Data_all_REF[parameter],"CO2") -> 0 | K38: =SUMIFS(tbl_AA_Data_all_REF[value_final],tbl_AA_Data_all_REF[sector],$C38,tbl_AA_Data_all_REF[energiedrager],K$30,tbl_AA_Data_all_REF[parameter],"CO2") -> 0 | L38: =SUMIFS(tbl_AA_Data_all_REF[value_final],tbl_AA_Data_all_REF[sector],$C38,tbl_AA_Data_all_REF[energiedrager],L$30,tbl_AA_Data_all_REF[parameter],"CO2") -> 0 | M38: =SUMIFS(tbl_AA_Data_all_REF[value_final],tbl_AA_Data_all_REF[sector],$C38,tbl_AA_Data_all_REF[energiedrager],M$30,tbl_AA_Data_all_REF[parameter],"CO2") -> 0 | N38: =SUMIFS(tbl_AA_Data_all_REF[value_final],tbl_AA_Data_all_REF[sector],$C38,tbl_AA_Data_all_REF[energiedrager],N$30,tbl_AA_Data_all_REF[parameter],"CO2") -> 0 | O38: =SUMIFS(tbl_AA_Data_all_REF[value_final],tbl_AA_Data_all_REF[sector],$C38,tbl_AA_Data_all_REF[energiedrager],O$30,tbl_AA_Data_all_REF[parameter],"CO2") -> 0 | P38: =SUMIFS(tbl_AA_Data_all_REF[value_final],tbl_AA_Data_all_REF[sector],$C38,tbl_AA_Data_all_REF[energiedrager],P$30,tbl_AA_Data_all_REF[parameter],"CO2") -> 0 | Q38: =SUMIFS(tbl_AA_Data_all_REF[value_final],tbl_AA_Data_all_REF[sector],$C38,tbl_AA_Data_all_REF[energiedrager],Q$30,tbl_AA_Data_all_REF[parameter],"CO2") -> 0 | R38: =SUMIFS(tbl_AA_Data_all_REF[value_final],tbl_AA_Data_all_REF[sector],$C38,tbl_AA_Data_all_REF[energiedrager],R$30,tbl_AA_Data_all_REF[parameter],"CO2") -> 0 | S38: 5888.544185
C39: totaal | D39: =SUM(D31:D38) -> 79163.93946 | E39: =SUM(E31:E38) -> 777.1568067 | F39: 123105.6621 | G39: 7633.891917 | H39: 27303.64191 | I39: 83436.37687 | J39: 20182.81498 | K39: 0 | L39: 228.4396375 | M39: 0 | N39: 0 | O39: 0 | P39: 0 | Q39: 0 | R39: 0 | S39: 341831.9237

Sheet EIG
C3: << Naar rekenblad Dashboard | O3: Berekeningen + celverwijzing binnen hetzelfde rekenblad
O4: Verwijzing ander rekenblad
C5: EIG: verbetering/aanpassing eigen gemeentelijke referentiecijfers, wanneer de inventaris van Dept. Omgeving niet gebruikt wordt. | O5: In te vullen gegevens
C7: Gemeente: | D7: =D_gemeente -> VITO
C8: Referentiejaar: | D8: =P_Maatregelen_Jaar_Inventaris -> 2017
C11: 1. Energieverbruik en CO2-uitstoot
C13: (in MWh) | D13: FINAAL ENERGIEVERBRUIK
D14: Elektriciteit | E14: Warmte/ Koude | F14: Fossiele brandstoffen | N14: Hernieuwbare energie
F15: Aardgas | G15: Vloeibaar gas | H15: Stookolie | I15: Diesel | J15: Benzine | K15: Bruinkool | L15: Steenkool | M15: Andere fossiele brandstoffen | N15: Plantaardige oliën | O15: Bio-brandstof | P15: Overige biomassa | Q15: Zonne-/ thermische energie | R15: Geo-thermische energie | S15: Totaal
C16: huishoudens | S16: =SUM(D16:R16) -> 0
C17: tertiair | S17: =SUM(D17:R17) -> 0
C18: openbare verlichting | S18: =SUM(D18:R18) -> 0
C19: landbouw | S19: 0
C20: industrie (niet-ETS) | S20: 0
C21: particulier en commercieel vervoer | S21: 0
C22: openbaar vervoer | S22: 0
C23: niet toegekend
C24: totaal | D24: =SUM(D16:D23) -> 0 | E24: =SUM(E16:E23) -> 0 | F24: 0 | G24: 0 | H24: 0 | I24: 0 | J24: 0 | K24: 0 | L24: 0 | M24: 0 | N24: 0 | O24: 0 | P24: 0 | Q24: 0 | R24: 0 | S24: 0
C26: emissiefactoren (ton CO2 per MWh) | F26: ='AA_Energieprijs&Discontovoet'!F98 -> 0.202 | G26: ='AA_Energieprijs&Discontovoet'!F99 -> 0.227 | H26: ='AA_Energieprijs&Discontovoet'!F100 -> 0.267 | I26: ='AA_Energieprijs&Discontovoet'!F101 -> 0.267 | J26: ='AA_Energieprijs&Discontovoet'!F102 -> 0.249 | K26: ='AA_Energieprijs&Discontovoet'!F103 -> 0.351 | L26: ='AA_Energieprijs&Discontovoet'!F104 -> 0.354 | M26: ='AA_Energieprijs&Discontovoet'!F105 -> 0.264 | N26: ='AA_Energieprijs&Discontovoet'!F106 -> 0 | O26: ='AA_Energieprijs&Discontovoet'!F107 -> 0 | P26: ='AA_Energieprijs&Discontovoet'!F108 -> 0 | Q26: ='AA_Energieprijs&Discontovoet'!F109 -> 0 | R26: ='AA_Energieprijs&Discontovoet'!F110 -> 0
C28: (in ton) | D28: CO2-emissies
D29: Elektriciteit | E29: Warmte/ Koude | F29: Fossiele brandstoffen | N29: Hernieuwbare energie
F30: Aardgas | G30: Vloeibaar gas | H30: Stookolie | I30: Diesel | J30: Benzine | K30: Bruinkool | L30: Steenkool | M30: Andere fossiele brandstoffen | N30: Plantaardige oliën | O30: Bio-brandstof | P30: Overige biomassa | Q30: Zonne-/ thermische energie | R30: Geo-thermische energie | S30: Totaal
C31: huishoudens | D31: =D16*$D$26 -> 0 | E31: =E16*$E$26 -> 0 | F31: =F16*$F$26 -> 0 | G31: =G16*$G$26 -> 0 | H31: =H16*$H$26 -> 0 | I31: =I16*$I$26 -> 0 | J31: =J16*$J$26 -> 0 | K31: =K16*$K$26 -> 0 | L31: =L16*$L$26 -> 0 | M31: =M16*$M$26 -> 0 | N31: =N16*$N$26 -> 0 | O31: =O16*$O$26 -> 0 | P31: =P16*$P$26 -> 0 | Q31: =Q16*$Q$26 -> 0 | R31: =R16*$R$26 -> 0 | S31: =SUM(D31:R31) -> 0
C32: tertiair | D32: 0 | E32: 0 | F32: 0 | G32: 0 | H32: 0 | I32: 0 | J32: 0 | K32: 0 | L32: 0 | M32: 0 | N32: 0 | O32: 0 | P32: 0 | Q32: 0 | R32: 0 | S32: =SUM(D32:R32) -> 0
C33: openbare verlichting | D33: 0 | E33: 0 | F33: 0 | G33: 0 | H33: 0 | I33: 0 | J33: 0 | K33: 0 | L33: 0 | M33: 0 | N33: 0 | O33: 0 | P33: 0 | Q33: 0 | R33: 0 | S33: =SUM(D33:R33) -> 0
C34: landbouw | D34: 0 | E34: 0 | F34: 0 | G34: 0 | H34: 0 | I34: 0 | J34: 0 | K34: 0 | L34: 0 | M34: 0 | N34: 0 | O34: 0 | P34: 0 | Q34: 0 | R34: 0 | S34: 0
C35: industrie (niet-ETS) | D35: 0 | E35: 0 | F35: 0 | G35: 0 | H35: 0 | I35: 0 | J35: 0 | K35: 0 | L35: 0 | M35: 0 | N35: 0 | O35: 0 | P35: 0 | Q35: 0 | R35: 0 | S35: 0
C36: particulier en commercieel vervoer | D36: 0 | E36: 0 | F36: 0 | G36: 0 | H36: 0 | I36: 0 | J36: 0 | K36: 0 | L36: 0 | M36: 0 | N36: 0 | O36: 0 | P36: 0 | Q36: 0 | R36: 0 | S36: 0
C37: openbaar vervoer | D37: 0 | E37: 0 | F37: 0 | G37: 0 | H37: 0 | I37: 0 | J37: 0 | K37: 0 | L37: 0 | M37: 0 | N37: 0 | O37: 0 | P37: 0 | Q37: 0 | R37: 0 | S37: 0
C38: niet toegekend | D38: 0 | E38: 0 | F38: 0 | G38: 0 | H38: 0 | I38: 0 | J38: 0 | K38: 0 | L38: 0 | M38: 0 | N38: 0 | O38: 0 | P38: 0 | Q38: 0 | R38: 0 | S38: =SUM(D38:R38) -> 0
C39: totaal | D39: =SUM(D31:D38) -> 0 | E39: =SUM(E31:E38) -> 0 | F39: 0 | G39: 0 | H39: 0 | I39: 0 | J39: 0 | K39: 0 | L39: 0 | M39: 0 | N39: 0 | O39: 0 | P39: 0 | Q39: 0 | R39: 0 | S39: =SUM(S31:S38) -> 0
C42: 2. Wegtransport: voertuigkilometers, samenstelling vloot
C44: 2.1 Voertuigkilometers per wegtype en voertuigtype
C46: Particulier en commercieel vervoer
C48: WegType | D48: VoertuigType | E48: Voertuigkilometers (km)
C49: Genummerde wegen | D49: Lichte voertuigen
C50: Genummerde wegen | D50: Zware voertuigen
C51: Niet-genummerde wegen | D51: Lichte voertuigen
C52: Niet-genummerde wegen | D52: Zware voertuigen
C53: Snelwegen | D53: Lichte voertuigen
C54: Snelwegen | D54: Zware voertuigen
C56: Openbaar vervoer | D56: VoertuigType | E56: Voertuigkilometers (km)
D57: Bus
D58: Tram
C60: 2.2 Verdeelsleutel voertuigkilometers over voertuigtechnologie
C62: Voertuigtype (%) | D62: CNG | E62: DIESEL | F62: DIESEL HYBRID CS | G62: DIESEL HYBRID PHEV | H62: E85 | I62: ELECTRIC | J62: FUEL CELL H2 | K62: LPG | L62: PETROL | M62: PETROL HYBRID CS | N62: PETROL HYBRID PHEV
C63: Lichte voertuigen
C64: Zware voertuigen
C65: Bus

Sheet Resultaat-->
C3: << Naar Scenario's | O3: Naar Fig_Overzicht CO2 totaal>>
C5: RESULTAAT
C7: Handleiding
D9: De Resultaat rekenbladen worden automatisch gevuld op basis van selecties die de gebruiker maakt in het Dashboard en het rekenblad Scenario's.
D10: Let wel: indien de parameters in het Dashboard of rekenblad Scenario's aangepast worden, moeten de rekenbladen vernieuwd worden via "Alles vernieuwen" (cf. menubalk Gegevens)
D12: In rekenblad Fig_Overzicht CO2 totaal wordt een grafisch overzicht gegeven van het CO2-plafond 2030, de te behalen CO2-reductie, de totale CO2-emissies en gerealiseerde CO2-reductie in scenario 1 en scenario 2.
D13: Op basis van deze grafiek kan de gebruiker nagaan welke CO2-reductie gerealiseerd werd met de geselecteerde maatregelen in scenario 1 en scenario 2 (rekenblad Scenario's).
D14: De totale CO2-emissies voor scenario 1 en scenario 2 kunnen afgetoetst worden aan het CO2-plafond of de max. CO2-uitstoot voor 2030.
D15: Of de gerealiseerde CO2-reductie in scenario 1 en scenario 2 kan afgetoetst worden aan de te behalen CO2-reductie.
D16: Afhankelijk van de selectie in het Dashboard wordt de te behalen CO2-reductie bepaald als het verschil tussen het CO2-plafond en inventaris van Dept. Omgeving voor 2017 (INV), eigen inventaris voor 2017 (EIG) of BAU-scenario 2030.
D18: In rekenblad Fig_Bijdrage in te behalen reductie wordt de bijdrage die de sectoren en maatregelen leveren tot de te behalen CO2-reductie voorgesteld in een dynamische grafiek.
D19: De inhoud van deze grafiek kan door de gebruiker aangepast worden. De gebruiker heeft de mogelijkheid om de resultaten te filteren op scenario's, sectoren en maatregelen.
D20: De gebruiker kan kiezen om op de X-as de bijdrage aan de te behalen CO2-reductie te tonen per sector of per maatregel. De maatregelen worden voorgesteld aan de hand van hun maatregelcode.
D21: Via deze maatregelcode kan de gebruiker ook gemakkelijk de betreffende maatregel terugvinden in de Maatregelenfiches en het rekenblad Scenario's.
D22: De gebruiker kan kiezen om op de Y-as de bijdrage aan de vooropgestelde CO2-reductie te tonen voor scenario 1 of scenario 2.
D23: Indien de gebruiker kiest voor een X-as met maatregelen, kan met de filter één of meerdere sectoren uitgefilterd worden.
D24: Indien de gebruiker kiest voor een X-as met sectoren, kan met de filter één of meerdere maatregelen uitgefilterd worden.
D25: Via "clear filter" (i.e. icon met trechter en rode kruis) kan de gebruiker de selecties ongedaan maken.
D26: De volgorde waarin maatregelen in de grafiek getoond worden, komt overeen met de volgorde van de maatregelen in het rekenblad Scenario's.
D28: In rekenblad Tabel_Overzicht CO2 per sector wordt voor elk scenario een overzicht gegeven van de totale CO2-emissies per sector .
D29: In deze tabel wordt voor scenario 1 en scenario 2 aangegeven of de totale CO2-emissies al dan niet voldoende gereduceerd werden en lager zijn de het CO2-plafond.
D30: Indien de totale CO2-emissies hoger zijn dan het CO2-plafond, wordt tevens aangegeven met hoeveel ton de CO2-emissies bijkomend gereduceerd moeten worden.
D32: In rekenblad Tabel_Overzicht red per sector wordt voor elk scenario een overzicht gegeven van de gerealiseerde CO2-reductie pe sector.
D34: In rekenblad Tabel_Red per sector en maatreg wordt voor elk scenario een overzicht gegeven de gerealiseerde CO2-reductie per sector en per maatregel.
D35: De inhoud van deze tabel kan door de gebruiker aangepast worden. De gebruiker heeft de mogelijkheid om de resultaten te filteren op sectoren en maatregelen.
D36: Met de filter sector kan de gebruiker één of meerdere sectoren selecteren.
D37: Met de filter maatregel kan de gebruiker één of meerdere maatregelen selecteren.
D38: In deze tabel wordt tevens het %aandeel van een sector of maatregel in de totale gerealiseerde CO2-reductie gegeven.

Sheet Detailresultaten_maatregelen (hidden)
A1: Scenario | B1: ScenarioNummer | C1: MaatregelNummer | D1: MaatregelCode | E1: Sectornummer | F1: Sector | G1: Sector_kort | H1: Korte omschrijving maatregel | I1: Ambitieniveau | J1: Reductie | K1: X-as | L1: X-as volgorde | M1: X-as label | N1: Filter | Q1: tblResultaatMaatregelen
A2: =CONCATENATE("Scenario ",tblResultaatMaatregelen[[#This Row],[ScenarioNummer]]) -> Scenario 1 | B2: 1 | C2: 1 | D2: =VLOOKUP(tblResultaatMaatregelen[[#This Row],[MaatregelNummer]],Tbl_scenario[],4,TRUE) -> RES_ISO_DAK | E2: =INDEX(tblSectoren[SectorID],MATCH(tblResultaatMaatregelen[[#This Row],[Sector]],tblSectoren[Sectoren],0)) -> 1 | F2: =VLOOKUP(tblResultaatMaatregelen[[#This Row],[MaatregelNummer]],Tbl_scenario[],2,TRUE) -> Huishoudens | G2: =INDEX(tblSectoren[Afkorting],tblResultaatMaatregelen[[#This Row],[Sectornummer]]) -> RES | H2: =VLOOKUP(tblResultaatMaatregelen[[#This Row],[MaatregelNummer]],Tbl_scenario[],3,TRUE) -> Isolatiemaatregel gericht op dak | I2: =VLOOKUP(tblResultaatMaatregelen[[#This Row],[MaatregelNummer]],Tbl_scenario[],6+(tblResultaatMaatregelen[[#This Row],[ScenarioNummer]]-1)*4+1,TRUE) -> Laag | J2: =IF(tblResultaatMaatregelen[[#This Row],[Ambitieniveau]]="Niet",0,IFERROR(INDIRECT(CONCATENATE(tblResultaatMaatregelen[[#This Row],[MaatregelCode]],"_REDCO2_",tblResultaatMaatregelen[[#This Row],[ScenarioNummer]])),0)) -> 9650.788787 | K2: Maatregelen | L2: =IF(tblResultaatMaatregelen[[#This Row],[X-as]]="Maatregelen",tblResultaatMaatregelen[[#This Row],[MaatregelNummer]],tblResultaatMaatregelen[[#This Row],[Sectornummer]]) -> 1 | M2: =IF(tblResultaatMaatregelen[[#This Row],[X-as]]="Maatregelen",tblResultaatMaatregelen[[#This Row],[MaatregelCode]],CONCATENATE(tblResultaatMaatregelen[[#This Row],[Sector]]," (",tblResultaatMaatregelen[[#This Row],[Sector_kort]],")")) -> RES_ISO_DAK | N2: =IF(tblResultaatMaatregelen[[#This Row],[X-as]]="Maatregelen",CONCATENATE(tblResultaatMaatregelen[[#This Row],[Sector]]," (",tblResultaatMaatregelen[[#This Row],[Sector_kort]],")"),tblResultaatMaatregelen[[#This Row],[MaatregelCode]]) -> Huishoudens (RES)
A3: =CONCATENATE("Scenario ",tblResultaatMaatregelen[[#This Row],[ScenarioNummer]]) -> Scenario 1 | B3: 1 | C3: 2 | D3: =VLOOKUP(tblResultaatMaatregelen[[#This Row],[MaatregelNummer]],Tbl_scenario[],4,TRUE) -> RES_ISO_MUUR | E3: =INDEX(tblSectoren[SectorID],MATCH(tblResultaatMaatregelen[[#This Row],[Sector]],tblSectoren[Sectoren],0)) -> 1 | F3: =VLOOKUP(tblResultaatMaatregelen[[#This Row],[MaatregelNummer]],Tbl_scenario[],2,TRUE) -> Huishoudens | G3: =INDEX(tblSectoren[Afkorting],tblResultaatMaatregelen[[#This Row],[Sectornummer]]) -> RES | H3: =VLOOKUP(tblResultaatMaatregelen[[#This Row],[MaatregelNummer]],Tbl_scenario[],3,TRUE) -> Isolatiemaatregel gericht op buitenmuren | I3: =VLOOKUP(tblResultaatMaatregelen[[#This Row],[MaatregelNummer]],Tbl_scenario[],6+(tblResultaatMaatregelen[[#This Row],[ScenarioNummer]]-1)*4+1,TRUE) -> Laag | J3: =IF(tblResultaatMaatregelen[[#This Row],[Ambitieniveau]]="Niet",0,IFERROR(INDIRECT(CONCATENATE(tblResultaatMaatregelen[[#This Row],[MaatregelCode]],"_REDCO2_",tblResultaatMaatregelen[[#This Row],[ScenarioNummer]])),0)) -> 10751.62786 | K3: Maatregelen | L3: =IF(tblResultaatMaatregelen[[#This Row],[X-as]]="Maatregelen",tblResultaatMaatregelen[[#This Row],[MaatregelNummer]],tblResultaatMaatregelen[[#This Row],[Sectornummer]]) -> 2 | M3: =IF(tblResultaatMaatregelen[[#This Row],[X-as]]="Maatregelen",tblResultaatMaatregelen[[#This Row],[MaatregelCode]],CONCATENATE(tblResultaatMaatregelen[[#This Row],[Sector]]," (",tblResultaatMaatregelen[[#This Row],[Sector_kort]],")")) -> RES_ISO_MUUR | N3: =IF(tblResultaatMaatregelen[[#This Row],[X-as]]="Maatregelen",CONCATENATE(tblResultaatMaatregelen[[#This Row],[Sector]]," (",tblResultaatMaatregelen[[#This Row],[Sector_kort]],")"),tblResultaatMaatregelen[[#This Row],[MaatregelCode]]) -> Huishoudens (RES)
A4: =CONCATENATE("Scenario ",tblResultaatMaatregelen[[#This Row],[ScenarioNummer]]) -> Scenario 1 | B4: 1 | C4: 3 | D4: =VLOOKUP(tblResultaatMaatregelen[[#This Row],[MaatregelNummer]],Tbl_scenario[],4,TRUE) -> RES_ISO_VL | E4: =INDEX(tblSectoren[SectorID],MATCH(tblResultaatMaatregelen[[#This Row],[Sector]],tblSectoren[Sectoren],0)) -> 1 | F4: =VLOOKUP(tblResultaatMaatregelen[[#This Row],[MaatregelNummer]],Tbl_scenario[],2,TRUE) -> Huishoudens | G4: =INDEX(tblSectoren[Afkorting],tblResultaatMaatregelen[[#This Row],[Sectornummer]]) -> RES | H4: =VLOOKUP(tblResultaatMaatregelen[[#This Row],[MaatregelNummer]],Tbl_scenario[],3,TRUE) -> Isolatiemaatregel gericht op vloeren | I4: =VLOOKUP(tblResultaatMaatregelen[[#This Row],[MaatregelNummer]],Tbl_scenario[],6+(tblResultaatMaatregelen[[#This Row],[ScenarioNummer]]-1)*4+1,TRUE) -> Laag | J4: =IF(tblResultaatMaatregelen[[#This Row],[Ambitieniveau]]="Niet",0,IFERROR(INDIRECT(CONCATENATE(tblResultaatMaatregelen[[#This Row],[MaatregelCode]],"_REDCO2_",tblResultaatMaatregelen[[#This Row],[ScenarioNummer]])),0)) -> 4990.429014 | K4: Maatregelen | L4: =IF(tblResultaatMaatregelen[[#This Row],[X-as]]="Maatregelen",tblResultaatMaatregelen[[#This Row],[MaatregelNummer]],tblResultaatMaatregelen[[#This Row],[Sectornummer]]) -> 3 | M4: =IF(tblResultaatMaatregelen[[#This Row],[X-as]]="Maatregelen",tblResultaatMaatregelen[[#This Row],[MaatregelCode]],CONCATENATE(tblResultaatMaatregelen[[#This Row],[Sector]]," (",tblResultaatMaatregelen[[#This Row],[Sector_kort]],")")) -> RES_ISO_VL | N4: =IF(tblResultaatMaatregelen[[#This Row],[X-as]]="Maatregelen",CONCATENATE(tblResultaatMaatregelen[[#This Row],[Sector]]," (",tblResultaatMaatregelen[[#This Row],[Sector_kort]],")"),tblResultaatMaatregelen[[#This Row],[MaatregelCode]]) -> Huishoudens (RES)
A5: =CONCATENATE("Scenario ",tblResultaatMaatregelen[[#This Row],[ScenarioNummer]]) -> Scenario 1 | B5: 1 | C5: 4 | D5: =VLOOKUP(tblResultaatMaatregelen[[#This Row],[MaatregelNummer]],Tbl_scenario[],4,TRUE) -> RES_ISO_BG | E5: =INDEX(tblSectoren[SectorID],MATCH(tblResultaatMaatregelen[[#This Row],[Sector]],tblSectoren[Sectoren],0)) -> 1 | F5: =VLOOKUP(tblResultaatMaatregelen[[#This Row],[MaatregelNummer]],Tbl_scenario[],2,TRUE) -> Huishoudens | G5: =INDEX(tblSectoren[Afkorting],tblResultaatMaatregelen[[#This Row],[Sectornummer]]) -> RES | H5: =VLOOKUP(tblResultaatMaatregelen[[#This Row],[MaatregelNummer]],Tbl_scenario[],3,TRUE) -> Isolatiemaatregel gericht op ramen en beglazing | I5: =VLOOKUP(tblResultaatMaatregelen[[#This Row],[MaatregelNummer]],Tbl_scenario[],6+(tblResultaatMaatregelen[[#This Row],[ScenarioNummer]]-1)*4+1,TRUE) -> Laag | J5: =IF(tblResultaatMaatregelen[[#This Row],[Ambitieniveau]]="Niet",0,IFERROR(INDIRECT(CONCATENATE(tblResultaatMaatregelen[[#This Row],[MaatregelCode]],"_REDCO2_",tblResultaatMaatregelen[[#This Row],[ScenarioNummer]])),0)) -> 3270.152555 | K5: Maatregelen | L5: =IF(tblResultaatMaatregelen[[#This Row],[X-as]]="Maatregelen",tblResultaatMaatregelen[[#This Row],[MaatregelNummer]],tblResultaatMaatregelen[[#This Row],[Sectornummer]]) -> 4 | M5: =IF(tblResultaatMaatregelen[[#This Row],[X-as]]="Maatregelen",tblResultaatMaatregelen[[#This Row],[MaatregelCode]],CONCATENATE(tblResultaatMaatregelen[[#This Row],[Sector]]," (",tblResultaatMaatregelen[[#This Row],[Sector_kort]],")")) -> RES_ISO_BG | N5: =IF(tblResultaatMaatregelen[[#This Row],[X-as]]="Maatregelen",CONCATENATE(tblResultaatMaatregelen[[#This Row],[Sector]]," (",tblResultaatMaatregelen[[#This Row],[Sector_kort]],")"),tblResultaatMaatregelen[[#This Row],[MaatregelCode]]) -> Huishoudens (RES)
A6: =CONCATENATE("Scenario ",tblResultaatMaatregelen[[#This Row],[ScenarioNummer]]) -> Scenario 1 | B6: 1 | C6: 5 | D6: =VLOOKUP(tblResultaatMaatregelen[[#This Row],[MaatregelNummer]],Tbl_scenario[],4,TRUE) -> RES_HER_WP | E6: =INDEX(tblSectoren[SectorID],MATCH(tblResultaatMaatregelen[[#This Row],[Sector]],tblSectoren[Sectoren],0)) -> 1 | F6: =VLOOKUP(tblResultaatMaatregelen[[#This Row],[MaatregelNummer]],Tbl_scenario[],2,TRUE) -> Huishoudens | G6: =INDEX(tblSectoren[Afkorting],tblResultaatMaatregelen[[#This Row],[Sectornummer]]) -> RES | H6: =VLOOKUP(tblResultaatMaatregelen[[#This Row],[MaatregelNummer]],Tbl_scenario[],3,TRUE) -> Warmtepomp | I6: =VLOOKUP(tblResultaatMaatregelen[[#This Row],[MaatregelNummer]],Tbl_scenario[],6+(tblResultaatMaatregelen[[#This Row],[ScenarioNummer]]-1)*4+1,TRUE) -> Laag | J6: =IF(tblResultaatMaatregelen[[#This Row],[Ambitieniveau]]="Niet",0,IFERROR(INDIRECT(CONCATENATE(tblResultaatMaatregelen[[#This Row],[MaatregelCode]],"_REDCO2_",tblResultaatMaatregelen[[#This Row],[ScenarioNummer]])),0)) -> 3453.654642 | K6: Maatregelen | L6: =IF(tblResultaatMaatregelen[[#This Row],[X-as]]="Maatregelen",tblResultaatMaatregelen[[#This Row],[MaatregelNummer]],tblResultaatMaatregelen[[#This Row],[Sectornummer]]) -> 5 | M6: =IF(tblResultaatMaatregelen[[#This Row],[X-as]]="Maatregelen",tblResultaatMaatregelen[[#This Row],[MaatregelCode]],CONCATENATE(tblResultaatMaatregelen[[#This Row],[Sector]]," (",tblResultaatMaatregelen[[#This Row],[Sector_kort]],")")) -> RES_HER_WP | N6: =IF(tblResultaatMaatregelen[[#This Row],[X-as]]="Maatregelen",CONCATENATE(tblResultaatMaatregelen[[#This Row],[Sector]]," (",tblResultaatMaatregelen[[#This Row],[Sector_kort]],")"),tblResultaatMaatregelen[[#This Row],[MaatregelCode]]) -> Huishoudens (RES)
A7: =CONCATENATE("Scenario ",tblResultaatMaatregelen[[#This Row],[ScenarioNummer]]) -> Scenario 1 | B7: 1 | C7: 6 | D7: =VLOOKUP(tblResultaatMaatregelen[[#This Row],[MaatregelNummer]],Tbl_scenario[],4,TRUE) -> RES_HER_ZB | E7: =INDEX(tblSectoren[SectorID],MATCH(tblResultaatMaatregelen[[#This Row],[Sector]],tblSectoren[Sectoren],0)) -> 1 | F7: =VLOOKUP(tblResultaatMaatregelen[[#This Row],[MaatregelNummer]],Tbl_scenario[],2,TRUE) -> Huishoudens | G7: =INDEX(tblSectoren[Afkorting],tblResultaatMaatregelen[[#This Row],[Sectornummer]]) -> RES | H7: =VLOOKUP(tblResultaatMaatregelen[[#This Row],[MaatregelNummer]],Tbl_scenario[],3,TRUE) -> Zonneboiler | I7: =VLOOKUP(tblResultaatMaatregelen[[#This Row],[MaatregelNummer]],Tbl_scenario[],6+(tblResultaatMaatregelen[[#This Row],[ScenarioNummer]]-1)*4+1,TRUE) -> Laag | J7: =IF(tblResultaatMaatregelen[[#This Row],[Ambitieniveau]]="Niet",0,IFERROR(INDIRECT(CONCATENATE(tblResultaatMaatregelen[[#This Row],[MaatregelCode]],"_REDCO2_",tblResultaatMaatregelen[[#This Row],[ScenarioNummer]])),0)) -> 1282.111685 | K7: Maatregelen | L7: =IF(tblResultaatMaatregelen[[#This Row],[X-as]]="Maatregelen",tblResultaatMaatregelen[[#This Row],[MaatregelNummer]],tblResultaatMaatregelen[[#This Row],[Sectornummer]]) -> 6 | M7: =IF(tblResultaatMaatregelen[[#This Row],[X-as]]="Maatregelen",tblResultaatMaatregelen[[#This Row],[MaatregelCode]],CONCATENATE(tblResultaatMaatregelen[[#This Row],[Sector]]," (",tblResultaatMaatregelen[[#This Row],[Sector_kort]],")")) -> RES_HER_ZB | N7: =IF(tblResultaatMaatregelen[[#This Row],[X-as]]="Maatregelen",CONCATENATE(tblResultaatMaatregelen[[#This Row],[Sector]]," (",tblResultaatMaatregelen[[#This Row],[Sector_kort]],")"),tblResultaatMaatregelen[[#This Row],[MaatregelCode]]) -> Huishoudens (RES)
A8: =CONCATENATE("Scenario ",tblResultaatMaatregelen[[#This Row],[ScenarioNummer]]) -> Scenario 1 | B8: 1 | C8: 7 | D8: =VLOOKUP(tblResultaatMaatregelen[[#This Row],[MaatregelNummer]],Tbl_scenario[],4,TRUE) -> RES_HER_WPB | E8: =INDEX(tblSectoren[SectorID],MATCH(tblResultaatMaatregelen[[#This Row],[Sector]],tblSectoren[Sectoren],0)) -> 1 | F8: =VLOOKUP(tblResultaatMaatregelen[[#This Row],[MaatregelNummer]],Tbl_scenario[],2,TRUE) -> Huishoudens | G8: =INDEX(tblSectoren[Afkorting],tblResultaatMaatregelen[[#This Row],[Sectornummer]]) -> RES | H8: =VLOOKUP(tblResultaatMaatregelen[[#This Row],[MaatregelNummer]],Tbl_scenario[],3,TRUE) -> Warmtepompboiler | I8: =VLOOKUP(tblResultaatMaatregelen[[#This Row],[MaatregelNummer]],Tbl_scenario[],6+(tblResultaatMaatregelen[[#This Row],[ScenarioNummer]]-1)*4+1,TRUE) -> Laag | J8: =IF(tblResultaatMaatregelen[[#This Row],[Ambitieniveau]]="Niet",0,IFERROR(INDIRECT(CONCATENATE(tblResultaatMaatregelen[[#This Row],[MaatregelCode]],"_REDCO2_",tblResultaatMaatregelen[[#This Row],[ScenarioNummer]])),0)) -> 2395.411216 | K8: Maatregelen | L8: =IF(tblResultaatMaatregelen[[#This Row],[X-as]]="Maatregelen",tblResultaatMaatregelen[[#This Row],[MaatregelNummer]],tblResultaatMaatregelen[[#This Row],[Sectornummer]]) -> 7 | M8: =IF(tblResultaatMaatregelen[[#This Row],[X-as]]="Maatregelen",tblResultaatMaatregelen[[#This Row],[MaatregelCode]],CONCATENATE(tblResultaatMaatregelen[[#This Row],[Sector]]," (",tblResultaatMaatregelen[[#This Row],[Sector_kort]],")")) -> RES_HER_WPB | N8: =IF(tblResultaatMaatregelen[[#This Row],[X-as]]="Maatregelen",CONCATENATE(tblResultaatMaatregelen[[#This Row],[Sector]]," (",tblResultaatMaatregelen[[#This Row],[Sector_kort]],")"),tblResultaatMaatregelen[[#This Row],[MaatregelCode]]) -> Huishoudens (RES)
A9: =CONCATENATE("Scenario ",tblResultaatMaatregelen[[#This Row],[ScenarioNummer]]) -> Scenario 1 | B9: 1 | C9: 8 | D9: =VLOOKUP(tblResultaatMaatregelen[[#This Row],[MaatregelNummer]],Tbl_scenario[],4,TRUE) -> RES_EE_ELE | E9: =INDEX(tblSectoren[SectorID],MATCH(tblResultaatMaatregelen[[#This Row],[Sector]],tblSectoren[Sectoren],0)) -> 1 | F9: =VLOOKUP(tblResultaatMaatregelen[[#This Row],[MaatregelNummer]],Tbl_scenario[],2,TRUE) -> Huishoudens | G9: =INDEX(tblSectoren[Afkorting],tblResultaatMaatregelen[[#This Row],[Sectornummer]]) -> RES | H9: =VLOOKUP(tblResultaatMaatregelen[[#This Row],[MaatregelNummer]],Tbl_scenario[],3,TRUE) -> Elektriciteitsgebruik: verhogen efficiëntie | I9: =VLOOKUP(tblResultaatMaatregelen[[#This Row],[MaatregelNummer]],Tbl_scenario[],6+(tblResultaatMaatregelen[[#This Row],[ScenarioNummer]]-1)*4+1,TRUE) -> Laag | J9: =IF(tblResultaatMaatregelen[[#This Row],[Ambitieniveau]]="Niet",0,IFERROR(INDIRECT(CONCATENATE(tblResultaatMaatregelen[[#This Row],[MaatregelCode]],"_REDCO2_",tblResultaatMaatregelen[[#This Row],[ScenarioNummer]])),0)) -> 638.1059226 | K9: Maatregelen | L9: =IF(tblResultaatMaatregelen[[#This Row],[X-as]]="Maatregelen",tblResultaatMaatregelen[[#This Row],[MaatregelNummer]],tblResultaatMaatregelen[[#This Row],[Sectornummer]]) -> 8 | M9: =IF(tblResultaatMaatregelen[[#This Row],[X-as]]="Maatregelen",tblResultaatMaatregelen[[#This Row],[MaatregelCode]],CONCATENATE(tblResultaatMaatregelen[[#This Row],[Sector]]," (",tblResultaatMaatregelen[[#This Row],[Sector_kort]],")")) -> RES_EE_ELE | N9: =IF(tblResultaatMaatregelen[[#This Row],[X-as]]="Maatregelen",CONCATENATE(tblResultaatMaatregelen[[#This Row],[Sector]]," (",tblResultaatMaatregelen[[#This Row],[Sector_kort]],")"),tblResultaatMaatregelen[[#This Row],[MaatregelCode]]) -> Huishoudens (RES)
A10: =CONCATENATE("Scenario ",tblResultaatMaatregelen[[#This Row],[ScenarioNummer]]) -> Scenario 1 | B10: 1 | C10: 9 | D10: =VLOOKUP(tblResultaatMaatregelen[[#This Row],[MaatregelNummer]],Tbl_scenario[],4,TRUE) -> RES_EE_SLOOP | E10: =INDEX(tblSectoren[SectorID],MATCH(tblResultaatMaatregelen[[#This Row],[Sector]],tblSectoren[Sectoren],0)) -> 1 | F10: =VLOOKUP(tblResultaatMaatregelen[[#This Row],[MaatregelNummer]],Tbl_scenario[],2,TRUE) -> Huishoudens | G10: =INDEX(tblSectoren[Afkorting],tblResultaatMaatregelen[[#This Row],[Sectornummer]]) -> RES | H10: =VLOOKUP(tblResultaatMaatregelen[[#This Row],[MaatregelNummer]],Tbl_scenario[],3,TRUE) -> Stimuleren sloop energieverslindende woningen | I10: =VLOOKUP(tblResultaatMaatregelen[[#This Row],[MaatregelNummer]],Tbl_scenario[],6+(tblResultaatMaatregelen[[#This Row],[ScenarioNummer]]-1)*4+1,TRUE) -> Laag | J10: =IF(tblResultaatMaatregelen[[#This Row],[Ambitieniveau]]="Niet",0,IFERROR(INDIRECT(CONCATENATE(tblResultaatMaatregelen[[#This Row],[MaatregelCode]],"_REDCO2_",tblResultaatMaatregelen[[#This Row],[ScenarioNummer]])),0)) -> 3938.931033 | K10: Maatregelen | L10: =IF(tblResultaatMaatregelen[[#This Row],[X-as]]="Maatregelen",tblResultaatMaatregelen[[#This Row],[MaatregelNummer]],tblResultaatMaatregelen[[#This Row],[Sectornummer]]) -> 9 | M10: =IF(tblResultaatMaatregelen[[#This Row],[X-as]]="Maatregelen",tblResultaatMaatregelen[[#This Row],[MaatregelCode]],CONCATENATE(tblResultaatMaatregelen[[#This Row],[Sector]]," (",tblResultaatMaatregelen[[#This Row],[Sector_kort]],")")) -> RES_EE_SLOOP | N10: =IF(tblResultaatMaatregelen[[#This Row],[X-as]]="Maatregelen",CONCATENATE(tblResultaatMaatregelen[[#This Row],[Sector]]," (",tblResultaatMaatregelen[[#This Row],[Sector_kort]],")"),tblResultaatMaatregelen[[#This Row],[MaatregelCode]]) -> Huishoudens (RES)
A11: =CONCATENATE("Scenario ",tblResultaatMaatregelen[[#This Row],[ScenarioNummer]]) -> Scenario 1 | B11: 1 | C11: 10 | D11: =VLOOKUP(tblResultaatMaatregelen[[#This Row],[MaatregelNummer]],Tbl_scenario[],4,TRUE) -> TER_EE_ISO | E11: =INDEX(tblSectoren[SectorID],MATCH(tblResultaatMaatregelen[[#This Row],[Sector]],tblSectoren[Sectoren],0)) -> 2 | F11: =VLOOKUP(tblResultaatMaatregelen[[#This Row],[MaatregelNummer]],Tbl_scenario[],2,TRUE) -> Tertiair | G11: =INDEX(tblSectoren[Afkorting],tblResultaatMaatregelen[[#This Row],[Sectornummer]]) -> TER | H11: =VLOOKUP(tblResultaatMaatregelen[[#This Row],[MaatregelNummer]],Tbl_scenario[],3,TRUE) -> Verhoogde isolatiegraad | I11: =VLOOKUP(tblResultaatMaatregelen[[#This Row],[MaatregelNummer]],Tbl_scenario[],6+(tblResultaatMaatregelen[[#This Row],[ScenarioNummer]]-1)*4+1,TRUE) -> Laag | J11: =IF(tblResultaatMaatregelen[[#This Row],[Ambitieniveau]]="Niet",0,IFERROR(INDIRECT(CONCATENATE(tblResultaatMaatregelen[[#This Row],[MaatregelCode]],"_REDCO2_",tblResultaatMaatregelen[[#This Row],[ScenarioNummer]])),0)) -> 5331.516633 | K11: Maatregelen | L11: =IF(tblResultaatMaatregelen[[#This Row],[X-as]]="Maatregelen",tblResultaatMaatregelen[[#This Row],[MaatregelNummer]],tblResultaatMaatregelen[[#This Row],[Sectornummer]]) -> 10 | M11: =IF(tblResultaatMaatregelen[[#This Row],[X-as]]="Maatregelen",tblResultaatMaatregelen[[#This Row],[MaatregelCode]],CONCATENATE(tblResultaatMaatregelen[[#This Row],[Sector]]," (",tblResultaatMaatregelen[[#This Row],[Sector_kort]],")")) -> TER_EE_ISO | N11: =IF(tblResultaatMaatregelen[[#This Row],[X-as]]="Maatregelen",CONCATENATE(tblResultaatMaatregelen[[#This Row],[Sector]]," (",tblResultaatMaatregelen[[#This Row],[Sector_kort]],")"),tblResultaatMaatregelen[[#This Row],[MaatregelCode]]) -> Tertiair (TER)
A12: =CONCATENATE("Scenario ",tblResultaatMaatregelen[[#This Row],[ScenarioNummer]]) -> Scenario 1 | B12: 1 | C12: 11 | D12: =VLOOKUP(tblResultaatMaatregelen[[#This Row],[MaatregelNummer]],Tbl_scenario[],4,TRUE) -> TER_HER_WP | E12: =INDEX(tblSectoren[SectorID],MATCH(tblResultaatMaatregelen[[#This Row],[Sector]],tblSectoren[Sectoren],0)) -> 2 | F12: =VLOOKUP(tblResultaatMaatregelen[[#This Row],[MaatregelNummer]],Tbl_scenario[],2,TRUE) -> Tertiair | G12: =INDEX(tblSectoren[Afkorting],tblResultaatMaatregelen[[#This Row],[Sectornummer]]) -> TER | H12: =VLOOKUP(tblResultaatMaatregelen[[#This Row],[MaatregelNummer]],Tbl_scenario[],3,TRUE) -> Warmtepomp | I12: =VLOOKUP(tblResultaatMaatregelen[[#This Row],[MaatregelNummer]],Tbl_scenario[],6+(tblResultaatMaatregelen[[#This Row],[ScenarioNummer]]-1)*4+1,TRUE) -> Laag | J12: =IF(tblResultaatMaatregelen[[#This Row],[Ambitieniveau]]="Niet",0,IFERROR(INDIRECT(CONCATENATE(tblResultaatMaatregelen[[#This Row],[MaatregelCode]],"_REDCO2_",tblResultaatMaatregelen[[#This Row],[ScenarioNummer]])),0)) -> 2668.366352 | K12: Maatregelen | L12: =IF(tblResultaatMaatregelen[[#This Row],[X-as]]="Maatregelen",tblResultaatMaatregelen[[#This Row],[MaatregelNummer]],tblResultaatMaatregelen[[#This Row],[Sectornummer]]) -> 11 | M12: =IF(tblResultaatMaatregelen[[#This Row],[X-as]]="Maatregelen",tblResultaatMaatregelen[[#This Row],[MaatregelCode]],CONCATENATE(tblResultaatMaatregelen[[#This Row],[Sector]]," (",tblResultaatMaatregelen[[#This Row],[Sector_kort]],")")) -> TER_HER_WP | N12: =IF(tblResultaatMaatregelen[[#This Row],[X-as]]="Maatregelen",CONCATENATE(tblResultaatMaatregelen[[#This Row],[Sector]]," (",tblResultaatMaatregelen[[#This Row],[Sector_kort]],")"),tblResultaatMaatregelen[[#This Row],[MaatregelCode]]) -> Tertiair (TER)
A13: =CONCATENATE("Scenario ",tblResultaatMaatregelen[[#This Row],[ScenarioNummer]]) -> Scenario 1 | B13: 1 | C13: 12 | D13: =VLOOKUP(tblResultaatMaatregelen[[#This Row],[MaatregelNummer]],Tbl_scenario[],4,TRUE) -> TER_HER_ZB | E13: =INDEX(tblSectoren[SectorID],MATCH(tblResultaatMaatregelen[[#This Row],[Sector]],tblSectoren[Sectoren],0)) -> 2 | F13: =VLOOKUP(tblResultaatMaatregelen[[#This Row],[MaatregelNummer]],Tbl_scenario[],2,TRUE) -> Tertiair | G13: =INDEX(tblSectoren[Afkorting],tblResultaatMaatregelen[[#This Row],[Sectornummer]]) -> TER | H13: =VLOOKUP(tblResultaatMaatregelen[[#This Row],[MaatregelNummer]],Tbl_scenario[],3,TRUE) -> Zonneboiler | I13: =VLOOKUP(tblResultaatMaatregelen[[#This Row],[MaatregelNummer]],Tbl_scenario[],6+(tblResultaatMaatregelen[[#This Row],[ScenarioNummer]]-1)*4+1,TRUE) -> Laag | J13: =IF(tblResultaatMaatregelen[[#This Row],[Ambitieniveau]]="Niet",0,IFERROR(INDIRECT(CONCATENATE(tblResultaatMaatregelen[[#This Row],[MaatregelCode]],"_REDCO2_",tblResultaatMaatregelen[[#This Row],[ScenarioNummer]])),0)) -> 925.6105265 | K13: Maatregelen | L13: =IF(tblResultaatMaatregelen[[#This Row],[X-as]]="Maatregelen",tblResultaatMaatregelen[[#This Row],[MaatregelNummer]],tblResultaatMaatregelen[[#This Row],[Sectornummer]]) -> 12 | M13: =IF(tblResultaatMaatregelen[[#This Row],[X-as]]="Maatregelen",tblResultaatMaatregelen[[#This Row],[MaatregelCode]],CONCATENATE(tblResultaatMaatregelen[[#This Row],[Sector]]," (",tblResultaatMaatregelen[[#This Row],[Sector_kort]],")")) -> TER_HER_ZB | N13: =IF(tblResultaatMaatregelen[[#This Row],[X-as]]="Maatregelen",CONCATENATE(tblResultaatMaatregelen[[#This Row],[Sector]]," (",tblResultaatMaatregelen[[#This Row],[Sector_kort]],")"),tblResultaatMaatregelen[[#This Row],[MaatregelCode]]) -> Tertiair (TER)
A14: =CONCATENATE("Scenario ",tblResultaatMaatregelen[[#This Row],[ScenarioNummer]]) -> Scenario 1 | B14: 1 | C14: 13 | D14: =VLOOKUP(tblResultaatMaatregelen[[#This Row],[MaatregelNummer]],Tbl_scenario[],4,TRUE) -> TER_HER_WPB | E14: =INDEX(tblSectoren[SectorID],MATCH(tblResultaatMaatregelen[[#This Row],[Sector]],tblSectoren[Sectoren],0)) -> 2 | F14: =VLOOKUP(tblResultaatMaatregelen[[#This Row],[MaatregelNummer]],Tbl_scenario[],2,TRUE) -> Tertiair | G14: =INDEX(tblSectoren[Afkorting],tblResultaatMaatregelen[[#This Row],[Sectornummer]]) -> TER | H14: =VLOOKUP(tblResultaatMaatregelen[[#This Row],[MaatregelNummer]],Tbl_scenario[],3,TRUE) -> Warmtepompboiler | I14: =VLOOKUP(tblResultaatMaatregelen[[#This Row],[MaatregelNummer]],Tbl_scenario[],6+(tblResultaatMaatregelen[[#This Row],[ScenarioNummer]]-1)*4+1,TRUE) -> Laag | J14: =IF(tblResultaatMaatregelen[[#This Row],[Ambitieniveau]]="Niet",0,IFERROR(INDIRECT(CONCATENATE(tblResultaatMaatregelen[[#This Row],[MaatregelCode]],"_REDCO2_",tblResultaatMaatregelen[[#This Row],[ScenarioNummer]])),0)) -> 1291.099726 | K14: Maatregelen | L14: =IF(tblResultaatMaatregelen[[#This Row],[X-as]]="Maatregelen",tblResultaatMaatregelen[[#This Row],[MaatregelNummer]],tblResultaatMaatregelen[[#This Row],[Sectornummer]]) -> 13 | M14: =IF(tblResultaatMaatregelen[[#This Row],[X-as]]="Maatregelen",tblResultaatMaatregelen[[#This Row],[MaatregelCode]],CONCATENATE(tblResultaatMaatregelen[[#This Row],[Sector]]," (",tblResultaatMaatregelen[[#This Row],[Sector_kort]],")")) -> TER_HER_WPB | N14: =IF(tblResultaatMaatregelen[[#This Row],[X-as]]="Maatregelen",CONCATENATE(tblResultaatMaatregelen[[#This Row],[Sector]]," (",tblResultaatMaatregelen[[#This Row],[Sector_kort]],")"),tblResultaatMaatregelen[[#This Row],[MaatregelCode]]) -> Tertiair (TER)
A15: =CONCATENATE("Scenario ",tblResultaatMaatregelen[[#This Row],[ScenarioNummer]]) -> Scenario 1 | B15: 1 | C15: 14 | D15: =VLOOKUP(tblResultaatMaatregelen[[#This Row],[MaatregelNummer]],Tbl_scenario[],4,TRUE) -> TER_EE_ELE | E15: =INDEX(tblSectoren[SectorID],MATCH(tblResultaatMaatregelen[[#This Row],[Sector]],tblSectoren[Sectoren],0)) -> 2 | F15: =VLOOKUP(tblResultaatMaatregelen[[#This Row],[MaatregelNummer]],Tbl_scenario[],2,TRUE) -> Tertiair | G15: =INDEX(tblSectoren[Afkorting],tblResultaatMaatregelen[[#This Row],[Sectornummer]]) -> TER | H15: =VLOOKUP(tblResultaatMaatregelen[[#This Row],[MaatregelNummer]],Tbl_scenario[],3,TRUE) -> Ele. gebruik: verhogen efficiëntie (LED, relighting, koeling, etc.) | I15: =VLOOKUP(tblResultaatMaatregelen[[#This Row],[MaatregelNummer]],Tbl_scenario[],6+(tblResultaatMaatregelen[[#This Row],[ScenarioNummer]]-1)*4+1,TRUE) -> Laag | J15: =IF(tblResultaatMaatregelen[[#This Row],[Ambitieniveau]]="Niet",0,IFERROR(INDIRECT(CONCATENATE(tblResultaatMaatregelen[[#This Row],[MaatregelCode]],"_REDCO2_",tblResultaatMaatregelen[[#This Row],[ScenarioNummer]])),0)) -> 2523.430329 | K15: Maatregelen | L15: =IF(tblResultaatMaatregelen[[#This Row],[X-as]]="Maatregelen",tblResultaatMaatregelen[[#This Row],[MaatregelNummer]],tblResultaatMaatregelen[[#This Row],[Sectornummer]]) -> 14 | M15: =IF(tblResultaatMaatregelen[[#This Row],[X-as]]="Maatregelen",tblResultaatMaatregelen[[#This Row],[MaatregelCode]],CONCATENATE(tblResultaatMaatregelen[[#This Row],[Sector]]," (",tblResultaatMaatregelen[[#This Row],[Sector_kort]],")")) -> TER_EE_ELE | N15: =IF(tblResultaatMaatregelen[[#This Row],[X-as]]="Maatregelen",CONCATENATE(tblResultaatMaatregelen[[#This Row],[Sector]]," (",tblResultaatMaatregelen[[#This Row],[Sector_kort]],")"),tblResultaatMaatregelen[[#This Row],[MaatregelCode]]) -> Tertiair (TER)
A16: =CONCATENATE("Scenario ",tblResultaatMaatregelen[[#This Row],[ScenarioNummer]]) -> Scenario 1 | B16: 1 | C16: 15 | D16: =VLOOKUP(tblResultaatMaatregelen[[#This Row],[MaatregelNummer]],Tbl_scenario[],4,TRUE) -> OV_LED_EE | E16: =INDEX(tblSectoren[SectorID],MATCH(tblResultaatMaatregelen[[#This Row],[Sector]],tblSectoren[Sectoren],0)) -> 6 | F16: =VLOOKUP(tblResultaatMaatregelen[[#This Row],[MaatregelNummer]],Tbl_scenario[],2,TRUE) -> Openbare verlichting | G16: =INDEX(tblSectoren[Afkorting],tblResultaatMaatregelen[[#This Row],[Sectornummer]]) -> OV | H16: =VLOOKUP(tblResultaatMaatregelen[[#This Row],[MaatregelNummer]],Tbl_scenario[],3,TRUE) -> LED: verhogen energie-efficiëntie | I16: =VLOOKUP(tblResultaatMaatregelen[[#This Row],[MaatregelNummer]],Tbl_scenario[],6+(tblResultaatMaatregelen[[#This Row],[ScenarioNummer]]-1)*4+1,TRUE) -> Laag | J16: =IF(tblResultaatMaatregelen[[#This Row],[Ambitieniveau]]="Niet",0,IFERROR(INDIRECT(CONCATENATE(tblResultaatMaatregelen[[#This Row],[MaatregelCode]],"_REDCO2_",tblResultaatMaatregelen[[#This Row],[ScenarioNummer]])),0)) -> 214.9123705 | K16: Maatregelen | L16: =IF(tblResultaatMaatregelen[[#This Row],[X-as]]="Maatregelen",tblResultaatMaatregelen[[#This Row],[MaatregelNummer]],tblResultaatMaatregelen[[#This Row],[Sectornummer]]) -> 15 | M16: =IF(tblResultaatMaatregelen[[#This Row],[X-as]]="Maatregelen",tblResultaatMaatregelen[[#This Row],[MaatregelCode]],CONCATENATE(tblResultaatMaatregelen[[#This Row],[Sector]]," (",tblResultaatMaatregelen[[#This Row],[Sector_kort]],")")) -> OV_LED_EE | N16: =IF(tblResultaatMaatregelen[[#This Row],[X-as]]="Maatregelen",CONCATENATE(tblResultaatMaatregelen[[#This Row],[Sector]]," (",tblResultaatMaatregelen[[#This Row],[Sector_kort]],")"),tblResultaatMaatregelen[[#This Row],[MaatregelCode]]) -> Openbare verlichting (OV)
A17: =CONCATENATE("Scenario ",tblResultaatMaatregelen[[#This Row],[ScenarioNummer]]) -> Scenario 1 | B17: 1 | C17: 16 | D17: =VLOOKUP(tblResultaatMaatregelen[[#This Row],[MaatregelNummer]],Tbl_scenario[],4,TRUE) -> IND_HER_WP | E17: =INDEX(tblSectoren[SectorID],MATCH(tblResultaatMaatregelen[[#This Row],[Sector]],tblSectoren[Sectoren],0)) -> 3 | F17: =VLOOKUP(tblResultaatMaatregelen[[#This Row],[MaatregelNummer]],Tbl_scenario[],2,TRUE) -> Industrie (niet-ETS) | G17: =INDEX(tblSectoren[Afkorting],tblResultaatMaatregelen[[#This Row],[Sectornummer]]) -> IND | H17: =VLOOKUP(tblResultaatMaatregelen[[#This Row],[MaatregelNummer]],Tbl_scenario[],3,TRUE) -> Warmtepomp | I17: =VLOOKUP(tblResultaatMaatregelen[[#This Row],[MaatregelNummer]],Tbl_scenario[],6+(tblResultaatMaatregelen[[#This Row],[ScenarioNummer]]-1)*4+1,TRUE) -> Laag | J17: =IF(tblResultaatMaatregelen[[#This Row],[Ambitieniveau]]="Niet",0,IFERROR(INDIRECT(CONCATENATE(tblResultaatMaatregelen[[#This Row],[MaatregelCode]],"_REDCO2_",tblResultaatMaatregelen[[#This Row],[ScenarioNummer]])),0)) -> 655.0120874 | K17: Maatregelen | L17: =IF(tblResultaatMaatregelen[[#This Row],[X-as]]="Maatregelen",tblResultaatMaatregelen[[#This Row],[MaatregelNummer]],tblResultaatMaatregelen[[#This Row],[Sectornummer]]) -> 16 | M17: =IF(tblResultaatMaatregelen[[#This Row],[X-as]]="Maatregelen",tblResultaatMaatregelen[[#This Row],[MaatregelCode]],CONCATENATE(tblResultaatMaatregelen[[#This Row],[Sector]]," (",tblResultaatMaatregelen[[#This Row],[Sector_kort]],")")) -> IND_HER_WP | N17: =IF(tblResultaatMaatregelen[[#This Row],[X-as]]="Maatregelen",CONCATENATE(tblResultaatMaatregelen[[#This Row],[Sector]]," (",tblResultaatMaatregelen[[#This Row],[Sector_kort]],")"),tblResultaatMaatregelen[[#This Row],[MaatregelCode]]) -> Industrie (niet-ETS) (IND)
A18: =CONCATENATE("Scenario ",tblResultaatMaatregelen[[#This Row],[ScenarioNummer]]) -> Scenario 1 | B18: 1 | C18: 17 | D18: =VLOOKUP(tblResultaatMaatregelen[[#This Row],[MaatregelNummer]],Tbl_scenario[],4,TRUE) -> IND_HER_ZB | E18: =INDEX(tblSectoren[SectorID],MATCH(tblResultaatMaatregelen[[#This Row],[Sector]],tblSectoren[Sectoren],0)) -> 3 | F18: =VLOOKUP(tblResultaatMaatregelen[[#This Row],[MaatregelNummer]],Tbl_scenario[],2,TRUE) -> Industrie (niet-ETS) | G18: =INDEX(tblSectoren[Afkorting],tblResultaatMaatregelen[[#This Row],[Sectornummer]]) -> IND | H18: =VLOOKUP(tblResultaatMaatregelen[[#This Row],[MaatregelNummer]],Tbl_scenario[],3,TRUE) -> Zonneboiler | I18: =VLOOKUP(tblResultaatMaatregelen[[#This Row],[MaatregelNummer]],Tbl_scenario[],6+(tblResultaatMaatregelen[[#This Row],[ScenarioNummer]]-1)*4+1,TRUE) -> Laag | J18: =IF(tblResultaatMaatregelen[[#This Row],[Ambitieniveau]]="Niet",0,IFERROR(INDIRECT(CONCATENATE(tblResultaatMaatregelen[[#This Row],[MaatregelCode]],"_REDCO2_",tblResultaatMaatregelen[[#This Row],[ScenarioNummer]])),0)) -> 140.9019379 | K18: Maatregelen | L18: =IF(tblResultaatMaatregelen[[#This Row],[X-as]]="Maatregelen",tblResultaatMaatregelen[[#This Row],[MaatregelNummer]],tblResultaatMaatregelen[[#This Row],[Sectornummer]]) -> 17 | M18: =IF(tblResultaatMaatregelen[[#This Row],[X-as]]="Maatregelen",tblResultaatMaatregelen[[#This Row],[MaatregelCode]],CONCATENATE(tblResultaatMaatregelen[[#This Row],[Sector]]," (",tblResultaatMaatregelen[[#This Row],[Sector_kort]],")")) -> IND_HER_ZB | N18: =IF(tblResultaatMaatregelen[[#This Row],[X-as]]="Maatregelen",CONCATENATE(tblResultaatMaatregelen[[#This Row],[Sector]]," (",tblResultaatMaatregelen[[#This Row],[Sector_kort]],")"),tblResultaatMaatregelen[[#This Row],[MaatregelCode]]) -> Industrie (niet-ETS) (IND)
A19: =CONCATENATE("Scenario ",tblResultaatMaatregelen[[#This Row],[ScenarioNummer]]) -> Scenario 1 | B19: 1 | C19: 18 | D19: =VLOOKUP(tblResultaatMaatregelen[[#This Row],[MaatregelNummer]],Tbl_scenario[],4,TRUE) -> IND_EE_EEA | E19: =INDEX(tblSectoren[SectorID],MATCH(tblResultaatMaatregelen[[#This Row],[Sector]],tblSectoren[Sectoren],0)) -> 3 | F19: =VLOOKUP(tblResultaatMaatregelen[[#This Row],[MaatregelNummer]],Tbl_scenario[],2,TRUE) -> Industrie (niet-ETS) | G19: =INDEX(tblSectoren[Afkorting],tblResultaatMaatregelen[[#This Row],[Sectornummer]]) -> IND | H19: =VLOOKUP(tblResultaatMaatregelen[[#This Row],[MaatregelNummer]],Tbl_scenario[],3,TRUE) -> Ele. gebruik: verhogen efficiëntie elektrische aandrijfsystemen | I19: =VLOOKUP(tblResultaatMaatregelen[[#This Row],[MaatregelNummer]],Tbl_scenario[],6+(tblResultaatMaatregelen[[#This Row],[ScenarioNummer]]-1)*4+1,TRUE) -> Laag | J19: =IF(tblResultaatMaatregelen[[#This Row],[Ambitieniveau]]="Niet",0,IFERROR(INDIRECT(CONCATENATE(tblResultaatMaatregelen[[#This Row],[MaatregelCode]],"_REDCO2_",tblResultaatMaatregelen[[#This Row],[ScenarioNummer]])),0)) -> 118.6420984 | K19: Maatregelen | L19: =IF(tblResultaatMaatregelen[[#This Row],[X-as]]="Maatregelen",tblResultaatMaatregelen[[#This Row],[MaatregelNummer]],tblResultaatMaatregelen[[#This Row],[Sectornummer]]) -> 18 | M19: =IF(tblResultaatMaatregelen[[#This Row],[X-as]]="Maatregelen",tblResultaatMaatregelen[[#This Row],[MaatregelCode]],CONCATENATE(tblResultaatMaatregelen[[#This Row],[Sector]]," (",tblResultaatMaatregelen[[#This Row],[Sector_kort]],")")) -> IND_EE_EEA | N19: =IF(tblResultaatMaatregelen[[#This Row],[X-as]]="Maatregelen",CONCATENATE(tblResultaatMaatregelen[[#This Row],[Sector]]," (",tblResultaatMaatregelen[[#This Row],[Sector_kort]],")"),tblResultaatMaatregelen[[#This Row],[MaatregelCode]]) -> Industrie (niet-ETS) (IND)
A20: =CONCATENATE("Scenario ",tblResultaatMaatregelen[[#This Row],[ScenarioNummer]]) -> Scenario 1 | B20: 1 | C20: 19 | D20: =VLOOKUP(tblResultaatMaatregelen[[#This Row],[MaatregelNummer]],Tbl_scenario[],4,TRUE) -> MOB_MS_voet | E20: =INDEX(tblSectoren[SectorID],MATCH(tblResultaatMaatregelen[[#This Row],[Sector]],tblSectoren[Sectoren],0)) -> 4 | F20: =VLOOKUP(tblResultaatMaatregelen[[#This Row],[MaatregelNummer]],Tbl_scenario[],2,TRUE) -> Particulier en commercieel vervoer | G20: =INDEX(tblSectoren[Afkorting],tblResultaatMaatregelen[[#This Row],[Sectornummer]]) -> MOB | H20: =VLOOKUP(tblResultaatMaatregelen[[#This Row],[MaatregelNummer]],Tbl_scenario[],3,TRUE) -> Modal Shift_Voet + Fiets | I20: =VLOOKUP(tblResultaatMaatregelen[[#This Row],[MaatregelNummer]],Tbl_scenario[],6+(tblResultaatMaatregelen[[#This Row],[ScenarioNummer]]-1)*4+1,TRUE) -> Laag | J20: =IF(tblResultaatMaatregelen[[#This Row],[Ambitieniveau]]="Niet",0,IFERROR(INDIRECT(CONCATENATE(tblResultaatMaatregelen[[#This Row],[MaatregelCode]],"_REDCO2_",tblResultaatMaatregelen[[#This Row],[ScenarioNummer]])),0)) -> 1772.401392 | K20: Maatregelen | L20: =IF(tblResultaatMaatregelen[[#This Row],[X-as]]="Maatregelen",tblResultaatMaatregelen[[#This Row],[MaatregelNummer]],tblResultaatMaatregelen[[#This Row],[Sectornummer]]) -> 19 | M20: =IF(tblResultaatMaatregelen[[#This Row],[X-as]]="Maatregelen",tblResultaatMaatregelen[[#This Row],[MaatregelCode]],CONCATENATE(tblResultaatMaatregelen[[#This Row],[Sector]]," (",tblResultaatMaatregelen[[#This Row],[Sector_kort]],")")) -> MOB_MS_voet | N20: =IF(tblResultaatMaatregelen[[#This Row],[X-as]]="Maatregelen",CONCATENATE(tblResultaatMaatregelen[[#This Row],[Sector]]," (",tblResultaatMaatregelen[[#This Row],[Sector_kort]],")"),tblResultaatMaatregelen[[#This Row],[MaatregelCode]]) -> Particulier en commercieel vervoer (MOB)
A21: =CONCATENATE("Scenario ",tblResultaatMaatregelen[[#This Row],[ScenarioNummer]]) -> Scenario 1 | B21: 1 | C21: 20 | D21: =VLOOKUP(tblResultaatMaatregelen[[#This Row],[MaatregelNummer]],Tbl_scenario[],4,TRUE) -> MOB_MS_EFiets | E21: =INDEX(tblSectoren[SectorID],MATCH(tblResultaatMaatregelen[[#This Row],[Sector]],tblSectoren[Sectoren],0)) -> 4 | F21: =VLOOKUP(tblResultaatMaatregelen[[#This Row],[MaatregelNummer]],Tbl_scenario[],2,TRUE) -> Particulier en commercieel vervoer | G21: =INDEX(tblSectoren[Afkorting],tblResultaatMaatregelen[[#This Row],[Sectornummer]]) -> MOB | H21: =VLOOKUP(tblResultaatMaatregelen[[#This Row],[MaatregelNummer]],Tbl_scenario[],3,TRUE) -> Modal Shift_Elektrische Fiets | I21: =VLOOKUP(tblResultaatMaatregelen[[#This Row],[MaatregelNummer]],Tbl_scenario[],6+(tblResultaatMaatregelen[[#This Row],[ScenarioNummer]]-1)*4+1,TRUE) -> Laag | J21: =IF(tblResultaatMaatregelen[[#This Row],[Ambitieniveau]]="Niet",0,IFERROR(INDIRECT(CONCATENATE(tblResultaatMaatregelen[[#This Row],[MaatregelCode]],"_REDCO2_",tblResultaatMaatregelen[[#This Row],[ScenarioNummer]])),0)) -> 1477.00116 | K21: Maatregelen | L21: =IF(tblResultaatMaatregelen[[#This Row],[X-as]]="Maatregelen",tblResultaatMaatregelen[[#This Row],[MaatregelNummer]],tblResultaatMaatregelen[[#This Row],[Sectornummer]]) -> 20 | M21: =IF(tblResultaatMaatregelen[[#This Row],[X-as]]="Maatregelen",tblResultaatMaatregelen[[#This Row],[MaatregelCode]],CONCATENATE(tblResultaatMaatregelen[[#This Row],[Sector]]," (",tblResultaatMaatregelen[[#This Row],[Sector_kort]],")")) -> MOB_MS_EFiets | N21: =IF(tblResultaatMaatregelen[[#This Row],[X-as]]="Maatregelen",CONCATENATE(tblResultaatMaatregelen[[#This Row],[Sector]]," (",tblResultaatMaatregelen[[#This Row],[Sector_kort]],")"),tblResultaatMaatregelen[[#This Row],[MaatregelCode]]) -> Particulier en commercieel vervoer (MOB)
A22: =CONCATENATE("Scenario ",tblResultaatMaatregelen[[#This Row],[ScenarioNummer]]) -> Scenario 1 | B22: 1 | C22: 21 | D22: =VLOOKUP(tblResultaatMaatregelen[[#This Row],[MaatregelNummer]],Tbl_scenario[],4,TRUE) -> MOB_MS_OV | E22: =INDEX(tblSectoren[SectorID],MATCH(tblResultaatMaatregelen[[#This Row],[Sector]],tblSectoren[Sectoren],0)) -> 4 | F22: =VLOOKUP(tblResultaatMaatregelen[[#This Row],[MaatregelNummer]],Tbl_scenario[],2,TRUE) -> Particulier en commercieel vervoer | G22: =INDEX(tblSectoren[Afkorting],tblResultaatMaatregelen[[#This Row],[Sectornummer]]) -> MOB | H22: =VLOOKUP(tblResultaatMaatregelen[[#This Row],[MaatregelNummer]],Tbl_scenario[],3,TRUE) -> Modal Shift_Openbaar vervoer | I22: =VLOOKUP(tblResultaatMaatregelen[[#This Row],[MaatregelNummer]],Tbl_scenario[],6+(tblResultaatMaatregelen[[#This Row],[ScenarioNummer]]-1)*4+1,TRUE) -> Laag | J22: =IF(tblResultaatMaatregelen[[#This Row],[Ambitieniveau]]="Niet",0,IFERROR(INDIRECT(CONCATENATE(tblResultaatMaatregelen[[#This Row],[MaatregelCode]],"_REDCO2_",tblResultaatMaatregelen[[#This Row],[ScenarioNummer]])),0)) -> 2245.041763 | K22: Maatregelen | L22: =IF(tblResultaatMaatregelen[[#This Row],[X-as]]="Maatregelen",tblResultaatMaatregelen[[#This Row],[MaatregelNummer]],tblResultaatMaatregelen[[#This Row],[Sectornummer]]) -> 21 | M22: =IF(tblResultaatMaatregelen[[#This Row],[X-as]]="Maatregelen",tblResultaatMaatregelen[[#This Row],[MaatregelCode]],CONCATENATE(tblResultaatMaatregelen[[#This Row],[Sector]]," (",tblResultaatMaatregelen[[#This Row],[Sector_kort]],")")) -> MOB_MS_OV | N22: =IF(tblResultaatMaatregelen[[#This Row],[X-as]]="Maatregelen",CONCATENATE(tblResultaatMaatregelen[[#This Row],[Sector]]," (",tblResultaatMaatregelen[[#This Row],[Sector_kort]],")"),tblResultaatMaatregelen[[#This Row],[MaatregelCode]]) -> Particulier en commercieel vervoer (MOB)
A23: =CONCATENATE("Scenario ",tblResultaatMaatregelen[[#This Row],[ScenarioNummer]]) -> Scenario 1 | B23: 1 | C23: 22 | D23: =VLOOKUP(tblResultaatMaatregelen[[#This Row],[MaatregelNummer]],Tbl_scenario[],4,TRUE) -> MOB_BS_EV | E23: =INDEX(tblSectoren[SectorID],MATCH(tblResultaatMaatregelen[[#This Row],[Sector]],tblSectoren[Sectoren],0)) -> 4 | F23: =VLOOKUP(tblResultaatMaatregelen[[#This Row],[MaatregelNummer]],Tbl_scenario[],2,TRUE) -> Particulier en commercieel vervoer | G23: =INDEX(tblSectoren[Afkorting],tblResultaatMaatregelen[[#This Row],[Sectornummer]]) -> MOB | H23: =VLOOKUP(tblResultaatMaatregelen[[#This Row],[MaatregelNummer]],Tbl_scenario[],3,TRUE) -> Brandstofshift_Elektrische voertuigen | I23: =VLOOKUP(tblResultaatMaatregelen[[#This Row],[MaatregelNummer]],Tbl_scenario[],6+(tblResultaatMaatregelen[[#This Row],[ScenarioNummer]]-1)*4+1,TRUE) -> Laag | J23: =IF(tblResultaatMaatregelen[[#This Row],[Ambitieniveau]]="Niet",0,IFERROR(INDIRECT(CONCATENATE(tblResultaatMaatregelen[[#This Row],[MaatregelCode]],"_REDCO2_",tblResultaatMaatregelen[[#This Row],[ScenarioNummer]])),0)) -> 3038.398606 | K23: Maatregelen | L23: =IF(tblResultaatMaatregelen[[#This Row],[X-as]]="Maatregelen",tblResultaatMaatregelen[[#This Row],[MaatregelNummer]],tblResultaatMaatregelen[[#This Row],[Sectornummer]]) -> 22 | M23: =IF(tblResultaatMaatregelen[[#This Row],[X-as]]="Maatregelen",tblResultaatMaatregelen[[#This Row],[MaatregelCode]],CONCATENATE(tblResultaatMaatregelen[[#This Row],[Sector]]," (",tblResultaatMaatregelen[[#This Row],[Sector_kort]],")")) -> MOB_BS_EV | N23: =IF(tblResultaatMaatregelen[[#This Row],[X-as]]="Maatregelen",CONCATENATE(tblResultaatMaatregelen[[#This Row],[Sector]]," (",tblResultaatMaatregelen[[#This Row],[Sector_kort]],")"),tblResultaatMaatregelen[[#This Row],[MaatregelCode]]) -> Particulier en commercieel vervoer (MOB)
A24: =CONCATENATE("Scenario ",tblResultaatMaatregelen[[#This Row],[ScenarioNummer]]) -> Scenario 1 | B24: 1 | C24: 23 | D24: =VLOOKUP(tblResultaatMaatregelen[[#This Row],[MaatregelNummer]],Tbl_scenario[],4,TRUE) -> MOB_BS_H2 | E24: =INDEX(tblSectoren[SectorID],MATCH(tblResultaatMaatregelen[[#This Row],[Sector]],tblSectoren[Sectoren],0)) -> 4 | F24: =VLOOKUP(tblResultaatMaatregelen[[#This Row],[MaatregelNummer]],Tbl_scenario[],2,TRUE) -> Particulier en commercieel vervoer | G24: =INDEX(tblSectoren[Afkorting],tblResultaatMaatregelen[[#This Row],[Sectornummer]]) -> MOB | H24: =VLOOKUP(tblResultaatMaatregelen[[#This Row],[MaatregelNummer]],Tbl_scenario[],3,TRUE) -> Brandstofshift_Waterstof | I24: =VLOOKUP(tblResultaatMaatregelen[[#This Row],[MaatregelNummer]],Tbl_scenario[],6+(tblResultaatMaatregelen[[#This Row],[ScenarioNummer]]-1)*4+1,TRUE) -> Laag | J24: =IF(tblResultaatMaatregelen[[#This Row],[Ambitieniveau]]="Niet",0,IFERROR(INDIRECT(CONCATENATE(tblResultaatMaatregelen[[#This Row],[MaatregelCode]],"_REDCO2_",tblResultaatMaatregelen[[#This Row],[ScenarioNummer]])),0)) -> 984.6674397 | K24: Maatregelen | L24: =IF(tblResultaatMaatregelen[[#This Row],[X-as]]="Maatregelen",tblResultaatMaatregelen[[#This Row],[MaatregelNummer]],tblResultaatMaatregelen[[#This Row],[Sectornummer]]) -> 23 | M24: =IF(tblResultaatMaatregelen[[#This Row],[X-as]]="Maatregelen",tblResultaatMaatregelen[[#This Row],[MaatregelCode]],CONCATENATE(tblResultaatMaatregelen[[#This Row],[Sector]]," (",tblResultaatMaatregelen[[#This Row],[Sector_kort]],")")) -> MOB_BS_H2 | N24: =IF(tblResultaatMaatregelen[[#This Row],[X-as]]="Maatregelen",CONCATENATE(tblResultaatMaatregelen[[#This Row],[Sector]]," (",tblResultaatMaatregelen[[#This Row],[Sector_kort]],")"),tblResultaatMaatregelen[[#This Row],[MaatregelCode]]) -> Particulier en commercieel vervoer (MOB)
A25: =CONCATENATE("Scenario ",tblResultaatMaatregelen[[#This Row],[ScenarioNummer]]) -> Scenario 1 | B25: 1 | C25: 24 | D25: =VLOOKUP(tblResultaatMaatregelen[[#This Row],[MaatregelNummer]],Tbl_scenario[],4,TRUE) -> LEN_PV | E25: =INDEX(tblSectoren[SectorID],MATCH(tblResultaatMaatregelen[[#This Row],[Sector]],tblSectoren[Sectoren],0)) -> 8 | F25: =VLOOKUP(tblResultaatMaatregelen[[#This Row],[MaatregelNummer]],Tbl_scenario[],2,TRUE) -> Lokale energieproductie | G25: =INDEX(tblSectoren[Afkorting],tblResultaatMaatregelen[[#This Row],[Sectornummer]]) -> LEN | H25: =VLOOKUP(tblResultaatMaatregelen[[#This Row],[MaatregelNummer]],Tbl_scenario[],3,TRUE) -> Elektriciteit_PV | I25: =VLOOKUP(tblResultaatMaatregelen[[#This Row],[MaatregelNummer]],Tbl_scenario[],6+(tblResultaatMaatregelen[[#This Row],[ScenarioNummer]]-1)*4+1,TRUE) -> Laag | J25: =IF(tblResultaatMaatregelen[[#This Row],[Ambitieniveau]]="Niet",0,IFERROR(INDIRECT(CONCATENATE(tblResultaatMaatregelen[[#This Row],[MaatregelCode]],"_REDCO2_",tblResultaatMaatregelen[[#This Row],[ScenarioNummer]])),0)) -> 2496.152879 | K25: Maatregelen | L25: =IF(tblResultaatMaatregelen[[#This Row],[X-as]]="Maatregelen",tblResultaatMaatregelen[[#This Row],[MaatregelNummer]],tblResultaatMaatregelen[[#This Row],[Sectornummer]]) -> 24 | M25: =IF(tblResultaatMaatregelen[[#This Row],[X-as]]="Maatregelen",tblResultaatMaatregelen[[#This Row],[MaatregelCode]],CONCATENATE(tblResultaatMaatregelen[[#This Row],[Sector]]," (",tblResultaatMaatregelen[[#This Row],[Sector_kort]],")")) -> LEN_PV | N25: =IF(tblResultaatMaatregelen[[#This Row],[X-as]]="Maatregelen",CONCATENATE(tblResultaatMaatregelen[[#This Row],[Sector]]," (",tblResultaatMaatregelen[[#This Row],[Sector_kort]],")"),tblResultaatMaatregelen[[#This Row],[MaatregelCode]]) -> Lokale energieproductie (LEN)
A26: =CONCATENATE("Scenario ",tblResultaatMaatregelen[[#This Row],[ScenarioNummer]]) -> Scenario 1 | B26: 1 | C26: 25 | D26: =VLOOKUP(tblResultaatMaatregelen[[#This Row],[MaatregelNummer]],Tbl_scenario[],4,TRUE) -> LEN_Wind | E26: =INDEX(tblSectoren[SectorID],MATCH(tblResultaatMaatregelen[[#This Row],[Sector]],tblSectoren[Sectoren],0)) -> 8 | F26: =VLOOKUP(tblResultaatMaatregelen[[#This Row],[MaatregelNummer]],Tbl_scenario[],2,TRUE) -> Lokale energieproductie | G26: =INDEX(tblSectoren[Afkorting],tblResultaatMaatregelen[[#This Row],[Sectornummer]]) -> LEN | H26: =VLOOKUP(tblResultaatMaatregelen[[#This Row],[MaatregelNummer]],Tbl_scenario[],3,TRUE) -> Elektriciteit_Wind | I26: =VLOOKUP(tblResultaatMaatregelen[[#This Row],[MaatregelNummer]],Tbl_scenario[],6+(tblResultaatMaatregelen[[#This Row],[ScenarioNummer]]-1)*4+1,TRUE) -> Laag | J26: =IF(tblResultaatMaatregelen[[#This Row],[Ambitieniveau]]="Niet",0,IFERROR(INDIRECT(CONCATENATE(tblResultaatMaatregelen[[#This Row],[MaatregelCode]],"_REDCO2_",tblResultaatMaatregelen[[#This Row],[ScenarioNummer]])),0)) -> 2640.326764 | K26: Maatregelen | L26: =IF(tblResultaatMaatregelen[[#This Row],[X-as]]="Maatregelen",tblResultaatMaatregelen[[#This Row],[MaatregelNummer]],tblResultaatMaatregelen[[#This Row],[Sectornummer]]) -> 25 | M26: =IF(tblResultaatMaatregelen[[#This Row],[X-as]]="Maatregelen",tblResultaatMaatregelen[[#This Row],[MaatregelCode]],CONCATENATE(tblResultaatMaatregelen[[#This Row],[Sector]]," (",tblResultaatMaatregelen[[#This Row],[Sector_kort]],")")) -> LEN_Wind | N26: =IF(tblResultaatMaatregelen[[#This Row],[X-as]]="Maatregelen",CONCATENATE(tblResultaatMaatregelen[[#This Row],[Sector]]," (",tblResultaatMaatregelen[[#This Row],[Sector_kort]],")"),tblResultaatMaatregelen[[#This Row],[MaatregelCode]]) -> Lokale energieproductie (LEN)
A27: =CONCATENATE("Scenario ",tblResultaatMaatregelen[[#This Row],[ScenarioNummer]]) -> Scenario 1 | B27: 1 | C27: 26 | D27: =VLOOKUP(tblResultaatMaatregelen[[#This Row],[MaatregelNummer]],Tbl_scenario[],4,TRUE) -> LB_HER_WP | E27: =INDEX(tblSectoren[SectorID],MATCH(tblResultaatMaatregelen[[#This Row],[Sector]],tblSectoren[Sectoren],0)) -> 5 | F27: =VLOOKUP(tblResultaatMaatregelen[[#This Row],[MaatregelNummer]],Tbl_scenario[],2,TRUE) -> Landbouw | G27: =INDEX(tblSectoren[Afkorting],tblResultaatMaatregelen[[#This Row],[Sectornummer]]) -> LB | H27: =VLOOKUP(tblResultaatMaatregelen[[#This Row],[MaatregelNummer]],Tbl_scenario[],3,TRUE) -> Warmtepomp | I27: =VLOOKUP(tblResultaatMaatregelen[[#This Row],[MaatregelNummer]],Tbl_scenario[],6+(tblResultaatMaatregelen[[#This Row],[ScenarioNummer]]-1)*4+1,TRUE) -> Laag | J27: =IF(tblResultaatMaatregelen[[#This Row],[Ambitieniveau]]="Niet",0,IFERROR(INDIRECT(CONCATENATE(tblResultaatMaatregelen[[#This Row],[MaatregelCode]],"_REDCO2_",tblResultaatMaatregelen[[#This Row],[ScenarioNummer]])),0)) -> 110.5998486 | K27: Maatregelen | L27: =IF(tblResultaatMaatregelen[[#This Row],[X-as]]="Maatregelen",tblResultaatMaatregelen[[#This Row],[MaatregelNummer]],tblResultaatMaatregelen[[#This Row],[Sectornummer]]) -> 26 | M27: =IF(tblResultaatMaatregelen[[#This Row],[X-as]]="Maatregelen",tblResultaatMaatregelen[[#This Row],[MaatregelCode]],CONCATENATE(tblResultaatMaatregelen[[#This Row],[Sector]]," (",tblResultaatMaatregelen[[#This Row],[Sector_kort]],")")) -> LB_HER_WP | N27: =IF(tblResultaatMaatregelen[[#This Row],[X-as]]="Maatregelen",CONCATENATE(tblResultaatMaatregelen[[#This Row],[Sector]]," (",tblResultaatMaatregelen[[#This Row],[Sector_kort]],")"),tblResultaatMaatregelen[[#This Row],[MaatregelCode]]) -> Landbouw (LB)
A28: =CONCATENATE("Scenario ",tblResultaatMaatregelen[[#This Row],[ScenarioNummer]]) -> Scenario 1 | B28: 1 | C28: 27 | D28: =VLOOKUP(tblResultaatMaatregelen[[#This Row],[MaatregelNummer]],Tbl_scenario[],4,TRUE) -> LB_HER_PocV | E28: =INDEX(tblSectoren[SectorID],MATCH(tblResultaatMaatregelen[[#This Row],[Sector]],tblSectoren[Sectoren],0)) -> 5 | F28: =VLOOKUP(tblResultaatMaatregelen[[#This Row],[MaatregelNummer]],Tbl_scenario[],2,TRUE) -> Landbouw | G28: =INDEX(tblSectoren[Afkorting],tblResultaatMaatregelen[[#This Row],[Sectornummer]]) -> LB | H28: =VLOOKUP(tblResultaatMaatregelen[[#This Row],[MaatregelNummer]],Tbl_scenario[],3,TRUE) -> Hernieuwbare energie_Pocketvergisters | I28: =VLOOKUP(tblResultaatMaatregelen[[#This Row],[MaatregelNummer]],Tbl_scenario[],6+(tblResultaatMaatregelen[[#This Row],[ScenarioNummer]]-1)*4+1,TRUE) -> Laag | J28: =IF(tblResultaatMaatregelen[[#This Row],[Ambitieniveau]]="Niet",0,IFERROR(INDIRECT(CONCATENATE(tblResultaatMaatregelen[[#This Row],[MaatregelCode]],"_REDCO2_",tblResultaatMaatregelen[[#This Row],[ScenarioNummer]])),0)) -> 5.518538697 | K28: Maatregelen | L28: =IF(tblResultaatMaatregelen[[#This Row],[X-as]]="Maatregelen",tblResultaatMaatregelen[[#This Row],[MaatregelNummer]],tblResultaatMaatregelen[[#This Row],[Sectornummer]]) -> 27 | M28: =IF(tblResultaatMaatregelen[[#This Row],[X-as]]="Maatregelen",tblResultaatMaatregelen[[#This Row],[MaatregelCode]],CONCATENATE(tblResultaatMaatregelen[[#This Row],[Sector]]," (",tblResultaatMaatregelen[[#This Row],[Sector_kort]],")")) -> LB_HER_PocV | N28: =IF(tblResultaatMaatregelen[[#This Row],[X-as]]="Maatregelen",CONCATENATE(tblResultaatMaatregelen[[#This Row],[Sector]]," (",tblResultaatMaatregelen[[#This Row],[Sector_kort]],")"),tblResultaatMaatregelen[[#This Row],[MaatregelCode]]) -> Landbouw (LB)
A29: =CONCATENATE("Scenario ",tblResultaatMaatregelen[[#This Row],[ScenarioNummer]]) -> Scenario 1 | B29: 1 | C29: 28 | D29: =VLOOKUP(tblResultaatMaatregelen[[#This Row],[MaatregelNummer]],Tbl_scenario[],4,TRUE) -> LB_HER_BMK | E29: =INDEX(tblSectoren[SectorID],MATCH(tblResultaatMaatregelen[[#This Row],[Sector]],tblSectoren[Sectoren],0)) -> 5 | F29: =VLOOKUP(tblResultaatMaatregelen[[#This Row],[MaatregelNummer]],Tbl_scenario[],2,TRUE) -> Landbouw | G29: =INDEX(tblSectoren[Afkorting],tblResultaatMaatregelen[[#This Row],[Sectornummer]]) -> LB | H29: =VLOOKUP(tblResultaatMaatregelen[[#This Row],[MaatregelNummer]],Tbl_scenario[],3,TRUE) -> Hernieuwbare energie_Biomassaketels | I29: =VLOOKUP(tblResultaatMaatregelen[[#This Row],[MaatregelNummer]],Tbl_scenario[],6+(tblResultaatMaatregelen[[#This Row],[ScenarioNummer]]-1)*4+1,TRUE) -> Laag | J29: =IF(tblResultaatMaatregelen[[#This Row],[Ambitieniveau]]="Niet",0,IFERROR(INDIRECT(CONCATENATE(tblResultaatMaatregelen[[#This Row],[MaatregelCode]],"_REDCO2_",tblResultaatMaatregelen[[#This Row],[ScenarioNummer]])),0)) -> 47.48393869 | K29: Maatregelen | L29: =IF(tblResultaatMaatregelen[[#This Row],[X-as]]="Maatregelen",tblResultaatMaatregelen[[#This Row],[MaatregelNummer]],tblResultaatMaatregelen[[#This Row],[Sectornummer]]) -> 28 | M29: =IF(tblResultaatMaatregelen[[#This Row],[X-as]]="Maatregelen",tblResultaatMaatregelen[[#This Row],[MaatregelCode]],CONCATENATE(tblResultaatMaatregelen[[#This Row],[Sector]]," (",tblResultaatMaatregelen[[#This Row],[Sector_kort]],")")) -> LB_HER_BMK | N29: =IF(tblResultaatMaatregelen[[#This Row],[X-as]]="Maatregelen",CONCATENATE(tblResultaatMaatregelen[[#This Row],[Sector]]," (",tblResultaatMaatregelen[[#This Row],[Sector_kort]],")"),tblResultaatMaatregelen[[#This Row],[MaatregelCode]]) -> Landbouw (LB)
A30: =CONCATENATE("Scenario ",tblResultaatMaatregelen[[#This Row],[ScenarioNummer]]) -> Scenario 1 | B30: 1 | C30: 29 | D30: =VLOOKUP(tblResultaatMaatregelen[[#This Row],[MaatregelNummer]],Tbl_scenario[],4,TRUE) -> LB_EE_ENS | E30: =INDEX(tblSectoren[SectorID],MATCH(tblResultaatMaatregelen[[#This Row],[Sector]],tblSectoren[Sectoren],0)) -> 5 | F30: =VLOOKUP(tblResultaatMaatregelen[[#This Row],[MaatregelNummer]],Tbl_scenario[],2,TRUE) -> Landbouw | G30: =INDEX(tblSectoren[Afkorting],tblResultaatMaatregelen[[#This Row],[Sectornummer]]) -> LB | H30: =VLOOKUP(tblResultaatMaatregelen[[#This Row],[MaatregelNummer]],Tbl_scenario[],3,TRUE) -> Energieschermen | I30: =VLOOKUP(tblResultaatMaatregelen[[#This Row],[MaatregelNummer]],Tbl_scenario[],6+(tblResultaatMaatregelen[[#This Row],[ScenarioNummer]]-1)*4+1,TRUE) -> Laag | J30: =IF(tblResultaatMaatregelen[[#This Row],[Ambitieniveau]]="Niet",0,IFERROR(INDIRECT(CONCATENATE(tblResultaatMaatregelen[[#This Row],[MaatregelCode]],"_REDCO2_",tblResultaatMaatregelen[[#This Row],[ScenarioNummer]])),0)) -> 13.95388281 | K30: Maatregelen | L30: =IF(tblResultaatMaatregelen[[#This Row],[X-as]]="Maatregelen",tblResultaatMaatregelen[[#This Row],[MaatregelNummer]],tblResultaatMaatregelen[[#This Row],[Sectornummer]]) -> 29 | M30: =IF(tblResultaatMaatregelen[[#This Row],[X-as]]="Maatregelen",tblResultaatMaatregelen[[#This Row],[MaatregelCode]],CONCATENATE(tblResultaatMaatregelen[[#This Row],[Sector]]," (",tblResultaatMaatregelen[[#This Row],[Sector_kort]],")")) -> LB_EE_ENS | N30: =IF(tblResultaatMaatregelen[[#This Row],[X-as]]="Maatregelen",CONCATENATE(tblResultaatMaatregelen[[#This Row],[Sector]]," (",tblResultaatMaatregelen[[#This Row],[Sector_kort]],")"),tblResultaatMaatregelen[[#This Row],[MaatregelCode]]) -> Landbouw (LB)
A31: =CONCATENATE("Scenario ",tblResultaatMaatregelen[[#This Row],[ScenarioNummer]]) -> Scenario 1 | B31: 1 | C31: 30 | D31: =VLOOKUP(tblResultaatMaatregelen[[#This Row],[MaatregelNummer]],Tbl_scenario[],4,TRUE) -> BLANCO_1 | E31: =INDEX(tblSectoren[SectorID],MATCH(tblResultaatMaatregelen[[#This Row],[Sector]],tblSectoren[Sectoren],0)) -> 1 | F31: =VLOOKUP(tblResultaatMaatregelen[[#This Row],[MaatregelNummer]],Tbl_scenario[],2,TRUE) -> Huishoudens | G31: =INDEX(tblSectoren[Afkorting],tblResultaatMaatregelen[[#This Row],[Sectornummer]]) -> RES | H31: =VLOOKUP(tblResultaatMaatregelen[[#This Row],[MaatregelNummer]],Tbl_scenario[],3,TRUE) -> Blanco | I31: =VLOOKUP(tblResultaatMaatregelen[[#This Row],[MaatregelNummer]],Tbl_scenario[],6+(tblResultaatMaatregelen[[#This Row],[ScenarioNummer]]-1)*4+1,TRUE) -> Niet | J31: =IF(tblResultaatMaatregelen[[#This Row],[Ambitieniveau]]="Niet",0,IFERROR(INDIRECT(CONCATENATE(tblResultaatMaatregelen[[#This Row],[MaatregelCode]],"_REDCO2_",tblResultaatMaatregelen[[#This Row],[ScenarioNummer]])),0)) -> 0 | K31: Maatregelen | L31: =IF(tblResultaatMaatregelen[[#This Row],[X-as]]="Maatregelen",tblResultaatMaatregelen[[#This Row],[MaatregelNummer]],tblResultaatMaatregelen[[#This Row],[Sectornummer]]) -> 30 | M31: =IF(tblResultaatMaatregelen[[#This Row],[X-as]]="Maatregelen",tblResultaatMaatregelen[[#This Row],[MaatregelCode]],CONCATENATE(tblResultaatMaatregelen[[#This Row],[Sector]]," (",tblResultaatMaatregelen[[#This Row],[Sector_kort]],")")) -> BLANCO_1 | N31: =IF(tblResultaatMaatregelen[[#This Row],[X-as]]="Maatregelen",CONCATENATE(tblResultaatMaatregelen[[#This Row],[Sector]]," (",tblResultaatMaatregelen[[#This Row],[Sector_kort]],")"),tblResultaatMaatregelen[[#This Row],[MaatregelCode]]) -> Huishoudens (RES)
A32: =CONCATENATE("Scenario ",tblResultaatMaatregelen[[#This Row],[ScenarioNummer]]) -> Scenario 1 | B32: 1 | C32: 31 | D32: =VLOOKUP(tblResultaatMaatregelen[[#This Row],[MaatregelNummer]],Tbl_scenario[],4,TRUE) -> BLANCO_2 | E32: =INDEX(tblSectoren[SectorID],MATCH(tblResultaatMaatregelen[[#This Row],[Sector]],tblSectoren[Sectoren],0)) -> 1 | F32: =VLOOKUP(tblResultaatMaatregelen[[#This Row],[MaatregelNummer]],Tbl_scenario[],2,TRUE) -> Huishoudens | G32: =INDEX(tblSectoren[Afkorting],tblResultaatMaatregelen[[#This Row],[Sectornummer]]) -> RES | H32: =VLOOKUP(tblResultaatMaatregelen[[#This Row],[MaatregelNummer]],Tbl_scenario[],3,TRUE) -> Blanco | I32: =VLOOKUP(tblResultaatMaatregelen[[#This Row],[MaatregelNummer]],Tbl_scenario[],6+(tblResultaatMaatregelen[[#This Row],[ScenarioNummer]]-1)*4+1,TRUE) -> Niet | J32: =IF(tblResultaatMaatregelen[[#This Row],[Ambitieniveau]]="Niet",0,IFERROR(INDIRECT(CONCATENATE(tblResultaatMaatregelen[[#This Row],[MaatregelCode]],"_REDCO2_",tblResultaatMaatregelen[[#This Row],[ScenarioNummer]])),0)) -> 0 | K32: Maatregelen | L32: =IF(tblResultaatMaatregelen[[#This Row],[X-as]]="Maatregelen",tblResultaatMaatregelen[[#This Row],[MaatregelNummer]],tblResultaatMaatregelen[[#This Row],[Sectornummer]]) -> 31 | M32: =IF(tblResultaatMaatregelen[[#This Row],[X-as]]="Maatregelen",tblResultaatMaatregelen[[#This Row],[MaatregelCode]],CONCATENATE(tblResultaatMaatregelen[[#This Row],[Sector]]," (",tblResultaatMaatregelen[[#This Row],[Sector_kort]],")")) -> BLANCO_2 | N32: =IF(tblResultaatMaatregelen[[#This Row],[X-as]]="Maatregelen",CONCATENATE(tblResultaatMaatregelen[[#This Row],[Sector]]," (",tblResultaatMaatregelen[[#This Row],[Sector_kort]],")"),tblResultaatMaatregelen[[#This Row],[MaatregelCode]]) -> Huishoudens (RES)
A33: =CONCATENATE("Scenario ",tblResultaatMaatregelen[[#This Row],[ScenarioNummer]]) -> Scenario 1 | B33: 1 | C33: 32 | D33: =VLOOKUP(tblResultaatMaatregelen[[#This Row],[MaatregelNummer]],Tbl_scenario[],4,TRUE) -> BLANCO_3 | E33: =INDEX(tblSectoren[SectorID],MATCH(tblResultaatMaatregelen[[#This Row],[Sector]],tblSectoren[Sectoren],0)) -> 1 | F33: =VLOOKUP(tblResultaatMaatregelen[[#This Row],[MaatregelNummer]],Tbl_scenario[],2,TRUE) -> Huishoudens | G33: =INDEX(tblSectoren[Afkorting],tblResultaatMaatregelen[[#This Row],[Sectornummer]]) -> RES | H33: =VLOOKUP(tblResultaatMaatregelen[[#This Row],[MaatregelNummer]],Tbl_scenario[],3,TRUE) -> Blanco | I33: =VLOOKUP(tblResultaatMaatregelen[[#This Row],[MaatregelNummer]],Tbl_scenario[],6+(tblResultaatMaatregelen[[#This Row],[ScenarioNummer]]-1)*4+1,TRUE) -> Niet | J33: =IF(tblResultaatMaatregelen[[#This Row],[Ambitieniveau]]="Niet",0,IFERROR(INDIRECT(CONCATENATE(tblResultaatMaatregelen[[#This Row],[MaatregelCode]],"_REDCO2_",tblResultaatMaatregelen[[#This Row],[ScenarioNummer]])),0)) -> 0 | K33: Maatregelen | L33: =IF(tblResultaatMaatregelen[[#This Row],[X-as]]="Maatregelen",tblResultaatMaatregelen[[#This Row],[MaatregelNummer]],tblResultaatMaatregelen[[#This Row],[Sectornummer]]) -> 32 | M33: =IF(tblResultaatMaatregelen[[#This Row],[X-as]]="Maatregelen",tblResultaatMaatregelen[[#This Row],[MaatregelCode]],CONCATENATE(tblResultaatMaatregelen[[#This Row],[Sector]]," (",tblResultaatMaatregelen[[#This Row],[Sector_kort]],")")) -> BLANCO_3 | N33: =IF(tblResultaatMaatregelen[[#This Row],[X-as]]="Maatregelen",CONCATENATE(tblResultaatMaatregelen[[#This Row],[Sector]]," (",tblResultaatMaatregelen[[#This Row],[Sector_kort]],")"),tblResultaatMaatregelen[[#This Row],[MaatregelCode]]) -> Huishoudens (RES)
A34: =CONCATENATE("Scenario ",tblResultaatMaatregelen[[#This Row],[ScenarioNummer]]) -> Scenario 2 | B34: 2 | C34: 1 | D34: =VLOOKUP(tblResultaatMaatregelen[[#This Row],[MaatregelNummer]],Tbl_scenario[],4,TRUE) -> RES_ISO_DAK | E34: =INDEX(tblSectoren[SectorID],MATCH(tblResultaatMaatregelen[[#This Row],[Sector]],tblSectoren[Sectoren],0)) -> 1 | F34: =VLOOKUP(tblResultaatMaatregelen[[#This Row],[MaatregelNummer]],Tbl_scenario[],2,TRUE) -> Huishoudens | G34: =INDEX(tblSectoren[Afkorting],tblResultaatMaatregelen[[#This Row],[Sectornummer]]) -> RES | H34: =VLOOKUP(tblResultaatMaatregelen[[#This Row],[MaatregelNummer]],Tbl_scenario[],3,TRUE) -> Isolatiemaatregel gericht op dak | I34: =VLOOKUP(tblResultaatMaatregelen[[#This Row],[MaatregelNummer]],Tbl_scenario[],6+(tblResultaatMaatregelen[[#This Row],[ScenarioNummer]]-1)*4+1,TRUE) -> Hoog | J34: =IF(tblResultaatMaatregelen[[#This Row],[Ambitieniveau]]="Niet",0,IFERROR(INDIRECT(CONCATENATE(tblResultaatMaatregelen[[#This Row],[MaatregelCode]],"_REDCO2_",tblResultaatMaatregelen[[#This Row],[ScenarioNummer]])),0)) -> 18375.10185 | K34: Maatregelen | L34: =IF(tblResultaatMaatregelen[[#This Row],[X-as]]="Maatregelen",tblResultaatMaatregelen[[#This Row],[MaatregelNummer]],tblResultaatMaatregelen[[#This Row],[Sectornummer]]) -> 1 | M34: =IF(tblResultaatMaatregelen[[#This Row],[X-as]]="Maatregelen",tblResultaatMaatregelen[[#This Row],[MaatregelCode]],CONCATENATE(tblResultaatMaatregelen[[#This Row],[Sector]]," (",tblResultaatMaatregelen[[#This Row],[Sector_kort]],")")) -> RES_ISO_DAK | N34: =IF(tblResultaatMaatregelen[[#This Row],[X-as]]="Maatregelen",CONCATENATE(tblResultaatMaatregelen[[#This Row],[Sector]]," (",tblResultaatMaatregelen[[#This Row],[Sector_kort]],")"),tblResultaatMaatregelen[[#This Row],[MaatregelCode]]) -> Huishoudens (RES)
A35: =CONCATENATE("Scenario ",tblResultaatMaatregelen[[#This Row],[ScenarioNummer]]) -> Scenario 2 | B35: 2 | C35: 2 | D35: =VLOOKUP(tblResultaatMaatregelen[[#This Row],[MaatregelNummer]],Tbl_scenario[],4,TRUE) -> RES_ISO_MUUR | E35: =INDEX(tblSectoren[SectorID],MATCH(tblResultaatMaatregelen[[#This Row],[Sector]],tblSectoren[Sectoren],0)) -> 1 | F35: =VLOOKUP(tblResultaatMaatregelen[[#This Row],[MaatregelNummer]],Tbl_scenario[],2,TRUE) -> Huishoudens | G35: =INDEX(tblSectoren[Afkorting],tblResultaatMaatregelen[[#This Row],[Sectornummer]]) -> RES | H35: =VLOOKUP(tblResultaatMaatregelen[[#This Row],[MaatregelNummer]],Tbl_scenario[],3,TRUE) -> Isolatiemaatregel gericht op buitenmuren | I35: =VLOOKUP(tblResultaatMaatregelen[[#This Row],[MaatregelNummer]],Tbl_scenario[],6+(tblResultaatMaatregelen[[#This Row],[ScenarioNummer]]-1)*4+1,TRUE) -> Hoog | J35: =IF(tblResultaatMaatregelen[[#This Row],[Ambitieniveau]]="Niet",0,IFERROR(INDIRECT(CONCATENATE(tblResultaatMaatregelen[[#This Row],[MaatregelCode]],"_REDCO2_",tblResultaatMaatregelen[[#This Row],[ScenarioNummer]])),0)) -> 16943.07989 | K35: Maatregelen | L35: =IF(tblResultaatMaatregelen[[#This Row],[X-as]]="Maatregelen",tblResultaatMaatregelen[[#This Row],[MaatregelNummer]],tblResultaatMaatregelen[[#This Row],[Sectornummer]]) -> 2 | M35: =IF(tblResultaatMaatregelen[[#This Row],[X-as]]="Maatregelen",tblResultaatMaatregelen[[#This Row],[MaatregelCode]],CONCATENATE(tblResultaatMaatregelen[[#This Row],[Sector]]," (",tblResultaatMaatregelen[[#This Row],[Sector_kort]],")")) -> RES_ISO_MUUR | N35: =IF(tblResultaatMaatregelen[[#This Row],[X-as]]="Maatregelen",CONCATENATE(tblResultaatMaatregelen[[#This Row],[Sector]]," (",tblResultaatMaatregelen[[#This Row],[Sector_kort]],")"),tblResultaatMaatregelen[[#This Row],[MaatregelCode]]) -> Huishoudens (RES)
A36: =CONCATENATE("Scenario ",tblResultaatMaatregelen[[#This Row],[ScenarioNummer]]) -> Scenario 2 | B36: 2 | C36: 3 | D36: =VLOOKUP(tblResultaatMaatregelen[[#This Row],[MaatregelNummer]],Tbl_scenario[],4,TRUE) -> RES_ISO_VL | E36: =INDEX(tblSectoren[SectorID],MATCH(tblResultaatMaatregelen[[#This Row],[Sector]],tblSectoren[Sectoren],0)) -> 1 | F36: =VLOOKUP(tblResultaatMaatregelen[[#This Row],[MaatregelNummer]],Tbl_scenario[],2,TRUE) -> Huishoudens | G36: =INDEX(tblSectoren[Afkorting],tblResultaatMaatregelen[[#This Row],[Sectornummer]]) -> RES | H36: =VLOOKUP(tblResultaatMaatregelen[[#This Row],[MaatregelNummer]],Tbl_scenario[],3,TRUE) -> Isolatiemaatregel gericht op vloeren | I36: =VLOOKUP(tblResultaatMaatregelen[[#This Row],[MaatregelNummer]],Tbl_scenario[],6+(tblResultaatMaatregelen[[#This Row],[ScenarioNummer]]-1)*4+1,TRUE) -> Hoog | J36: =IF(tblResultaatMaatregelen[[#This Row],[Ambitieniveau]]="Niet",0,IFERROR(INDIRECT(CONCATENATE(tblResultaatMaatregelen[[#This Row],[MaatregelCode]],"_REDCO2_",tblResultaatMaatregelen[[#This Row],[ScenarioNummer]])),0)) -> 5995.499463 | K36: Maatregelen | L36: =IF(tblResultaatMaatregelen[[#This Row],[X-as]]="Maatregelen",tblResultaatMaatregelen[[#This Row],[MaatregelNummer]],tblResultaatMaatregelen[[#This Row],[Sectornummer]]) -> 3 | M36: =IF(tblResultaatMaatregelen[[#This Row],[X-as]]="Maatregelen",tblResultaatMaatregelen[[#This Row],[MaatregelCode]],CONCATENATE(tblResultaatMaatregelen[[#This Row],[Sector]]," (",tblResultaatMaatregelen[[#This Row],[Sector_kort]],")")) -> RES_ISO_VL | N36: =IF(tblResultaatMaatregelen[[#This Row],[X-as]]="Maatregelen",CONCATENATE(tblResultaatMaatregelen[[#This Row],[Sector]]," (",tblResultaatMaatregelen[[#This Row],[Sector_kort]],")"),tblResultaatMaatregelen[[#This Row],[MaatregelCode]]) -> Huishoudens (RES)
A37: =CONCATENATE("Scenario ",tblResultaatMaatregelen[[#This Row],[ScenarioNummer]]) -> Scenario 2 | B37: 2 | C37: 4 | D37: =VLOOKUP(tblResultaatMaatregelen[[#This Row],[MaatregelNummer]],Tbl_scenario[],4,TRUE) -> RES_ISO_BG | E37: =INDEX(tblSectoren[SectorID],MATCH(tblResultaatMaatregelen[[#This Row],[Sector]],tblSectoren[Sectoren],0)) -> 1 | F37: =VLOOKUP(tblResultaatMaatregelen[[#This Row],[MaatregelNummer]],Tbl_scenario[],2,TRUE) -> Huishoudens | G37: =INDEX(tblSectoren[Afkorting],tblResultaatMaatregelen[[#This Row],[Sectornummer]]) -> RES | H37: =VLOOKUP(tblResultaatMaatregelen[[#This Row],[MaatregelNummer]],Tbl_scenario[],3,TRUE) -> Isolatiemaatregel gericht op ramen en beglazing | I37: =VLOOKUP(tblResultaatMaatregelen[[#This Row],[MaatregelNummer]],Tbl_scenario[],6+(tblResultaatMaatregelen[[#This Row],[ScenarioNummer]]-1)*4+1,TRUE) -> Hoog | J37: =IF(tblResultaatMaatregelen[[#This Row],[Ambitieniveau]]="Niet",0,IFERROR(INDIRECT(CONCATENATE(tblResultaatMaatregelen[[#This Row],[MaatregelCode]],"_REDCO2_",tblResultaatMaatregelen[[#This Row],[ScenarioNummer]])),0)) -> 3441.722153 | K37: Maatregelen | L37: =IF(tblResultaatMaatregelen[[#This Row],[X-as]]="Maatregelen",tblResultaatMaatregelen[[#This Row],[MaatregelNummer]],tblResultaatMaatregelen[[#This Row],[Sectornummer]]) -> 4 | M37: =IF(tblResultaatMaatregelen[[#This Row],[X-as]]="Maatregelen",tblResultaatMaatregelen[[#This Row],[MaatregelCode]],CONCATENATE(tblResultaatMaatregelen[[#This Row],[Sector]]," (",tblResultaatMaatregelen[[#This Row],[Sector_kort]],")")) -> RES_ISO_BG | N37: =IF(tblResultaatMaatregelen[[#This Row],[X-as]]="Maatregelen",CONCATENATE(tblResultaatMaatregelen[[#This Row],[Sector]]," (",tblResultaatMaatregelen[[#This Row],[Sector_kort]],")"),tblResultaatMaatregelen[[#This Row],[MaatregelCode]]) -> Huishoudens (RES)
A38: =CONCATENATE("Scenario ",tblResultaatMaatregelen[[#This Row],[ScenarioNummer]]) -> Scenario 2 | B38: 2 | C38: 5 | D38: =VLOOKUP(tblResultaatMaatregelen[[#This Row],[MaatregelNummer]],Tbl_scenario[],4,TRUE) -> RES_HER_WP | E38: =INDEX(tblSectoren[SectorID],MATCH(tblResultaatMaatregelen[[#This Row],[Sector]],tblSectoren[Sectoren],0)) -> 1 | F38: =VLOOKUP(tblResultaatMaatregelen[[#This Row],[MaatregelNummer]],Tbl_scenario[],2,TRUE) -> Huishoudens | G38: =INDEX(tblSectoren[Afkorting],tblResultaatMaatregelen[[#This Row],[Sectornummer]]) -> RES | H38: =VLOOKUP(tblResultaatMaatregelen[[#This Row],[MaatregelNummer]],Tbl_scenario[],3,TRUE) -> Warmtepomp | I38: =VLOOKUP(tblResultaatMaatregelen[[#This Row],[MaatregelNummer]],Tbl_scenario[],6+(tblResultaatMaatregelen[[#This Row],[ScenarioNummer]]-1)*4+1,TRUE) -> Hoog | J38: =IF(tblResultaatMaatregelen[[#This Row],[Ambitieniveau]]="Niet",0,IFERROR(INDIRECT(CONCATENATE(tblResultaatMaatregelen[[#This Row],[MaatregelCode]],"_REDCO2_",tblResultaatMaatregelen[[#This Row],[ScenarioNummer]])),0)) -> 8368.374139 | K38: Maatregelen | L38: =IF(tblResultaatMaatregelen[[#This Row],[X-as]]="Maatregelen",tblResultaatMaatregelen[[#This Row],[MaatregelNummer]],tblResultaatMaatregelen[[#This Row],[Sectornummer]]) -> 5 | M38: =IF(tblResultaatMaatregelen[[#This Row],[X-as]]="Maatregelen",tblResultaatMaatregelen[[#This Row],[MaatregelCode]],CONCATENATE(tblResultaatMaatregelen[[#This Row],[Sector]]," (",tblResultaatMaatregelen[[#This Row],[Sector_kort]],")")) -> RES_HER_WP | N38: =IF(tblResultaatMaatregelen[[#This Row],[X-as]]="Maatregelen",CONCATENATE(tblResultaatMaatregelen[[#This Row],[Sector]]," (",tblResultaatMaatregelen[[#This Row],[Sector_kort]],")"),tblResultaatMaatregelen[[#This Row],[MaatregelCode]]) -> Huishoudens (RES)
A39: =CONCATENATE("Scenario ",tblResultaatMaatregelen[[#This Row],[ScenarioNummer]]) -> Scenario 2 | B39: 2 | C39: 6 | D39: =VLOOKUP(tblResultaatMaatregelen[[#This Row],[MaatregelNummer]],Tbl_scenario[],4,TRUE) -> RES_HER_ZB | E39: =INDEX(tblSectoren[SectorID],MATCH(tblResultaatMaatregelen[[#This Row],[Sector]],tblSectoren[Sectoren],0)) -> 1 | F39: =VLOOKUP(tblResultaatMaatregelen[[#This Row],[MaatregelNummer]],Tbl_scenario[],2,TRUE) -> Huishoudens | G39: =INDEX(tblSectoren[Afkorting],tblResultaatMaatregelen[[#This Row],[Sectornummer]]) -> RES | H39: =VLOOKUP(tblResultaatMaatregelen[[#This Row],[MaatregelNummer]],Tbl_scenario[],3,TRUE) -> Zonneboiler | I39: =VLOOKUP(tblResultaatMaatregelen[[#This Row],[MaatregelNummer]],Tbl_scenario[],6+(tblResultaatMaatregelen[[#This Row],[ScenarioNummer]]-1)*4+1,TRUE) -> Hoog | J39: =IF(tblResultaatMaatregelen[[#This Row],[Ambitieniveau]]="Niet",0,IFERROR(INDIRECT(CONCATENATE(tblResultaatMaatregelen[[#This Row],[MaatregelCode]],"_REDCO2_",tblResultaatMaatregelen[[#This Row],[ScenarioNummer]])),0)) -> 2991.593931 | K39: Maatregelen | L39: =IF(tblResultaatMaatregelen[[#This Row],[X-as]]="Maatregelen",tblResultaatMaatregelen[[#This Row],[MaatregelNummer]],tblResultaatMaatregelen[[#This Row],[Sectornummer]]) -> 6 | M39: =IF(tblResultaatMaatregelen[[#This Row],[X-as]]="Maatregelen",tblResultaatMaatregelen[[#This Row],[MaatregelCode]],CONCATENATE(tblResultaatMaatregelen[[#This Row],[Sector]]," (",tblResultaatMaatregelen[[#This Row],[Sector_kort]],")")) -> RES_HER_ZB | N39: =IF(tblResultaatMaatregelen[[#This Row],[X-as]]="Maatregelen",CONCATENATE(tblResultaatMaatregelen[[#This Row],[Sector]]," (",tblResultaatMaatregelen[[#This Row],[Sector_kort]],")"),tblResultaatMaatregelen[[#This Row],[MaatregelCode]]) -> Huishoudens (RES)
A40: =CONCATENATE("Scenario ",tblResultaatMaatregelen[[#This Row],[ScenarioNummer]]) -> Scenario 2 | B40: 2 | C40: 7 | D40: =VLOOKUP(tblResultaatMaatregelen[[#This Row],[MaatregelNummer]],Tbl_scenario[],4,TRUE) -> RES_HER_WPB | E40: =INDEX(tblSectoren[SectorID],MATCH(tblResultaatMaatregelen[[#This Row],[Sector]],tblSectoren[Sectoren],0)) -> 1 | F40: =VLOOKUP(tblResultaatMaatregelen[[#This Row],[MaatregelNummer]],Tbl_scenario[],2,TRUE) -> Huishoudens | G40: =INDEX(tblSectoren[Afkorting],tblResultaatMaatregelen[[#This Row],[Sectornummer]]) -> RES | H40: =VLOOKUP(tblResultaatMaatregelen[[#This Row],[MaatregelNummer]],Tbl_scenario[],3,TRUE) -> Warmtepompboiler | I40: =VLOOKUP(tblResultaatMaatregelen[[#This Row],[MaatregelNummer]],Tbl_scenario[],6+(tblResultaatMaatregelen[[#This Row],[ScenarioNummer]]-1)*4+1,TRUE) -> Hoog | J40: =IF(tblResultaatMaatregelen[[#This Row],[Ambitieniveau]]="Niet",0,IFERROR(INDIRECT(CONCATENATE(tblResultaatMaatregelen[[#This Row],[MaatregelCode]],"_REDCO2_",tblResultaatMaatregelen[[#This Row],[ScenarioNummer]])),0)) -> 5589.292836 | K40: Maatregelen | L40: =IF(tblResultaatMaatregelen[[#This Row],[X-as]]="Maatregelen",tblResultaatMaatregelen[[#This Row],[MaatregelNummer]],tblResultaatMaatregelen[[#This Row],[Sectornummer]]) -> 7 | M40: =IF(tblResultaatMaatregelen[[#This Row],[X-as]]="Maatregelen",tblResultaatMaatregelen[[#This Row],[MaatregelCode]],CONCATENATE(tblResultaatMaatregelen[[#This Row],[Sector]]," (",tblResultaatMaatregelen[[#This Row],[Sector_kort]],")")) -> RES_HER_WPB | N40: =IF(tblResultaatMaatregelen[[#This Row],[X-as]]="Maatregelen",CONCATENATE(tblResultaatMaatregelen[[#This Row],[Sector]]," (",tblResultaatMaatregelen[[#This Row],[Sector_kort]],")"),tblResultaatMaatregelen[[#This Row],[MaatregelCode]]) -> Huishoudens (RES)
A41: =CONCATENATE("Scenario ",tblResultaatMaatregelen[[#This Row],[ScenarioNummer]]) -> Scenario 2 | B41: 2 | C41: 8 | D41: =VLOOKUP(tblResultaatMaatregelen[[#This Row],[MaatregelNummer]],Tbl_scenario[],4,TRUE) -> RES_EE_ELE | E41: =INDEX(tblSectoren[SectorID],MATCH(tblResultaatMaatregelen[[#This Row],[Sector]],tblSectoren[Sectoren],0)) -> 1 | F41: =VLOOKUP(tblResultaatMaatregelen[[#This Row],[MaatregelNummer]],Tbl_scenario[],2,TRUE) -> Huishoudens | G41: =INDEX(tblSectoren[Afkorting],tblResultaatMaatregelen[[#This Row],[Sectornummer]]) -> RES | H41: =VLOOKUP(tblResultaatMaatregelen[[#This Row],[MaatregelNummer]],Tbl_scenario[],3,TRUE) -> Elektriciteitsgebruik: verhogen efficiëntie | I41: =VLOOKUP(tblResultaatMaatregelen[[#This Row],[MaatregelNummer]],Tbl_scenario[],6+(tblResultaatMaatregelen[[#This Row],[ScenarioNummer]]-1)*4+1,TRUE) -> Hoog | J41: =IF(tblResultaatMaatregelen[[#This Row],[Ambitieniveau]]="Niet",0,IFERROR(INDIRECT(CONCATENATE(tblResultaatMaatregelen[[#This Row],[MaatregelCode]],"_REDCO2_",tblResultaatMaatregelen[[#This Row],[ScenarioNummer]])),0)) -> 3190.529613 | K41: Maatregelen | L41: =IF(tblResultaatMaatregelen[[#This Row],[X-as]]="Maatregelen",tblResultaatMaatregelen[[#This Row],[MaatregelNummer]],tblResultaatMaatregelen[[#This Row],[Sectornummer]]) -> 8 | M41: =IF(tblResultaatMaatregelen[[#This Row],[X-as]]="Maatregelen",tblResultaatMaatregelen[[#This Row],[MaatregelCode]],CONCATENATE(tblResultaatMaatregelen[[#This Row],[Sector]]," (",tblResultaatMaatregelen[[#This Row],[Sector_kort]],")")) -> RES_EE_ELE | N41: =IF(tblResultaatMaatregelen[[#This Row],[X-as]]="Maatregelen",CONCATENATE(tblResultaatMaatregelen[[#This Row],[Sector]]," (",tblResultaatMaatregelen[[#This Row],[Sector_kort]],")"),tblResultaatMaatregelen[[#This Row],[MaatregelCode]]) -> Huishoudens (RES)
A42: =CONCATENATE("Scenario ",tblResultaatMaatregelen[[#This Row],[ScenarioNummer]]) -> Scenario 2 | B42: 2 | C42: 9 | D42: =VLOOKUP(tblResultaatMaatregelen[[#This Row],[MaatregelNummer]],Tbl_scenario[],4,TRUE) -> RES_EE_SLOOP | E42: =INDEX(tblSectoren[SectorID],MATCH(tblResultaatMaatregelen[[#This Row],[Sector]],tblSectoren[Sectoren],0)) -> 1 | F42: =VLOOKUP(tblResultaatMaatregelen[[#This Row],[MaatregelNummer]],Tbl_scenario[],2,TRUE) -> Huishoudens | G42: =INDEX(tblSectoren[Afkorting],tblResultaatMaatregelen[[#This Row],[Sectornummer]]) -> RES | H42: =VLOOKUP(tblResultaatMaatregelen[[#This Row],[MaatregelNummer]],Tbl_scenario[],3,TRUE) -> Stimuleren sloop energieverslindende woningen | I42: =VLOOKUP(tblResultaatMaatregelen[[#This Row],[MaatregelNummer]],Tbl_scenario[],6+(tblResultaatMaatregelen[[#This Row],[ScenarioNummer]]-1)*4+1,TRUE) -> Hoog | J42: =IF(tblResultaatMaatregelen[[#This Row],[Ambitieniveau]]="Niet",0,IFERROR(INDIRECT(CONCATENATE(tblResultaatMaatregelen[[#This Row],[MaatregelCode]],"_REDCO2_",tblResultaatMaatregelen[[#This Row],[ScenarioNummer]])),0)) -> 7090.075859 | K42: Maatregelen | L42: =IF(tblResultaatMaatregelen[[#This Row],[X-as]]="Maatregelen",tblResultaatMaatregelen[[#This Row],[MaatregelNummer]],tblResultaatMaatregelen[[#This Row],[Sectornummer]]) -> 9 | M42: =IF(tblResultaatMaatregelen[[#This Row],[X-as]]="Maatregelen",tblResultaatMaatregelen[[#This Row],[MaatregelCode]],CONCATENATE(tblResultaatMaatregelen[[#This Row],[Sector]]," (",tblResultaatMaatregelen[[#This Row],[Sector_kort]],")")) -> RES_EE_SLOOP | N42: =IF(tblResultaatMaatregelen[[#This Row],[X-as]]="Maatregelen",CONCATENATE(tblResultaatMaatregelen[[#This Row],[Sector]]," (",tblResultaatMaatregelen[[#This Row],[Sector_kort]],")"),tblResultaatMaatregelen[[#This Row],[MaatregelCode]]) -> Huishoudens (RES)
A43: =CONCATENATE("Scenario ",tblResultaatMaatregelen[[#This Row],[ScenarioNummer]]) -> Scenario 2 | B43: 2 | C43: 10 | D43: =VLOOKUP(tblResultaatMaatregelen[[#This Row],[MaatregelNummer]],Tbl_scenario[],4,TRUE) -> TER_EE_ISO | E43: =INDEX(tblSectoren[SectorID],MATCH(tblResultaatMaatregelen[[#This Row],[Sector]],tblSectoren[Sectoren],0)) -> 2 | F43: =VLOOKUP(tblResultaatMaatregelen[[#This Row],[MaatregelNummer]],Tbl_scenario[],2,TRUE) -> Tertiair | G43: =INDEX(tblSectoren[Afkorting],tblResultaatMaatregelen[[#This Row],[Sectornummer]]) -> TER | H43: =VLOOKUP(tblResultaatMaatregelen[[#This Row],[MaatregelNummer]],Tbl_scenario[],3,TRUE) -> Verhoogde isolatiegraad | I43: =VLOOKUP(tblResultaatMaatregelen[[#This Row],[MaatregelNummer]],Tbl_scenario[],6+(tblResultaatMaatregelen[[#This Row],[ScenarioNummer]]-1)*4+1,TRUE) -> Hoog | J43: =IF(tblResultaatMaatregelen[[#This Row],[Ambitieniveau]]="Niet",0,IFERROR(INDIRECT(CONCATENATE(tblResultaatMaatregelen[[#This Row],[MaatregelCode]],"_REDCO2_",tblResultaatMaatregelen[[#This Row],[ScenarioNummer]])),0)) -> 12440.20548 | K43: Maatregelen | L43: =IF(tblResultaatMaatregelen[[#This Row],[X-as]]="Maatregelen",tblResultaatMaatregelen[[#This Row],[MaatregelNummer]],tblResultaatMaatregelen[[#This Row],[Sectornummer]]) -> 10 | M43: =IF(tblResultaatMaatregelen[[#This Row],[X-as]]="Maatregelen",tblResultaatMaatregelen[[#This Row],[MaatregelCode]],CONCATENATE(tblResultaatMaatregelen[[#This Row],[Sector]]," (",tblResultaatMaatregelen[[#This Row],[Sector_kort]],")")) -> TER_EE_ISO | N43: =IF(tblResultaatMaatregelen[[#This Row],[X-as]]="Maatregelen",CONCATENATE(tblResultaatMaatregelen[[#This Row],[Sector]]," (",tblResultaatMaatregelen[[#This Row],[Sector_kort]],")"),tblResultaatMaatregelen[[#This Row],[MaatregelCode]]) -> Tertiair (TER)
A44: =CONCATENATE("Scenario ",tblResultaatMaatregelen[[#This Row],[ScenarioNummer]]) -> Scenario 2 | B44: 2 | C44: 11 | D44: =VLOOKUP(tblResultaatMaatregelen[[#This Row],[MaatregelNummer]],Tbl_scenario[],4,TRUE) -> TER_HER_WP | E44: =INDEX(tblSectoren[SectorID],MATCH(tblResultaatMaatregelen[[#This Row],[Sector]],tblSectoren[Sectoren],0)) -> 2 | F44: =VLOOKUP(tblResultaatMaatregelen[[#This Row],[MaatregelNummer]],Tbl_scenario[],2,TRUE) -> Tertiair | G44: =INDEX(tblSectoren[Afkorting],tblResultaatMaatregelen[[#This Row],[Sectornummer]]) -> TER | H44: =VLOOKUP(tblResultaatMaatregelen[[#This Row],[MaatregelNummer]],Tbl_scenario[],3,TRUE) -> Warmtepomp | I44: =VLOOKUP(tblResultaatMaatregelen[[#This Row],[MaatregelNummer]],Tbl_scenario[],6+(tblResultaatMaatregelen[[#This Row],[ScenarioNummer]]-1)*4+1,TRUE) -> Hoog | J44: =IF(tblResultaatMaatregelen[[#This Row],[Ambitieniveau]]="Niet",0,IFERROR(INDIRECT(CONCATENATE(tblResultaatMaatregelen[[#This Row],[MaatregelCode]],"_REDCO2_",tblResultaatMaatregelen[[#This Row],[ScenarioNummer]])),0)) -> 6226.188154 | K44: Maatregelen | L44: =IF(tblResultaatMaatregelen[[#This Row],[X-as]]="Maatregelen",tblResultaatMaatregelen[[#This Row],[MaatregelNummer]],tblResultaatMaatregelen[[#This Row],[Sectornummer]]) -> 11 | M44: =IF(tblResultaatMaatregelen[[#This Row],[X-as]]="Maatregelen",tblResultaatMaatregelen[[#This Row],[MaatregelCode]],CONCATENATE(tblResultaatMaatregelen[[#This Row],[Sector]]," (",tblResultaatMaatregelen[[#This Row],[Sector_kort]],")")) -> TER_HER_WP | N44: =IF(tblResultaatMaatregelen[[#This Row],[X-as]]="Maatregelen",CONCATENATE(tblResultaatMaatregelen[[#This Row],[Sector]]," (",tblResultaatMaatregelen[[#This Row],[Sector_kort]],")"),tblResultaatMaatregelen[[#This Row],[MaatregelCode]]) -> Tertiair (TER)
A45: =CONCATENATE("Scenario ",tblResultaatMaatregelen[[#This Row],[ScenarioNummer]]) -> Scenario 2 | B45: 2 | C45: 12 | D45: =VLOOKUP(tblResultaatMaatregelen[[#This Row],[MaatregelNummer]],Tbl_scenario[],4,TRUE) -> TER_HER_ZB | E45: =INDEX(tblSectoren[SectorID],MATCH(tblResultaatMaatregelen[[#This Row],[Sector]],tblSectoren[Sectoren],0)) -> 2 | F45: =VLOOKUP(tblResultaatMaatregelen[[#This Row],[MaatregelNummer]],Tbl_scenario[],2,TRUE) -> Tertiair | G45: =INDEX(tblSectoren[Afkorting],tblResultaatMaatregelen[[#This Row],[Sectornummer]]) -> TER | H45: =VLOOKUP(tblResultaatMaatregelen[[#This Row],[MaatregelNummer]],Tbl_scenario[],3,TRUE) -> Zonneboiler | I45: =VLOOKUP(tblResultaatMaatregelen[[#This Row],[MaatregelNummer]],Tbl_scenario[],6+(tblResultaatMaatregelen[[#This Row],[ScenarioNummer]]-1)*4+1,TRUE) -> Hoog | J45: =IF(tblResultaatMaatregelen[[#This Row],[Ambitieniveau]]="Niet",0,IFERROR(INDIRECT(CONCATENATE(tblResultaatMaatregelen[[#This Row],[MaatregelCode]],"_REDCO2_",tblResultaatMaatregelen[[#This Row],[ScenarioNummer]])),0)) -> 2159.757895 | K45: Maatregelen | L45: =IF(tblResultaatMaatregelen[[#This Row],[X-as]]="Maatregelen",tblResultaatMaatregelen[[#This Row],[MaatregelNummer]],tblResultaatMaatregelen[[#This Row],[Sectornummer]]) -> 12 | M45: =IF(tblResultaatMaatregelen[[#This Row],[X-as]]="Maatregelen",tblResultaatMaatregelen[[#This Row],[MaatregelCode]],CONCATENATE(tblResultaatMaatregelen[[#This Row],[Sector]]," (",tblResultaatMaatregelen[[#This Row],[Sector_kort]],")")) -> TER_HER_ZB | N45: =IF(tblResultaatMaatregelen[[#This Row],[X-as]]="Maatregelen",CONCATENATE(tblResultaatMaatregelen[[#This Row],[Sector]]," (",tblResultaatMaatregelen[[#This Row],[Sector_kort]],")"),tblResultaatMaatregelen[[#This Row],[MaatregelCode]]) -> Tertiair (TER)
A46: =CONCATENATE("Scenario ",tblResultaatMaatregelen[[#This Row],[ScenarioNummer]]) -> Scenario 2 | B46: 2 | C46: 13 | D46: =VLOOKUP(tblResultaatMaatregelen[[#This Row],[MaatregelNummer]],Tbl_scenario[],4,TRUE) -> TER_HER_WPB | E46: =INDEX(tblSectoren[SectorID],MATCH(tblResultaatMaatregelen[[#This Row],[Sector]],tblSectoren[Sectoren],0)) -> 2 | F46: =VLOOKUP(tblResultaatMaatregelen[[#This Row],[MaatregelNummer]],Tbl_scenario[],2,TRUE) -> Tertiair | G46: =INDEX(tblSectoren[Afkorting],tblResultaatMaatregelen[[#This Row],[Sectornummer]]) -> TER | H46: =VLOOKUP(tblResultaatMaatregelen[[#This Row],[MaatregelNummer]],Tbl_scenario[],3,TRUE) -> Warmtepompboiler | I46: =VLOOKUP(tblResultaatMaatregelen[[#This Row],[MaatregelNummer]],Tbl_scenario[],6+(tblResultaatMaatregelen[[#This Row],[ScenarioNummer]]-1)*4+1,TRUE) -> Hoog | J46: =IF(tblResultaatMaatregelen[[#This Row],[Ambitieniveau]]="Niet",0,IFERROR(INDIRECT(CONCATENATE(tblResultaatMaatregelen[[#This Row],[MaatregelCode]],"_REDCO2_",tblResultaatMaatregelen[[#This Row],[ScenarioNummer]])),0)) -> 3012.566028 | K46: Maatregelen | L46: =IF(tblResultaatMaatregelen[[#This Row],[X-as]]="Maatregelen",tblResultaatMaatregelen[[#This Row],[MaatregelNummer]],tblResultaatMaatregelen[[#This Row],[Sectornummer]]) -> 13 | M46: =IF(tblResultaatMaatregelen[[#This Row],[X-as]]="Maatregelen",tblResultaatMaatregelen[[#This Row],[MaatregelCode]],CONCATENATE(tblResultaatMaatregelen[[#This Row],[Sector]]," (",tblResultaatMaatregelen[[#This Row],[Sector_kort]],")")) -> TER_HER_WPB | N46: =IF(tblResultaatMaatregelen[[#This Row],[X-as]]="Maatregelen",CONCATENATE(tblResultaatMaatregelen[[#This Row],[Sector]]," (",tblResultaatMaatregelen[[#This Row],[Sector_kort]],")"),tblResultaatMaatregelen[[#This Row],[MaatregelCode]]) -> Tertiair (TER)
A47: =CONCATENATE("Scenario ",tblResultaatMaatregelen[[#This Row],[ScenarioNummer]]) -> Scenario 2 | B47: 2 | C47: 14 | D47: =VLOOKUP(tblResultaatMaatregelen[[#This Row],[MaatregelNummer]],Tbl_scenario[],4,TRUE) -> TER_EE_ELE | E47: =INDEX(tblSectoren[SectorID],MATCH(tblResultaatMaatregelen[[#This Row],[Sector]],tblSectoren[Sectoren],0)) -> 2 | F47: =VLOOKUP(tblResultaatMaatregelen[[#This Row],[MaatregelNummer]],Tbl_scenario[],2,TRUE) -> Tertiair | G47: =INDEX(tblSectoren[Afkorting],tblResultaatMaatregelen[[#This Row],[Sectornummer]]) -> TER | H47: =VLOOKUP(tblResultaatMaatregelen[[#This Row],[MaatregelNummer]],Tbl_scenario[],3,TRUE) -> Ele. gebruik: verhogen efficiëntie (LED, relighting, koeling, etc.) | I47: =VLOOKUP(tblResultaatMaatregelen[[#This Row],[MaatregelNummer]],Tbl_scenario[],6+(tblResultaatMaatregelen[[#This Row],[ScenarioNummer]]-1)*4+1,TRUE) -> Hoog | J47: =IF(tblResultaatMaatregelen[[#This Row],[Ambitieniveau]]="Niet",0,IFERROR(INDIRECT(CONCATENATE(tblResultaatMaatregelen[[#This Row],[MaatregelCode]],"_REDCO2_",tblResultaatMaatregelen[[#This Row],[ScenarioNummer]])),0)) -> 5888.0041 | K47: Maatregelen | L47: =IF(tblResultaatMaatregelen[[#This Row],[X-as]]="Maatregelen",tblResultaatMaatregelen[[#This Row],[MaatregelNummer]],tblResultaatMaatregelen[[#This Row],[Sectornummer]]) -> 14 | M47: =IF(tblResultaatMaatregelen[[#This Row],[X-as]]="Maatregelen",tblResultaatMaatregelen[[#This Row],[MaatregelCode]],CONCATENATE(tblResultaatMaatregelen[[#This Row],[Sector]]," (",tblResultaatMaatregelen[[#This Row],[Sector_kort]],")")) -> TER_EE_ELE | N47: =IF(tblResultaatMaatregelen[[#This Row],[X-as]]="Maatregelen",CONCATENATE(tblResultaatMaatregelen[[#This Row],[Sector]]," (",tblResultaatMaatregelen[[#This Row],[Sector_kort]],")"),tblResultaatMaatregelen[[#This Row],[MaatregelCode]]) -> Tertiair (TER)
A48: =CONCATENATE("Scenario ",tblResultaatMaatregelen[[#This Row],[ScenarioNummer]]) -> Scenario 2 | B48: 2 | C48: 15 | D48: =VLOOKUP(tblResultaatMaatregelen[[#This Row],[MaatregelNummer]],Tbl_scenario[],4,TRUE) -> OV_LED_EE | E48: =INDEX(tblSectoren[SectorID],MATCH(tblResultaatMaatregelen[[#This Row],[Sector]],tblSectoren[Sectoren],0)) -> 6 | F48: =VLOOKUP(tblResultaatMaatregelen[[#This Row],[MaatregelNummer]],Tbl_scenario[],2,TRUE) -> Openbare verlichting | G48: =INDEX(tblSectoren[Afkorting],tblResultaatMaatregelen[[#This Row],[Sectornummer]]) -> OV | H48: =VLOOKUP(tblResultaatMaatregelen[[#This Row],[MaatregelNummer]],Tbl_scenario[],3,TRUE) -> LED: verhogen energie-efficiëntie | I48: =VLOOKUP(tblResultaatMaatregelen[[#This Row],[MaatregelNummer]],Tbl_scenario[],6+(tblResultaatMaatregelen[[#This Row],[ScenarioNummer]]-1)*4+1,TRUE) -> Hoog | J48: =IF(tblResultaatMaatregelen[[#This Row],[Ambitieniveau]]="Niet",0,IFERROR(INDIRECT(CONCATENATE(tblResultaatMaatregelen[[#This Row],[MaatregelCode]],"_REDCO2_",tblResultaatMaatregelen[[#This Row],[ScenarioNummer]])),0)) -> 501.4621979 | K48: Maatregelen | L48: =IF(tblResultaatMaatregelen[[#This Row],[X-as]]="Maatregelen",tblResultaatMaatregelen[[#This Row],[MaatregelNummer]],tblResultaatMaatregelen[[#This Row],[Sectornummer]]) -> 15 | M48: =IF(tblResultaatMaatregelen[[#This Row],[X-as]]="Maatregelen",tblResultaatMaatregelen[[#This Row],[MaatregelCode]],CONCATENATE(tblResultaatMaatregelen[[#This Row],[Sector]]," (",tblResultaatMaatregelen[[#This Row],[Sector_kort]],")")) -> OV_LED_EE | N48: =IF(tblResultaatMaatregelen[[#This Row],[X-as]]="Maatregelen",CONCATENATE(tblResultaatMaatregelen[[#This Row],[Sector]]," (",tblResultaatMaatregelen[[#This Row],[Sector_kort]],")"),tblResultaatMaatregelen[[#This Row],[MaatregelCode]]) -> Openbare verlichting (OV)
A49: =CONCATENATE("Scenario ",tblResultaatMaatregelen[[#This Row],[ScenarioNummer]]) -> Scenario 2 | B49: 2 | C49: 16 | D49: =VLOOKUP(tblResultaatMaatregelen[[#This Row],[MaatregelNummer]],Tbl_scenario[],4,TRUE) -> IND_HER_WP | E49: =INDEX(tblSectoren[SectorID],MATCH(tblResultaatMaatregelen[[#This Row],[Sector]],tblSectoren[Sectoren],0)) -> 3 | F49: =VLOOKUP(tblResultaatMaatregelen[[#This Row],[MaatregelNummer]],Tbl_scenario[],2,TRUE) -> Industrie (niet-ETS) | G49: =INDEX(tblSectoren[Afkorting],tblResultaatMaatregelen[[#This Row],[Sectornummer]]) -> IND | H49: =VLOOKUP(tblResultaatMaatregelen[[#This Row],[MaatregelNummer]],Tbl_scenario[],3,TRUE) -> Warmtepomp | I49: =VLOOKUP(tblResultaatMaatregelen[[#This Row],[MaatregelNummer]],Tbl_scenario[],6+(tblResultaatMaatregelen[[#This Row],[ScenarioNummer]]-1)*4+1,TRUE) -> Hoog | J49: =IF(tblResultaatMaatregelen[[#This Row],[Ambitieniveau]]="Niet",0,IFERROR(INDIRECT(CONCATENATE(tblResultaatMaatregelen[[#This Row],[MaatregelCode]],"_REDCO2_",tblResultaatMaatregelen[[#This Row],[ScenarioNummer]])),0)) -> 1528.361537 | K49: Maatregelen | L49: =IF(tblResultaatMaatregelen[[#This Row],[X-as]]="Maatregelen",tblResultaatMaatregelen[[#This Row],[MaatregelNummer]],tblResultaatMaatregelen[[#This Row],[Sectornummer]]) -> 16 | M49: =IF(tblResultaatMaatregelen[[#This Row],[X-as]]="Maatregelen",tblResultaatMaatregelen[[#This Row],[MaatregelCode]],CONCATENATE(tblResultaatMaatregelen[[#This Row],[Sector]]," (",tblResultaatMaatregelen[[#This Row],[Sector_kort]],")")) -> IND_HER_WP | N49: =IF(tblResultaatMaatregelen[[#This Row],[X-as]]="Maatregelen",CONCATENATE(tblResultaatMaatregelen[[#This Row],[Sector]]," (",tblResultaatMaatregelen[[#This Row],[Sector_kort]],")"),tblResultaatMaatregelen[[#This Row],[MaatregelCode]]) -> Industrie (niet-ETS) (IND)
A50: =CONCATENATE("Scenario ",tblResultaatMaatregelen[[#This Row],[ScenarioNummer]]) -> Scenario 2 | B50: 2 | C50: 17 | D50: =VLOOKUP(tblResultaatMaatregelen[[#This Row],[MaatregelNummer]],Tbl_scenario[],4,TRUE) -> IND_HER_ZB | E50: =INDEX(tblSectoren[SectorID],MATCH(tblResultaatMaatregelen[[#This Row],[Sector]],tblSectoren[Sectoren],0)) -> 3 | F50: =VLOOKUP(tblResultaatMaatregelen[[#This Row],[MaatregelNummer]],Tbl_scenario[],2,TRUE) -> Industrie (niet-ETS) | G50: =INDEX(tblSectoren[Afkorting],tblResultaatMaatregelen[[#This Row],[Sectornummer]]) -> IND | H50: =VLOOKUP(tblResultaatMaatregelen[[#This Row],[MaatregelNummer]],Tbl_scenario[],3,TRUE) -> Zonneboiler | I50: =VLOOKUP(tblResultaatMaatregelen[[#This Row],[MaatregelNummer]],Tbl_scenario[],6+(tblResultaatMaatregelen[[#This Row],[ScenarioNummer]]-1)*4+1,TRUE) -> Hoog | J50: =IF(tblResultaatMaatregelen[[#This Row],[Ambitieniveau]]="Niet",0,IFERROR(INDIRECT(CONCATENATE(tblResultaatMaatregelen[[#This Row],[MaatregelCode]],"_REDCO2_",tblResultaatMaatregelen[[#This Row],[ScenarioNummer]])),0)) -> 328.7711885 | K50: Maatregelen | L50: =IF(tblResultaatMaatregelen[[#This Row],[X-as]]="Maatregelen",tblResultaatMaatregelen[[#This Row],[MaatregelNummer]],tblResultaatMaatregelen[[#This Row],[Sectornummer]]) -> 17 | M50: =IF(tblResultaatMaatregelen[[#This Row],[X-as]]="Maatregelen",tblResultaatMaatregelen[[#This Row],[MaatregelCode]],CONCATENATE(tblResultaatMaatregelen[[#This Row],[Sector]]," (",tblResultaatMaatregelen[[#This Row],[Sector_kort]],")")) -> IND_HER_ZB | N50: =IF(tblResultaatMaatregelen[[#This Row],[X-as]]="Maatregelen",CONCATENATE(tblResultaatMaatregelen[[#This Row],[Sector]]," (",tblResultaatMaatregelen[[#This Row],[Sector_kort]],")"),tblResultaatMaatregelen[[#This Row],[MaatregelCode]]) -> Industrie (niet-ETS) (IND)
A51: =CONCATENATE("Scenario ",tblResultaatMaatregelen[[#This Row],[ScenarioNummer]]) -> Scenario 2 | B51: 2 | C51: 18 | D51: =VLOOKUP(tblResultaatMaatregelen[[#This Row],[MaatregelNummer]],Tbl_scenario[],4,TRUE) -> IND_EE_EEA | E51: =INDEX(tblSectoren[SectorID],MATCH(tblResultaatMaatregelen[[#This Row],[Sector]],tblSectoren[Sectoren],0)) -> 3 | F51: =VLOOKUP(tblResultaatMaatregelen[[#This Row],[MaatregelNummer]],Tbl_scenario[],2,TRUE) -> Industrie (niet-ETS) | G51: =INDEX(tblSectoren[Afkorting],tblResultaatMaatregelen[[#This Row],[Sectornummer]]) -> IND | H51: =VLOOKUP(tblResultaatMaatregelen[[#This Row],[MaatregelNummer]],Tbl_scenario[],3,TRUE) -> Ele. gebruik: verhogen efficiëntie elektrische aandrijfsystemen | I51: =VLOOKUP(tblResultaatMaatregelen[[#This Row],[MaatregelNummer]],Tbl_scenario[],6+(tblResultaatMaatregelen[[#This Row],[ScenarioNummer]]-1)*4+1,TRUE) -> Hoog | J51: =IF(tblResultaatMaatregelen[[#This Row],[Ambitieniveau]]="Niet",0,IFERROR(INDIRECT(CONCATENATE(tblResultaatMaatregelen[[#This Row],[MaatregelCode]],"_REDCO2_",tblResultaatMaatregelen[[#This Row],[ScenarioNummer]])),0)) -> 593.2104921 | K51: Maatregelen | L51: =IF(tblResultaatMaatregelen[[#This Row],[X-as]]="Maatregelen",tblResultaatMaatregelen[[#This Row],[MaatregelNummer]],tblResultaatMaatregelen[[#This Row],[Sectornummer]]) -> 18 | M51: =IF(tblResultaatMaatregelen[[#This Row],[X-as]]="Maatregelen",tblResultaatMaatregelen[[#This Row],[MaatregelCode]],CONCATENATE(tblResultaatMaatregelen[[#This Row],[Sector]]," (",tblResultaatMaatregelen[[#This Row],[Sector_kort]],")")) -> IND_EE_EEA | N51: =IF(tblResultaatMaatregelen[[#This Row],[X-as]]="Maatregelen",CONCATENATE(tblResultaatMaatregelen[[#This Row],[Sector]]," (",tblResultaatMaatregelen[[#This Row],[Sector_kort]],")"),tblResultaatMaatregelen[[#This Row],[MaatregelCode]]) -> Industrie (niet-ETS) (IND)
A52: =CONCATENATE("Scenario ",tblResultaatMaatregelen[[#This Row],[ScenarioNummer]]) -> Scenario 2 | B52: 2 | C52: 19 | D52: =VLOOKUP(tblResultaatMaatregelen[[#This Row],[MaatregelNummer]],Tbl_scenario[],4,TRUE) -> MOB_MS_voet | E52: =INDEX(tblSectoren[SectorID],MATCH(tblResultaatMaatregelen[[#This Row],[Sector]],tblSectoren[Sectoren],0)) -> 4 | F52: =VLOOKUP(tblResultaatMaatregelen[[#This Row],[MaatregelNummer]],Tbl_scenario[],2,TRUE) -> Particulier en commercieel vervoer | G52: =INDEX(tblSectoren[Afkorting],tblResultaatMaatregelen[[#This Row],[Sectornummer]]) -> MOB | H52: =VLOOKUP(tblResultaatMaatregelen[[#This Row],[MaatregelNummer]],Tbl_scenario[],3,TRUE) -> Modal Shift_Voet + Fiets | I52: =VLOOKUP(tblResultaatMaatregelen[[#This Row],[MaatregelNummer]],Tbl_scenario[],6+(tblResultaatMaatregelen[[#This Row],[ScenarioNummer]]-1)*4+1,TRUE) -> Hoog | J52: =IF(tblResultaatMaatregelen[[#This Row],[Ambitieniveau]]="Niet",0,IFERROR(INDIRECT(CONCATENATE(tblResultaatMaatregelen[[#This Row],[MaatregelCode]],"_REDCO2_",tblResultaatMaatregelen[[#This Row],[ScenarioNummer]])),0)) -> 8862.006958 | K52: Maatregelen | L52: =IF(tblResultaatMaatregelen[[#This Row],[X-as]]="Maatregelen",tblResultaatMaatregelen[[#This Row],[MaatregelNummer]],tblResultaatMaatregelen[[#This Row],[Sectornummer]]) -> 19 | M52: =IF(tblResultaatMaatregelen[[#This Row],[X-as]]="Maatregelen",tblResultaatMaatregelen[[#This Row],[MaatregelCode]],CONCATENATE(tblResultaatMaatregelen[[#This Row],[Sector]]," (",tblResultaatMaatregelen[[#This Row],[Sector_kort]],")")) -> MOB_MS_voet | N52: =IF(tblResultaatMaatregelen[[#This Row],[X-as]]="Maatregelen",CONCATENATE(tblResultaatMaatregelen[[#This Row],[Sector]]," (",tblResultaatMaatregelen[[#This Row],[Sector_kort]],")"),tblResultaatMaatregelen[[#This Row],[MaatregelCode]]) -> Particulier en commercieel vervoer (MOB)
A53: =CONCATENATE("Scenario ",tblResultaatMaatregelen[[#This Row],[ScenarioNummer]]) -> Scenario 2 | B53: 2 | C53: 20 | D53: =VLOOKUP(tblResultaatMaatregelen[[#This Row],[MaatregelNummer]],Tbl_scenario[],4,TRUE) -> MOB_MS_EFiets | E53: =INDEX(tblSectoren[SectorID],MATCH(tblResultaatMaatregelen[[#This Row],[Sector]],tblSectoren[Sectoren],0)) -> 4 | F53: =VLOOKUP(tblResultaatMaatregelen[[#This Row],[MaatregelNummer]],Tbl_scenario[],2,TRUE) -> Particulier en commercieel vervoer | G53: =INDEX(tblSectoren[Afkorting],tblResultaatMaatregelen[[#This Row],[Sectornummer]]) -> MOB | H53: =VLOOKUP(tblResultaatMaatregelen[[#This Row],[MaatregelNummer]],Tbl_scenario[],3,TRUE) -> Modal Shift_Elektrische Fiets | I53: =VLOOKUP(tblResultaatMaatregelen[[#This Row],[MaatregelNummer]],Tbl_scenario[],6+(tblResultaatMaatregelen[[#This Row],[ScenarioNummer]]-1)*4+1,TRUE) -> Hoog | J53: =IF(tblResultaatMaatregelen[[#This Row],[Ambitieniveau]]="Niet",0,IFERROR(INDIRECT(CONCATENATE(tblResultaatMaatregelen[[#This Row],[MaatregelCode]],"_REDCO2_",tblResultaatMaatregelen[[#This Row],[ScenarioNummer]])),0)) -> 7385.005798 | K53: Maatregelen | L53: =IF(tblResultaatMaatregelen[[#This Row],[X-as]]="Maatregelen",tblResultaatMaatregelen[[#This Row],[MaatregelNummer]],tblResultaatMaatregelen[[#This Row],[Sectornummer]]) -> 20 | M53: =IF(tblResultaatMaatregelen[[#This Row],[X-as]]="Maatregelen",tblResultaatMaatregelen[[#This Row],[MaatregelCode]],CONCATENATE(tblResultaatMaatregelen[[#This Row],[Sector]]," (",tblResultaatMaatregelen[[#This Row],[Sector_kort]],")")) -> MOB_MS_EFiets | N53: =IF(tblResultaatMaatregelen[[#This Row],[X-as]]="Maatregelen",CONCATENATE(tblResultaatMaatregelen[[#This Row],[Sector]]," (",tblResultaatMaatregelen[[#This Row],[Sector_kort]],")"),tblResultaatMaatregelen[[#This Row],[MaatregelCode]]) -> Particulier en commercieel vervoer (MOB)
A54: =CONCATENATE("Scenario ",tblResultaatMaatregelen[[#This Row],[ScenarioNummer]]) -> Scenario 2 | B54: 2 | C54: 21 | D54: =VLOOKUP(tblResultaatMaatregelen[[#This Row],[MaatregelNummer]],Tbl_scenario[],4,TRUE) -> MOB_MS_OV | E54: =INDEX(tblSectoren[SectorID],MATCH(tblResultaatMaatregelen[[#This Row],[Sector]],tblSectoren[Sectoren],0)) -> 4 | F54: =VLOOKUP(tblResultaatMaatregelen[[#This Row],[MaatregelNummer]],Tbl_scenario[],2,TRUE) -> Particulier en commercieel vervoer | G54: =INDEX(tblSectoren[Afkorting],tblResultaatMaatregelen[[#This Row],[Sectornummer]]) -> MOB | H54: =VLOOKUP(tblResultaatMaatregelen[[#This Row],[MaatregelNummer]],Tbl_scenario[],3,TRUE) -> Modal Shift_Openbaar vervoer | I54: =VLOOKUP(tblResultaatMaatregelen[[#This Row],[MaatregelNummer]],Tbl_scenario[],6+(tblResultaatMaatregelen[[#This Row],[ScenarioNummer]]-1)*4+1,TRUE) -> Hoog | J54: =IF(tblResultaatMaatregelen[[#This Row],[Ambitieniveau]]="Niet",0,IFERROR(INDIRECT(CONCATENATE(tblResultaatMaatregelen[[#This Row],[MaatregelCode]],"_REDCO2_",tblResultaatMaatregelen[[#This Row],[ScenarioNummer]])),0)) -> 11225.20881 | K54: Maatregelen | L54: =IF(tblResultaatMaatregelen[[#This Row],[X-as]]="Maatregelen",tblResultaatMaatregelen[[#This Row],[MaatregelNummer]],tblResultaatMaatregelen[[#This Row],[Sectornummer]]) -> 21 | M54: =IF(tblResultaatMaatregelen[[#This Row],[X-as]]="Maatregelen",tblResultaatMaatregelen[[#This Row],[MaatregelCode]],CONCATENATE(tblResultaatMaatregelen[[#This Row],[Sector]]," (",tblResultaatMaatregelen[[#This Row],[Sector_kort]],")")) -> MOB_MS_OV | N54: =IF(tblResultaatMaatregelen[[#This Row],[X-as]]="Maatregelen",CONCATENATE(tblResultaatMaatregelen[[#This Row],[Sector]]," (",tblResultaatMaatregelen[[#This Row],[Sector_kort]],")"),tblResultaatMaatregelen[[#This Row],[MaatregelCode]]) -> Particulier en commercieel vervoer (MOB)
A55: =CONCATENATE("Scenario ",tblResultaatMaatregelen[[#This Row],[ScenarioNummer]]) -> Scenario 2 | B55: 2 | C55: 22 | D55: =VLOOKUP(tblResultaatMaatregelen[[#This Row],[MaatregelNummer]],Tbl_scenario[],4,TRUE) -> MOB_BS_EV | E55: =INDEX(tblSectoren[SectorID],MATCH(tblResultaatMaatregelen[[#This Row],[Sector]],tblSectoren[Sectoren],0)) -> 4 | F55: =VLOOKUP(tblResultaatMaatregelen[[#This Row],[MaatregelNummer]],Tbl_scenario[],2,TRUE) -> Particulier en commercieel vervoer | G55: =INDEX(tblSectoren[Afkorting],tblResultaatMaatregelen[[#This Row],[Sectornummer]]) -> MOB | H55: =VLOOKUP(tblResultaatMaatregelen[[#This Row],[MaatregelNummer]],Tbl_scenario[],3,TRUE) -> Brandstofshift_Elektrische voertuigen | I55: =VLOOKUP(tblResultaatMaatregelen[[#This Row],[MaatregelNummer]],Tbl_scenario[],6+(tblResultaatMaatregelen[[#This Row],[ScenarioNummer]]-1)*4+1,TRUE) -> Hoog | J55: =IF(tblResultaatMaatregelen[[#This Row],[Ambitieniveau]]="Niet",0,IFERROR(INDIRECT(CONCATENATE(tblResultaatMaatregelen[[#This Row],[MaatregelCode]],"_REDCO2_",tblResultaatMaatregelen[[#This Row],[ScenarioNummer]])),0)) -> 15191.99303 | K55: Maatregelen | L55: =IF(tblResultaatMaatregelen[[#This Row],[X-as]]="Maatregelen",tblResultaatMaatregelen[[#This Row],[MaatregelNummer]],tblResultaatMaatregelen[[#This Row],[Sectornummer]]) -> 22 | M55: =IF(tblResultaatMaatregelen[[#This Row],[X-as]]="Maatregelen",tblResultaatMaatregelen[[#This Row],[MaatregelCode]],CONCATENATE(tblResultaatMaatregelen[[#This Row],[Sector]]," (",tblResultaatMaatregelen[[#This Row],[Sector_kort]],")")) -> MOB_BS_EV | N55: =IF(tblResultaatMaatregelen[[#This Row],[X-as]]="Maatregelen",CONCATENATE(tblResultaatMaatregelen[[#This Row],[Sector]]," (",tblResultaatMaatregelen[[#This Row],[Sector_kort]],")"),tblResultaatMaatregelen[[#This Row],[MaatregelCode]]) -> Particulier en commercieel vervoer (MOB)
A56: =CONCATENATE("Scenario ",tblResultaatMaatregelen[[#This Row],[ScenarioNummer]]) -> Scenario 2 | B56: 2 | C56: 23 | D56: =VLOOKUP(tblResultaatMaatregelen[[#This Row],[MaatregelNummer]],Tbl_scenario[],4,TRUE) -> MOB_BS_H2 | E56: =INDEX(tblSectoren[SectorID],MATCH(tblResultaatMaatregelen[[#This Row],[Sector]],tblSectoren[Sectoren],0)) -> 4 | F56: =VLOOKUP(tblResultaatMaatregelen[[#This Row],[MaatregelNummer]],Tbl_scenario[],2,TRUE) -> Particulier en commercieel vervoer | G56: =INDEX(tblSectoren[Afkorting],tblResultaatMaatregelen[[#This Row],[Sectornummer]]) -> MOB | H56: =VLOOKUP(tblResultaatMaatregelen[[#This Row],[MaatregelNummer]],Tbl_scenario[],3,TRUE) -> Brandstofshift_Waterstof | I56: =VLOOKUP(tblResultaatMaatregelen[[#This Row],[MaatregelNummer]],Tbl_scenario[],6+(tblResultaatMaatregelen[[#This Row],[ScenarioNummer]]-1)*4+1,TRUE) -> Hoog | J56: =IF(tblResultaatMaatregelen[[#This Row],[Ambitieniveau]]="Niet",0,IFERROR(INDIRECT(CONCATENATE(tblResultaatMaatregelen[[#This Row],[MaatregelCode]],"_REDCO2_",tblResultaatMaatregelen[[#This Row],[ScenarioNummer]])),0)) -> 4923.337199 | K56: Maatregelen | L56: =IF(tblResultaatMaatregelen[[#This Row],[X-as]]="Maatregelen",tblResultaatMaatregelen[[#This Row],[MaatregelNummer]],tblResultaatMaatregelen[[#This Row],[Sectornummer]]) -> 23 | M56: =IF(tblResultaatMaatregelen[[#This Row],[X-as]]="Maatregelen",tblResultaatMaatregelen[[#This Row],[MaatregelCode]],CONCATENATE(tblResultaatMaatregelen[[#This Row],[Sector]]," (",tblResultaatMaatregelen[[#This Row],[Sector_kort]],")")) -> MOB_BS_H2 | N56: =IF(tblResultaatMaatregelen[[#This Row],[X-as]]="Maatregelen",CONCATENATE(tblResultaatMaatregelen[[#This Row],[Sector]]," (",tblResultaatMaatregelen[[#This Row],[Sector_kort]],")"),tblResultaatMaatregelen[[#This Row],[MaatregelCode]]) -> Particulier en commercieel vervoer (MOB)
A57: =CONCATENATE("Scenario ",tblResultaatMaatregelen[[#This Row],[ScenarioNummer]]) -> Scenario 2 | B57: 2 | C57: 24 | D57: =VLOOKUP(tblResultaatMaatregelen[[#This Row],[MaatregelNummer]],Tbl_scenario[],4,TRUE) -> LEN_PV | E57: =INDEX(tblSectoren[SectorID],MATCH(tblResultaatMaatregelen[[#This Row],[Sector]],tblSectoren[Sectoren],0)) -> 8 | F57: =VLOOKUP(tblResultaatMaatregelen[[#This Row],[MaatregelNummer]],Tbl_scenario[],2,TRUE) -> Lokale energieproductie | G57: =INDEX(tblSectoren[Afkorting],tblResultaatMaatregelen[[#This Row],[Sectornummer]]) -> LEN | H57: =VLOOKUP(tblResultaatMaatregelen[[#This Row],[MaatregelNummer]],Tbl_scenario[],3,TRUE) -> Elektriciteit_PV | I57: =VLOOKUP(tblResultaatMaatregelen[[#This Row],[MaatregelNummer]],Tbl_scenario[],6+(tblResultaatMaatregelen[[#This Row],[ScenarioNummer]]-1)*4+1,TRUE) -> Hoog | J57: =IF(tblResultaatMaatregelen[[#This Row],[Ambitieniveau]]="Niet",0,IFERROR(INDIRECT(CONCATENATE(tblResultaatMaatregelen[[#This Row],[MaatregelCode]],"_REDCO2_",tblResultaatMaatregelen[[#This Row],[ScenarioNummer]])),0)) -> 12480.7644 | K57: Maatregelen | L57: =IF(tblResultaatMaatregelen[[#This Row],[X-as]]="Maatregelen",tblResultaatMaatregelen[[#This Row],[MaatregelNummer]],tblResultaatMaatregelen[[#This Row],[Sectornummer]]) -> 24 | M57: =IF(tblResultaatMaatregelen[[#This Row],[X-as]]="Maatregelen",tblResultaatMaatregelen[[#This Row],[MaatregelCode]],CONCATENATE(tblResultaatMaatregelen[[#This Row],[Sector]]," (",tblResultaatMaatregelen[[#This Row],[Sector_kort]],")")) -> LEN_PV | N57: =IF(tblResultaatMaatregelen[[#This Row],[X-as]]="Maatregelen",CONCATENATE(tblResultaatMaatregelen[[#This Row],[Sector]]," (",tblResultaatMaatregelen[[#This Row],[Sector_kort]],")"),tblResultaatMaatregelen[[#This Row],[MaatregelCode]]) -> Lokale energieproductie (LEN)
A58: =CONCATENATE("Scenario ",tblResultaatMaatregelen[[#This Row],[ScenarioNummer]]) -> Scenario 2 | B58: 2 | C58: 25 | D58: =VLOOKUP(tblResultaatMaatregelen[[#This Row],[MaatregelNummer]],Tbl_scenario[],4,TRUE) -> LEN_Wind | E58: =INDEX(tblSectoren[SectorID],MATCH(tblResultaatMaatregelen[[#This Row],[Sector]],tblSectoren[Sectoren],0)) -> 8 | F58: =VLOOKUP(tblResultaatMaatregelen[[#This Row],[MaatregelNummer]],Tbl_scenario[],2,TRUE) -> Lokale energieproductie | G58: =INDEX(tblSectoren[Afkorting],tblResultaatMaatregelen[[#This Row],[Sectornummer]]) -> LEN | H58: =VLOOKUP(tblResultaatMaatregelen[[#This Row],[MaatregelNummer]],Tbl_scenario[],3,TRUE) -> Elektriciteit_Wind | I58: =VLOOKUP(tblResultaatMaatregelen[[#This Row],[MaatregelNummer]],Tbl_scenario[],6+(tblResultaatMaatregelen[[#This Row],[ScenarioNummer]]-1)*4+1,TRUE) -> Hoog | J58: =IF(tblResultaatMaatregelen[[#This Row],[Ambitieniveau]]="Niet",0,IFERROR(INDIRECT(CONCATENATE(tblResultaatMaatregelen[[#This Row],[MaatregelCode]],"_REDCO2_",tblResultaatMaatregelen[[#This Row],[ScenarioNummer]])),0)) -> 13201.63382 | K58: Maatregelen | L58: =IF(tblResultaatMaatregelen[[#This Row],[X-as]]="Maatregelen",tblResultaatMaatregelen[[#This Row],[MaatregelNummer]],tblResultaatMaatregelen[[#This Row],[Sectornummer]]) -> 25 | M58: =IF(tblResultaatMaatregelen[[#This Row],[X-as]]="Maatregelen",tblResultaatMaatregelen[[#This Row],[MaatregelCode]],CONCATENATE(tblResultaatMaatregelen[[#This Row],[Sector]]," (",tblResultaatMaatregelen[[#This Row],[Sector_kort]],")")) -> LEN_Wind | N58: =IF(tblResultaatMaatregelen[[#This Row],[X-as]]="Maatregelen",CONCATENATE(tblResultaatMaatregelen[[#This Row],[Sector]]," (",tblResultaatMaatregelen[[#This Row],[Sector_kort]],")"),tblResultaatMaatregelen[[#This Row],[MaatregelCode]]) -> Lokale energieproductie (LEN)
A59: =CONCATENATE("Scenario ",tblResultaatMaatregelen[[#This Row],[ScenarioNummer]]) -> Scenario 2 | B59: 2 | C59: 26 | D59: =VLOOKUP(tblResultaatMaatregelen[[#This Row],[MaatregelNummer]],Tbl_scenario[],4,TRUE) -> LB_HER_WP | E59: =INDEX(tblSectoren[SectorID],MATCH(tblResultaatMaatregelen[[#This Row],[Sector]],tblSectoren[Sectoren],0)) -> 5 | F59: =VLOOKUP(tblResultaatMaatregelen[[#This Row],[MaatregelNummer]],Tbl_scenario[],2,TRUE) -> Landbouw | G59: =INDEX(tblSectoren[Afkorting],tblResultaatMaatregelen[[#This Row],[Sectornummer]]) -> LB | H59: =VLOOKUP(tblResultaatMaatregelen[[#This Row],[MaatregelNummer]],Tbl_scenario[],3,TRUE) -> Warmtepomp | I59: =VLOOKUP(tblResultaatMaatregelen[[#This Row],[MaatregelNummer]],Tbl_scenario[],6+(tblResultaatMaatregelen[[#This Row],[ScenarioNummer]]-1)*4+1,TRUE) -> Hoog | J59: =IF(tblResultaatMaatregelen[[#This Row],[Ambitieniveau]]="Niet",0,IFERROR(INDIRECT(CONCATENATE(tblResultaatMaatregelen[[#This Row],[MaatregelCode]],"_REDCO2_",tblResultaatMaatregelen[[#This Row],[ScenarioNummer]])),0)) -> 258.0663135 | K59: Maatregelen | L59: =IF(tblResultaatMaatregelen[[#This Row],[X-as]]="Maatregelen",tblResultaatMaatregelen[[#This Row],[MaatregelNummer]],tblResultaatMaatregelen[[#This Row],[Sectornummer]]) -> 26 | M59: =IF(tblResultaatMaatregelen[[#This Row],[X-as]]="Maatregelen",tblResultaatMaatregelen[[#This Row],[MaatregelCode]],CONCATENATE(tblResultaatMaatregelen[[#This Row],[Sector]]," (",tblResultaatMaatregelen[[#This Row],[Sector_kort]],")")) -> LB_HER_WP | N59: =IF(tblResultaatMaatregelen[[#This Row],[X-as]]="Maatregelen",CONCATENATE(tblResultaatMaatregelen[[#This Row],[Sector]]," (",tblResultaatMaatregelen[[#This Row],[Sector_kort]],")"),tblResultaatMaatregelen[[#This Row],[MaatregelCode]]) -> Landbouw (LB)
A60: =CONCATENATE("Scenario ",tblResultaatMaatregelen[[#This Row],[ScenarioNummer]]) -> Scenario 2 | B60: 2 | C60: 27 | D60: =VLOOKUP(tblResultaatMaatregelen[[#This Row],[MaatregelNummer]],Tbl_scenario[],4,TRUE) -> LB_HER_PocV | E60: =INDEX(tblSectoren[SectorID],MATCH(tblResultaatMaatregelen[[#This Row],[Sector]],tblSectoren[Sectoren],0)) -> 5 | F60: =VLOOKUP(tblResultaatMaatregelen[[#This Row],[MaatregelNummer]],Tbl_scenario[],2,TRUE) -> Landbouw | G60: =INDEX(tblSectoren[Afkorting],tblResultaatMaatregelen[[#This Row],[Sectornummer]]) -> LB | H60: =VLOOKUP(tblResultaatMaatregelen[[#This Row],[MaatregelNummer]],Tbl_scenario[],3,TRUE) -> Hernieuwbare energie_Pocketvergisters | I60: =VLOOKUP(tblResultaatMaatregelen[[#This Row],[MaatregelNummer]],Tbl_scenario[],6+(tblResultaatMaatregelen[[#This Row],[ScenarioNummer]]-1)*4+1,TRUE) -> Hoog | J60: =IF(tblResultaatMaatregelen[[#This Row],[Ambitieniveau]]="Niet",0,IFERROR(INDIRECT(CONCATENATE(tblResultaatMaatregelen[[#This Row],[MaatregelCode]],"_REDCO2_",tblResultaatMaatregelen[[#This Row],[ScenarioNummer]])),0)) -> 8.829661915 | K60: Maatregelen | L60: =IF(tblResultaatMaatregelen[[#This Row],[X-as]]="Maatregelen",tblResultaatMaatregelen[[#This Row],[MaatregelNummer]],tblResultaatMaatregelen[[#This Row],[Sectornummer]]) -> 27 | M60: =IF(tblResultaatMaatregelen[[#This Row],[X-as]]="Maatregelen",tblResultaatMaatregelen[[#This Row],[MaatregelCode]],CONCATENATE(tblResultaatMaatregelen[[#This Row],[Sector]]," (",tblResultaatMaatregelen[[#This Row],[Sector_kort]],")")) -> LB_HER_PocV | N60: =IF(tblResultaatMaatregelen[[#This Row],[X-as]]="Maatregelen",CONCATENATE(tblResultaatMaatregelen[[#This Row],[Sector]]," (",tblResultaatMaatregelen[[#This Row],[Sector_kort]],")"),tblResultaatMaatregelen[[#This Row],[MaatregelCode]]) -> Landbouw (LB)
A61: =CONCATENATE("Scenario ",tblResultaatMaatregelen[[#This Row],[ScenarioNummer]]) -> Scenario 2 | B61: 2 | C61: 28 | D61: =VLOOKUP(tblResultaatMaatregelen[[#This Row],[MaatregelNummer]],Tbl_scenario[],4,TRUE) -> LB_HER_BMK | E61: =INDEX(tblSectoren[SectorID],MATCH(tblResultaatMaatregelen[[#This Row],[Sector]],tblSectoren[Sectoren],0)) -> 5 | F61: =VLOOKUP(tblResultaatMaatregelen[[#This Row],[MaatregelNummer]],Tbl_scenario[],2,TRUE) -> Landbouw | G61: =INDEX(tblSectoren[Afkorting],tblResultaatMaatregelen[[#This Row],[Sectornummer]]) -> LB | H61: =VLOOKUP(tblResultaatMaatregelen[[#This Row],[MaatregelNummer]],Tbl_scenario[],3,TRUE) -> Hernieuwbare energie_Biomassaketels | I61: =VLOOKUP(tblResultaatMaatregelen[[#This Row],[MaatregelNummer]],Tbl_scenario[],6+(tblResultaatMaatregelen[[#This Row],[ScenarioNummer]]-1)*4+1,TRUE) -> Hoog | J61: =IF(tblResultaatMaatregelen[[#This Row],[Ambitieniveau]]="Niet",0,IFERROR(INDIRECT(CONCATENATE(tblResultaatMaatregelen[[#This Row],[MaatregelCode]],"_REDCO2_",tblResultaatMaatregelen[[#This Row],[ScenarioNummer]])),0)) -> 237.4196935 | K61: Maatregelen | L61: =IF(tblResultaatMaatregelen[[#This Row],[X-as]]="Maatregelen",tblResultaatMaatregelen[[#This Row],[MaatregelNummer]],tblResultaatMaatregelen[[#This Row],[Sectornummer]]) -> 28 | M61: =IF(tblResultaatMaatregelen[[#This Row],[X-as]]="Maatregelen",tblResultaatMaatregelen[[#This Row],[MaatregelCode]],CONCATENATE(tblResultaatMaatregelen[[#This Row],[Sector]]," (",tblResultaatMaatregelen[[#This Row],[Sector_kort]],")")) -> LB_HER_BMK | N61: =IF(tblResultaatMaatregelen[[#This Row],[X-as]]="Maatregelen",CONCATENATE(tblResultaatMaatregelen[[#This Row],[Sector]]," (",tblResultaatMaatregelen[[#This Row],[Sector_kort]],")"),tblResultaatMaatregelen[[#This Row],[MaatregelCode]]) -> Landbouw (LB)
A62: =CONCATENATE("Scenario ",tblResultaatMaatregelen[[#This Row],[ScenarioNummer]]) -> Scenario 2 | B62: 2 | C62: 29 | D62: =VLOOKUP(tblResultaatMaatregelen[[#This Row],[MaatregelNummer]],Tbl_scenario[],4,TRUE) -> LB_EE_ENS | E62: =INDEX(tblSectoren[SectorID],MATCH(tblResultaatMaatregelen[[#This Row],[Sector]],tblSectoren[Sectoren],0)) -> 5 | F62: =VLOOKUP(tblResultaatMaatregelen[[#This Row],[MaatregelNummer]],Tbl_scenario[],2,TRUE) -> Landbouw | G62: =INDEX(tblSectoren[Afkorting],tblResultaatMaatregelen[[#This Row],[Sectornummer]]) -> LB | H62: =VLOOKUP(tblResultaatMaatregelen[[#This Row],[MaatregelNummer]],Tbl_scenario[],3,TRUE) -> Energieschermen | I62: =VLOOKUP(tblResultaatMaatregelen[[#This Row],[MaatregelNummer]],Tbl_scenario[],6+(tblResultaatMaatregelen[[#This Row],[ScenarioNummer]]-1)*4+1,TRUE) -> Hoog | J62: =IF(tblResultaatMaatregelen[[#This Row],[Ambitieniveau]]="Niet",0,IFERROR(INDIRECT(CONCATENATE(tblResultaatMaatregelen[[#This Row],[MaatregelCode]],"_REDCO2_",tblResultaatMaatregelen[[#This Row],[ScenarioNummer]])),0)) -> 69.76941404 | K62: Maatregelen | L62: =IF(tblResultaatMaatregelen[[#This Row],[X-as]]="Maatregelen",tblResultaatMaatregelen[[#This Row],[MaatregelNummer]],tblResultaatMaatregelen[[#This Row],[Sectornummer]]) -> 29 | M62: =IF(tblResultaatMaatregelen[[#This Row],[X-as]]="Maatregelen",tblResultaatMaatregelen[[#This Row],[MaatregelCode]],CONCATENATE(tblResultaatMaatregelen[[#This Row],[Sector]]," (",tblResultaatMaatregelen[[#This Row],[Sector_kort]],")")) -> LB_EE_ENS | N62: =IF(tblResultaatMaatregelen[[#This Row],[X-as]]="Maatregelen",CONCATENATE(tblResultaatMaatregelen[[#This Row],[Sector]]," (",tblResultaatMaatregelen[[#This Row],[Sector_kort]],")"),tblResultaatMaatregelen[[#This Row],[MaatregelCode]]) -> Landbouw (LB)
A63: =CONCATENATE("Scenario ",tblResultaatMaatregelen[[#This Row],[ScenarioNummer]]) -> Scenario 2 | B63: 2 | C63: 30 | D63: =VLOOKUP(tblResultaatMaatregelen[[#This Row],[MaatregelNummer]],Tbl_scenario[],4,TRUE) -> BLANCO_1 | E63: =INDEX(tblSectoren[SectorID],MATCH(tblResultaatMaatregelen[[#This Row],[Sector]],tblSectoren[Sectoren],0)) -> 1 | F63: =VLOOKUP(tblResultaatMaatregelen[[#This Row],[MaatregelNummer]],Tbl_scenario[],2,TRUE) -> Huishoudens | G63: =INDEX(tblSectoren[Afkorting],tblResultaatMaatregelen[[#This Row],[Sectornummer]]) -> RES | H63: =VLOOKUP(tblResultaatMaatregelen[[#This Row],[MaatregelNummer]],Tbl_scenario[],3,TRUE) -> Blanco | I63: =VLOOKUP(tblResultaatMaatregelen[[#This Row],[MaatregelNummer]],Tbl_scenario[],6+(tblResultaatMaatregelen[[#This Row],[ScenarioNummer]]-1)*4+1,TRUE) -> Niet | J63: =IF(tblResultaatMaatregelen[[#This Row],[Ambitieniveau]]="Niet",0,IFERROR(INDIRECT(CONCATENATE(tblResultaatMaatregelen[[#This Row],[MaatregelCode]],"_REDCO2_",tblResultaatMaatregelen[[#This Row],[ScenarioNummer]])),0)) -> 0 | K63: Maatregelen | L63: =IF(tblResultaatMaatregelen[[#This Row],[X-as]]="Maatregelen",tblResultaatMaatregelen[[#This Row],[MaatregelNummer]],tblResultaatMaatregelen[[#This Row],[Sectornummer]]) -> 30 | M63: =IF(tblResultaatMaatregelen[[#This Row],[X-as]]="Maatregelen",tblResultaatMaatregelen[[#This Row],[MaatregelCode]],CONCATENATE(tblResultaatMaatregelen[[#This Row],[Sector]]," (",tblResultaatMaatregelen[[#This Row],[Sector_kort]],")")) -> BLANCO_1 | N63: =IF(tblResultaatMaatregelen[[#This Row],[X-as]]="Maatregelen",CONCATENATE(tblResultaatMaatregelen[[#This Row],[Sector]]," (",tblResultaatMaatregelen[[#This Row],[Sector_kort]],")"),tblResultaatMaatregelen[[#This Row],[MaatregelCode]]) -> Huishoudens (RES)
A64: =CONCATENATE("Scenario ",tblResultaatMaatregelen[[#This Row],[ScenarioNummer]]) -> Scenario 2 | B64: 2 | C64: 31 | D64: =VLOOKUP(tblResultaatMaatregelen[[#This Row],[MaatregelNummer]],Tbl_scenario[],4,TRUE) -> BLANCO_2 | E64: =INDEX(tblSectoren[SectorID],MATCH(tblResultaatMaatregelen[[#This Row],[Sector]],tblSectoren[Sectoren],0)) -> 1 | F64: =VLOOKUP(tblResultaatMaatregelen[[#This Row],[MaatregelNummer]],Tbl_scenario[],2,TRUE) -> Huishoudens | G64: =INDEX(tblSectoren[Afkorting],tblResultaatMaatregelen[[#This Row],[Sectornummer]]) -> RES | H64: =VLOOKUP(tblResultaatMaatregelen[[#This Row],[MaatregelNummer]],Tbl_scenario[],3,TRUE) -> Blanco | I64: =VLOOKUP(tblResultaatMaatregelen[[#This Row],[MaatregelNummer]],Tbl_scenario[],6+(tblResultaatMaatregelen[[#This Row],[ScenarioNummer]]-1)*4+1,TRUE) -> Niet | J64: =IF(tblResultaatMaatregelen[[#This Row],[Ambitieniveau]]="Niet",0,IFERROR(INDIRECT(CONCATENATE(tblResultaatMaatregelen[[#This Row],[MaatregelCode]],"_REDCO2_",tblResultaatMaatregelen[[#This Row],[ScenarioNummer]])),0)) -> 0 | K64: Maatregelen | L64: =IF(tblResultaatMaatregelen[[#This Row],[X-as]]="Maatregelen",tblResultaatMaatregelen[[#This Row],[MaatregelNummer]],tblResultaatMaatregelen[[#This Row],[Sectornummer]]) -> 31 | M64: =IF(tblResultaatMaatregelen[[#This Row],[X-as]]="Maatregelen",tblResultaatMaatregelen[[#This Row],[MaatregelCode]],CONCATENATE(tblResultaatMaatregelen[[#This Row],[Sector]]," (",tblResultaatMaatregelen[[#This Row],[Sector_kort]],")")) -> BLANCO_2 | N64: =IF(tblResultaatMaatregelen[[#This Row],[X-as]]="Maatregelen",CONCATENATE(tblResultaatMaatregelen[[#This Row],[Sector]]," (",tblResultaatMaatregelen[[#This Row],[Sector_kort]],")"),tblResultaatMaatregelen[[#This Row],[MaatregelCode]]) -> Huishoudens (RES)
A65: =CONCATENATE("Scenario ",tblResultaatMaatregelen[[#This Row],[ScenarioNummer]]) -> Scenario 2 | B65: 2 | C65: 32 | D65: =VLOOKUP(tblResultaatMaatregelen[[#This Row],[MaatregelNummer]],Tbl_scenario[],4,TRUE) -> BLANCO_3 | E65: =INDEX(tblSectoren[SectorID],MATCH(tblResultaatMaatregelen[[#This Row],[Sector]],tblSectoren[Sectoren],0)) -> 1 | F65: =VLOOKUP(tblResultaatMaatregelen[[#This Row],[MaatregelNummer]],Tbl_scenario[],2,TRUE) -> Huishoudens | G65: =INDEX(tblSectoren[Afkorting],tblResultaatMaatregelen[[#This Row],[Sectornummer]]) -> RES | H65: =VLOOKUP(tblResultaatMaatregelen[[#This Row],[MaatregelNummer]],Tbl_scenario[],3,TRUE) -> Blanco | I65: =VLOOKUP(tblResultaatMaatregelen[[#This Row],[MaatregelNummer]],Tbl_scenario[],6+(tblResultaatMaatregelen[[#This Row],[ScenarioNummer]]-1)*4+1,TRUE) -> Niet | J65: =IF(tblResultaatMaatregelen[[#This Row],[Ambitieniveau]]="Niet",0,IFERROR(INDIRECT(CONCATENATE(tblResultaatMaatregelen[[#This Row],[MaatregelCode]],"_REDCO2_",tblResultaatMaatregelen[[#This Row],[ScenarioNummer]])),0)) -> 0 | K65: Maatregelen | L65: =IF(tblResultaatMaatregelen[[#This Row],[X-as]]="Maatregelen",tblResultaatMaatregelen[[#This Row],[MaatregelNummer]],tblResultaatMaatregelen[[#This Row],[Sectornummer]]) -> 32 | M65: =IF(tblResultaatMaatregelen[[#This Row],[X-as]]="Maatregelen",tblResultaatMaatregelen[[#This Row],[MaatregelCode]],CONCATENATE(tblResultaatMaatregelen[[#This Row],[Sector]]," (",tblResultaatMaatregelen[[#This Row],[Sector_kort]],")")) -> BLANCO_3 | N65: =IF(tblResultaatMaatregelen[[#This Row],[X-as]]="Maatregelen",CONCATENATE(tblResultaatMaatregelen[[#This Row],[Sector]]," (",tblResultaatMaatregelen[[#This Row],[Sector_kort]],")"),tblResultaatMaatregelen[[#This Row],[MaatregelCode]]) -> Huishoudens (RES)
A66: =CONCATENATE("Scenario ",tblResultaatMaatregelen[[#This Row],[ScenarioNummer]]) -> Scenario 1 | B66: 1 | C66: 1 | D66: =VLOOKUP(tblResultaatMaatregelen[[#This Row],[MaatregelNummer]],Tbl_scenario[],4,TRUE) -> RES_ISO_DAK | E66: =INDEX(tblSectoren[SectorID],MATCH(tblResultaatMaatregelen[[#This Row],[Sector]],tblSectoren[Sectoren],0)) -> 1 | F66: =VLOOKUP(tblResultaatMaatregelen[[#This Row],[MaatregelNummer]],Tbl_scenario[],2,TRUE) -> Huishoudens | G66: =INDEX(tblSectoren[Afkorting],tblResultaatMaatregelen[[#This Row],[Sectornummer]]) -> RES | H66: =VLOOKUP(tblResultaatMaatregelen[[#This Row],[MaatregelNummer]],Tbl_scenario[],3,TRUE) -> Isolatiemaatregel gericht op dak | I66: =VLOOKUP(tblResultaatMaatregelen[[#This Row],[MaatregelNummer]],Tbl_scenario[],6+(tblResultaatMaatregelen[[#This Row],[ScenarioNummer]]-1)*4+1,TRUE) -> Laag | J66: =IF(tblResultaatMaatregelen[[#This Row],[Ambitieniveau]]="Niet",0,IFERROR(INDIRECT(CONCATENATE(tblResultaatMaatregelen[[#This Row],[MaatregelCode]],"_REDCO2_",tblResultaatMaatregelen[[#This Row],[ScenarioNummer]])),0)) -> 9650.788787 | K66: Sectoren | L66: =IF(tblResultaatMaatregelen[[#This Row],[X-as]]="Maatregelen",tblResultaatMaatregelen[[#This Row],[MaatregelNummer]],tblResultaatMaatregelen[[#This Row],[Sectornummer]]) -> 1 | M66: =IF(tblResultaatMaatregelen[[#This Row],[X-as]]="Maatregelen",tblResultaatMaatregelen[[#This Row],[MaatregelCode]],CONCATENATE(tblResultaatMaatregelen[[#This Row],[Sector]]," (",tblResultaatMaatregelen[[#This Row],[Sector_kort]],")")) -> Huishoudens (RES) | N66: =IF(tblResultaatMaatregelen[[#This Row],[X-as]]="Maatregelen",CONCATENATE(tblResultaatMaatregelen[[#This Row],[Sector]]," (",tblResultaatMaatregelen[[#This Row],[Sector_kort]],")"),tblResultaatMaatregelen[[#This Row],[MaatregelCode]]) -> RES_ISO_DAK
A67: =CONCATENATE("Scenario ",tblResultaatMaatregelen[[#This Row],[ScenarioNummer]]) -> Scenario 1 | B67: 1 | C67: 2 | D67: =VLOOKUP(tblResultaatMaatregelen[[#This Row],[MaatregelNummer]],Tbl_scenario[],4,TRUE) -> RES_ISO_MUUR | E67: =INDEX(tblSectoren[SectorID],MATCH(tblResultaatMaatregelen[[#This Row],[Sector]],tblSectoren[Sectoren],0)) -> 1 | F67: =VLOOKUP(tblResultaatMaatregelen[[#This Row],[MaatregelNummer]],Tbl_scenario[],2,TRUE) -> Huishoudens | G67: =INDEX(tblSectoren[Afkorting],tblResultaatMaatregelen[[#This Row],[Sectornummer]]) -> RES | H67: =VLOOKUP(tblResultaatMaatregelen[[#This Row],[MaatregelNummer]],Tbl_scenario[],3,TRUE) -> Isolatiemaatregel gericht op buitenmuren | I67: =VLOOKUP(tblResultaatMaatregelen[[#This Row],[MaatregelNummer]],Tbl_scenario[],6+(tblResultaatMaatregelen[[#This Row],[ScenarioNummer]]-1)*4+1,TRUE) -> Laag | J67: =IF(tblResultaatMaatregelen[[#This Row],[Ambitieniveau]]="Niet",0,IFERROR(INDIRECT(CONCATENATE(tblResultaatMaatregelen[[#This Row],[MaatregelCode]],"_REDCO2_",tblResultaatMaatregelen[[#This Row],[ScenarioNummer]])),0)) -> 10751.62786 | K67: Sectoren | L67: =IF(tblResultaatMaatregelen[[#This Row],[X-as]]="Maatregelen",tblResultaatMaatregelen[[#This Row],[MaatregelNummer]],tblResultaatMaatregelen[[#This Row],[Sectornummer]]) -> 1 | M67: =IF(tblResultaatMaatregelen[[#This Row],[X-as]]="Maatregelen",tblResultaatMaatregelen[[#This Row],[MaatregelCode]],CONCATENATE(tblResultaatMaatregelen[[#This Row],[Sector]]," (",tblResultaatMaatregelen[[#This Row],[Sector_kort]],")")) -> Huishoudens (RES) | N67: =IF(tblResultaatMaatregelen[[#This Row],[X-as]]="Maatregelen",CONCATENATE(tblResultaatMaatregelen[[#This Row],[Sector]]," (",tblResultaatMaatregelen[[#This Row],[Sector_kort]],")"),tblResultaatMaatregelen[[#This Row],[MaatregelCode]]) -> RES_ISO_MUUR
A68: =CONCATENATE("Scenario ",tblResultaatMaatregelen[[#This Row],[ScenarioNummer]]) -> Scenario 1 | B68: 1 | C68: 3 | D68: =VLOOKUP(tblResultaatMaatregelen[[#This Row],[MaatregelNummer]],Tbl_scenario[],4,TRUE) -> RES_ISO_VL | E68: =INDEX(tblSectoren[SectorID],MATCH(tblResultaatMaatregelen[[#This Row],[Sector]],tblSectoren[Sectoren],0)) -> 1 | F68: =VLOOKUP(tblResultaatMaatregelen[[#This Row],[MaatregelNummer]],Tbl_scenario[],2,TRUE) -> Huishoudens | G68: =INDEX(tblSectoren[Afkorting],tblResultaatMaatregelen[[#This Row],[Sectornummer]]) -> RES | H68: =VLOOKUP(tblResultaatMaatregelen[[#This Row],[MaatregelNummer]],Tbl_scenario[],3,TRUE) -> Isolatiemaatregel gericht op vloeren | I68: =VLOOKUP(tblResultaatMaatregelen[[#This Row],[MaatregelNummer]],Tbl_scenario[],6+(tblResultaatMaatregelen[[#This Row],[ScenarioNummer]]-1)*4+1,TRUE) -> Laag | J68: =IF(tblResultaatMaatregelen[[#This Row],[Ambitieniveau]]="Niet",0,IFERROR(INDIRECT(CONCATENATE(tblResultaatMaatregelen[[#This Row],[MaatregelCode]],"_REDCO2_",tblResultaatMaatregelen[[#This Row],[ScenarioNummer]])),0)) -> 4990.429014 | K68: Sectoren | L68: =IF(tblResultaatMaatregelen[[#This Row],[X-as]]="Maatregelen",tblResultaatMaatregelen[[#This Row],[MaatregelNummer]],tblResultaatMaatregelen[[#This Row],[Sectornummer]]) -> 1 | M68: =IF(tblResultaatMaatregelen[[#This Row],[X-as]]="Maatregelen",tblResultaatMaatregelen[[#This Row],[MaatregelCode]],CONCATENATE(tblResultaatMaatregelen[[#This Row],[Sector]]," (",tblResultaatMaatregelen[[#This Row],[Sector_kort]],")")) -> Huishoudens (RES) | N68: =IF(tblResultaatMaatregelen[[#This Row],[X-as]]="Maatregelen",CONCATENATE(tblResultaatMaatregelen[[#This Row],[Sector]]," (",tblResultaatMaatregelen[[#This Row],[Sector_kort]],")"),tblResultaatMaatregelen[[#This Row],[MaatregelCode]]) -> RES_ISO_VL
A69: =CONCATENATE("Scenario ",tblResultaatMaatregelen[[#This Row],[ScenarioNummer]]) -> Scenario 1 | B69: 1 | C69: 4 | D69: =VLOOKUP(tblResultaatMaatregelen[[#This Row],[MaatregelNummer]],Tbl_scenario[],4,TRUE) -> RES_ISO_BG | E69: =INDEX(tblSectoren[SectorID],MATCH(tblResultaatMaatregelen[[#This Row],[Sector]],tblSectoren[Sectoren],0)) -> 1 | F69: =VLOOKUP(tblResultaatMaatregelen[[#This Row],[MaatregelNummer]],Tbl_scenario[],2,TRUE) -> Huishoudens | G69: =INDEX(tblSectoren[Afkorting],tblResultaatMaatregelen[[#This Row],[Sectornummer]]) -> RES | H69: =VLOOKUP(tblResultaatMaatregelen[[#This Row],[MaatregelNummer]],Tbl_scenario[],3,TRUE) -> Isolatiemaatregel gericht op ramen en beglazing | I69: =VLOOKUP(tblResultaatMaatregelen[[#This Row],[MaatregelNummer]],Tbl_scenario[],6+(tblResultaatMaatregelen[[#This Row],[ScenarioNummer]]-1)*4+1,TRUE) -> Laag | J69: =IF(tblResultaatMaatregelen[[#This Row],[Ambitieniveau]]="Niet",0,IFERROR(INDIRECT(CONCATENATE(tblResultaatMaatregelen[[#This Row],[MaatregelCode]],"_REDCO2_",tblResultaatMaatregelen[[#This Row],[ScenarioNummer]])),0)) -> 3270.152555 | K69: Sectoren | L69: =IF(tblResultaatMaatregelen[[#This Row],[X-as]]="Maatregelen",tblResultaatMaatregelen[[#This Row],[MaatregelNummer]],tblResultaatMaatregelen[[#This Row],[Sectornummer]]) -> 1 | M69: =IF(tblResultaatMaatregelen[[#This Row],[X-as]]="Maatregelen",tblResultaatMaatregelen[[#This Row],[MaatregelCode]],CONCATENATE(tblResultaatMaatregelen[[#This Row],[Sector]]," (",tblResultaatMaatregelen[[#This Row],[Sector_kort]],")")) -> Huishoudens (RES) | N69: =IF(tblResultaatMaatregelen[[#This Row],[X-as]]="Maatregelen",CONCATENATE(tblResultaatMaatregelen[[#This Row],[Sector]]," (",tblResultaatMaatregelen[[#This Row],[Sector_kort]],")"),tblResultaatMaatregelen[[#This Row],[MaatregelCode]]) -> RES_ISO_BG
A70: =CONCATENATE("Scenario ",tblResultaatMaatregelen[[#This Row],[ScenarioNummer]]) -> Scenario 1 | B70: 1 | C70: 5 | D70: =VLOOKUP(tblResultaatMaatregelen[[#This Row],[MaatregelNummer]],Tbl_scenario[],4,TRUE) -> RES_HER_WP | E70: =INDEX(tblSectoren[SectorID],MATCH(tblResultaatMaatregelen[[#This Row],[Sector]],tblSectoren[Sectoren],0)) -> 1 | F70: =VLOOKUP(tblResultaatMaatregelen[[#This Row],[MaatregelNummer]],Tbl_scenario[],2,TRUE) -> Huishoudens | G70: =INDEX(tblSectoren[Afkorting],tblResultaatMaatregelen[[#This Row],[Sectornummer]]) -> RES | H70: =VLOOKUP(tblResultaatMaatregelen[[#This Row],[MaatregelNummer]],Tbl_scenario[],3,TRUE) -> Warmtepomp | I70: =VLOOKUP(tblResultaatMaatregelen[[#This Row],[MaatregelNummer]],Tbl_scenario[],6+(tblResultaatMaatregelen[[#This Row],[ScenarioNummer]]-1)*4+1,TRUE) -> Laag | J70: =IF(tblResultaatMaatregelen[[#This Row],[Ambitieniveau]]="Niet",0,IFERROR(INDIRECT(CONCATENATE(tblResultaatMaatregelen[[#This Row],[MaatregelCode]],"_REDCO2_",tblResultaatMaatregelen[[#This Row],[ScenarioNummer]])),0)) -> 3453.654642 | K70: Sectoren | L70: =IF(tblResultaatMaatregelen[[#This Row],[X-as]]="Maatregelen",tblResultaatMaatregelen[[#This Row],[MaatregelNummer]],tblResultaatMaatregelen[[#This Row],[Sectornummer]]) -> 1 | M70: =IF(tblResultaatMaatregelen[[#This Row],[X-as]]="Maatregelen",tblResultaatMaatregelen[[#This Row],[MaatregelCode]],CONCATENATE(tblResultaatMaatregelen[[#This Row],[Sector]]," (",tblResultaatMaatregelen[[#This Row],[Sector_kort]],")")) -> Huishoudens (RES) | N70: =IF(tblResultaatMaatregelen[[#This Row],[X-as]]="Maatregelen",CONCATENATE(tblResultaatMaatregelen[[#This Row],[Sector]]," (",tblResultaatMaatregelen[[#This Row],[Sector_kort]],")"),tblResultaatMaatregelen[[#This Row],[MaatregelCode]]) -> RES_HER_WP
A71: =CONCATENATE("Scenario ",tblResultaatMaatregelen[[#This Row],[ScenarioNummer]]) -> Scenario 1 | B71: 1 | C71: 6 | D71: =VLOOKUP(tblResultaatMaatregelen[[#This Row],[MaatregelNummer]],Tbl_scenario[],4,TRUE) -> RES_HER_ZB | E71: =INDEX(tblSectoren[SectorID],MATCH(tblResultaatMaatregelen[[#This Row],[Sector]],tblSectoren[Sectoren],0)) -> 1 | F71: =VLOOKUP(tblResultaatMaatregelen[[#This Row],[MaatregelNummer]],Tbl_scenario[],2,TRUE) -> Huishoudens | G71: =INDEX(tblSectoren[Afkorting],tblResultaatMaatregelen[[#This Row],[Sectornummer]]) -> RES | H71: =VLOOKUP(tblResultaatMaatregelen[[#This Row],[MaatregelNummer]],Tbl_scenario[],3,TRUE) -> Zonneboiler | I71: =VLOOKUP(tblResultaatMaatregelen[[#This Row],[MaatregelNummer]],Tbl_scenario[],6+(tblResultaatMaatregelen[[#This Row],[ScenarioNummer]]-1)*4+1,TRUE) -> Laag | J71: =IF(tblResultaatMaatregelen[[#This Row],[Ambitieniveau]]="Niet",0,IFERROR(INDIRECT(CONCATENATE(tblResultaatMaatregelen[[#This Row],[MaatregelCode]],"_REDCO2_",tblResultaatMaatregelen[[#This Row],[ScenarioNummer]])),0)) -> 1282.111685 | K71: Sectoren | L71: =IF(tblResultaatMaatregelen[[#This Row],[X-as]]="Maatregelen",tblResultaatMaatregelen[[#This Row],[MaatregelNummer]],tblResultaatMaatregelen[[#This Row],[Sectornummer]]) -> 1 | M71: =IF(tblResultaatMaatregelen[[#This Row],[X-as]]="Maatregelen",tblResultaatMaatregelen[[#This Row],[MaatregelCode]],CONCATENATE(tblResultaatMaatregelen[[#This Row],[Sector]]," (",tblResultaatMaatregelen[[#This Row],[Sector_kort]],")")) -> Huishoudens (RES) | N71: =IF(tblResultaatMaatregelen[[#This Row],[X-as]]="Maatregelen",CONCATENATE(tblResultaatMaatregelen[[#This Row],[Sector]]," (",tblResultaatMaatregelen[[#This Row],[Sector_kort]],")"),tblResultaatMaatregelen[[#This Row],[MaatregelCode]]) -> RES_HER_ZB
A72: =CONCATENATE("Scenario ",tblResultaatMaatregelen[[#This Row],[ScenarioNummer]]) -> Scenario 1 | B72: 1 | C72: 7 | D72: =VLOOKUP(tblResultaatMaatregelen[[#This Row],[MaatregelNummer]],Tbl_scenario[],4,TRUE) -> RES_HER_WPB | E72: =INDEX(tblSectoren[SectorID],MATCH(tblResultaatMaatregelen[[#This Row],[Sector]],tblSectoren[Sectoren],0)) -> 1 | F72: =VLOOKUP(tblResultaatMaatregelen[[#This Row],[MaatregelNummer]],Tbl_scenario[],2,TRUE) -> Huishoudens | G72: =INDEX(tblSectoren[Afkorting],tblResultaatMaatregelen[[#This Row],[Sectornummer]]) -> RES | H72: =VLOOKUP(tblResultaatMaatregelen[[#This Row],[MaatregelNummer]],Tbl_scenario[],3,TRUE) -> Warmtepompboiler | I72: =VLOOKUP(tblResultaatMaatregelen[[#This Row],[MaatregelNummer]],Tbl_scenario[],6+(tblResultaatMaatregelen[[#This Row],[ScenarioNummer]]-1)*4+1,TRUE) -> Laag | J72: =IF(tblResultaatMaatregelen[[#This Row],[Ambitieniveau]]="Niet",0,IFERROR(INDIRECT(CONCATENATE(tblResultaatMaatregelen[[#This Row],[MaatregelCode]],"_REDCO2_",tblResultaatMaatregelen[[#This Row],[ScenarioNummer]])),0)) -> 2395.411216 | K72: Sectoren | L72: =IF(tblResultaatMaatregelen[[#This Row],[X-as]]="Maatregelen",tblResultaatMaatregelen[[#This Row],[MaatregelNummer]],tblResultaatMaatregelen[[#This Row],[Sectornummer]]) -> 1 | M72: =IF(tblResultaatMaatregelen[[#This Row],[X-as]]="Maatregelen",tblResultaatMaatregelen[[#This Row],[MaatregelCode]],CONCATENATE(tblResultaatMaatregelen[[#This Row],[Sector]]," (",tblResultaatMaatregelen[[#This Row],[Sector_kort]],")")) -> Huishoudens (RES) | N72: =IF(tblResultaatMaatregelen[[#This Row],[X-as]]="Maatregelen",CONCATENATE(tblResultaatMaatregelen[[#This Row],[Sector]]," (",tblResultaatMaatregelen[[#This Row],[Sector_kort]],")"),tblResultaatMaatregelen[[#This Row],[MaatregelCode]]) -> RES_HER_WPB
A73: =CONCATENATE("Scenario ",tblResultaatMaatregelen[[#This Row],[ScenarioNummer]]) -> Scenario 1 | B73: 1 | C73: 8 | D73: =VLOOKUP(tblResultaatMaatregelen[[#This Row],[MaatregelNummer]],Tbl_scenario[],4,TRUE) -> RES_EE_ELE | E73: =INDEX(tblSectoren[SectorID],MATCH(tblResultaatMaatregelen[[#This Row],[Sector]],tblSectoren[Sectoren],0)) -> 1 | F73: =VLOOKUP(tblResultaatMaatregelen[[#This Row],[MaatregelNummer]],Tbl_scenario[],2,TRUE) -> Huishoudens | G73: =INDEX(tblSectoren[Afkorting],tblResultaatMaatregelen[[#This Row],[Sectornummer]]) -> RES | H73: =VLOOKUP(tblResultaatMaatregelen[[#This Row],[MaatregelNummer]],Tbl_scenario[],3,TRUE) -> Elektriciteitsgebruik: verhogen efficiëntie | I73: =VLOOKUP(tblResultaatMaatregelen[[#This Row],[MaatregelNummer]],Tbl_scenario[],6+(tblResultaatMaatregelen[[#This Row],[ScenarioNummer]]-1)*4+1,TRUE) -> Laag | J73: =IF(tblResultaatMaatregelen[[#This Row],[Ambitieniveau]]="Niet",0,IFERROR(INDIRECT(CONCATENATE(tblResultaatMaatregelen[[#This Row],[MaatregelCode]],"_REDCO2_",tblResultaatMaatregelen[[#This Row],[ScenarioNummer]])),0)) -> 638.1059226 | K73: Sectoren | L73: =IF(tblResultaatMaatregelen[[#This Row],[X-as]]="Maatregelen",tblResultaatMaatregelen[[#This Row],[MaatregelNummer]],tblResultaatMaatregelen[[#This Row],[Sectornummer]]) -> 1 | M73: =IF(tblResultaatMaatregelen[[#This Row],[X-as]]="Maatregelen",tblResultaatMaatregelen[[#This Row],[MaatregelCode]],CONCATENATE(tblResultaatMaatregelen[[#This Row],[Sector]]," (",tblResultaatMaatregelen[[#This Row],[Sector_kort]],")")) -> Huishoudens (RES) | N73: =IF(tblResultaatMaatregelen[[#This Row],[X-as]]="Maatregelen",CONCATENATE(tblResultaatMaatregelen[[#This Row],[Sector]]," (",tblResultaatMaatregelen[[#This Row],[Sector_kort]],")"),tblResultaatMaatregelen[[#This Row],[MaatregelCode]]) -> RES_EE_ELE
A74: =CONCATENATE("Scenario ",tblResultaatMaatregelen[[#This Row],[ScenarioNummer]]) -> Scenario 1 | B74: 1 | C74: 9 | D74: =VLOOKUP(tblResultaatMaatregelen[[#This Row],[MaatregelNummer]],Tbl_scenario[],4,TRUE) -> RES_EE_SLOOP | E74: =INDEX(tblSectoren[SectorID],MATCH(tblResultaatMaatregelen[[#This Row],[Sector]],tblSectoren[Sectoren],0)) -> 1 | F74: =VLOOKUP(tblResultaatMaatregelen[[#This Row],[MaatregelNummer]],Tbl_scenario[],2,TRUE) -> Huishoudens | G74: =INDEX(tblSectoren[Afkorting],tblResultaatMaatregelen[[#This Row],[Sectornummer]]) -> RES | H74: =VLOOKUP(tblResultaatMaatregelen[[#This Row],[MaatregelNummer]],Tbl_scenario[],3,TRUE) -> Stimuleren sloop energieverslindende woningen | I74: =VLOOKUP(tblResultaatMaatregelen[[#This Row],[MaatregelNummer]],Tbl_scenario[],6+(tblResultaatMaatregelen[[#This Row],[ScenarioNummer]]-1)*4+1,TRUE) -> Laag | J74: =IF(tblResultaatMaatregelen[[#This Row],[Ambitieniveau]]="Niet",0,IFERROR(INDIRECT(CONCATENATE(tblResultaatMaatregelen[[#This Row],[MaatregelCode]],"_REDCO2_",tblResultaatMaatregelen[[#This Row],[ScenarioNummer]])),0)) -> 3938.931033 | K74: Sectoren | L74: =IF(tblResultaatMaatregelen[[#This Row],[X-as]]="Maatregelen",tblResultaatMaatregelen[[#This Row],[MaatregelNummer]],tblResultaatMaatregelen[[#This Row],[Sectornummer]]) -> 1 | M74: =IF(tblResultaatMaatregelen[[#This Row],[X-as]]="Maatregelen",tblResultaatMaatregelen[[#This Row],[MaatregelCode]],CONCATENATE(tblResultaatMaatregelen[[#This Row],[Sector]]," (",tblResultaatMaatregelen[[#This Row],[Sector_kort]],")")) -> Huishoudens (RES) | N74: =IF(tblResultaatMaatregelen[[#This Row],[X-as]]="Maatregelen",CONCATENATE(tblResultaatMaatregelen[[#This Row],[Sector]]," (",tblResultaatMaatregelen[[#This Row],[Sector_kort]],")"),tblResultaatMaatregelen[[#This Row],[MaatregelCode]]) -> RES_EE_SLOOP
A75: =CONCATENATE("Scenario ",tblResultaatMaatregelen[[#This Row],[ScenarioNummer]]) -> Scenario 1 | B75: 1 | C75: 10 | D75: =VLOOKUP(tblResultaatMaatregelen[[#This Row],[MaatregelNummer]],Tbl_scenario[],4,TRUE) -> TER_EE_ISO | E75: =INDEX(tblSectoren[SectorID],MATCH(tblResultaatMaatregelen[[#This Row],[Sector]],tblSectoren[Sectoren],0)) -> 2 | F75: =VLOOKUP(tblResultaatMaatregelen[[#This Row],[MaatregelNummer]],Tbl_scenario[],2,TRUE) -> Tertiair | G75: =INDEX(tblSectoren[Afkorting],tblResultaatMaatregelen[[#This Row],[Sectornummer]]) -> TER | H75: =VLOOKUP(tblResultaatMaatregelen[[#This Row],[MaatregelNummer]],Tbl_scenario[],3,TRUE) -> Verhoogde isolatiegraad | I75: =VLOOKUP(tblResultaatMaatregelen[[#This Row],[MaatregelNummer]],Tbl_scenario[],6+(tblResultaatMaatregelen[[#This Row],[ScenarioNummer]]-1)*4+1,TRUE) -> Laag | J75: =IF(tblResultaatMaatregelen[[#This Row],[Ambitieniveau]]="Niet",0,IFERROR(INDIRECT(CONCATENATE(tblResultaatMaatregelen[[#This Row],[MaatregelCode]],"_REDCO2_",tblResultaatMaatregelen[[#This Row],[ScenarioNummer]])),0)) -> 5331.516633 | K75: Sectoren | L75: =IF(tblResultaatMaatregelen[[#This Row],[X-as]]="Maatregelen",tblResultaatMaatregelen[[#This Row],[MaatregelNummer]],tblResultaatMaatregelen[[#This Row],[Sectornummer]]) -> 2 | M75: =IF(tblResultaatMaatregelen[[#This Row],[X-as]]="Maatregelen",tblResultaatMaatregelen[[#This Row],[MaatregelCode]],CONCATENATE(tblResultaatMaatregelen[[#This Row],[Sector]]," (",tblResultaatMaatregelen[[#This Row],[Sector_kort]],")")) -> Tertiair (TER) | N75: =IF(tblResultaatMaatregelen[[#This Row],[X-as]]="Maatregelen",CONCATENATE(tblResultaatMaatregelen[[#This Row],[Sector]]," (",tblResultaatMaatregelen[[#This Row],[Sector_kort]],")"),tblResultaatMaatregelen[[#This Row],[MaatregelCode]]) -> TER_EE_ISO
A76: =CONCATENATE("Scenario ",tblResultaatMaatregelen[[#This Row],[ScenarioNummer]]) -> Scenario 1 | B76: 1 | C76: 11 | D76: =VLOOKUP(tblResultaatMaatregelen[[#This Row],[MaatregelNummer]],Tbl_scenario[],4,TRUE) -> TER_HER_WP | E76: =INDEX(tblSectoren[SectorID],MATCH(tblResultaatMaatregelen[[#This Row],[Sector]],tblSectoren[Sectoren],0)) -> 2 | F76: =VLOOKUP(tblResultaatMaatregelen[[#This Row],[MaatregelNummer]],Tbl_scenario[],2,TRUE) -> Tertiair | G76: =INDEX(tblSectoren[Afkorting],tblResultaatMaatregelen[[#This Row],[Sectornummer]]) -> TER | H76: =VLOOKUP(tblResultaatMaatregelen[[#This Row],[MaatregelNummer]],Tbl_scenario[],3,TRUE) -> Warmtepomp | I76: =VLOOKUP(tblResultaatMaatregelen[[#This Row],[MaatregelNummer]],Tbl_scenario[],6+(tblResultaatMaatregelen[[#This Row],[ScenarioNummer]]-1)*4+1,TRUE) -> Laag | J76: =IF(tblResultaatMaatregelen[[#This Row],[Ambitieniveau]]="Niet",0,IFERROR(INDIRECT(CONCATENATE(tblResultaatMaatregelen[[#This Row],[MaatregelCode]],"_REDCO2_",tblResultaatMaatregelen[[#This Row],[ScenarioNummer]])),0)) -> 2668.366352 | K76: Sectoren | L76: =IF(tblResultaatMaatregelen[[#This Row],[X-as]]="Maatregelen",tblResultaatMaatregelen[[#This Row],[MaatregelNummer]],tblResultaatMaatregelen[[#This Row],[Sectornummer]]) -> 2 | M76: =IF(tblResultaatMaatregelen[[#This Row],[X-as]]="Maatregelen",tblResultaatMaatregelen[[#This Row],[MaatregelCode]],CONCATENATE(tblResultaatMaatregelen[[#This Row],[Sector]]," (",tblResultaatMaatregelen[[#This Row],[Sector_kort]],")")) -> Tertiair (TER) | N76: =IF(tblResultaatMaatregelen[[#This Row],[X-as]]="Maatregelen",CONCATENATE(tblResultaatMaatregelen[[#This Row],[Sector]]," (",tblResultaatMaatregelen[[#This Row],[Sector_kort]],")"),tblResultaatMaatregelen[[#This Row],[MaatregelCode]]) -> TER_HER_WP
A77: =CONCATENATE("Scenario ",tblResultaatMaatregelen[[#This Row],[ScenarioNummer]]) -> Scenario 1 | B77: 1 | C77: 12 | D77: =VLOOKUP(tblResultaatMaatregelen[[#This Row],[MaatregelNummer]],Tbl_scenario[],4,TRUE) -> TER_HER_ZB | E77: =INDEX(tblSectoren[SectorID],MATCH(tblResultaatMaatregelen[[#This Row],[Sector]],tblSectoren[Sectoren],0)) -> 2 | F77: =VLOOKUP(tblResultaatMaatregelen[[#This Row],[MaatregelNummer]],Tbl_scenario[],2,TRUE) -> Tertiair | G77: =INDEX(tblSectoren[Afkorting],tblResultaatMaatregelen[[#This Row],[Sectornummer]]) -> TER | H77: =VLOOKUP(tblResultaatMaatregelen[[#This Row],[MaatregelNummer]],Tbl_scenario[],3,TRUE) -> Zonneboiler | I77: =VLOOKUP(tblResultaatMaatregelen[[#This Row],[MaatregelNummer]],Tbl_scenario[],6+(tblResultaatMaatregelen[[#This Row],[ScenarioNummer]]-1)*4+1,TRUE) -> Laag | J77: =IF(tblResultaatMaatregelen[[#This Row],[Ambitieniveau]]="Niet",0,IFERROR(INDIRECT(CONCATENATE(tblResultaatMaatregelen[[#This Row],[MaatregelCode]],"_REDCO2_",tblResultaatMaatregelen[[#This Row],[ScenarioNummer]])),0)) -> 925.6105265 | K77: Sectoren | L77: =IF(tblResultaatMaatregelen[[#This Row],[X-as]]="Maatregelen",tblResultaatMaatregelen[[#This Row],[MaatregelNummer]],tblResultaatMaatregelen[[#This Row],[Sectornummer]]) -> 2 | M77: =IF(tblResultaatMaatregelen[[#This Row],[X-as]]="Maatregelen",tblResultaatMaatregelen[[#This Row],[MaatregelCode]],CONCATENATE(tblResultaatMaatregelen[[#This Row],[Sector]]," (",tblResultaatMaatregelen[[#This Row],[Sector_kort]],")")) -> Tertiair (TER) | N77: =IF(tblResultaatMaatregelen[[#This Row],[X-as]]="Maatregelen",CONCATENATE(tblResultaatMaatregelen[[#This Row],[Sector]]," (",tblResultaatMaatregelen[[#This Row],[Sector_kort]],")"),tblResultaatMaatregelen[[#This Row],[MaatregelCode]]) -> TER_HER_ZB
A78: =CONCATENATE("Scenario ",tblResultaatMaatregelen[[#This Row],[ScenarioNummer]]) -> Scenario 1 | B78: 1 | C78: 13 | D78: =VLOOKUP(tblResultaatMaatregelen[[#This Row],[MaatregelNummer]],Tbl_scenario[],4,TRUE) -> TER_HER_WPB | E78: =INDEX(tblSectoren[SectorID],MATCH(tblResultaatMaatregelen[[#This Row],[Sector]],tblSectoren[Sectoren],0)) -> 2 | F78: =VLOOKUP(tblResultaatMaatregelen[[#This Row],[MaatregelNummer]],Tbl_scenario[],2,TRUE) -> Tertiair | G78: =INDEX(tblSectoren[Afkorting],tblResultaatMaatregelen[[#This Row],[Sectornummer]]) -> TER | H78: =VLOOKUP(tblResultaatMaatregelen[[#This Row],[MaatregelNummer]],Tbl_scenario[],3,TRUE) -> Warmtepompboiler | I78: =VLOOKUP(tblResultaatMaatregelen[[#This Row],[MaatregelNummer]],Tbl_scenario[],6+(tblResultaatMaatregelen[[#This Row],[ScenarioNummer]]-1)*4+1,TRUE) -> Laag | J78: =IF(tblResultaatMaatregelen[[#This Row],[Ambitieniveau]]="Niet",0,IFERROR(INDIRECT(CONCATENATE(tblResultaatMaatregelen[[#This Row],[MaatregelCode]],"_REDCO2_",tblResultaatMaatregelen[[#This Row],[ScenarioNummer]])),0)) -> 1291.099726 | K78: Sectoren | L78: =IF(tblResultaatMaatregelen[[#This Row],[X-as]]="Maatregelen",tblResultaatMaatregelen[[#This Row],[MaatregelNummer]],tblResultaatMaatregelen[[#This Row],[Sectornummer]]) -> 2 | M78: =IF(tblResultaatMaatregelen[[#This Row],[X-as]]="Maatregelen",tblResultaatMaatregelen[[#This Row],[MaatregelCode]],CONCATENATE(tblResultaatMaatregelen[[#This Row],[Sector]]," (",tblResultaatMaatregelen[[#This Row],[Sector_kort]],")")) -> Tertiair (TER) | N78: =IF(tblResultaatMaatregelen[[#This Row],[X-as]]="Maatregelen",CONCATENATE(tblResultaatMaatregelen[[#This Row],[Sector]]," (",tblResultaatMaatregelen[[#This Row],[Sector_kort]],")"),tblResultaatMaatregelen[[#This Row],[MaatregelCode]]) -> TER_HER_WPB
A79: =CONCATENATE("Scenario ",tblResultaatMaatregelen[[#This Row],[ScenarioNummer]]) -> Scenario 1 | B79: 1 | C79: 14 | D79: =VLOOKUP(tblResultaatMaatregelen[[#This Row],[MaatregelNummer]],Tbl_scenario[],4,TRUE) -> TER_EE_ELE | E79: =INDEX(tblSectoren[SectorID],MATCH(tblResultaatMaatregelen[[#This Row],[Sector]],tblSectoren[Sectoren],0)) -> 2 | F79: =VLOOKUP(tblResultaatMaatregelen[[#This Row],[MaatregelNummer]],Tbl_scenario[],2,TRUE) -> Tertiair | G79: =INDEX(tblSectoren[Afkorting],tblResultaatMaatregelen[[#This Row],[Sectornummer]]) -> TER | H79: =VLOOKUP(tblResultaatMaatregelen[[#This Row],[MaatregelNummer]],Tbl_scenario[],3,TRUE) -> Ele. gebruik: verhogen efficiëntie (LED, relighting, koeling, etc.) | I79: =VLOOKUP(tblResultaatMaatregelen[[#This Row],[MaatregelNummer]],Tbl_scenario[],6+(tblResultaatMaatregelen[[#This Row],[ScenarioNummer]]-1)*4+1,TRUE) -> Laag | J79: =IF(tblResultaatMaatregelen[[#This Row],[Ambitieniveau]]="Niet",0,IFERROR(INDIRECT(CONCATENATE(tblResultaatMaatregelen[[#This Row],[MaatregelCode]],"_REDCO2_",tblResultaatMaatregelen[[#This Row],[ScenarioNummer]])),0)) -> 2523.430329 | K79: Sectoren | L79: =IF(tblResultaatMaatregelen[[#This Row],[X-as]]="Maatregelen",tblResultaatMaatregelen[[#This Row],[MaatregelNummer]],tblResultaatMaatregelen[[#This Row],[Sectornummer]]) -> 2 | M79: =IF(tblResultaatMaatregelen[[#This Row],[X-as]]="Maatregelen",tblResultaatMaatregelen[[#This Row],[MaatregelCode]],CONCATENATE(tblResultaatMaatregelen[[#This Row],[Sector]]," (",tblResultaatMaatregelen[[#This Row],[Sector_kort]],")")) -> Tertiair (TER) | N79: =IF(tblResultaatMaatregelen[[#This Row],[X-as]]="Maatregelen",CONCATENATE(tblResultaatMaatregelen[[#This Row],[Sector]]," (",tblResultaatMaatregelen[[#This Row],[Sector_kort]],")"),tblResultaatMaatregelen[[#This Row],[MaatregelCode]]) -> TER_EE_ELE
A80: =CONCATENATE("Scenario ",tblResultaatMaatregelen[[#This Row],[ScenarioNummer]]) -> Scenario 1 | B80: 1 | C80: 15 | D80: =VLOOKUP(tblResultaatMaatregelen[[#This Row],[MaatregelNummer]],Tbl_scenario[],4,TRUE) -> OV_LED_EE | E80: =INDEX(tblSectoren[SectorID],MATCH(tblResultaatMaatregelen[[#This Row],[Sector]],tblSectoren[Sectoren],0)) -> 6 | F80: =VLOOKUP(tblResultaatMaatregelen[[#This Row],[MaatregelNummer]],Tbl_scenario[],2,TRUE) -> Openbare verlichting | G80: =INDEX(tblSectoren[Afkorting],tblResultaatMaatregelen[[#This Row],[Sectornummer]]) -> OV | H80: =VLOOKUP(tblResultaatMaatregelen[[#This Row],[MaatregelNummer]],Tbl_scenario[],3,TRUE) -> LED: verhogen energie-efficiëntie | I80: =VLOOKUP(tblResultaatMaatregelen[[#This Row],[MaatregelNummer]],Tbl_scenario[],6+(tblResultaatMaatregelen[[#This Row],[ScenarioNummer]]-1)*4+1,TRUE) -> Laag | J80: =IF(tblResultaatMaatregelen[[#This Row],[Ambitieniveau]]="Niet",0,IFERROR(INDIRECT(CONCATENATE(tblResultaatMaatregelen[[#This Row],[MaatregelCode]],"_REDCO2_",tblResultaatMaatregelen[[#This Row],[ScenarioNummer]])),0)) -> 214.9123705 | K80: Sectoren | L80: =IF(tblResultaatMaatregelen[[#This Row],[X-as]]="Maatregelen",tblResultaatMaatregelen[[#This Row],[MaatregelNummer]],tblResultaatMaatregelen[[#This Row],[Sectornummer]]) -> 6 | M80: =IF(tblResultaatMaatregelen[[#This Row],[X-as]]="Maatregelen",tblResultaatMaatregelen[[#This Row],[MaatregelCode]],CONCATENATE(tblResultaatMaatregelen[[#This Row],[Sector]]," (",tblResultaatMaatregelen[[#This Row],[Sector_kort]],")")) -> Openbare verlichting (OV) | N80: =IF(tblResultaatMaatregelen[[#This Row],[X-as]]="Maatregelen",CONCATENATE(tblResultaatMaatregelen[[#This Row],[Sector]]," (",tblResultaatMaatregelen[[#This Row],[Sector_kort]],")"),tblResultaatMaatregelen[[#This Row],[MaatregelCode]]) -> OV_LED_EE
A81: =CONCATENATE("Scenario ",tblResultaatMaatregelen[[#This Row],[ScenarioNummer]]) -> Scenario 1 | B81: 1 | C81: 16 | D81: =VLOOKUP(tblResultaatMaatregelen[[#This Row],[MaatregelNummer]],Tbl_scenario[],4,TRUE) -> IND_HER_WP | E81: =INDEX(tblSectoren[SectorID],MATCH(tblResultaatMaatregelen[[#This Row],[Sector]],tblSectoren[Sectoren],0)) -> 3 | F81: =VLOOKUP(tblResultaatMaatregelen[[#This Row],[MaatregelNummer]],Tbl_scenario[],2,TRUE) -> Industrie (niet-ETS) | G81: =INDEX(tblSectoren[Afkorting],tblResultaatMaatregelen[[#This Row],[Sectornummer]]) -> IND | H81: =VLOOKUP(tblResultaatMaatregelen[[#This Row],[MaatregelNummer]],Tbl_scenario[],3,TRUE) -> Warmtepomp | I81: =VLOOKUP(tblResultaatMaatregelen[[#This Row],[MaatregelNummer]],Tbl_scenario[],6+(tblResultaatMaatregelen[[#This Row],[ScenarioNummer]]-1)*4+1,TRUE) -> Laag | J81: =IF(tblResultaatMaatregelen[[#This Row],[Ambitieniveau]]="Niet",0,IFERROR(INDIRECT(CONCATENATE(tblResultaatMaatregelen[[#This Row],[MaatregelCode]],"_REDCO2_",tblResultaatMaatregelen[[#This Row],[ScenarioNummer]])),0)) -> 655.0120874 | K81: Sectoren | L81: =IF(tblResultaatMaatregelen[[#This Row],[X-as]]="Maatregelen",tblResultaatMaatregelen[[#This Row],[MaatregelNummer]],tblResultaatMaatregelen[[#This Row],[Sectornummer]]) -> 3 | M81: =IF(tblResultaatMaatregelen[[#This Row],[X-as]]="Maatregelen",tblResultaatMaatregelen[[#This Row],[MaatregelCode]],CONCATENATE(tblResultaatMaatregelen[[#This Row],[Sector]]," (",tblResultaatMaatregelen[[#This Row],[Sector_kort]],")")) -> Industrie (niet-ETS) (IND) | N81: =IF(tblResultaatMaatregelen[[#This Row],[X-as]]="Maatregelen",CONCATENATE(tblResultaatMaatregelen[[#This Row],[Sector]]," (",tblResultaatMaatregelen[[#This Row],[Sector_kort]],")"),tblResultaatMaatregelen[[#This Row],[MaatregelCode]]) -> IND_HER_WP
A82: =CONCATENATE("Scenario ",tblResultaatMaatregelen[[#This Row],[ScenarioNummer]]) -> Scenario 1 | B82: 1 | C82: 17 | D82: =VLOOKUP(tblResultaatMaatregelen[[#This Row],[MaatregelNummer]],Tbl_scenario[],4,TRUE) -> IND_HER_ZB | E82: =INDEX(tblSectoren[SectorID],MATCH(tblResultaatMaatregelen[[#This Row],[Sector]],tblSectoren[Sectoren],0)) -> 3 | F82: =VLOOKUP(tblResultaatMaatregelen[[#This Row],[MaatregelNummer]],Tbl_scenario[],2,TRUE) -> Industrie (niet-ETS) | G82: =INDEX(tblSectoren[Afkorting],tblResultaatMaatregelen[[#This Row],[Sectornummer]]) -> IND | H82: =VLOOKUP(tblResultaatMaatregelen[[#This Row],[MaatregelNummer]],Tbl_scenario[],3,TRUE) -> Zonneboiler | I82: =VLOOKUP(tblResultaatMaatregelen[[#This Row],[MaatregelNummer]],Tbl_scenario[],6+(tblResultaatMaatregelen[[#This Row],[ScenarioNummer]]-1)*4+1,TRUE) -> Laag | J82: =IF(tblResultaatMaatregelen[[#This Row],[Ambitieniveau]]="Niet",0,IFERROR(INDIRECT(CONCATENATE(tblResultaatMaatregelen[[#This Row],[MaatregelCode]],"_REDCO2_",tblResultaatMaatregelen[[#This Row],[ScenarioNummer]])),0)) -> 140.9019379 | K82: Sectoren | L82: =IF(tblResultaatMaatregelen[[#This Row],[X-as]]="Maatregelen",tblResultaatMaatregelen[[#This Row],[MaatregelNummer]],tblResultaatMaatregelen[[#This Row],[Sectornummer]]) -> 3 | M82: =IF(tblResultaatMaatregelen[[#This Row],[X-as]]="Maatregelen",tblResultaatMaatregelen[[#This Row],[MaatregelCode]],CONCATENATE(tblResultaatMaatregelen[[#This Row],[Sector]]," (",tblResultaatMaatregelen[[#This Row],[Sector_kort]],")")) -> Industrie (niet-ETS) (IND) | N82: =IF(tblResultaatMaatregelen[[#This Row],[X-as]]="Maatregelen",CONCATENATE(tblResultaatMaatregelen[[#This Row],[Sector]]," (",tblResultaatMaatregelen[[#This Row],[Sector_kort]],")"),tblResultaatMaatregelen[[#This Row],[MaatregelCode]]) -> IND_HER_ZB
A83: =CONCATENATE("Scenario ",tblResultaatMaatregelen[[#This Row],[ScenarioNummer]]) -> Scenario 1 | B83: 1 | C83: 18 | D83: =VLOOKUP(tblResultaatMaatregelen[[#This Row],[MaatregelNummer]],Tbl_scenario[],4,TRUE) -> IND_EE_EEA | E83: =INDEX(tblSectoren[SectorID],MATCH(tblResultaatMaatregelen[[#This Row],[Sector]],tblSectoren[Sectoren],0)) -> 3 | F83: =VLOOKUP(tblResultaatMaatregelen[[#This Row],[MaatregelNummer]],Tbl_scenario[],2,TRUE) -> Industrie (niet-ETS) | G83: =INDEX(tblSectoren[Afkorting],tblResultaatMaatregelen[[#This Row],[Sectornummer]]) -> IND | H83: =VLOOKUP(tblResultaatMaatregelen[[#This Row],[MaatregelNummer]],Tbl_scenario[],3,TRUE) -> Ele. gebruik: verhogen efficiëntie elektrische aandrijfsystemen | I83: =VLOOKUP(tblResultaatMaatregelen[[#This Row],[MaatregelNummer]],Tbl_scenario[],6+(tblResultaatMaatregelen[[#This Row],[ScenarioNummer]]-1)*4+1,TRUE) -> Laag | J83: =IF(tblResultaatMaatregelen[[#This Row],[Ambitieniveau]]="Niet",0,IFERROR(INDIRECT(CONCATENATE(tblResultaatMaatregelen[[#This Row],[MaatregelCode]],"_REDCO2_",tblResultaatMaatregelen[[#This Row],[ScenarioNummer]])),0)) -> 118.6420984 | K83: Sectoren | L83: =IF(tblResultaatMaatregelen[[#This Row],[X-as]]="Maatregelen",tblResultaatMaatregelen[[#This Row],[MaatregelNummer]],tblResultaatMaatregelen[[#This Row],[Sectornummer]]) -> 3 | M83: =IF(tblResultaatMaatregelen[[#This Row],[X-as]]="Maatregelen",tblResultaatMaatregelen[[#This Row],[MaatregelCode]],CONCATENATE(tblResultaatMaatregelen[[#This Row],[Sector]]," (",tblResultaatMaatregelen[[#This Row],[Sector_kort]],")")) -> Industrie (niet-ETS) (IND) | N83: =IF(tblResultaatMaatregelen[[#This Row],[X-as]]="Maatregelen",CONCATENATE(tblResultaatMaatregelen[[#This Row],[Sector]]," (",tblResultaatMaatregelen[[#This Row],[Sector_kort]],")"),tblResultaatMaatregelen[[#This Row],[MaatregelCode]]) -> IND_EE_EEA
A84: =CONCATENATE("Scenario ",tblResultaatMaatregelen[[#This Row],[ScenarioNummer]]) -> Scenario 1 | B84: 1 | C84: 19 | D84: =VLOOKUP(tblResultaatMaatregelen[[#This Row],[MaatregelNummer]],Tbl_scenario[],4,TRUE) -> MOB_MS_voet | E84: =INDEX(tblSectoren[SectorID],MATCH(tblResultaatMaatregelen[[#This Row],[Sector]],tblSectoren[Sectoren],0)) -> 4 | F84: =VLOOKUP(tblResultaatMaatregelen[[#This Row],[MaatregelNummer]],Tbl_scenario[],2,TRUE) -> Particulier en commercieel vervoer | G84: =INDEX(tblSectoren[Afkorting],tblResultaatMaatregelen[[#This Row],[Sectornummer]]) -> MOB | H84: =VLOOKUP(tblResultaatMaatregelen[[#This Row],[MaatregelNummer]],Tbl_scenario[],3,TRUE) -> Modal Shift_Voet + Fiets | I84: =VLOOKUP(tblResultaatMaatregelen[[#This Row],[MaatregelNummer]],Tbl_scenario[],6+(tblResultaatMaatregelen[[#This Row],[ScenarioNummer]]-1)*4+1,TRUE) -> Laag | J84: =IF(tblResultaatMaatregelen[[#This Row],[Ambitieniveau]]="Niet",0,IFERROR(INDIRECT(CONCATENATE(tblResultaatMaatregelen[[#This Row],[MaatregelCode]],"_REDCO2_",tblResultaatMaatregelen[[#This Row],[ScenarioNummer]])),0)) -> 1772.401392 | K84: Sectoren | L84: =IF(tblResultaatMaatregelen[[#This Row],[X-as]]="Maatregelen",tblResultaatMaatregelen[[#This Row],[MaatregelNummer]],tblResultaatMaatregelen[[#This Row],[Sectornummer]]) -> 4 | M84: =IF(tblResultaatMaatregelen[[#This Row],[X-as]]="Maatregelen",tblResultaatMaatregelen[[#This Row],[MaatregelCode]],CONCATENATE(tblResultaatMaatregelen[[#This Row],[Sector]]," (",tblResultaatMaatregelen[[#This Row],[Sector_kort]],")")) -> Particulier en commercieel vervoer (MOB) | N84: =IF(tblResultaatMaatregelen[[#This Row],[X-as]]="Maatregelen",CONCATENATE(tblResultaatMaatregelen[[#This Row],[Sector]]," (",tblResultaatMaatregelen[[#This Row],[Sector_kort]],")"),tblResultaatMaatregelen[[#This Row],[MaatregelCode]]) -> MOB_MS_voet
A85: =CONCATENATE("Scenario ",tblResultaatMaatregelen[[#This Row],[ScenarioNummer]]) -> Scenario 1 | B85: 1 | C85: 20 | D85: =VLOOKUP(tblResultaatMaatregelen[[#This Row],[MaatregelNummer]],Tbl_scenario[],4,TRUE) -> MOB_MS_EFiets | E85: =INDEX(tblSectoren[SectorID],MATCH(tblResultaatMaatregelen[[#This Row],[Sector]],tblSectoren[Sectoren],0)) -> 4 | F85: =VLOOKUP(tblResultaatMaatregelen[[#This Row],[MaatregelNummer]],Tbl_scenario[],2,TRUE) -> Particulier en commercieel vervoer | G85: =INDEX(tblSectoren[Afkorting],tblResultaatMaatregelen[[#This Row],[Sectornummer]]) -> MOB | H85: =VLOOKUP(tblResultaatMaatregelen[[#This Row],[MaatregelNummer]],Tbl_scenario[],3,TRUE) -> Modal Shift_Elektrische Fiets | I85: =VLOOKUP(tblResultaatMaatregelen[[#This Row],[MaatregelNummer]],Tbl_scenario[],6+(tblResultaatMaatregelen[[#This Row],[ScenarioNummer]]-1)*4+1,TRUE) -> Laag | J85: =IF(tblResultaatMaatregelen[[#This Row],[Ambitieniveau]]="Niet",0,IFERROR(INDIRECT(CONCATENATE(tblResultaatMaatregelen[[#This Row],[MaatregelCode]],"_REDCO2_",tblResultaatMaatregelen[[#This Row],[ScenarioNummer]])),0)) -> 1477.00116 | K85: Sectoren | L85: =IF(tblResultaatMaatregelen[[#This Row],[X-as]]="Maatregelen",tblResultaatMaatregelen[[#This Row],[MaatregelNummer]],tblResultaatMaatregelen[[#This Row],[Sectornummer]]) -> 4 | M85: =IF(tblResultaatMaatregelen[[#This Row],[X-as]]="Maatregelen",tblResultaatMaatregelen[[#This Row],[MaatregelCode]],CONCATENATE(tblResultaatMaatregelen[[#This Row],[Sector]]," (",tblResultaatMaatregelen[[#This Row],[Sector_kort]],")")) -> Particulier en commercieel vervoer (MOB) | N85: =IF(tblResultaatMaatregelen[[#This Row],[X-as]]="Maatregelen",CONCATENATE(tblResultaatMaatregelen[[#This Row],[Sector]]," (",tblResultaatMaatregelen[[#This Row],[Sector_kort]],")"),tblResultaatMaatregelen[[#This Row],[MaatregelCode]]) -> MOB_MS_EFiets
A86: =CONCATENATE("Scenario ",tblResultaatMaatregelen[[#This Row],[ScenarioNummer]]) -> Scenario 1 | B86: 1 | C86: 21 | D86: =VLOOKUP(tblResultaatMaatregelen[[#This Row],[MaatregelNummer]],Tbl_scenario[],4,TRUE) -> MOB_MS_OV | E86: =INDEX(tblSectoren[SectorID],MATCH(tblResultaatMaatregelen[[#This Row],[Sector]],tblSectoren[Sectoren],0)) -> 4 | F86: =VLOOKUP(tblResultaatMaatregelen[[#This Row],[MaatregelNummer]],Tbl_scenario[],2,TRUE) -> Particulier en commercieel vervoer | G86: =INDEX(tblSectoren[Afkorting],tblResultaatMaatregelen[[#This Row],[Sectornummer]]) -> MOB | H86: =VLOOKUP(tblResultaatMaatregelen[[#This Row],[MaatregelNummer]],Tbl_scenario[],3,TRUE) -> Modal Shift_Openbaar vervoer | I86: =VLOOKUP(tblResultaatMaatregelen[[#This Row],[MaatregelNummer]],Tbl_scenario[],6+(tblResultaatMaatregelen[[#This Row],[ScenarioNummer]]-1)*4+1,TRUE) -> Laag | J86: =IF(tblResultaatMaatregelen[[#This Row],[Ambitieniveau]]="Niet",0,IFERROR(INDIRECT(CONCATENATE(tblResultaatMaatregelen[[#This Row],[MaatregelCode]],"_REDCO2_",tblResultaatMaatregelen[[#This Row],[ScenarioNummer]])),0)) -> 2245.041763 | K86: Sectoren | L86: =IF(tblResultaatMaatregelen[[#This Row],[X-as]]="Maatregelen",tblResultaatMaatregelen[[#This Row],[MaatregelNummer]],tblResultaatMaatregelen[[#This Row],[Sectornummer]]) -> 4 | M86: =IF(tblResultaatMaatregelen[[#This Row],[X-as]]="Maatregelen",tblResultaatMaatregelen[[#This Row],[MaatregelCode]],CONCATENATE(tblResultaatMaatregelen[[#This Row],[Sector]]," (",tblResultaatMaatregelen[[#This Row],[Sector_kort]],")")) -> Particulier en commercieel vervoer (MOB) | N86: =IF(tblResultaatMaatregelen[[#This Row],[X-as]]="Maatregelen",CONCATENATE(tblResultaatMaatregelen[[#This Row],[Sector]]," (",tblResultaatMaatregelen[[#This Row],[Sector_kort]],")"),tblResultaatMaatregelen[[#This Row],[MaatregelCode]]) -> MOB_MS_OV
A87: =CONCATENATE("Scenario ",tblResultaatMaatregelen[[#This Row],[ScenarioNummer]]) -> Scenario 1 | B87: 1 | C87: 22 | D87: =VLOOKUP(tblResultaatMaatregelen[[#This Row],[MaatregelNummer]],Tbl_scenario[],4,TRUE) -> MOB_BS_EV | E87: =INDEX(tblSectoren[SectorID],MATCH(tblResultaatMaatregelen[[#This Row],[Sector]],tblSectoren[Sectoren],0)) -> 4 | F87: =VLOOKUP(tblResultaatMaatregelen[[#This Row],[MaatregelNummer]],Tbl_scenario[],2,TRUE) -> Particulier en commercieel vervoer | G87: =INDEX(tblSectoren[Afkorting],tblResultaatMaatregelen[[#This Row],[Sectornummer]]) -> MOB | H87: =VLOOKUP(tblResultaatMaatregelen[[#This Row],[MaatregelNummer]],Tbl_scenario[],3,TRUE) -> Brandstofshift_Elektrische voertuigen | I87: =VLOOKUP(tblResultaatMaatregelen[[#This Row],[MaatregelNummer]],Tbl_scenario[],6+(tblResultaatMaatregelen[[#This Row],[ScenarioNummer]]-1)*4+1,TRUE) -> Laag | J87: =IF(tblResultaatMaatregelen[[#This Row],[Ambitieniveau]]="Niet",0,IFERROR(INDIRECT(CONCATENATE(tblResultaatMaatregelen[[#This Row],[MaatregelCode]],"_REDCO2_",tblResultaatMaatregelen[[#This Row],[ScenarioNummer]])),0)) -> 3038.398606 | K87: Sectoren | L87: =IF(tblResultaatMaatregelen[[#This Row],[X-as]]="Maatregelen",tblResultaatMaatregelen[[#This Row],[MaatregelNummer]],tblResultaatMaatregelen[[#This Row],[Sectornummer]]) -> 4 | M87: =IF(tblResultaatMaatregelen[[#This Row],[X-as]]="Maatregelen",tblResultaatMaatregelen[[#This Row],[MaatregelCode]],CONCATENATE(tblResultaatMaatregelen[[#This Row],[Sector]]," (",tblResultaatMaatregelen[[#This Row],[Sector_kort]],")")) -> Particulier en commercieel vervoer (MOB) | N87: =IF(tblResultaatMaatregelen[[#This Row],[X-as]]="Maatregelen",CONCATENATE(tblResultaatMaatregelen[[#This Row],[Sector]]," (",tblResultaatMaatregelen[[#This Row],[Sector_kort]],")"),tblResultaatMaatregelen[[#This Row],[MaatregelCode]]) -> MOB_BS_EV
A88: =CONCATENATE("Scenario ",tblResultaatMaatregelen[[#This Row],[ScenarioNummer]]) -> Scenario 1 | B88: 1 | C88: 23 | D88: =VLOOKUP(tblResultaatMaatregelen[[#This Row],[MaatregelNummer]],Tbl_scenario[],4,TRUE) -> MOB_BS_H2 | E88: =INDEX(tblSectoren[SectorID],MATCH(tblResultaatMaatregelen[[#This Row],[Sector]],tblSectoren[Sectoren],0)) -> 4 | F88: =VLOOKUP(tblResultaatMaatregelen[[#This Row],[MaatregelNummer]],Tbl_scenario[],2,TRUE) -> Particulier en commercieel vervoer | G88: =INDEX(tblSectoren[Afkorting],tblResultaatMaatregelen[[#This Row],[Sectornummer]]) -> MOB | H88: =VLOOKUP(tblResultaatMaatregelen[[#This Row],[MaatregelNummer]],Tbl_scenario[],3,TRUE) -> Brandstofshift_Waterstof | I88: =VLOOKUP(tblResultaatMaatregelen[[#This Row],[MaatregelNummer]],Tbl_scenario[],6+(tblResultaatMaatregelen[[#This Row],[ScenarioNummer]]-1)*4+1,TRUE) -> Laag | J88: =IF(tblResultaatMaatregelen[[#This Row],[Ambitieniveau]]="Niet",0,IFERROR(INDIRECT(CONCATENATE(tblResultaatMaatregelen[[#This Row],[MaatregelCode]],"_REDCO2_",tblResultaatMaatregelen[[#This Row],[ScenarioNummer]])),0)) -> 984.6674397 | K88: Sectoren | L88: =IF(tblResultaatMaatregelen[[#This Row],[X-as]]="Maatregelen",tblResultaatMaatregelen[[#This Row],[MaatregelNummer]],tblResultaatMaatregelen[[#This Row],[Sectornummer]]) -> 4 | M88: =IF(tblResultaatMaatregelen[[#This Row],[X-as]]="Maatregelen",tblResultaatMaatregelen[[#This Row],[MaatregelCode]],CONCATENATE(tblResultaatMaatregelen[[#This Row],[Sector]]," (",tblResultaatMaatregelen[[#This Row],[Sector_kort]],")")) -> Particulier en commercieel vervoer (MOB) | N88: =IF(tblResultaatMaatregelen[[#This Row],[X-as]]="Maatregelen",CONCATENATE(tblResultaatMaatregelen[[#This Row],[Sector]]," (",tblResultaatMaatregelen[[#This Row],[Sector_kort]],")"),tblResultaatMaatregelen[[#This Row],[MaatregelCode]]) -> MOB_BS_H2
A89: =CONCATENATE("Scenario ",tblResultaatMaatregelen[[#This Row],[ScenarioNummer]]) -> Scenario 1 | B89: 1 | C89: 24 | D89: =VLOOKUP(tblResultaatMaatregelen[[#This Row],[MaatregelNummer]],Tbl_scenario[],4,TRUE) -> LEN_PV | E89: =INDEX(tblSectoren[SectorID],MATCH(tblResultaatMaatregelen[[#This Row],[Sector]],tblSectoren[Sectoren],0)) -> 8 | F89: =VLOOKUP(tblResultaatMaatregelen[[#This Row],[MaatregelNummer]],Tbl_scenario[],2,TRUE) -> Lokale energieproductie | G89: =INDEX(tblSectoren[Afkorting],tblResultaatMaatregelen[[#This Row],[Sectornummer]]) -> LEN | H89: =VLOOKUP(tblResultaatMaatregelen[[#This Row],[MaatregelNummer]],Tbl_scenario[],3,TRUE) -> Elektriciteit_PV | I89: =VLOOKUP(tblResultaatMaatregelen[[#This Row],[MaatregelNummer]],Tbl_scenario[],6+(tblResultaatMaatregelen[[#This Row],[ScenarioNummer]]-1)*4+1,TRUE) -> Laag | J89: =IF(tblResultaatMaatregelen[[#This Row],[Ambitieniveau]]="Niet",0,IFERROR(INDIRECT(CONCATENATE(tblResultaatMaatregelen[[#This Row],[MaatregelCode]],"_REDCO2_",tblResultaatMaatregelen[[#This Row],[ScenarioNummer]])),0)) -> 2496.152879 | K89: Sectoren | L89: =IF(tblResultaatMaatregelen[[#This Row],[X-as]]="Maatregelen",tblResultaatMaatregelen[[#This Row],[MaatregelNummer]],tblResultaatMaatregelen[[#This Row],[Sectornummer]]) -> 8 | M89: =IF(tblResultaatMaatregelen[[#This Row],[X-as]]="Maatregelen",tblResultaatMaatregelen[[#This Row],[MaatregelCode]],CONCATENATE(tblResultaatMaatregelen[[#This Row],[Sector]]," (",tblResultaatMaatregelen[[#This Row],[Sector_kort]],")")) -> Lokale energieproductie (LEN) | N89: =IF(tblResultaatMaatregelen[[#This Row],[X-as]]="Maatregelen",CONCATENATE(tblResultaatMaatregelen[[#This Row],[Sector]]," (",tblResultaatMaatregelen[[#This Row],[Sector_kort]],")"),tblResultaatMaatregelen[[#This Row],[MaatregelCode]]) -> LEN_PV
A90: =CONCATENATE("Scenario ",tblResultaatMaatregelen[[#This Row],[ScenarioNummer]]) -> Scenario 1 | B90: 1 | C90: 25 | D90: =VLOOKUP(tblResultaatMaatregelen[[#This Row],[MaatregelNummer]],Tbl_scenario[],4,TRUE) -> LEN_Wind | E90: =INDEX(tblSectoren[SectorID],MATCH(tblResultaatMaatregelen[[#This Row],[Sector]],tblSectoren[Sectoren],0)) -> 8 | F90: =VLOOKUP(tblResultaatMaatregelen[[#This Row],[MaatregelNummer]],Tbl_scenario[],2,TRUE) -> Lokale energieproductie | G90: =INDEX(tblSectoren[Afkorting],tblResultaatMaatregelen[[#This Row],[Sectornummer]]) -> LEN | H90: =VLOOKUP(tblResultaatMaatregelen[[#This Row],[MaatregelNummer]],Tbl_scenario[],3,TRUE) -> Elektriciteit_Wind | I90: =VLOOKUP(tblResultaatMaatregelen[[#This Row],[MaatregelNummer]],Tbl_scenario[],6+(tblResultaatMaatregelen[[#This Row],[ScenarioNummer]]-1)*4+1,TRUE) -> Laag | J90: =IF(tblResultaatMaatregelen[[#This Row],[Ambitieniveau]]="Niet",0,IFERROR(INDIRECT(CONCATENATE(tblResultaatMaatregelen[[#This Row],[MaatregelCode]],"_REDCO2_",tblResultaatMaatregelen[[#This Row],[ScenarioNummer]])),0)) -> 2640.326764 | K90: Sectoren | L90: =IF(tblResultaatMaatregelen[[#This Row],[X-as]]="Maatregelen",tblResultaatMaatregelen[[#This Row],[MaatregelNummer]],tblResultaatMaatregelen[[#This Row],[Sectornummer]]) -> 8 | M90: =IF(tblResultaatMaatregelen[[#This Row],[X-as]]="Maatregelen",tblResultaatMaatregelen[[#This Row],[MaatregelCode]],CONCATENATE(tblResultaatMaatregelen[[#This Row],[Sector]]," (",tblResultaatMaatregelen[[#This Row],[Sector_kort]],")")) -> Lokale energieproductie (LEN) | N90: =IF(tblResultaatMaatregelen[[#This Row],[X-as]]="Maatregelen",CONCATENATE(tblResultaatMaatregelen[[#This Row],[Sector]]," (",tblResultaatMaatregelen[[#This Row],[Sector_kort]],")"),tblResultaatMaatregelen[[#This Row],[MaatregelCode]]) -> LEN_Wind
A91: =CONCATENATE("Scenario ",tblResultaatMaatregelen[[#This Row],[ScenarioNummer]]) -> Scenario 1 | B91: 1 | C91: 26 | D91: =VLOOKUP(tblResultaatMaatregelen[[#This Row],[MaatregelNummer]],Tbl_scenario[],4,TRUE) -> LB_HER_WP | E91: =INDEX(tblSectoren[SectorID],MATCH(tblResultaatMaatregelen[[#This Row],[Sector]],tblSectoren[Sectoren],0)) -> 5 | F91: =VLOOKUP(tblResultaatMaatregelen[[#This Row],[MaatregelNummer]],Tbl_scenario[],2,TRUE) -> Landbouw | G91: =INDEX(tblSectoren[Afkorting],tblResultaatMaatregelen[[#This Row],[Sectornummer]]) -> LB | H91: =VLOOKUP(tblResultaatMaatregelen[[#This Row],[MaatregelNummer]],Tbl_scenario[],3,TRUE) -> Warmtepomp | I91: =VLOOKUP(tblResultaatMaatregelen[[#This Row],[MaatregelNummer]],Tbl_scenario[],6+(tblResultaatMaatregelen[[#This Row],[ScenarioNummer]]-1)*4+1,TRUE) -> Laag | J91: =IF(tblResultaatMaatregelen[[#This Row],[Ambitieniveau]]="Niet",0,IFERROR(INDIRECT(CONCATENATE(tblResultaatMaatregelen[[#This Row],[MaatregelCode]],"_REDCO2_",tblResultaatMaatregelen[[#This Row],[ScenarioNummer]])),0)) -> 110.5998486 | K91: Sectoren | L91: =IF(tblResultaatMaatregelen[[#This Row],[X-as]]="Maatregelen",tblResultaatMaatregelen[[#This Row],[MaatregelNummer]],tblResultaatMaatregelen[[#This Row],[Sectornummer]]) -> 5 | M91: =IF(tblResultaatMaatregelen[[#This Row],[X-as]]="Maatregelen",tblResultaatMaatregelen[[#This Row],[MaatregelCode]],CONCATENATE(tblResultaatMaatregelen[[#This Row],[Sector]]," (",tblResultaatMaatregelen[[#This Row],[Sector_kort]],")")) -> Landbouw (LB) | N91: =IF(tblResultaatMaatregelen[[#This Row],[X-as]]="Maatregelen",CONCATENATE(tblResultaatMaatregelen[[#This Row],[Sector]]," (",tblResultaatMaatregelen[[#This Row],[Sector_kort]],")"),tblResultaatMaatregelen[[#This Row],[MaatregelCode]]) -> LB_HER_WP
A92: =CONCATENATE("Scenario ",tblResultaatMaatregelen[[#This Row],[ScenarioNummer]]) -> Scenario 1 | B92: 1 | C92: 27 | D92: =VLOOKUP(tblResultaatMaatregelen[[#This Row],[MaatregelNummer]],Tbl_scenario[],4,TRUE) -> LB_HER_PocV | E92: =INDEX(tblSectoren[SectorID],MATCH(tblResultaatMaatregelen[[#This Row],[Sector]],tblSectoren[Sectoren],0)) -> 5 | F92: =VLOOKUP(tblResultaatMaatregelen[[#This Row],[MaatregelNummer]],Tbl_scenario[],2,TRUE) -> Landbouw | G92: =INDEX(tblSectoren[Afkorting],tblResultaatMaatregelen[[#This Row],[Sectornummer]]) -> LB | H92: =VLOOKUP(tblResultaatMaatregelen[[#This Row],[MaatregelNummer]],Tbl_scenario[],3,TRUE) -> Hernieuwbare energie_Pocketvergisters | I92: =VLOOKUP(tblResultaatMaatregelen[[#This Row],[MaatregelNummer]],Tbl_scenario[],6+(tblResultaatMaatregelen[[#This Row],[ScenarioNummer]]-1)*4+1,TRUE) -> Laag | J92: =IF(tblResultaatMaatregelen[[#This Row],[Ambitieniveau]]="Niet",0,IFERROR(INDIRECT(CONCATENATE(tblResultaatMaatregelen[[#This Row],[MaatregelCode]],"_REDCO2_",tblResultaatMaatregelen[[#This Row],[ScenarioNummer]])),0)) -> 5.518538697 | K92: Sectoren | L92: =IF(tblResultaatMaatregelen[[#This Row],[X-as]]="Maatregelen",tblResultaatMaatregelen[[#This Row],[MaatregelNummer]],tblResultaatMaatregelen[[#This Row],[Sectornummer]]) -> 5 | M92: =IF(tblResultaatMaatregelen[[#This Row],[X-as]]="Maatregelen",tblResultaatMaatregelen[[#This Row],[MaatregelCode]],CONCATENATE(tblResultaatMaatregelen[[#This Row],[Sector]]," (",tblResultaatMaatregelen[[#This Row],[Sector_kort]],")")) -> Landbouw (LB) | N92: =IF(tblResultaatMaatregelen[[#This Row],[X-as]]="Maatregelen",CONCATENATE(tblResultaatMaatregelen[[#This Row],[Sector]]," (",tblResultaatMaatregelen[[#This Row],[Sector_kort]],")"),tblResultaatMaatregelen[[#This Row],[MaatregelCode]]) -> LB_HER_PocV
A93: =CONCATENATE("Scenario ",tblResultaatMaatregelen[[#This Row],[ScenarioNummer]]) -> Scenario 1 | B93: 1 | C93: 28 | D93: =VLOOKUP(tblResultaatMaatregelen[[#This Row],[MaatregelNummer]],Tbl_scenario[],4,TRUE) -> LB_HER_BMK | E93: =INDEX(tblSectoren[SectorID],MATCH(tblResultaatMaatregelen[[#This Row],[Sector]],tblSectoren[Sectoren],0)) -> 5 | F93: =VLOOKUP(tblResultaatMaatregelen[[#This Row],[MaatregelNummer]],Tbl_scenario[],2,TRUE) -> Landbouw | G93: =INDEX(tblSectoren[Afkorting],tblResultaatMaatregelen[[#This Row],[Sectornummer]]) -> LB | H93: =VLOOKUP(tblResultaatMaatregelen[[#This Row],[MaatregelNummer]],Tbl_scenario[],3,TRUE) -> Hernieuwbare energie_Biomassaketels | I93: =VLOOKUP(tblResultaatMaatregelen[[#This Row],[MaatregelNummer]],Tbl_scenario[],6+(tblResultaatMaatregelen[[#This Row],[ScenarioNummer]]-1)*4+1,TRUE) -> Laag | J93: =IF(tblResultaatMaatregelen[[#This Row],[Ambitieniveau]]="Niet",0,IFERROR(INDIRECT(CONCATENATE(tblResultaatMaatregelen[[#This Row],[MaatregelCode]],"_REDCO2_",tblResultaatMaatregelen[[#This Row],[ScenarioNummer]])),0)) -> 47.48393869 | K93: Sectoren | L93: =IF(tblResultaatMaatregelen[[#This Row],[X-as]]="Maatregelen",tblResultaatMaatregelen[[#This Row],[MaatregelNummer]],tblResultaatMaatregelen[[#This Row],[Sectornummer]]) -> 5 | M93: =IF(tblResultaatMaatregelen[[#This Row],[X-as]]="Maatregelen",tblResultaatMaatregelen[[#This Row],[MaatregelCode]],CONCATENATE(tblResultaatMaatregelen[[#This Row],[Sector]]," (",tblResultaatMaatregelen[[#This Row],[Sector_kort]],")")) -> Landbouw (LB) | N93: =IF(tblResultaatMaatregelen[[#This Row],[X-as]]="Maatregelen",CONCATENATE(tblResultaatMaatregelen[[#This Row],[Sector]]," (",tblResultaatMaatregelen[[#This Row],[Sector_kort]],")"),tblResultaatMaatregelen[[#This Row],[MaatregelCode]]) -> LB_HER_BMK
A94: =CONCATENATE("Scenario ",tblResultaatMaatregelen[[#This Row],[ScenarioNummer]]) -> Scenario 1 | B94: 1 | C94: 29 | D94: =VLOOKUP(tblResultaatMaatregelen[[#This Row],[MaatregelNummer]],Tbl_scenario[],4,TRUE) -> LB_EE_ENS | E94: =INDEX(tblSectoren[SectorID],MATCH(tblResultaatMaatregelen[[#This Row],[Sector]],tblSectoren[Sectoren],0)) -> 5 | F94: =VLOOKUP(tblResultaatMaatregelen[[#This Row],[MaatregelNummer]],Tbl_scenario[],2,TRUE) -> Landbouw | G94: =INDEX(tblSectoren[Afkorting],tblResultaatMaatregelen[[#This Row],[Sectornummer]]) -> LB | H94: =VLOOKUP(tblResultaatMaatregelen[[#This Row],[MaatregelNummer]],Tbl_scenario[],3,TRUE) -> Energieschermen | I94: =VLOOKUP(tblResultaatMaatregelen[[#This Row],[MaatregelNummer]],Tbl_scenario[],6+(tblResultaatMaatregelen[[#This Row],[ScenarioNummer]]-1)*4+1,TRUE) -> Laag | J94: =IF(tblResultaatMaatregelen[[#This Row],[Ambitieniveau]]="Niet",0,IFERROR(INDIRECT(CONCATENATE(tblResultaatMaatregelen[[#This Row],[MaatregelCode]],"_REDCO2_",tblResultaatMaatregelen[[#This Row],[ScenarioNummer]])),0)) -> 13.95388281 | K94: Sectoren | L94: =IF(tblResultaatMaatregelen[[#This Row],[X-as]]="Maatregelen",tblResultaatMaatregelen[[#This Row],[MaatregelNummer]],tblResultaatMaatregelen[[#This Row],[Sectornummer]]) -> 5 | M94: =IF(tblResultaatMaatregelen[[#This Row],[X-as]]="Maatregelen",tblResultaatMaatregelen[[#This Row],[MaatregelCode]],CONCATENATE(tblResultaatMaatregelen[[#This Row],[Sector]]," (",tblResultaatMaatregelen[[#This Row],[Sector_kort]],")")) -> Landbouw (LB) | N94: =IF(tblResultaatMaatregelen[[#This Row],[X-as]]="Maatregelen",CONCATENATE(tblResultaatMaatregelen[[#This Row],[Sector]]," (",tblResultaatMaatregelen[[#This Row],[Sector_kort]],")"),tblResultaatMaatregelen[[#This Row],[MaatregelCode]]) -> LB_EE_ENS
A95: =CONCATENATE("Scenario ",tblResultaatMaatregelen[[#This Row],[ScenarioNummer]]) -> Scenario 1 | B95: 1 | C95: 30 | D95: =VLOOKUP(tblResultaatMaatregelen[[#This Row],[MaatregelNummer]],Tbl_scenario[],4,TRUE) -> BLANCO_1 | E95: =INDEX(tblSectoren[SectorID],MATCH(tblResultaatMaatregelen[[#This Row],[Sector]],tblSectoren[Sectoren],0)) -> 1 | F95: =VLOOKUP(tblResultaatMaatregelen[[#This Row],[MaatregelNummer]],Tbl_scenario[],2,TRUE) -> Huishoudens | G95: =INDEX(tblSectoren[Afkorting],tblResultaatMaatregelen[[#This Row],[Sectornummer]]) -> RES | H95: =VLOOKUP(tblResultaatMaatregelen[[#This Row],[MaatregelNummer]],Tbl_scenario[],3,TRUE) -> Blanco | I95: =VLOOKUP(tblResultaatMaatregelen[[#This Row],[MaatregelNummer]],Tbl_scenario[],6+(tblResultaatMaatregelen[[#This Row],[ScenarioNummer]]-1)*4+1,TRUE) -> Niet | J95: =IF(tblResultaatMaatregelen[[#This Row],[Ambitieniveau]]="Niet",0,IFERROR(INDIRECT(CONCATENATE(tblResultaatMaatregelen[[#This Row],[MaatregelCode]],"_REDCO2_",tblResultaatMaatregelen[[#This Row],[ScenarioNummer]])),0)) -> 0 | K95: Sectoren | L95: =IF(tblResultaatMaatregelen[[#This Row],[X-as]]="Maatregelen",tblResultaatMaatregelen[[#This Row],[MaatregelNummer]],tblResultaatMaatregelen[[#This Row],[Sectornummer]]) -> 1 | M95: =IF(tblResultaatMaatregelen[[#This Row],[X-as]]="Maatregelen",tblResultaatMaatregelen[[#This Row],[MaatregelCode]],CONCATENATE(tblResultaatMaatregelen[[#This Row],[Sector]]," (",tblResultaatMaatregelen[[#This Row],[Sector_kort]],")")) -> Huishoudens (RES) | N95: =IF(tblResultaatMaatregelen[[#This Row],[X-as]]="Maatregelen",CONCATENATE(tblResultaatMaatregelen[[#This Row],[Sector]]," (",tblResultaatMaatregelen[[#This Row],[Sector_kort]],")"),tblResultaatMaatregelen[[#This Row],[MaatregelCode]]) -> BLANCO_1
A96: =CONCATENATE("Scenario ",tblResultaatMaatregelen[[#This Row],[ScenarioNummer]]) -> Scenario 1 | B96: 1 | C96: 31 | D96: =VLOOKUP(tblResultaatMaatregelen[[#This Row],[MaatregelNummer]],Tbl_scenario[],4,TRUE) -> BLANCO_2 | E96: =INDEX(tblSectoren[SectorID],MATCH(tblResultaatMaatregelen[[#This Row],[Sector]],tblSectoren[Sectoren],0)) -> 1 | F96: =VLOOKUP(tblResultaatMaatregelen[[#This Row],[MaatregelNummer]],Tbl_scenario[],2,TRUE) -> Huishoudens | G96: =INDEX(tblSectoren[Afkorting],tblResultaatMaatregelen[[#This Row],[Sectornummer]]) -> RES | H96: =VLOOKUP(tblResultaatMaatregelen[[#This Row],[MaatregelNummer]],Tbl_scenario[],3,TRUE) -> Blanco | I96: =VLOOKUP(tblResultaatMaatregelen[[#This Row],[MaatregelNummer]],Tbl_scenario[],6+(tblResultaatMaatregelen[[#This Row],[ScenarioNummer]]-1)*4+1,TRUE) -> Niet | J96: =IF(tblResultaatMaatregelen[[#This Row],[Ambitieniveau]]="Niet",0,IFERROR(INDIRECT(CONCATENATE(tblResultaatMaatregelen[[#This Row],[MaatregelCode]],"_REDCO2_",tblResultaatMaatregelen[[#This Row],[ScenarioNummer]])),0)) -> 0 | K96: Sectoren | L96: =IF(tblResultaatMaatregelen[[#This Row],[X-as]]="Maatregelen",tblResultaatMaatregelen[[#This Row],[MaatregelNummer]],tblResultaatMaatregelen[[#This Row],[Sectornummer]]) -> 1 | M96: =IF(tblResultaatMaatregelen[[#This Row],[X-as]]="Maatregelen",tblResultaatMaatregelen[[#This Row],[MaatregelCode]],CONCATENATE(tblResultaatMaatregelen[[#This Row],[Sector]]," (",tblResultaatMaatregelen[[#This Row],[Sector_kort]],")")) -> Huishoudens (RES) | N96: =IF(tblResultaatMaatregelen[[#This Row],[X-as]]="Maatregelen",CONCATENATE(tblResultaatMaatregelen[[#This Row],[Sector]]," (",tblResultaatMaatregelen[[#This Row],[Sector_kort]],")"),tblResultaatMaatregelen[[#This Row],[MaatregelCode]]) -> BLANCO_2
A97: =CONCATENATE("Scenario ",tblResultaatMaatregelen[[#This Row],[ScenarioNummer]]) -> Scenario 1 | B97: 1 | C97: 32 | D97: =VLOOKUP(tblResultaatMaatregelen[[#This Row],[MaatregelNummer]],Tbl_scenario[],4,TRUE) -> BLANCO_3 | E97: =INDEX(tblSectoren[SectorID],MATCH(tblResultaatMaatregelen[[#This Row],[Sector]],tblSectoren[Sectoren],0)) -> 1 | F97: =VLOOKUP(tblResultaatMaatregelen[[#This Row],[MaatregelNummer]],Tbl_scenario[],2,TRUE) -> Huishoudens | G97: =INDEX(tblSectoren[Afkorting],tblResultaatMaatregelen[[#This Row],[Sectornummer]]) -> RES | H97: =VLOOKUP(tblResultaatMaatregelen[[#This Row],[MaatregelNummer]],Tbl_scenario[],3,TRUE) -> Blanco | I97: =VLOOKUP(tblResultaatMaatregelen[[#This Row],[MaatregelNummer]],Tbl_scenario[],6+(tblResultaatMaatregelen[[#This Row],[ScenarioNummer]]-1)*4+1,TRUE) -> Niet | J97: =IF(tblResultaatMaatregelen[[#This Row],[Ambitieniveau]]="Niet",0,IFERROR(INDIRECT(CONCATENATE(tblResultaatMaatregelen[[#This Row],[MaatregelCode]],"_REDCO2_",tblResultaatMaatregelen[[#This Row],[ScenarioNummer]])),0)) -> 0 | K97: Sectoren | L97: =IF(tblResultaatMaatregelen[[#This Row],[X-as]]="Maatregelen",tblResultaatMaatregelen[[#This Row],[MaatregelNummer]],tblResultaatMaatregelen[[#This Row],[Sectornummer]]) -> 1 | M97: =IF(tblResultaatMaatregelen[[#This Row],[X-as]]="Maatregelen",tblResultaatMaatregelen[[#This Row],[MaatregelCode]],CONCATENATE(tblResultaatMaatregelen[[#This Row],[Sector]]," (",tblResultaatMaatregelen[[#This Row],[Sector_kort]],")")) -> Huishoudens (RES) | N97: =IF(tblResultaatMaatregelen[[#This Row],[X-as]]="Maatregelen",CONCATENATE(tblResultaatMaatregelen[[#This Row],[Sector]]," (",tblResultaatMaatregelen[[#This Row],[Sector_kort]],")"),tblResultaatMaatregelen[[#This Row],[MaatregelCode]]) -> BLANCO_3
A98: =CONCATENATE("Scenario ",tblResultaatMaatregelen[[#This Row],[ScenarioNummer]]) -> Scenario 2 | B98: 2 | C98: 1 | D98: =VLOOKUP(tblResultaatMaatregelen[[#This Row],[MaatregelNummer]],Tbl_scenario[],4,TRUE) -> RES_ISO_DAK | E98: =INDEX(tblSectoren[SectorID],MATCH(tblResultaatMaatregelen[[#This Row],[Sector]],tblSectoren[Sectoren],0)) -> 1 | F98: =VLOOKUP(tblResultaatMaatregelen[[#This Row],[MaatregelNummer]],Tbl_scenario[],2,TRUE) -> Huishoudens | G98: =INDEX(tblSectoren[Afkorting],tblResultaatMaatregelen[[#This Row],[Sectornummer]]) -> RES | H98: =VLOOKUP(tblResultaatMaatregelen[[#This Row],[MaatregelNummer]],Tbl_scenario[],3,TRUE) -> Isolatiemaatregel gericht op dak | I98: =VLOOKUP(tblResultaatMaatregelen[[#This Row],[MaatregelNummer]],Tbl_scenario[],6+(tblResultaatMaatregelen[[#This Row],[ScenarioNummer]]-1)*4+1,TRUE) -> Hoog | J98: =IF(tblResultaatMaatregelen[[#This Row],[Ambitieniveau]]="Niet",0,IFERROR(INDIRECT(CONCATENATE(tblResultaatMaatregelen[[#This Row],[MaatregelCode]],"_REDCO2_",tblResultaatMaatregelen[[#This Row],[ScenarioNummer]])),0)) -> 18375.10185 | K98: Sectoren | L98: =IF(tblResultaatMaatregelen[[#This Row],[X-as]]="Maatregelen",tblResultaatMaatregelen[[#This Row],[MaatregelNummer]],tblResultaatMaatregelen[[#This Row],[Sectornummer]]) -> 1 | M98: =IF(tblResultaatMaatregelen[[#This Row],[X-as]]="Maatregelen",tblResultaatMaatregelen[[#This Row],[MaatregelCode]],CONCATENATE(tblResultaatMaatregelen[[#This Row],[Sector]]," (",tblResultaatMaatregelen[[#This Row],[Sector_kort]],")")) -> Huishoudens (RES) | N98: =IF(tblResultaatMaatregelen[[#This Row],[X-as]]="Maatregelen",CONCATENATE(tblResultaatMaatregelen[[#This Row],[Sector]]," (",tblResultaatMaatregelen[[#This Row],[Sector_kort]],")"),tblResultaatMaatregelen[[#This Row],[MaatregelCode]]) -> RES_ISO_DAK
A99: =CONCATENATE("Scenario ",tblResultaatMaatregelen[[#This Row],[ScenarioNummer]]) -> Scenario 2 | B99: 2 | C99: 2 | D99: =VLOOKUP(tblResultaatMaatregelen[[#This Row],[MaatregelNummer]],Tbl_scenario[],4,TRUE) -> RES_ISO_MUUR | E99: =INDEX(tblSectoren[SectorID],MATCH(tblResultaatMaatregelen[[#This Row],[Sector]],tblSectoren[Sectoren],0)) -> 1 | F99: =VLOOKUP(tblResultaatMaatregelen[[#This Row],[MaatregelNummer]],Tbl_scenario[],2,TRUE) -> Huishoudens | G99: =INDEX(tblSectoren[Afkorting],tblResultaatMaatregelen[[#This Row],[Sectornummer]]) -> RES | H99: =VLOOKUP(tblResultaatMaatregelen[[#This Row],[MaatregelNummer]],Tbl_scenario[],3,TRUE) -> Isolatiemaatregel gericht op buitenmuren | I99: =VLOOKUP(tblResultaatMaatregelen[[#This Row],[MaatregelNummer]],Tbl_scenario[],6+(tblResultaatMaatregelen[[#This Row],[ScenarioNummer]]-1)*4+1,TRUE) -> Hoog | J99: =IF(tblResultaatMaatregelen[[#This Row],[Ambitieniveau]]="Niet",0,IFERROR(INDIRECT(CONCATENATE(tblResultaatMaatregelen[[#This Row],[MaatregelCode]],"_REDCO2_",tblResultaatMaatregelen[[#This Row],[ScenarioNummer]])),0)) -> 16943.07989 | K99: Sectoren | L99: =IF(tblResultaatMaatregelen[[#This Row],[X-as]]="Maatregelen",tblResultaatMaatregelen[[#This Row],[MaatregelNummer]],tblResultaatMaatregelen[[#This Row],[Sectornummer]]) -> 1 | M99: =IF(tblResultaatMaatregelen[[#This Row],[X-as]]="Maatregelen",tblResultaatMaatregelen[[#This Row],[MaatregelCode]],CONCATENATE(tblResultaatMaatregelen[[#This Row],[Sector]]," (",tblResultaatMaatregelen[[#This Row],[Sector_kort]],")")) -> Huishoudens (RES) | N99: =IF(tblResultaatMaatregelen[[#This Row],[X-as]]="Maatregelen",CONCATENATE(tblResultaatMaatregelen[[#This Row],[Sector]]," (",tblResultaatMaatregelen[[#This Row],[Sector_kort]],")"),tblResultaatMaatregelen[[#This Row],[MaatregelCode]]) -> RES_ISO_MUUR
A100: =CONCATENATE("Scenario ",tblResultaatMaatregelen[[#This Row],[ScenarioNummer]]) -> Scenario 2 | B100: 2 | C100: 3 | D100: =VLOOKUP(tblResultaatMaatregelen[[#This Row],[MaatregelNummer]],Tbl_scenario[],4,TRUE) -> RES_ISO_VL | E100: =INDEX(tblSectoren[SectorID],MATCH(tblResultaatMaatregelen[[#This Row],[Sector]],tblSectoren[Sectoren],0)) -> 1 | F100: =VLOOKUP(tblResultaatMaatregelen[[#This Row],[MaatregelNummer]],Tbl_scenario[],2,TRUE) -> Huishoudens | G100: =INDEX(tblSectoren[Afkorting],tblResultaatMaatregelen[[#This Row],[Sectornummer]]) -> RES | H100: =VLOOKUP(tblResultaatMaatregelen[[#This Row],[MaatregelNummer]],Tbl_scenario[],3,TRUE) -> Isolatiemaatregel gericht op vloeren | I100: =VLOOKUP(tblResultaatMaatregelen[[#This Row],[MaatregelNummer]],Tbl_scenario[],6+(tblResultaatMaatregelen[[#This Row],[ScenarioNummer]]-1)*4+1,TRUE) -> Hoog | J100: =IF(tblResultaatMaatregelen[[#This Row],[Ambitieniveau]]="Niet",0,IFERROR(INDIRECT(CONCATENATE(tblResultaatMaatregelen[[#This Row],[MaatregelCode]],"_REDCO2_",tblResultaatMaatregelen[[#This Row],[ScenarioNummer]])),0)) -> 5995.499463 | K100: Sectoren | L100: =IF(tblResultaatMaatregelen[[#This Row],[X-as]]="Maatregelen",tblResultaatMaatregelen[[#This Row],[MaatregelNummer]],tblResultaatMaatregelen[[#This Row],[Sectornummer]]) -> 1 | M100: =IF(tblResultaatMaatregelen[[#This Row],[X-as]]="Maatregelen",tblResultaatMaatregelen[[#This Row],[MaatregelCode]],CONCATENATE(tblResultaatMaatregelen[[#This Row],[Sector]]," (",tblResultaatMaatregelen[[#This Row],[Sector_kort]],")")) -> Huishoudens (RES) | N100: =IF(tblResultaatMaatregelen[[#This Row],[X-as]]="Maatregelen",CONCATENATE(tblResultaatMaatregelen[[#This Row],[Sector]]," (",tblResultaatMaatregelen[[#This Row],[Sector_kort]],")"),tblResultaatMaatregelen[[#This Row],[MaatregelCode]]) -> RES_ISO_VL
A101: =CONCATENATE("Scenario ",tblResultaatMaatregelen[[#This Row],[ScenarioNummer]]) -> Scenario 2 | B101: 2 | C101: 4 | D101: =VLOOKUP(tblResultaatMaatregelen[[#This Row],[MaatregelNummer]],Tbl_scenario[],4,TRUE) -> RES_ISO_BG | E101: =INDEX(tblSectoren[SectorID],MATCH(tblResultaatMaatregelen[[#This Row],[Sector]],tblSectoren[Sectoren],0)) -> 1 | F101: =VLOOKUP(tblResultaatMaatregelen[[#This Row],[MaatregelNummer]],Tbl_scenario[],2,TRUE) -> Huishoudens | G101: =INDEX(tblSectoren[Afkorting],tblResultaatMaatregelen[[#This Row],[Sectornummer]]) -> RES | H101: =VLOOKUP(tblResultaatMaatregelen[[#This Row],[MaatregelNummer]],Tbl_scenario[],3,TRUE) -> Isolatiemaatregel gericht op ramen en beglazing | I101: =VLOOKUP(tblResultaatMaatregelen[[#This Row],[MaatregelNummer]],Tbl_scenario[],6+(tblResultaatMaatregelen[[#This Row],[ScenarioNummer]]-1)*4+1,TRUE) -> Hoog | J101: =IF(tblResultaatMaatregelen[[#This Row],[Ambitieniveau]]="Niet",0,IFERROR(INDIRECT(CONCATENATE(tblResultaatMaatregelen[[#This Row],[MaatregelCode]],"_REDCO2_",tblResultaatMaatregelen[[#This Row],[ScenarioNummer]])),0)) -> 3441.722153 | K101: Sectoren | L101: =IF(tblResultaatMaatregelen[[#This Row],[X-as]]="Maatregelen",tblResultaatMaatregelen[[#This Row],[MaatregelNummer]],tblResultaatMaatregelen[[#This Row],[Sectornummer]]) -> 1 | M101: =IF(tblResultaatMaatregelen[[#This Row],[X-as]]="Maatregelen",tblResultaatMaatregelen[[#This Row],[MaatregelCode]],CONCATENATE(tblResultaatMaatregelen[[#This Row],[Sector]]," (",tblResultaatMaatregelen[[#This Row],[Sector_kort]],")")) -> Huishoudens (RES) | N101: =IF(tblResultaatMaatregelen[[#This Row],[X-as]]="Maatregelen",CONCATENATE(tblResultaatMaatregelen[[#This Row],[Sector]]," (",tblResultaatMaatregelen[[#This Row],[Sector_kort]],")"),tblResultaatMaatregelen[[#This Row],[MaatregelCode]]) -> RES_ISO_BG
A102: =CONCATENATE("Scenario ",tblResultaatMaatregelen[[#This Row],[ScenarioNummer]]) -> Scenario 2 | B102: 2 | C102: 5 | D102: =VLOOKUP(tblResultaatMaatregelen[[#This Row],[MaatregelNummer]],Tbl_scenario[],4,TRUE) -> RES_HER_WP | E102: =INDEX(tblSectoren[SectorID],MATCH(tblResultaatMaatregelen[[#This Row],[Sector]],tblSectoren[Sectoren],0)) -> 1 | F102: =VLOOKUP(tblResultaatMaatregelen[[#This Row],[MaatregelNummer]],Tbl_scenario[],2,TRUE) -> Huishoudens | G102: =INDEX(tblSectoren[Afkorting],tblResultaatMaatregelen[[#This Row],[Sectornummer]]) -> RES | H102: =VLOOKUP(tblResultaatMaatregelen[[#This Row],[MaatregelNummer]],Tbl_scenario[],3,TRUE) -> Warmtepomp | I102: =VLOOKUP(tblResultaatMaatregelen[[#This Row],[MaatregelNummer]],Tbl_scenario[],6+(tblResultaatMaatregelen[[#This Row],[ScenarioNummer]]-1)*4+1,TRUE) -> Hoog | J102: =IF(tblResultaatMaatregelen[[#This Row],[Ambitieniveau]]="Niet",0,IFERROR(INDIRECT(CONCATENATE(tblResultaatMaatregelen[[#This Row],[MaatregelCode]],"_REDCO2_",tblResultaatMaatregelen[[#This Row],[ScenarioNummer]])),0)) -> 8368.374139 | K102: Sectoren | L102: =IF(tblResultaatMaatregelen[[#This Row],[X-as]]="Maatregelen",tblResultaatMaatregelen[[#This Row],[MaatregelNummer]],tblResultaatMaatregelen[[#This Row],[Sectornummer]]) -> 1 | M102: =IF(tblResultaatMaatregelen[[#This Row],[X-as]]="Maatregelen",tblResultaatMaatregelen[[#This Row],[MaatregelCode]],CONCATENATE(tblResultaatMaatregelen[[#This Row],[Sector]]," (",tblResultaatMaatregelen[[#This Row],[Sector_kort]],")")) -> Huishoudens (RES) | N102: =IF(tblResultaatMaatregelen[[#This Row],[X-as]]="Maatregelen",CONCATENATE(tblResultaatMaatregelen[[#This Row],[Sector]]," (",tblResultaatMaatregelen[[#This Row],[Sector_kort]],")"),tblResultaatMaatregelen[[#This Row],[MaatregelCode]]) -> RES_HER_WP
A103: =CONCATENATE("Scenario ",tblResultaatMaatregelen[[#This Row],[ScenarioNummer]]) -> Scenario 2 | B103: 2 | C103: 6 | D103: =VLOOKUP(tblResultaatMaatregelen[[#This Row],[MaatregelNummer]],Tbl_scenario[],4,TRUE) -> RES_HER_ZB | E103: =INDEX(tblSectoren[SectorID],MATCH(tblResultaatMaatregelen[[#This Row],[Sector]],tblSectoren[Sectoren],0)) -> 1 | F103: =VLOOKUP(tblResultaatMaatregelen[[#This Row],[MaatregelNummer]],Tbl_scenario[],2,TRUE) -> Huishoudens | G103: =INDEX(tblSectoren[Afkorting],tblResultaatMaatregelen[[#This Row],[Sectornummer]]) -> RES | H103: =VLOOKUP(tblResultaatMaatregelen[[#This Row],[MaatregelNummer]],Tbl_scenario[],3,TRUE) -> Zonneboiler | I103: =VLOOKUP(tblResultaatMaatregelen[[#This Row],[MaatregelNummer]],Tbl_scenario[],6+(tblResultaatMaatregelen[[#This Row],[ScenarioNummer]]-1)*4+1,TRUE) -> Hoog | J103: =IF(tblResultaatMaatregelen[[#This Row],[Ambitieniveau]]="Niet",0,IFERROR(INDIRECT(CONCATENATE(tblResultaatMaatregelen[[#This Row],[MaatregelCode]],"_REDCO2_",tblResultaatMaatregelen[[#This Row],[ScenarioNummer]])),0)) -> 2991.593931 | K103: Sectoren | L103: =IF(tblResultaatMaatregelen[[#This Row],[X-as]]="Maatregelen",tblResultaatMaatregelen[[#This Row],[MaatregelNummer]],tblResultaatMaatregelen[[#This Row],[Sectornummer]]) -> 1 | M103: =IF(tblResultaatMaatregelen[[#This Row],[X-as]]="Maatregelen",tblResultaatMaatregelen[[#This Row],[MaatregelCode]],CONCATENATE(tblResultaatMaatregelen[[#This Row],[Sector]]," (",tblResultaatMaatregelen[[#This Row],[Sector_kort]],")")) -> Huishoudens (RES) | N103: =IF(tblResultaatMaatregelen[[#This Row],[X-as]]="Maatregelen",CONCATENATE(tblResultaatMaatregelen[[#This Row],[Sector]]," (",tblResultaatMaatregelen[[#This Row],[Sector_kort]],")"),tblResultaatMaatregelen[[#This Row],[MaatregelCode]]) -> RES_HER_ZB
A104: =CONCATENATE("Scenario ",tblResultaatMaatregelen[[#This Row],[ScenarioNummer]]) -> Scenario 2 | B104: 2 | C104: 7 | D104: =VLOOKUP(tblResultaatMaatregelen[[#This Row],[MaatregelNummer]],Tbl_scenario[],4,TRUE) -> RES_HER_WPB | E104: =INDEX(tblSectoren[SectorID],MATCH(tblResultaatMaatregelen[[#This Row],[Sector]],tblSectoren[Sectoren],0)) -> 1 | F104: =VLOOKUP(tblResultaatMaatregelen[[#This Row],[MaatregelNummer]],Tbl_scenario[],2,TRUE) -> Huishoudens | G104: =INDEX(tblSectoren[Afkorting],tblResultaatMaatregelen[[#This Row],[Sectornummer]]) -> RES | H104: =VLOOKUP(tblResultaatMaatregelen[[#This Row],[MaatregelNummer]],Tbl_scenario[],3,TRUE) -> Warmtepompboiler | I104: =VLOOKUP(tblResultaatMaatregelen[[#This Row],[MaatregelNummer]],Tbl_scenario[],6+(tblResultaatMaatregelen[[#This Row],[ScenarioNummer]]-1)*4+1,TRUE) -> Hoog | J104: =IF(tblResultaatMaatregelen[[#This Row],[Ambitieniveau]]="Niet",0,IFERROR(INDIRECT(CONCATENATE(tblResultaatMaatregelen[[#This Row],[MaatregelCode]],"_REDCO2_",tblResultaatMaatregelen[[#This Row],[ScenarioNummer]])),0)) -> 5589.292836 | K104: Sectoren | L104: =IF(tblResultaatMaatregelen[[#This Row],[X-as]]="Maatregelen",tblResultaatMaatregelen[[#This Row],[MaatregelNummer]],tblResultaatMaatregelen[[#This Row],[Sectornummer]]) -> 1 | M104: =IF(tblResultaatMaatregelen[[#This Row],[X-as]]="Maatregelen",tblResultaatMaatregelen[[#This Row],[MaatregelCode]],CONCATENATE(tblResultaatMaatregelen[[#This Row],[Sector]]," (",tblResultaatMaatregelen[[#This Row],[Sector_kort]],")")) -> Huishoudens (RES) | N104: =IF(tblResultaatMaatregelen[[#This Row],[X-as]]="Maatregelen",CONCATENATE(tblResultaatMaatregelen[[#This Row],[Sector]]," (",tblResultaatMaatregelen[[#This Row],[Sector_kort]],")"),tblResultaatMaatregelen[[#This Row],[MaatregelCode]]) -> RES_HER_WPB
A105: =CONCATENATE("Scenario ",tblResultaatMaatregelen[[#This Row],[ScenarioNummer]]) -> Scenario 2 | B105: 2 | C105: 8 | D105: =VLOOKUP(tblResultaatMaatregelen[[#This Row],[MaatregelNummer]],Tbl_scenario[],4,TRUE) -> RES_EE_ELE | E105: =INDEX(tblSectoren[SectorID],MATCH(tblResultaatMaatregelen[[#This Row],[Sector]],tblSectoren[Sectoren],0)) -> 1 | F105: =VLOOKUP(tblResultaatMaatregelen[[#This Row],[MaatregelNummer]],Tbl_scenario[],2,TRUE) -> Huishoudens | G105: =INDEX(tblSectoren[Afkorting],tblResultaatMaatregelen[[#This Row],[Sectornummer]]) -> RES | H105: =VLOOKUP(tblResultaatMaatregelen[[#This Row],[MaatregelNummer]],Tbl_scenario[],3,TRUE) -> Elektriciteitsgebruik: verhogen efficiëntie | I105: =VLOOKUP(tblResultaatMaatregelen[[#This Row],[MaatregelNummer]],Tbl_scenario[],6+(tblResultaatMaatregelen[[#This Row],[ScenarioNummer]]-1)*4+1,TRUE) -> Hoog | J105: =IF(tblResultaatMaatregelen[[#This Row],[Ambitieniveau]]="Niet",0,IFERROR(INDIRECT(CONCATENATE(tblResultaatMaatregelen[[#This Row],[MaatregelCode]],"_REDCO2_",tblResultaatMaatregelen[[#This Row],[ScenarioNummer]])),0)) -> 3190.529613 | K105: Sectoren | L105: =IF(tblResultaatMaatregelen[[#This Row],[X-as]]="Maatregelen",tblResultaatMaatregelen[[#This Row],[MaatregelNummer]],tblResultaatMaatregelen[[#This Row],[Sectornummer]]) -> 1 | M105: =IF(tblResultaatMaatregelen[[#This Row],[X-as]]="Maatregelen",tblResultaatMaatregelen[[#This Row],[MaatregelCode]],CONCATENATE(tblResultaatMaatregelen[[#This Row],[Sector]]," (",tblResultaatMaatregelen[[#This Row],[Sector_kort]],")")) -> Huishoudens (RES) | N105: =IF(tblResultaatMaatregelen[[#This Row],[X-as]]="Maatregelen",CONCATENATE(tblResultaatMaatregelen[[#This Row],[Sector]]," (",tblResultaatMaatregelen[[#This Row],[Sector_kort]],")"),tblResultaatMaatregelen[[#This Row],[MaatregelCode]]) -> RES_EE_ELE
A106: =CONCATENATE("Scenario ",tblResultaatMaatregelen[[#This Row],[ScenarioNummer]]) -> Scenario 2 | B106: 2 | C106: 9 | D106: =VLOOKUP(tblResultaatMaatregelen[[#This Row],[MaatregelNummer]],Tbl_scenario[],4,TRUE) -> RES_EE_SLOOP | E106: =INDEX(tblSectoren[SectorID],MATCH(tblResultaatMaatregelen[[#This Row],[Sector]],tblSectoren[Sectoren],0)) -> 1 | F106: =VLOOKUP(tblResultaatMaatregelen[[#This Row],[MaatregelNummer]],Tbl_scenario[],2,TRUE) -> Huishoudens | G106: =INDEX(tblSectoren[Afkorting],tblResultaatMaatregelen[[#This Row],[Sectornummer]]) -> RES | H106: =VLOOKUP(tblResultaatMaatregelen[[#This Row],[MaatregelNummer]],Tbl_scenario[],3,TRUE) -> Stimuleren sloop energieverslindende woningen | I106: =VLOOKUP(tblResultaatMaatregelen[[#This Row],[MaatregelNummer]],Tbl_scenario[],6+(tblResultaatMaatregelen[[#This Row],[ScenarioNummer]]-1)*4+1,TRUE) -> Hoog | J106: =IF(tblResultaatMaatregelen[[#This Row],[Ambitieniveau]]="Niet",0,IFERROR(INDIRECT(CONCATENATE(tblResultaatMaatregelen[[#This Row],[MaatregelCode]],"_REDCO2_",tblResultaatMaatregelen[[#This Row],[ScenarioNummer]])),0)) -> 7090.075859 | K106: Sectoren | L106: =IF(tblResultaatMaatregelen[[#This Row],[X-as]]="Maatregelen",tblResultaatMaatregelen[[#This Row],[MaatregelNummer]],tblResultaatMaatregelen[[#This Row],[Sectornummer]]) -> 1 | M106: =IF(tblResultaatMaatregelen[[#This Row],[X-as]]="Maatregelen",tblResultaatMaatregelen[[#This Row],[MaatregelCode]],CONCATENATE(tblResultaatMaatregelen[[#This Row],[Sector]]," (",tblResultaatMaatregelen[[#This Row],[Sector_kort]],")")) -> Huishoudens (RES) | N106: =IF(tblResultaatMaatregelen[[#This Row],[X-as]]="Maatregelen",CONCATENATE(tblResultaatMaatregelen[[#This Row],[Sector]]," (",tblResultaatMaatregelen[[#This Row],[Sector_kort]],")"),tblResultaatMaatregelen[[#This Row],[MaatregelCode]]) -> RES_EE_SLOOP
